Workbook

Sheet Kitchen
A1: Range | T1: Enter % | U1: Total Cost Ex Vat | V1: RRP Ex Vat | W1: Cash Margin | X1: Margin %
A2: Rail Colour | S2: My Furniture Discount | T2: 0.55 | U2: =SUM(U12:U733) -> 0 | V2: =D9/1.2 -> 0 | W2: =V2-U2 -> 0 | X2: =W2/V2 -> 
A3: Rigid | B3: Customer Name | S3: Add Retail Discount | T3: 0
A4: Drawer Box | B4: Order Ref
A5: Home Delivery | B5: Other Comments | S5: Additional Margin
A6: Minerva | S6: Lights | T6: 0.3
E7: =VLOOKUP('Data Validation Lists'!B1,'Data Validation Lists'!A2:D187,4,FALSE) -> 6 Week Lead Time | S7: Minerva | T7: 0.3
B8: Qty | C8: RRP | D8: Total RRP | E8: Part Code | H8: Drw Boxes | S8: Other | T8: 0.3
B9: 1 | D9: =SUM(D10:D905) -> 0 | G9: Rigid | H9: STD | I9: Pan | J9: Low
A11: Base Units
A13: 150 HL Pull Out Base VS SUB | C13: =IF($E13="Not Available","",VLOOKUP(E13,'Prices Furniture'!A:F,6,FALSE)*(1-$T$3)) -> 447 | D13: =IF(B13="","",B13*C13) ->  | E13: =VLOOKUP(A13,Codes!$B:$DO,'Data Validation Lists'!$B$1+2,FALSE) -> @FM-ESK-BP15TY | G13: =IF(AND(B13>0,'Data Validation Lists'!$I$1=1),B13,"") ->  | S13: Furniture | U13: =IF(B13="","",SUM(D13/1.2)*(1-$T$2)/(1-$T$3)) -> 
A14: 300 HL Pull Out Base VS SUB | C14: =IF($E14="Not Available","",VLOOKUP(E14,'Prices Furniture'!A:F,6,FALSE)*(1-$T$3)) -> 733 | E14: =VLOOKUP(A14,Codes!$B:$DO,'Data Validation Lists'!$B$1+2,FALSE) -> @FM-ESK-BP3TY | G14: =IF(AND(B14>0,'Data Validation Lists'!$I$1=1),B14,"") ->  | S14: Furniture
A16: 150 HL Base Unit | C16: =IF($E16="Not Available","",VLOOKUP(E16,'Prices Furniture'!A:F,6,FALSE)*(1-$T$3)) -> 275 | D16: =IF(B16="","",B16*C16) ->  | E16: =VLOOKUP(A16,Codes!$B:$DO,'Data Validation Lists'!$B$1+2,FALSE) -> @FM-ESK-BH15 | G16: =IF(AND(B16>0,'Data Validation Lists'!$I$1=1),B16,"") ->  | S16: Furniture | U16: =IF(B16="","",SUM(D16/1.2)*(1-$T$2)/(1-$T$3)) -> 
A17: 300 HL Base Unit | C17: =IF($E17="Not Available","",VLOOKUP(E17,'Prices Furniture'!A:F,6,FALSE)*(1-$T$3)) -> 356 | E17: =VLOOKUP(A17,Codes!$B:$DO,'Data Validation Lists'!$B$1+2,FALSE) -> @FM-ESK-BH30 | G17: =IF(AND(B17>0,'Data Validation Lists'!$I$1=1),B17,"") ->  | S17: Furniture
A18: 400 HL Base Unit | C18: =IF($E18="Not Available","",VLOOKUP(E18,'Prices Furniture'!A:F,6,FALSE)*(1-$T$3)) -> 406 | E18: =VLOOKUP(A18,Codes!$B:$DO,'Data Validation Lists'!$B$1+2,FALSE) -> @FM-ESK-BH40 | G18: =IF(AND(B18>0,'Data Validation Lists'!$I$1=1),B18,"") ->  | S18: Furniture
A19: 450 HL Base Unit | C19: =IF($E19="Not Available","",VLOOKUP(E19,'Prices Furniture'!A:F,6,FALSE)*(1-$T$3)) -> 431 | E19: =VLOOKUP(A19,Codes!$B:$DO,'Data Validation Lists'!$B$1+2,FALSE) -> @FM-ESK-BH45 | G19: =IF(AND(B19>0,'Data Validation Lists'!$I$1=1),B19,"") ->  | S19: Furniture
A20: 500 HL Base Unit | C20: =IF($E20="Not Available","",VLOOKUP(E20,'Prices Furniture'!A:F,6,FALSE)*(1-$T$3)) -> 456 | E20: =VLOOKUP(A20,Codes!$B:$DO,'Data Validation Lists'!$B$1+2,FALSE) -> @FM-ESK-BH50 | G20: =IF(AND(B20>0,'Data Validation Lists'!$I$1=1),B20,"") ->  | S20: Furniture
A21: 600 HL Base Unit | C21: =IF($E21="Not Available","",VLOOKUP(E21,'Prices Furniture'!A:F,6,FALSE)*(1-$T$3)) -> 512 | E21: =VLOOKUP(A21,Codes!$B:$DO,'Data Validation Lists'!$B$1+2,FALSE) -> @FM-ESK-BH60 | G21: =IF(AND(B21>0,'Data Validation Lists'!$I$1=1),B21,"") ->  | S21: Furniture
A22: 700 HL Base Unit | C22: =IF($E22="Not Available","",VLOOKUP(E22,'Prices Furniture'!A:F,6,FALSE)*(1-$T$3)) -> 642 | E22: =VLOOKUP(A22,Codes!$B:$DO,'Data Validation Lists'!$B$1+2,FALSE) -> @FM-ESK-BH70 | G22: =IF(AND(B22>0,'Data Validation Lists'!$I$1=1),B22,"") ->  | S22: Furniture
A23: 800 HL Base Unit | C23: =IF($E23="Not Available","",VLOOKUP(E23,'Prices Furniture'!A:F,6,FALSE)*(1-$T$3)) -> 707 | E23: =VLOOKUP(A23,Codes!$B:$DO,'Data Validation Lists'!$B$1+2,FALSE) -> @FM-ESK-BH80 | G23: =IF(AND(B23>0,'Data Validation Lists'!$I$1=1),B23,"") ->  | S23: Furniture
A24: 900 HL Base Unit | C24: =IF($E24="Not Available","",VLOOKUP(E24,'Prices Furniture'!A:F,6,FALSE)*(1-$T$3)) -> 750 | E24: =VLOOKUP(A24,Codes!$B:$DO,'Data Validation Lists'!$B$1+2,FALSE) -> @FM-ESK-BH90 | G24: =IF(AND(B24>0,'Data Validation Lists'!$I$1=1),B24,"") ->  | S24: Furniture
A25: 1000 HL Base Unit | C25: =IF($E25="Not Available","",VLOOKUP(E25,'Prices Furniture'!A:F,6,FALSE)*(1-$T$3)) -> 802 | E25: =VLOOKUP(A25,Codes!$B:$DO,'Data Validation Lists'!$B$1+2,FALSE) -> @FM-ESK-BH100 | G25: =IF(AND(B25>0,'Data Validation Lists'!$I$1=1),B25,"") ->  | S25: Furniture
A27: 300 HL Base Unit & Bin | C27: =IF($E27="Not Available","",VLOOKUP(E27,'Prices Furniture'!A:F,6,FALSE)*(1-$T$3)) -> 707 | D27: =IF(B27="","",B27*C27) ->  | E27: =VLOOKUP(A27,Codes!$B:$DO,'Data Validation Lists'!$B$1+2,FALSE) -> @FM-ESK-BH3B | G27: =IF(AND(B27>0,'Data Validation Lists'!$I$1=1),B27,"") ->  | S27: Furniture | U27: =IF(B27="","",SUM(D27/1.2)*(1-$T$2)/(1-$T$3)) -> 
A28: 400 HL Base Unit & Bin | C28: =IF($E28="Not Available","",VLOOKUP(E28,'Prices Furniture'!A:F,6,FALSE)*(1-$T$3)) -> 819 | E28: =VLOOKUP(A28,Codes!$B:$DO,'Data Validation Lists'!$B$1+2,FALSE) -> @FM-ESK-BH4B | G28: =IF(AND(B28>0,'Data Validation Lists'!$I$1=1),B28,"") ->  | S28: Furniture
A29: 450 HL Base Unit & Bin | C29: =IF($E29="Not Available","",VLOOKUP(E29,'Prices Furniture'!A:F,6,FALSE)*(1-$T$3)) -> 849 | E29: =VLOOKUP(A29,Codes!$B:$DO,'Data Validation Lists'!$B$1+2,FALSE) -> @FM-ESK-BH45B | G29: =IF(AND(B29>0,'Data Validation Lists'!$I$1=1),B29,"") ->  | S29: Furniture
A30: 500 HL Base Unit & Bin | C30: =IF($E30="Not Available","",VLOOKUP(E30,'Prices Furniture'!A:F,6,FALSE)*(1-$T$3)) -> 880 | E30: =VLOOKUP(A30,Codes!$B:$DO,'Data Validation Lists'!$B$1+2,FALSE) -> @FM-ESK-BH5B | G30: =IF(AND(B30>0,'Data Validation Lists'!$I$1=1),B30,"") ->  | S30: Furniture
A31: 600 HL Base Unit & Bin (4 Bins) | C31: =IF($E31="Not Available","",VLOOKUP(E31,'Prices Furniture'!A:F,6,FALSE)*(1-$T$3)) -> 1020 | E31: =VLOOKUP(A31,Codes!$B:$DO,'Data Validation Lists'!$B$1+2,FALSE) -> @FM-ESK-BH6B4 | G31: =IF(AND(B31>0,'Data Validation Lists'!$I$1=1),B31,"") ->  | S31: Furniture
A32: 600 HL Base Unit & Bin (2 Bins) | C32: =IF($E32="Not Available","",VLOOKUP(E32,'Prices Furniture'!A:F,6,FALSE)*(1-$T$3)) -> 971 | E32: =VLOOKUP(A32,Codes!$B:$DO,'Data Validation Lists'!$B$1+2,FALSE) -> @FM-ESK-BH6B2 | G32: =IF(AND(B32>0,'Data Validation Lists'!$I$1=1),B32,"") ->  | S32: Furniture
A34: 800 HL Corner Base Unit (300 Door) | C34: =IF($E34="Not Available","",VLOOKUP(E34,'Prices Furniture'!A:F,6,FALSE)*(1-$T$3)) -> 722 | D34: =IF(B34="","",B34*C34) ->  | E34: =VLOOKUP(A34,Codes!$B:$DO,'Data Validation Lists'!$B$1+2,FALSE) -> @FM-ESK-BC83 | G34: =IF(AND(B34>0,'Data Validation Lists'!$I$1=1),B34,"") ->  | S34: Furniture | U34: =IF(B34="","",SUM(D34/1.2)*(1-$T$2)/(1-$T$3)) -> 
A35: 800 HL Corner Base Unit (400 Door) | C35: =IF($E35="Not Available","",VLOOKUP(E35,'Prices Furniture'!A:F,6,FALSE)*(1-$T$3)) -> 765 | E35: =VLOOKUP(A35,Codes!$B:$DO,'Data Validation Lists'!$B$1+2,FALSE) -> @FM-ESK-BC84 | G35: =IF(AND(B35>0,'Data Validation Lists'!$I$1=1),B35,"") ->  | S35: Furniture
A36: 800 HL Corner Base Unit (450 Door) | C36: =IF($E36="Not Available","",VLOOKUP(E36,'Prices Furniture'!A:F,6,FALSE)*(1-$T$3)) -> 785 | E36: =VLOOKUP(A36,Codes!$B:$DO,'Data Validation Lists'!$B$1+2,FALSE) -> @FM-ESK-BC845 | G36: =IF(AND(B36>0,'Data Validation Lists'!$I$1=1),B36,"") ->  | S36: Furniture
A37: 900 HL Corner Base Unit (450 Door) | C37: =IF($E37="Not Available","",VLOOKUP(E37,'Prices Furniture'!A:F,6,FALSE)*(1-$T$3)) -> 788 | E37: =VLOOKUP(A37,Codes!$B:$DO,'Data Validation Lists'!$B$1+2,FALSE) -> @FM-ESK-BC945 | G37: =IF(AND(B37>0,'Data Validation Lists'!$I$1=1),B37,"") ->  | S37: Furniture
A38: 1000 HL Corner Base Unit (450 Door) | C38: =IF($E38="Not Available","",VLOOKUP(E38,'Prices Furniture'!A:F,6,FALSE)*(1-$T$3)) -> 796 | E38: =VLOOKUP(A38,Codes!$B:$DO,'Data Validation Lists'!$B$1+2,FALSE) -> @FM-ESK-BC145 | G38: =IF(AND(B38>0,'Data Validation Lists'!$I$1=1),B38,"") ->  | S38: Furniture
A39: 1000 HL Corner Base Unit (500 Door) | C39: =IF($E39="Not Available","",VLOOKUP(E39,'Prices Furniture'!A:F,6,FALSE)*(1-$T$3)) -> 818 | E39: =VLOOKUP(A39,Codes!$B:$DO,'Data Validation Lists'!$B$1+2,FALSE) -> @FM-ESK-BC15 | G39: =IF(AND(B39>0,'Data Validation Lists'!$I$1=1),B39,"") ->  | S39: Furniture
A40: 1000 HL Corner Base Unit (600 Door) | C40: =IF($E40="Not Available","",VLOOKUP(E40,'Prices Furniture'!A:F,6,FALSE)*(1-$T$3)) -> 860 | E40: =VLOOKUP(A40,Codes!$B:$DO,'Data Validation Lists'!$B$1+2,FALSE) -> @FM-ESK-BC16 | G40: =IF(AND(B40>0,'Data Validation Lists'!$I$1=1),B40,"") ->  | S40: Furniture
A41: 1000 Cnr Base CORNERSTONE MAXX LH - 500 door | C41: =IF($E41="Not Available","",VLOOKUP(E41,'Prices Furniture'!A:F,6,FALSE)*(1-$T$3)) -> 1641 | E41: =VLOOKUP(A41,Codes!$B:$DO,'Data Validation Lists'!$B$1+2,FALSE) -> @FM-ESK-BCL15L | F41: Note: This unit is handed by the Wirework | G41: =IF(AND(B41>0,'Data Validation Lists'!$I$1=1),B41,"") ->  | S41: Furniture
A42: 1000 Cnr Base CORNERSTONE MAXX RH - 500 door | C42: =IF($E42="Not Available","",VLOOKUP(E42,'Prices Furniture'!A:F,6,FALSE)*(1-$T$3)) -> 1641 | E42: =VLOOKUP(A42,Codes!$B:$DO,'Data Validation Lists'!$B$1+2,FALSE) -> @FM-ESK-BCL15R | F42: Note: This unit is handed by the Wirework | G42: =IF(AND(B42>0,'Data Validation Lists'!$I$1=1),B42,"") ->  | S42: Furniture
A43: 1000 Cnr Base CORNERSTONE MAXX LH - 600 door | C43: =IF($E43="Not Available","",VLOOKUP(E43,'Prices Furniture'!A:F,6,FALSE)*(1-$T$3)) -> 1743 | E43: =VLOOKUP(A43,Codes!$B:$DO,'Data Validation Lists'!$B$1+2,FALSE) -> @FM-ESK-BCL16L | F43: Note: This unit is handed by the Wirework | G43: =IF(AND(B43>0,'Data Validation Lists'!$I$1=1),B43,"") ->  | S43: Furniture
A44: 1000 Cnr Base CORNERSTONE MAXX RH - 600 door | C44: =IF($E44="Not Available","",VLOOKUP(E44,'Prices Furniture'!A:F,6,FALSE)*(1-$T$3)) -> 1743 | E44: =VLOOKUP(A44,Codes!$B:$DO,'Data Validation Lists'!$B$1+2,FALSE) -> @FM-ESK-BCL16R | F44: Note: This unit is handed by the Wirework | G44: =IF(AND(B44>0,'Data Validation Lists'!$I$1=1),B44,"") ->  | S44: Furniture
A45: 900 Corner Base VS COR FLEX - 450 door | C45: =IF($E45="Not Available","",VLOOKUP(E45,'Prices Furniture'!A:F,6,FALSE)*(1-$T$3)) -> 1749 | E45: =VLOOKUP(A45,Codes!$B:$DO,'Data Validation Lists'!$B$1+2,FALSE) -> @FM-ESK-BCO945 | G45: =IF(AND(B45>0,'Data Validation Lists'!$I$1=1),B45,"") ->  | S45: Furniture
A46: 1000 Corner Base VS COR FLEX - 450 door | C46: =IF($E46="Not Available","",VLOOKUP(E46,'Prices Furniture'!A:F,6,FALSE)*(1-$T$3)) -> 1757 | E46: =VLOOKUP(A46,Codes!$B:$DO,'Data Validation Lists'!$B$1+2,FALSE) -> @FM-ESK-BCO145 | G46: =IF(AND(B46>0,'Data Validation Lists'!$I$1=1),B46,"") ->  | S46: Furniture
A47: 1000 Corner Base VS COR FLEX - 500 door | C47: =IF($E47="Not Available","",VLOOKUP(E47,'Prices Furniture'!A:F,6,FALSE)*(1-$T$3)) -> 1779 | E47: =VLOOKUP(A47,Codes!$B:$DO,'Data Validation Lists'!$B$1+2,FALSE) -> @FM-ESK-BCO15 | G47: =IF(AND(B47>0,'Data Validation Lists'!$I$1=1),B47,"") ->  | S47: Furniture
A48: 1000 Corner Base VS COR FLEX - 600 door | C48: =IF($E48="Not Available","",VLOOKUP(E48,'Prices Furniture'!A:F,6,FALSE)*(1-$T$3)) -> 1821 | E48: =VLOOKUP(A48,Codes!$B:$DO,'Data Validation Lists'!$B$1+2,FALSE) -> @FM-ESK-BCO16 | G48: =IF(AND(B48>0,'Data Validation Lists'!$I$1=1),B48,"") ->  | S48: Furniture
A49: 930 HL Corner L Base | C49: =IF($E49="Not Available","",VLOOKUP(E49,'Prices Furniture'!A:F,6,FALSE)*(1-$T$3)) -> 1079 | E49: =VLOOKUP(A49,Codes!$B:$DO,'Data Validation Lists'!$B$1+2,FALSE) -> @FM-ESK-BCL9 | S49: Furniture
A50: 500 HL Island Base Unit 270 Deep | C50: =IF($E50="Not Available","",VLOOKUP(E50,'Prices Furniture'!A:F,6,FALSE)*(1-$T$3)) -> 435 | E50: =VLOOKUP(A50,Codes!$B:$DO,'Data Validation Lists'!$B$1+2,FALSE) -> @FM-ESK-BI50 | G50: =IF(AND(B50>0,'Data Validation Lists'!$I$1=1),B50,"") ->  | S50: Furniture
A51: 1000 HL Island Base Unit 270 Deep | C51: =IF($E51="Not Available","",VLOOKUP(E51,'Prices Furniture'!A:F,6,FALSE)*(1-$T$3)) -> 770 | E51: =VLOOKUP(A51,Codes!$B:$DO,'Data Validation Lists'!$B$1+2,FALSE) -> @FM-ESK-BI10 | G51: =IF(AND(B51>0,'Data Validation Lists'!$I$1=1),B51,"") ->  | S51: Furniture
A53: 500 3 Drawer Base Unit | C53: =IF($E53="Not Available","",VLOOKUP(E53,'Prices Furniture'!A:F,6,FALSE)*(1-$T$3)) -> 792 | D53: =IF(B53="","",B53*C53) ->  | E53: =VLOOKUP(A53,Codes!$B:$DO,'Data Validation Lists'!$B$1+2,FALSE) -> @FM-ESK-BD53 | G53: =IF(AND(B53>0,'Data Validation Lists'!$I$1=1),B53,"") ->  | H53: =IF(AND(B53>0,'Data Validation Lists'!$I$6>1),B53*2,"") ->  | I53: =IF(AND(B53>0,'Data Validation Lists'!$I$6>1),B53,"") ->  | S53: Furniture | U53: =IF(B53="","",SUM(D53/1.2)*(1-$T$2)/(1-$T$3)) -> 
A54: 600 3 Drawer Base Unit | C54: =IF($E54="Not Available","",VLOOKUP(E54,'Prices Furniture'!A:F,6,FALSE)*(1-$T$3)) -> 881 | E54: =VLOOKUP(A54,Codes!$B:$DO,'Data Validation Lists'!$B$1+2,FALSE) -> @FM-ESK-BD63 | G54: =IF(AND(B54>0,'Data Validation Lists'!$I$1=1),B54,"") ->  | H54: =IF(AND(B54>0,'Data Validation Lists'!$I$6>1),B54*2,"") ->  | I54: =IF(AND(B54>0,'Data Validation Lists'!$I$6>1),B54,"") ->  | S54: Furniture
A55: 800 3 Drawer Base Unit | C55: =IF($E55="Not Available","",VLOOKUP(E55,'Prices Furniture'!A:F,6,FALSE)*(1-$T$3)) -> 1034 | E55: =VLOOKUP(A55,Codes!$B:$DO,'Data Validation Lists'!$B$1+2,FALSE) -> @FM-ESK-BD83 | G55: =IF(AND(B55>0,'Data Validation Lists'!$I$1=1),B55,"") ->  | H55: =IF(AND(B55>0,'Data Validation Lists'!$I$6>1),B55*2,"") ->  | I55: =IF(AND(B55>0,'Data Validation Lists'!$I$6>1),B55,"") ->  | S55: Furniture
A56: 900 3 Drawer Base Unit | C56: =IF($E56="Not Available","",VLOOKUP(E56,'Prices Furniture'!A:F,6,FALSE)*(1-$T$3)) -> 1092 | E56: =VLOOKUP(A56,Codes!$B:$DO,'Data Validation Lists'!$B$1+2,FALSE) -> @FM-ESK-BD93 | G56: =IF(AND(B56>0,'Data Validation Lists'!$I$1=1),B56,"") ->  | H56: =IF(AND(B56>0,'Data Validation Lists'!$I$6>1),B56*2,"") ->  | I56: =IF(AND(B56>0,'Data Validation Lists'!$I$6>1),B56,"") ->  | S56: Furniture
A57: 1000 3 Drawer Base Unit | C57: =IF($E57="Not Available","",VLOOKUP(E57,'Prices Furniture'!A:F,6,FALSE)*(1-$T$3)) -> 1170 | E57: =VLOOKUP(A57,Codes!$B:$DO,'Data Validation Lists'!$B$1+2,FALSE) -> @FM-ESK-BD13 | G57: =IF(AND(B57>0,'Data Validation Lists'!$I$1=1),B57,"") ->  | H57: =IF(AND(B57>0,'Data Validation Lists'!$I$6>1),B57*2,"") ->  | I57: =IF(AND(B57>0,'Data Validation Lists'!$I$6>1),B57,"") ->  | S57: Furniture
A59: 500 2 Pan Drawer Unit | C59: =IF($E59="Not Available","",VLOOKUP(E59,'Prices Furniture'!A:F,6,FALSE)*(1-$T$3)) -> 652 | D59: =IF(B59="","",B59*C59) ->  | E59: =VLOOKUP(A59,Codes!$B:$DO,'Data Validation Lists'!$B$1+2,FALSE) -> @FM-ESK-BD52 | G59: =IF(AND(B59>0,'Data Validation Lists'!$I$1=1),B59,"") ->  | I59: =IF(AND(B59>0,'Data Validation Lists'!$I$6>1),B59*2,"") ->  | S59: Furniture | U59: =IF(B59="","",SUM(D59/1.2)*(1-$T$2)/(1-$T$3)) -> 
A60: 600 2 Pan Drawer Unit | C60: =IF($E60="Not Available","",VLOOKUP(E60,'Prices Furniture'!A:F,6,FALSE)*(1-$T$3)) -> 739 | E60: =VLOOKUP(A60,Codes!$B:$DO,'Data Validation Lists'!$B$1+2,FALSE) -> @FM-ESK-BD62 | G60: =IF(AND(B60>0,'Data Validation Lists'!$I$1=1),B60,"") ->  | I60: =IF(AND(B60>0,'Data Validation Lists'!$I$6>1),B60*2,"") ->  | S60: Furniture
A61: 800 2 Pan Drawer Unit | C61: =IF($E61="Not Available","",VLOOKUP(E61,'Prices Furniture'!A:F,6,FALSE)*(1-$T$3)) -> 893 | E61: =VLOOKUP(A61,Codes!$B:$DO,'Data Validation Lists'!$B$1+2,FALSE) -> @FM-ESK-BD82 | G61: =IF(AND(B61>0,'Data Validation Lists'!$I$1=1),B61,"") ->  | I61: =IF(AND(B61>0,'Data Validation Lists'!$I$6>1),B61*2,"") ->  | S61: Furniture
A62: 900 2 Pan Drawer Unit | C62: =IF($E62="Not Available","",VLOOKUP(E62,'Prices Furniture'!A:F,6,FALSE)*(1-$T$3)) -> 956 | E62: =VLOOKUP(A62,Codes!$B:$DO,'Data Validation Lists'!$B$1+2,FALSE) -> @FM-ESK-BD92 | G62: =IF(AND(B62>0,'Data Validation Lists'!$I$1=1),B62,"") ->  | I62: =IF(AND(B62>0,'Data Validation Lists'!$I$6>1),B62*2,"") ->  | S62: Furniture
A63: 1000 2 Pan Drawer Unit | C63: =IF($E63="Not Available","",VLOOKUP(E63,'Prices Furniture'!A:F,6,FALSE)*(1-$T$3)) -> 1025 | E63: =VLOOKUP(A63,Codes!$B:$DO,'Data Validation Lists'!$B$1+2,FALSE) -> @FM-ESK-BD12 | G63: =IF(AND(B63>0,'Data Validation Lists'!$I$1=1),B63,"") ->  | I63: =IF(AND(B63>0,'Data Validation Lists'!$I$6>1),B63*2,"") ->  | S63: Furniture
A65: 500 2 Drawer Unit + Internal Drawer | C65: =IF($E65="Not Available","",VLOOKUP(E65,'Prices Furniture'!A:F,6,FALSE)*(1-$T$3)) -> 784 | D65: =IF(B65="","",B65*C65) ->  | E65: =VLOOKUP(A65,Codes!$B:$DO,'Data Validation Lists'!$B$1+2,FALSE) -> @FM-ESK-BD52I | G65: =IF(AND(B65>0,'Data Validation Lists'!$I$1=1),B65,"") ->  | H65: =IF(AND(B65>0,'Data Validation Lists'!$I$6>1),B65*2,"") ->  | I65: =IF(AND(B65>0,'Data Validation Lists'!$I$6>1),B65,"") ->  | S65: Furniture | U65: =IF(B65="","",SUM(D65/1.2)*(1-$T$2)/(1-$T$3)) -> 
A66: 600 2 Drawer Unit + Internal Drawer | C66: =IF($E66="Not Available","",VLOOKUP(E66,'Prices Furniture'!A:F,6,FALSE)*(1-$T$3)) -> 879 | D66: =IF(B66="","",B66*C66) ->  | E66: =VLOOKUP(A66,Codes!$B:$DO,'Data Validation Lists'!$B$1+2,FALSE) -> @FM-ESK-BD62I | G66: =IF(AND(B66>0,'Data Validation Lists'!$I$1=1),B66,"") ->  | H66: =IF(AND(B66>0,'Data Validation Lists'!$I$6>1),B66*2,"") ->  | I66: =IF(AND(B66>0,'Data Validation Lists'!$I$6>1),B66,"") ->  | S66: Furniture | U66: =IF(B66="","",SUM(D66/1.2)*(1-$T$2)/(1-$T$3)) -> 
A67: 800 2 Drawer Unit + Internal Drawer | C67: =IF($E67="Not Available","",VLOOKUP(E67,'Prices Furniture'!A:F,6,FALSE)*(1-$T$3)) -> 1055 | E67: =VLOOKUP(A67,Codes!$B:$DO,'Data Validation Lists'!$B$1+2,FALSE) -> @FM-ESK-BD82I | G67: =IF(AND(B67>0,'Data Validation Lists'!$I$1=1),B67,"") ->  | H67: =IF(AND(B67>0,'Data Validation Lists'!$I$6>1),B67*2,"") ->  | I67: =IF(AND(B67>0,'Data Validation Lists'!$I$6>1),B67,"") ->  | S67: Furniture
A68: 900 2 Drawer Unit + Internal Drawer | C68: =IF($E68="Not Available","",VLOOKUP(E68,'Prices Furniture'!A:F,6,FALSE)*(1-$T$3)) -> 1124 | E68: =VLOOKUP(A68,Codes!$B:$DO,'Data Validation Lists'!$B$1+2,FALSE) -> @FM-ESK-BD92I | G68: =IF(AND(B68>0,'Data Validation Lists'!$I$1=1),B68,"") ->  | H68: =IF(AND(B68>0,'Data Validation Lists'!$I$6>1),B68*2,"") ->  | I68: =IF(AND(B68>0,'Data Validation Lists'!$I$6>1),B68,"") ->  | S68: Furniture
A69: 1000 2 Drawer Unit + Internal Drawer | C69: =IF($E69="Not Available","",VLOOKUP(E69,'Prices Furniture'!A:F,6,FALSE)*(1-$T$3)) -> 1198 | E69: =VLOOKUP(A69,Codes!$B:$DO,'Data Validation Lists'!$B$1+2,FALSE) -> @FM-ESK-BD12I | G69: =IF(AND(B69>0,'Data Validation Lists'!$I$1=1),B69,"") ->  | H69: =IF(AND(B69>0,'Data Validation Lists'!$I$6>1),B69*2,"") ->  | I69: =IF(AND(B69>0,'Data Validation Lists'!$I$6>1),B69,"") ->  | S69: Furniture
A71: Wall Units | G71: =IF(AND(B71>0,'Data Validation Lists'!$I$1=1),B71,"") ->  | S71: Furniture | U71: =IF(B71="","",SUM(D71/1.2)*(1-$T$2)/(1-$T$3)) -> 
G72: =IF(AND(B72>0,'Data Validation Lists'!$I$1=1),B72,"") ->  | S72: Furniture
A73: 260 Wall Unit - 720 High | C73: =IF($E73="Not Available","",VLOOKUP(E73,'Prices Furniture'!A:F,6,FALSE)*(1-$T$3)) -> 249 | D73: =IF(B73="","",B73*C73) ->  | E73: =VLOOKUP(A73,Codes!$B:$DO,'Data Validation Lists'!$B$1+2,FALSE) -> @FM-ESK-W26 | G73: =IF(AND(B73>0,'Data Validation Lists'!$I$1=1),B73,"") ->  | S73: Furniture
A74: 300 Wall Unit - 720 High | C74: =IF($E74="Not Available","",VLOOKUP(E74,'Prices Furniture'!A:F,6,FALSE)*(1-$T$3)) -> 280 | E74: =VLOOKUP(A74,Codes!$B:$DO,'Data Validation Lists'!$B$1+2,FALSE) -> @FM-ESK-W30 | G74: =IF(AND(B74>0,'Data Validation Lists'!$I$1=1),B74,"") ->  | S74: Furniture
A75: 400 Wall Unit - 720 High | C75: =IF($E75="Not Available","",VLOOKUP(E75,'Prices Furniture'!A:F,6,FALSE)*(1-$T$3)) -> 304 | E75: =VLOOKUP(A75,Codes!$B:$DO,'Data Validation Lists'!$B$1+2,FALSE) -> @FM-ESK-W40 | G75: =IF(AND(B75>0,'Data Validation Lists'!$I$1=1),B75,"") ->  | S75: Furniture
A76: 450 Wall Unit - 720 High | C76: =IF($E76="Not Available","",VLOOKUP(E76,'Prices Furniture'!A:F,6,FALSE)*(1-$T$3)) -> 326 | E76: =VLOOKUP(A76,Codes!$B:$DO,'Data Validation Lists'!$B$1+2,FALSE) -> @FM-ESK-W45 | G76: =IF(AND(B76>0,'Data Validation Lists'!$I$1=1),B76,"") ->  | S76: Furniture
A77: 500 Wall Unit - 720 High | C77: =IF($E77="Not Available","",VLOOKUP(E77,'Prices Furniture'!A:F,6,FALSE)*(1-$T$3)) -> 333 | E77: =VLOOKUP(A77,Codes!$B:$DO,'Data Validation Lists'!$B$1+2,FALSE) -> @FM-ESK-W50 | G77: =IF(AND(B77>0,'Data Validation Lists'!$I$1=1),B77,"") ->  | S77: Furniture
A78: 600 Wall Unit - 720 High | C78: =IF($E78="Not Available","",VLOOKUP(E78,'Prices Furniture'!A:F,6,FALSE)*(1-$T$3)) -> 382 | E78: =VLOOKUP(A78,Codes!$B:$DO,'Data Validation Lists'!$B$1+2,FALSE) -> @FM-ESK-W60 | G78: =IF(AND(B78>0,'Data Validation Lists'!$I$1=1),B78,"") ->  | S78: Furniture
A79: 700 Wall Unit - 720 High | C79: =IF($E79="Not Available","",VLOOKUP(E79,'Prices Furniture'!A:F,6,FALSE)*(1-$T$3)) -> 498 | E79: =VLOOKUP(A79,Codes!$B:$DO,'Data Validation Lists'!$B$1+2,FALSE) -> @FM-ESK-W70 | G79: =IF(AND(B79>0,'Data Validation Lists'!$I$1=1),B79,"") ->  | S79: Furniture
A80: 800 Wall Unit - 720 High | C80: =IF($E80="Not Available","",VLOOKUP(E80,'Prices Furniture'!A:F,6,FALSE)*(1-$T$3)) -> 538 | E80: =VLOOKUP(A80,Codes!$B:$DO,'Data Validation Lists'!$B$1+2,FALSE) -> @FM-ESK-W80 | G80: =IF(AND(B80>0,'Data Validation Lists'!$I$1=1),B80,"") ->  | S80: Furniture
A81: 900 Wall Unit - 720 High | C81: =IF($E81="Not Available","",VLOOKUP(E81,'Prices Furniture'!A:F,6,FALSE)*(1-$T$3)) -> 561 | E81: =VLOOKUP(A81,Codes!$B:$DO,'Data Validation Lists'!$B$1+2,FALSE) -> @FM-ESK-W90 | G81: =IF(AND(B81>0,'Data Validation Lists'!$I$1=1),B81,"") ->  | S81: Furniture
A82: 1000 Wall Unit - 720 High | C82: =IF($E82="Not Available","",VLOOKUP(E82,'Prices Furniture'!A:F,6,FALSE)*(1-$T$3)) -> 571 | E82: =VLOOKUP(A82,Codes!$B:$DO,'Data Validation Lists'!$B$1+2,FALSE) -> @FM-ESK-W100 | G82: =IF(AND(B82>0,'Data Validation Lists'!$I$1=1),B82,"") ->  | S82: Furniture
A84: 600 Corner Wall Unit - 720 High | C84: =IF($E84="Not Available","",VLOOKUP(E84,'Prices Furniture'!A:F,6,FALSE)*(1-$T$3)) -> 495 | D84: =IF(B84="","",B84*C84) ->  | E84: =VLOOKUP(A84,Codes!$B:$DO,'Data Validation Lists'!$B$1+2,FALSE) -> @FM-ESK-WC60 | G84: =IF(AND(B84>0,'Data Validation Lists'!$I$1=1),B84,"") ->  | S84: Furniture | U84: =IF(B84="","",SUM(D84/1.2)*(1-$T$2)/(1-$T$3)) -> 
A85: 900 Corner Wall Unit - 720 High | C85: =IF($E85="Not Available","",VLOOKUP(E85,'Prices Furniture'!A:F,6,FALSE)*(1-$T$3)) -> 609 | E85: =VLOOKUP(A85,Codes!$B:$DO,'Data Validation Lists'!$B$1+2,FALSE) -> @FM-ESK-WC90 | G85: =IF(AND(B85>0,'Data Validation Lists'!$I$1=1),B85,"") ->  | S85: Furniture
A87: 300 Wall Unit - 575 High | C87: =IF($E87="Not Available","",VLOOKUP(E87,'Prices Furniture'!A:F,6,FALSE)*(1-$T$3)) -> 246 | D87: =IF(B87="","",B87*C87) ->  | E87: =VLOOKUP(A87,Codes!$B:$DO,'Data Validation Lists'!$B$1+2,FALSE) -> @FM-ESK-W357 | G87: =IF(AND(B87>0,'Data Validation Lists'!$I$1=1),B87,"") ->  | S87: Furniture | U87: =IF(B87="","",SUM(D87/1.2)*(1-$T$2)/(1-$T$3)) -> 
A88: 400 Wall Unit - 575 High | C88: =IF($E88="Not Available","",VLOOKUP(E88,'Prices Furniture'!A:F,6,FALSE)*(1-$T$3)) -> 265 | E88: =VLOOKUP(A88,Codes!$B:$DO,'Data Validation Lists'!$B$1+2,FALSE) -> @FM-ESK-W457 | G88: =IF(AND(B88>0,'Data Validation Lists'!$I$1=1),B88,"") ->  | S88: Furniture
A89: 450 Wall Unit - 575 High | C89: =IF($E89="Not Available","",VLOOKUP(E89,'Prices Furniture'!A:F,6,FALSE)*(1-$T$3)) -> 289 | E89: =VLOOKUP(A89,Codes!$B:$DO,'Data Validation Lists'!$B$1+2,FALSE) -> @FM-ESK-W4557 | G89: =IF(AND(B89>0,'Data Validation Lists'!$I$1=1),B89,"") ->  | S89: Furniture
A90: 500 Wall Unit - 575 High | C90: =IF($E90="Not Available","",VLOOKUP(E90,'Prices Furniture'!A:F,6,FALSE)*(1-$T$3)) -> 320 | E90: =VLOOKUP(A90,Codes!$B:$DO,'Data Validation Lists'!$B$1+2,FALSE) -> @FM-ESK-W557 | G90: =IF(AND(B90>0,'Data Validation Lists'!$I$1=1),B90,"") ->  | S90: Furniture
A91: 600 Wall Unit - 575 High | C91: =IF($E91="Not Available","",VLOOKUP(E91,'Prices Furniture'!A:F,6,FALSE)*(1-$T$3)) -> 330 | E91: =VLOOKUP(A91,Codes!$B:$DO,'Data Validation Lists'!$B$1+2,FALSE) -> @FM-ESK-W657 | G91: =IF(AND(B91>0,'Data Validation Lists'!$I$1=1),B91,"") ->  | S91: Furniture
A92: 800 Wall Unit - 575 High | C92: =IF($E92="Not Available","",VLOOKUP(E92,'Prices Furniture'!A:F,6,FALSE)*(1-$T$3)) -> 467 | E92: =VLOOKUP(A92,Codes!$B:$DO,'Data Validation Lists'!$B$1+2,FALSE) -> @FM-ESK-W857 | G92: =IF(AND(B92>0,'Data Validation Lists'!$I$1=1),B92,"") ->  | S92: Furniture
A93: 900 Wall Unit - 575 High | C93: =IF($E93="Not Available","",VLOOKUP(E93,'Prices Furniture'!A:F,6,FALSE)*(1-$T$3)) -> 498 | E93: =VLOOKUP(A93,Codes!$B:$DO,'Data Validation Lists'!$B$1+2,FALSE) -> @FM-ESK-W957 | G93: =IF(AND(B93>0,'Data Validation Lists'!$I$1=1),B93,"") ->  | S93: Furniture
A94: 1000 Wall Unit - 575 High | C94: =IF($E94="Not Available","",VLOOKUP(E94,'Prices Furniture'!A:F,6,FALSE)*(1-$T$3)) -> 519 | E94: =VLOOKUP(A94,Codes!$B:$DO,'Data Validation Lists'!$B$1+2,FALSE) -> @FM-ESK-W157 | G94: =IF(AND(B94>0,'Data Validation Lists'!$I$1=1),B94,"") ->  | S94: Furniture
A96: 600 Corner Wall Unit - 575 High | C96: =IF($E96="Not Available","",VLOOKUP(E96,'Prices Furniture'!A:F,6,FALSE)*(1-$T$3)) -> 455 | D96: =IF(B96="","",B96*C96) ->  | E96: =VLOOKUP(A96,Codes!$B:$DO,'Data Validation Lists'!$B$1+2,FALSE) -> @FM-ESK-WC657 | G96: =IF(AND(B96>0,'Data Validation Lists'!$I$1=1),B96,"") ->  | S96: Furniture | U96: =IF(B96="","",SUM(D96/1.2)*(1-$T$2)/(1-$T$3)) -> 
A97: 900 Corner Wall Unit - 575 High | C97: =IF($E97="Not Available","",VLOOKUP(E97,'Prices Furniture'!A:F,6,FALSE)*(1-$T$3)) -> 555 | E97: =VLOOKUP(A97,Codes!$B:$DO,'Data Validation Lists'!$B$1+2,FALSE) -> @FM-ESK-WC957 | G97: =IF(AND(B97>0,'Data Validation Lists'!$I$1=1),B97,"") ->  | S97: Furniture
A99: 600 Bifold Unit | C99: =IF($E99="Not Available","",VLOOKUP(E99,'Prices Furniture'!A:F,6,FALSE)*(1-$T$3)) -> 677 | D99: =IF(B99="","",B99*C99) ->  | E99: =VLOOKUP(A99,Codes!$B:$DO,'Data Validation Lists'!$B$1+2,FALSE) -> @FM-ESK-WBI60 | G99: =IF(AND(B99>0,'Data Validation Lists'!$I$1=1),B99,"") ->  | S99: Furniture | U99: =IF(B99="","",SUM(D99/1.2)*(1-$T$2)/(1-$T$3)) -> 
A100: 800 Bifold Unit | C100: =IF($E100="Not Available","",VLOOKUP(E100,'Prices Furniture'!A:F,6,FALSE)*(1-$T$3)) -> 777 | E100: =VLOOKUP(A100,Codes!$B:$DO,'Data Validation Lists'!$B$1+2,FALSE) -> @FM-ESK-WBI80 | G100: =IF(AND(B100>0,'Data Validation Lists'!$I$1=1),B100,"") ->  | S100: Furniture
A101: 900 Bifold Unit | C101: =IF($E101="Not Available","",VLOOKUP(E101,'Prices Furniture'!A:F,6,FALSE)*(1-$T$3)) -> 814 | E101: =VLOOKUP(A101,Codes!$B:$DO,'Data Validation Lists'!$B$1+2,FALSE) -> @FM-ESK-WBI90 | G101: =IF(AND(B101>0,'Data Validation Lists'!$I$1=1),B101,"") ->  | S101: Furniture
A102: 1000 Bifold Unit | C102: =IF($E102="Not Available","",VLOOKUP(E102,'Prices Furniture'!A:F,6,FALSE)*(1-$T$3)) -> 850 | E102: =VLOOKUP(A102,Codes!$B:$DO,'Data Validation Lists'!$B$1+2,FALSE) -> @FM-ESK-WBI10 | G102: =IF(AND(B102>0,'Data Validation Lists'!$I$1=1),B102,"") ->  | S102: Furniture
A104: 500 Smoked Glass Door Wall Unit - 720 High | C104: =IF($E104="Not Available","",VLOOKUP(E104,'Prices Furniture'!A:F,6,FALSE)*(1-$T$3)) -> 441 | D104: =IF(B104="","",B104*C104) ->  | E104: =VLOOKUP(A104,Codes!$B:$DO,'Data Validation Lists'!$B$1+2,FALSE) -> @FM-BKG-WG50 | G104: =IF(AND(B104>0,'Data Validation Lists'!$I$1=1),B104,"") ->  | S104: Furniture | U104: =IF(B104="","",SUM(D104/1.2)*(1-$T$2)/(1-$T$3)) -> 
A105: 600 Smoked Glass Door Wall Unit - 720 High | C105: =IF($E105="Not Available","",VLOOKUP(E105,'Prices Furniture'!A:F,6,FALSE)*(1-$T$3)) -> 485 | E105: =VLOOKUP(A105,Codes!$B:$DO,'Data Validation Lists'!$B$1+2,FALSE) -> @FM-BKG-WG60 | G105: =IF(AND(B105>0,'Data Validation Lists'!$I$1=1),B105,"") ->  | S105: Furniture
A106: 500 Reeded Glass Door Wall Unit - 720 High | C106: =IF($E106="Not Available","",VLOOKUP(E106,'Prices Furniture'!A:F,6,FALSE)*(1-$T$3)) -> 441 | D106: =IF(B106="","",B106*C106) ->  | E106: =VLOOKUP(A106,Codes!$B:$DO,'Data Validation Lists'!$B$1+2,FALSE) -> @FM-BKG-WGR5 | G106: =IF(AND(B106>0,'Data Validation Lists'!$I$1=1),B106,"") ->  | S106: Furniture | U106: =IF(B106="","",SUM(D106/1.2)*(1-$T$2)/(1-$T$3)) -> 
A107: 600 Reeded Glass Door Wall Unit - 720 High | C107: =IF($E107="Not Available","",VLOOKUP(E107,'Prices Furniture'!A:F,6,FALSE)*(1-$T$3)) -> 485 | E107: =VLOOKUP(A107,Codes!$B:$DO,'Data Validation Lists'!$B$1+2,FALSE) -> @FM-BKG-WGR6 | G107: =IF(AND(B107>0,'Data Validation Lists'!$I$1=1),B107,"") ->  | S107: Furniture
A108: Glass Shelf 500 x 8mm | C108: =IF($E108="Not Available","",VLOOKUP(E108,'Prices Furniture'!A:F,6,FALSE)*(1-$T$3)) -> 66 | E108: =VLOOKUP(A108,Codes!$B:$DO,'Data Validation Lists'!$B$1+2,FALSE) -> FM-FC-GLSHLF5 | F108: Don't forget to order your glass shelves! | S108: Furniture | U108: =IF(B108="","",SUM(D108/1.2)*(1-$T$2)/(1-$T$3)) -> 
A109: Glass Shelf 600 x 8mm | C109: =IF($E109="Not Available","",VLOOKUP(E109,'Prices Furniture'!A:F,6,FALSE)*(1-$T$3)) -> 66 | E109: =VLOOKUP(A109,Codes!$B:$DO,'Data Validation Lists'!$B$1+2,FALSE) -> FM-FC-GLSHLF6 | F109: Don't forget to order your glass shelves! | S109: Furniture
A111: 600 360mm Bridging Unit | C111: =IF($E111="Not Available","",VLOOKUP(E111,'Prices Furniture'!A:F,6,FALSE)*(1-$T$3)) -> 343 | D111: =IF(B111="","",B111*C111) ->  | E111: =VLOOKUP(A111,Codes!$B:$DO,'Data Validation Lists'!$B$1+2,FALSE) -> @FM-ESK-WB63 | G111: =IF(AND(B111>0,'Data Validation Lists'!$I$1=1),B111,"") ->  | S111: Furniture | U111: =IF(B111="","",SUM(D111/1.2)*(1-$T$2)/(1-$T$3)) -> 
A112: 800 360mm Bridging Unit | C112: =IF($E112="Not Available","",VLOOKUP(E112,'Prices Furniture'!A:F,6,FALSE)*(1-$T$3)) -> 406 | E112: =VLOOKUP(A112,Codes!$B:$DO,'Data Validation Lists'!$B$1+2,FALSE) -> @FM-ESK-WB83 | G112: =IF(AND(B112>0,'Data Validation Lists'!$I$1=1),B112,"") ->  | S112: Furniture
A113: 900 360mm Bridging Unit | C113: =IF($E113="Not Available","",VLOOKUP(E113,'Prices Furniture'!A:F,6,FALSE)*(1-$T$3)) -> 429 | E113: =VLOOKUP(A113,Codes!$B:$DO,'Data Validation Lists'!$B$1+2,FALSE) -> @FM-ESK-WB93 | G113: =IF(AND(B113>0,'Data Validation Lists'!$I$1=1),B113,"") ->  | S113: Furniture
A114: 1000 360mm Bridging Unit | C114: =IF($E114="Not Available","",VLOOKUP(E114,'Prices Furniture'!A:F,6,FALSE)*(1-$T$3)) -> 447 | E114: =VLOOKUP(A114,Codes!$B:$DO,'Data Validation Lists'!$B$1+2,FALSE) -> @FM-ESK-WB13 | G114: =IF(AND(B114>0,'Data Validation Lists'!$I$1=1),B114,"") ->  | S114: Furniture
S115: Furniture
A116: Appliance Housings | S116: Furniture | U116: =IF(B116="","",SUM(D116/1.2)*(1-$T$2)/(1-$T$3)) -> 
S117: Furniture | U117: =IF(B117="","",SUM(D117/1.2)*(1-$T$2)/(1-$T$3)) -> 
A118: 600 50/50 FF Housing Unit | C118: =IF($E118="Not Available","",VLOOKUP(E118,'Prices Furniture'!A:F,6,FALSE)*(1-$T$3)) -> 928 | D118: =IF(B118="","",B118*C118) ->  | E118: =VLOOKUP(A118,Codes!$B:$DO,'Data Validation Lists'!$B$1+2,FALSE) -> @FM-ESK-AH-F55 | S118: Furniture | U118: =IF(B118="","",SUM(D118/1.2)*(1-$T$2)/(1-$T$3)) -> 
A119: 600 70/30 FF Housing Unit | C119: =IF($E119="Not Available","",VLOOKUP(E119,'Prices Furniture'!A:F,6,FALSE)*(1-$T$3)) -> 896 | D119: =IF(B119="","",B119*C119) ->  | E119: =VLOOKUP(A119,Codes!$B:$DO,'Data Validation Lists'!$B$1+2,FALSE) -> @FM-ESK-AH-F73 | S119: Furniture | U119: =IF(B119="","",SUM(D119/1.2)*(1-$T$2)/(1-$T$3)) -> 
A121: 600 Double Oven Housing - LH Hinged | C121: =IF($E121="Not Available","",VLOOKUP(E121,'Prices Furniture'!A:F,6,FALSE)*(1-$T$3)) -> 860 | D121: =IF(B121="","",B121*C121) ->  | E121: =VLOOKUP(A121,Codes!$B:$DO,'Data Validation Lists'!$B$1+2,FALSE) -> @FM-ESK-AH-DOL | S121: Furniture | U121: =IF(B121="","",SUM(D121/1.2)*(1-$T$2)/(1-$T$3)) -> 
A122: 600 Double Oven Housing - RH Hinged | C122: =IF($E122="Not Available","",VLOOKUP(E122,'Prices Furniture'!A:F,6,FALSE)*(1-$T$3)) -> 860 | E122: =VLOOKUP(A122,Codes!$B:$DO,'Data Validation Lists'!$B$1+2,FALSE) -> @FM-ESK-AH-DOR | S122: Furniture
A124: 600 Single Oven Housing - LH Hinged | C124: =IF($E124="Not Available","",VLOOKUP(E124,'Prices Furniture'!A:F,6,FALSE)*(1-$T$3)) -> 845 | D124: =IF(B124="","",B124*C124) ->  | E124: =VLOOKUP(A124,Codes!$B:$DO,'Data Validation Lists'!$B$1+2,FALSE) -> @FM-ESK-AH-SOL | S124: Furniture | U124: =IF(B124="","",SUM(D124/1.2)*(1-$T$2)/(1-$T$3)) -> 
A125: 600 Single Oven Housing - RH Hinged | C125: =IF($E125="Not Available","",VLOOKUP(E125,'Prices Furniture'!A:F,6,FALSE)*(1-$T$3)) -> 845 | E125: =VLOOKUP(A125,Codes!$B:$DO,'Data Validation Lists'!$B$1+2,FALSE) -> @FM-ESK-AH-SOR | S125: Furniture
A127: 600 Single Oven & Microwave Housing - LH Hinged | C127: =IF($E127="Not Available","",VLOOKUP(E127,'Prices Furniture'!A:F,6,FALSE)*(1-$T$3)) -> 796 | D127: =IF(B127="","",B127*C127) ->  | E127: =VLOOKUP(A127,Codes!$B:$DO,'Data Validation Lists'!$B$1+2,FALSE) -> @FM-ESK-AH-SMWL | S127: Furniture | U127: =IF(B127="","",SUM(D127/1.2)*(1-$T$2)/(1-$T$3)) -> 
A128: 600 Single Oven & Microwave Housing - RH Hinged | C128: =IF($E128="Not Available","",VLOOKUP(E128,'Prices Furniture'!A:F,6,FALSE)*(1-$T$3)) -> 796 | E128: =VLOOKUP(A128,Codes!$B:$DO,'Data Validation Lists'!$B$1+2,FALSE) -> @FM-ESK-AH-SMWR | S128: Furniture
A130: 600 BU Oven Housing | C130: =IF($E130="Not Available","",VLOOKUP(E130,'Prices Furniture'!A:F,6,FALSE)*(1-$T$3)) -> 215 | D130: =IF(B130="","",B130*C130) ->  | E130: =VLOOKUP(A130,Codes!$B:$DO,'Data Validation Lists'!$B$1+2,FALSE) -> @FM-ESK-BOH6 | G130: =IF(AND(B130>0,'Data Validation Lists'!$I$1=1),B130,"") ->  | S130: Furniture | U130: =IF(B130="","",SUM(D130/1.2)*(1-$T$2)/(1-$T$3)) -> 
S131: Furniture | U131: =IF(B131="","",SUM(D131/1.2)*(1-$T$2)/(1-$T$3)) -> 
A132: Appliance Doors | S132: Furniture
S133: Furniture
A134: 600 Integrated Extractor Door | C134: =IF($E134="Not Available","",VLOOKUP(E134,'Prices Furniture'!A:F,6,FALSE)*(1-$T$3)) -> 152 | D134: =IF(B134="","",B134*C134) ->  | E134: =VLOOKUP(A134,Codes!$B:$DO,'Data Validation Lists'!$B$1+2,FALSE) -> @FM-ESK-AD60ICH | S134: Furniture
A135: 600 Fridge/Dishwasher Fascia | C135: =IF($E135="Not Available","",VLOOKUP(E135,'Prices Furniture'!A:F,6,FALSE)*(1-$T$3)) -> 308 | E135: =VLOOKUP(A135,Codes!$B:$DO,'Data Validation Lists'!$B$1+2,FALSE) -> @FM-ESK-AD60FD | S135: Furniture
A136: 450 Integrated Dishwasher Fascia | C136: =IF($E136="Not Available","",VLOOKUP(E136,'Prices Furniture'!A:F,6,FALSE)*(1-$T$3)) -> 244 | E136: =VLOOKUP(A136,Codes!$B:$DO,'Data Validation Lists'!$B$1+2,FALSE) -> @FM-ESK-AD45I | S136: Furniture
A137: 600 Semi Int Dishwasher Fascia | C137: =IF($E137="Not Available","",VLOOKUP(E137,'Prices Furniture'!A:F,6,FALSE)*(1-$T$3)) -> 169 | E137: =VLOOKUP(A137,Codes!$B:$DO,'Data Validation Lists'!$B$1+2,FALSE) -> @FM-ESK-AD60S | S137: Furniture
A138: 900 Boiler Door | C138: =IF($E138="Not Available","",VLOOKUP(E138,'Prices Furniture'!A:F,6,FALSE)*(1-$T$3)) -> 267 | E138: =VLOOKUP(A138,Codes!$B:$DO,'Data Validation Lists'!$B$1+2,FALSE) -> @FM-ESK-BLD9 | S138: Furniture
S139: Furniture
A140: Larders | S140: Furniture
S141: Furniture
A142: 300 Larder Unit | C142: =IF($E142="Not Available","",VLOOKUP(E142,'Prices Furniture'!A:F,6,FALSE)*(1-$T$3)) -> 764 | D142: =IF(B142="","",B142*C142) ->  | E142: =VLOOKUP(A142,Codes!$B:$DO,'Data Validation Lists'!$B$1+2,FALSE) -> @FM-ESK-L3 | S142: Furniture
A143: 500 Larder Unit | C143: =IF($E143="Not Available","",VLOOKUP(E143,'Prices Furniture'!A:F,6,FALSE)*(1-$T$3)) -> 874 | E143: =VLOOKUP(A143,Codes!$B:$DO,'Data Validation Lists'!$B$1+2,FALSE) -> @FM-ESK-L5 | S143: Furniture
A144: 500 Larder 1965mm Door | C144: =IF($E144="Not Available","",VLOOKUP(E144,'Prices Furniture'!A:F,6,FALSE)*(1-$T$3)) -> 870 | E144: =VLOOKUP(A144,Codes!$B:$DO,'Data Validation Lists'!$B$1+2,FALSE) -> @FM-ESK-L5SD | S144: Furniture
A145: 600 Larder Unit | C145: =IF($E145="Not Available","",VLOOKUP(E145,'Prices Furniture'!A:F,6,FALSE)*(1-$T$3)) -> 974 | E145: =VLOOKUP(A145,Codes!$B:$DO,'Data Validation Lists'!$B$1+2,FALSE) -> @FM-ESK-L6 | S145: Furniture
A146: 600 Larder 1965mm Door | C146: =IF($E146="Not Available","",VLOOKUP(E146,'Prices Furniture'!A:F,6,FALSE)*(1-$T$3)) -> 969 | E146: =VLOOKUP(A146,Codes!$B:$DO,'Data Validation Lists'!$B$1+2,FALSE) -> @FM-ESK-L6SD | S146: Furniture
A147: 300 Larder & TAL LARDER Pull Out | C147: =IF($E147="Not Available","",VLOOKUP(E147,'Prices Furniture'!A:F,6,FALSE)*(1-$T$3)) -> 1516 | E147: =VLOOKUP(A147,Codes!$B:$DO,'Data Validation Lists'!$B$1+2,FALSE) -> @FM-ESK-LP3 | S147: Furniture
A148: 300 Larder Tower | C148: =IF($E148="Not Available","",VLOOKUP(E148,'Prices Furniture'!A:F,6,FALSE)*(1-$T$3)) -> 1634 | E148: =VLOOKUP(A148,Codes!$B:$DO,'Data Validation Lists'!$B$1+2,FALSE) -> @FM-ESK-LT3 | S148: Furniture
A149: 500 Larder Tower | C149: =IF($E149="Not Available","",VLOOKUP(E149,'Prices Furniture'!A:F,6,FALSE)*(1-$T$3)) -> 1806 | E149: =VLOOKUP(A149,Codes!$B:$DO,'Data Validation Lists'!$B$1+2,FALSE) -> @FM-ESK-LT5 | S149: Furniture
A150: 500 Larder Tower 1965mm Door | C150: =IF($E150="Not Available","",VLOOKUP(E150,'Prices Furniture'!A:F,6,FALSE)*(1-$T$3)) -> 1802 | E150: =VLOOKUP(A150,Codes!$B:$DO,'Data Validation Lists'!$B$1+2,FALSE) -> @FM-ESK-LT5SD | S150: Furniture
A151: 600 Larder Tower | C151: =IF($E151="Not Available","",VLOOKUP(E151,'Prices Furniture'!A:F,6,FALSE)*(1-$T$3)) -> 1954 | E151: =VLOOKUP(A151,Codes!$B:$DO,'Data Validation Lists'!$B$1+2,FALSE) -> @FM-ESK-LT6 | S151: Furniture
A152: 600 Larder Tower 1965mm Door | C152: =IF($E152="Not Available","",VLOOKUP(E152,'Prices Furniture'!A:F,6,FALSE)*(1-$T$3)) -> 1949 | E152: =VLOOKUP(A152,Codes!$B:$DO,'Data Validation Lists'!$B$1+2,FALSE) -> @FM-ESK-LT6SD | S152: Furniture
A153: 500 Larder & TAL GATE PRO Pull Out | C153: =IF($E153="Not Available","",VLOOKUP(E153,'Prices Furniture'!A:F,6,FALSE)*(1-$T$3)) -> 2009 | D153: =IF(B153="","",B153*C153) ->  | E153: =VLOOKUP(A153,Codes!$B:$DO,'Data Validation Lists'!$B$1+2,FALSE) -> @FM-ESK-LP5T | S153: Furniture | U153: =IF(B153="","",SUM(D153/1.2)*(1-$T$2)/(1-$T$3)) -> 
A154: 500 Larder & TAL GATE PRO Pull Out 1965 Door | C154: =IF($E154="Not Available","",VLOOKUP(E154,'Prices Furniture'!A:F,6,FALSE)*(1-$T$3)) -> 2009 | E154: =VLOOKUP(A154,Codes!$B:$DO,'Data Validation Lists'!$B$1+2,FALSE) -> @FM-ESK-LP5TSD | S154: Furniture
A155: 600 Larder & TAL GATE PRO Pull Out | C155: =IF($E155="Not Available","",VLOOKUP(E155,'Prices Furniture'!A:F,6,FALSE)*(1-$T$3)) -> 2103 | E155: =VLOOKUP(A155,Codes!$B:$DO,'Data Validation Lists'!$B$1+2,FALSE) -> @FM-ESK-LP6T | S155: Furniture
A156: 600 Larder & TAL GATE PRO Pull Out 1965 Door | C156: =IF($E156="Not Available","",VLOOKUP(E156,'Prices Furniture'!A:F,6,FALSE)*(1-$T$3)) -> 2103 | E156: =VLOOKUP(A156,Codes!$B:$DO,'Data Validation Lists'!$B$1+2,FALSE) -> @FM-ESK-LP6TSD | S156: Furniture
A157: 500 Larder & TAL GATE Pull Out | C157: =IF($E157="Not Available","",VLOOKUP(E157,'Prices Furniture'!A:F,6,FALSE)*(1-$T$3)) -> 1763 | E157: =VLOOKUP(A157,Codes!$B:$DO,'Data Validation Lists'!$B$1+2,FALSE) -> @FM-ESK-LP5TS | S157: Furniture
A158: 500 Larder & TAL GATE Pull Out 1965 Door | C158: =IF($E158="Not Available","",VLOOKUP(E158,'Prices Furniture'!A:F,6,FALSE)*(1-$T$3)) -> 1763 | E158: =VLOOKUP(A158,Codes!$B:$DO,'Data Validation Lists'!$B$1+2,FALSE) -> @FM-ESK-LP5TSSD | S158: Furniture
A159: 600 Larder & TAL GATE Pull Out | C159: =IF($E159="Not Available","",VLOOKUP(E159,'Prices Furniture'!A:F,6,FALSE)*(1-$T$3)) -> 1914 | E159: =VLOOKUP(A159,Codes!$B:$DO,'Data Validation Lists'!$B$1+2,FALSE) -> @FM-ESK-LP6TS | S159: Furniture
A160: 600 Larder & TAL GATE Pull Out 1965 Door | C160: =IF($E160="Not Available","",VLOOKUP(E160,'Prices Furniture'!A:F,6,FALSE)*(1-$T$3)) -> 1914 | E160: =VLOOKUP(A160,Codes!$B:$DO,'Data Validation Lists'!$B$1+2,FALSE) -> @FM-ESK-LP6TSSD | S160: Furniture
S161: Furniture | U161: =IF(B161="","",SUM(D161/1.2)*(1-$T$2)/(1-$T$3)) -> 
A162: ASSEMBLED | B162: =IF(SUM(G13:G207)>0,SUM(G13:G207),"") ->  | C162: =IF($E162="Not Available","",VLOOKUP(E162,'Prices Furniture'!A:F,6,FALSE)) -> 14.4 | D162: =IF(B162="","",B162*C162) ->  | E162: =IF('Data Validation Lists'!I1=1,VLOOKUP(A162,Codes!$B:$DO,'Data Validation Lists'!$B$1+2,FALSE),"Not Available") -> RIGID BUILD | S162: Furniture | U162: =IF(B162="","",SUM(D162/1.2)) -> 
S163: Furniture
A164: Drawer Box Upgrades
A165: Legrabox Standard Drawer Box | B165: =IF('Data Validation Lists'!$I$6=2,SUM(Kitchen!$H$10:$H$498),"") ->  | C165: =IF($E165="Not Available","",VLOOKUP(E165,'Prices Furniture'!$A:$F,6,FALSE)*(1-$T$3)) ->  | D165: =IF(B165="","",B165*C165) ->  | E165: =IF('Data Validation Lists'!$I$6=2,VLOOKUP(A165,Codes!$B:$NE,'Data Validation Lists'!$B$1+2,FALSE),"Not Available") -> Not Available | S165: Furniture | U165: =IF(B165="","",SUM(D165/1.2)) -> 
A166: Legrabox Pan Drawer Box | B166: =IF('Data Validation Lists'!$I$6=2,SUM(Kitchen!$I$10:$I$498),"") ->  | C166: =IF($E166="Not Available","",VLOOKUP(E166,'Prices Furniture'!$A:$F,6,FALSE)*(1-$T$3)) ->  | D166: =IF(B166="","",B166*C166) ->  | E166: =IF('Data Validation Lists'!$I$6=2,VLOOKUP(A166,Codes!$B:$NE,'Data Validation Lists'!$B$1+2,FALSE),"Not Available") -> Not Available | S166: Furniture
S168: Furniture | U168: =IF(B168="","",SUM(D168/1.2)*(1-$T$2)/(1-$T$3)) -> 
A169: Rails | S169: Furniture | U169: =IF(B169="","",SUM(D169/1.2)*(1-$T$2)/(1-$T$3)) -> 
S170: Furniture | U170: =IF(B170="","",SUM(D170/1.2)*(1-$T$2)/(1-$T$3)) -> 
A171: Base Rail - Top 3.9m | C171: =IF($E171="Not Available","",VLOOKUP(E171,'Prices Furniture'!A:F,6,FALSE)*(1-$T$3)) -> 87 | D171: =IF(B171="","",B171*C171) ->  | E171: =VLOOKUP(A171,Codes!$B:$DO,'Data Validation Lists'!$I$17+2,FALSE) -> FM-FC-BRTOP-AT | S171: Furniture | U171: =IF(B171="","",SUM(D171/1.2)*(1-$T$2)/(1-$T$3)) -> 
A172: Base Rail - Mid 2.35m | C172: =IF($E172="Not Available","",VLOOKUP(E172,'Prices Furniture'!A:F,6,FALSE)*(1-$T$3)) -> 102 | D172: =IF(B172="","",B172*C172) ->  | E172: =VLOOKUP(A172,Codes!$B:$DO,'Data Validation Lists'!$I$17+2,FALSE) -> FM-FC-BRMID-AT | S172: Furniture | U172: =IF(B172="","",SUM(D172/1.2)*(1-$T$2)/(1-$T$3)) -> 
A173: Base Rail Internal Corner Block | C173: =IF($E173="Not Available","",VLOOKUP(E173,'Prices Furniture'!A:F,6,FALSE)*(1-$T$3)) -> 66 | E173: =VLOOKUP(A173,Codes!$B:$DO,'Data Validation Lists'!$I$17+2,FALSE) -> FM-FC-BRINTC-AT | S173: Furniture
A174: Base Rail External Corner Block | C174: =IF($E174="Not Available","",VLOOKUP(E174,'Prices Furniture'!A:F,6,FALSE)*(1-$T$3)) -> 66 | E174: =VLOOKUP(A174,Codes!$B:$DO,'Data Validation Lists'!$I$17+2,FALSE) -> FM-FC-BREXTC-AT | S174: Furniture
A175: Vertical Rail - Intermediate 2.35m | C175: =IF($E175="Not Available","",VLOOKUP(E175,'Prices Furniture'!A:F,6,FALSE)*(1-$T$3)) -> 87 | E175: =VLOOKUP(A175,Codes!$B:$DO,'Data Validation Lists'!$I$17+2,FALSE) -> FM-FC-VRINT-AT | S175: Furniture
A176: Vertical Rail - Lateral 2.35m | C176: =IF($E176="Not Available","",VLOOKUP(E176,'Prices Furniture'!A:F,6,FALSE)*(1-$T$3)) -> 73 | E176: =VLOOKUP(A176,Codes!$B:$DO,'Data Validation Lists'!$I$17+2,FALSE) -> FM-FC-VRLAT-AT | S176: Furniture
A177: Wall Rail - 2.35m | C177: =IF($E177="Not Available","",VLOOKUP(E177,'Prices Furniture'!A:F,6,FALSE)*(1-$T$3)) -> 52 | E177: =VLOOKUP(A177,Codes!$B:$DO,'Data Validation Lists'!$I$17+2,FALSE) -> FM-FC-WRAIL-AT | S177: Furniture
A178: Oven Profile Rail 580mm | C178: =IF($E178="Not Available","",VLOOKUP(E178,'Prices Furniture'!A:F,6,FALSE)*(1-$T$3)) -> 58 | E178: =VLOOKUP(A178,Codes!$B:$DO,'Data Validation Lists'!$I$17+2,FALSE) -> FM-FC-OPR-AT | F178: Only required on one side of oven | S178: Furniture
A179: Base Rail Cap Kit - Top | C179: =IF($E179="Not Available","",VLOOKUP(E179,'Prices Furniture'!A:F,6,FALSE)*(1-$T$3)) -> 16 | E179: =VLOOKUP(A179,Codes!$B:$DO,'Data Validation Lists'!$I$17+2,FALSE) -> FM-FC-BRCKT-AT | S179: Furniture
A180: Base Rail Cap Kit - Mid | C180: =IF($E180="Not Available","",VLOOKUP(E180,'Prices Furniture'!A:F,6,FALSE)*(1-$T$3)) -> 16 | E180: =VLOOKUP(A180,Codes!$B:$DO,'Data Validation Lists'!$I$17+2,FALSE) -> FM-FC-BRCKM-AT | S180: Furniture
A181: Base Rail Fittings Pack (20) | C181: =IF($E181="Not Available","",VLOOKUP(E181,'Prices Furniture'!A:F,6,FALSE)*(1-$T$3)) -> 58 | E181: =VLOOKUP(A181,Codes!$B:$DO,'Data Validation Lists'!$I$17+2,FALSE) -> FM-FC-BRFIT | S181: Furniture
A182: Tall Unit Spacer 30mm | C182: =IF($E182="Not Available","",VLOOKUP(E182,'Prices Furniture'!A:F,6,FALSE)*(1-$T$3)) -> 9 | E182: =VLOOKUP(A182,Codes!$B:$DO,'Data Validation Lists'!$I$17+2,FALSE) -> FM-FC-TUSPC | S182: Furniture
S183: Furniture | U183: =IF(B183="","",SUM(D183/1.2)*(1-$T$2)/(1-$T$3)) -> 
A184: Panels and Trims | S184: Furniture | U184: =IF(B184="","",SUM(D184/1.2)*(1-$T$2)/(1-$T$3)) -> 
S185: Furniture | U185: =IF(B185="","",SUM(D185/1.2)*(1-$T$2)/(1-$T$3)) -> 
A186: End Support / Plant on Base Panel | C186: =IF($E186="Not Available","",VLOOKUP(E186,'Prices Furniture'!A:F,6,FALSE)*(1-$T$3)) -> 179 | D186: =IF(B186="","",B186*C186) ->  | E186: =VLOOKUP(A186,Codes!$B:$DO,'Data Validation Lists'!$B$1+2,FALSE) -> FM-A-ESK-ESP | S186: Furniture | U186: =IF(B186="","",SUM(D186/1.2)*(1-$T$2)/(1-$T$3)) -> 
A187: Plant on Wall end Panel 355X797 | C187: =IF($E187="Not Available","",VLOOKUP(E187,'Prices Furniture'!A:F,6,FALSE)*(1-$T$3)) ->  | E187: =VLOOKUP(A187,Codes!$B:$DO,'Data Validation Lists'!$B$1+2,FALSE) -> Not Available | S187: Furniture
A188: Plant on Wall End Panel 960x360 | C188: =IF($E188="Not Available","",VLOOKUP(E188,'Prices Furniture'!A:F,6,FALSE)*(1-$T$3)) ->  | E188: =VLOOKUP(A188,Codes!$B:$DO,'Data Validation Lists'!$B$1+2,FALSE) -> Not Available | S188: Furniture
A189: Plant on Wall end Panel 900x600 | C189: =IF($E189="Not Available","",VLOOKUP(E189,'Prices Furniture'!A:F,6,FALSE)*(1-$T$3)) -> 179 | E189: =VLOOKUP(A189,Codes!$B:$DO,'Data Validation Lists'!$B$1+2,FALSE) -> FM-A-ESK-PWEP9 | S189: Furniture
A190: Plant on Tall End Panel 2450x650 | C190: =IF($E190="Not Available","",VLOOKUP(E190,'Prices Furniture'!A:F,6,FALSE)*(1-$T$3)) -> 364 | E190: =VLOOKUP(A190,Codes!$B:$DO,'Data Validation Lists'!$B$1+2,FALSE) -> FM-A-ESK-PTEP | S190: Furniture
A191: Breakfast bar Back Panel 1200x900 | C191: =IF($E191="Not Available","",VLOOKUP(E191,'Prices Furniture'!A:F,6,FALSE)*(1-$T$3)) ->  | E191: =VLOOKUP(A191,Codes!$B:$DO,'Data Validation Lists'!$B$1+2,FALSE) -> Not Available | S191: Furniture
A192: Large Universal Panel 2.4 x 900mm | C192: =IF($E192="Not Available","",VLOOKUP(E192,'Prices Furniture'!A:F,6,FALSE)*(1-$T$3)) -> 463 | E192: =VLOOKUP(A192,Codes!$B:$DO,'Data Validation Lists'!$B$1+2,FALSE) -> FM-A-ESK-LUP | S192: Furniture
A193: Island End Panel 685x1200 | C193: =IF($E193="Not Available","",VLOOKUP(E193,'Prices Furniture'!A:F,6,FALSE)*(1-$T$3)) -> 370 | E193: =VLOOKUP(A193,Codes!$B:$DO,'Data Validation Lists'!$B$1+2,FALSE) -> FM-A-ESK-IP612 | S193: Furniture
A194: Island End Panel 685x397 | C194: =IF($E194="Not Available","",VLOOKUP(E194,'Prices Furniture'!A:F,6,FALSE)*(1-$T$3)) -> 224 | E194: =VLOOKUP(A194,Codes!$B:$DO,'Data Validation Lists'!$B$1+2,FALSE) -> FM-A-ESK-IP64 | S194: Furniture
A195: Island End Panel 685x497 | C195: =IF($E195="Not Available","",VLOOKUP(E195,'Prices Furniture'!A:F,6,FALSE)*(1-$T$3)) -> 266 | E195: =VLOOKUP(A195,Codes!$B:$DO,'Data Validation Lists'!$B$1+2,FALSE) -> FM-A-ESK-IP65 | S195: Furniture
A196: Island End Panel 685x597 | C196: =IF($E196="Not Available","",VLOOKUP(E196,'Prices Furniture'!A:F,6,FALSE)*(1-$T$3)) -> 308 | E196: =VLOOKUP(A196,Codes!$B:$DO,'Data Validation Lists'!$B$1+2,FALSE) -> FM-A-ESK-IP66 | S196: Furniture
A197: Plinth | C197: =IF($E197="Not Available","",VLOOKUP(E197,'Prices Furniture'!A:F,6,FALSE)*(1-$T$3)) -> 160 | E197: =VLOOKUP(A197,Codes!$B:$DO,'Data Validation Lists'!$B$1+2,FALSE) -> FM-A-ESK-PL | S197: Furniture
A198: Square Cornice/Pelmet | C198: =IF($E198="Not Available","",VLOOKUP(E198,'Prices Furniture'!A:F,6,FALSE)*(1-$T$3)) -> 140 | E198: =VLOOKUP(A198,Codes!$B:$DO,'Data Validation Lists'!$B$1+2,FALSE) -> FM-A-ESK-SQPEL | S198: Furniture
A199: Base Corner Post 685x70x18 Slab | C199: =IF($E199="Not Available","",VLOOKUP(E199,'Prices Furniture'!A:F,6,FALSE)*(1-$T$3)) -> 228 | E199: =VLOOKUP(A199,Codes!$B:$DO,'Data Validation Lists'!$B$1+2,FALSE) -> FM-A-ESK-BCP68 | S199: Furniture
A200: External Corner Post 685x46x46 | C200: =IF($E200="Not Available","",VLOOKUP(E200,'Prices Furniture'!A:F,6,FALSE)*(1-$T$3)) -> 228 | E200: =VLOOKUP(A200,Codes!$B:$DO,'Data Validation Lists'!$B$1+2,FALSE) -> FM-A-ESK-EXCP68 | S200: Furniture
A201: Feature End Post 3000x100x50 | C201: =IF($E201="Not Available","",VLOOKUP(E201,'Prices Furniture'!A:F,6,FALSE)*(1-$T$3)) -> 129 | E201: =VLOOKUP(A201,Codes!$B:$DO,'Data Validation Lists'!$B$1+2,FALSE) -> FM-A-ESK-FEP | S201: Furniture
A202: Touch Up Paint | C202: =IF($E202="Not Available","",VLOOKUP(E202,'Prices Furniture'!A:F,6,FALSE)*(1-$T$3)) ->  | E202: =VLOOKUP(A202,Codes!$B:$DO,'Data Validation Lists'!$B$1+2,FALSE) -> Not Available | S202: Furniture
A203: Touch Up Pen | C203: =IF($E203="Not Available","",VLOOKUP(E203,'Prices Furniture'!A:F,6,FALSE)*(1-$T$3)) ->  | E203: =VLOOKUP(A203,Codes!$B:$DO,'Data Validation Lists'!$B$1+2,FALSE) -> Not Available | S203: Furniture
A204: Care Kit | C204: =IF($E204="Not Available","",VLOOKUP(E204,'Prices Furniture'!A:F,6,FALSE)*(1-$T$3)) ->  | E204: =VLOOKUP(A204,Codes!$B:$DO,'Data Validation Lists'!$B$1+2,FALSE) -> Not Available | S204: Furniture
A205: Edging Tape | C205: =IF($E205="Not Available","",VLOOKUP(E205,'Prices Furniture'!A:F,6,FALSE)*(1-$T$3)) ->  | D205: =IF(B205="","",B205*C205) ->  | E205: =VLOOKUP(A205,Codes!$B:$DO,'Data Validation Lists'!$B$1+2,FALSE) -> Not Available | S205: Furniture | U205: =IF(B205="","",SUM(D205/1.2)*(1-$T$2)/(1-$T$3)) -> 
A206: Base Shelf for Canopy Extractor | C206: =IF($E206="Not Available","",VLOOKUP(E206,'Prices Furniture'!A:F,6,FALSE)*(1-$T$3)) -> 148 | E206: =VLOOKUP(A206,Codes!$B:$DO,'Data Validation Lists'!$B$1+2,FALSE) -> @FM-GLN-EBSK | S206: Furniture
S207: Furniture | U207: =IF(B207="","",SUM(D207/1.2)*(1-$T$2)/(1-$T$3)) -> 
C208: Made to Measure Painted Panels - Woodgrain only
A209: Panel 1 | B209: Enter Qty
A210: Select Range | C210: =IFERROR(IF(B210="","",('Data Validation Lists'!$K$198)*(1-$T$3)),"") ->  | D210: =IF(B210="","",B210*C210) ->  | E210: =IF(B210<1,"",IF(C210="","Size Not Available",(IF(A210="Select Range","",_xlfn.CONCAT("SP-A-",'Data Validation Lists'!$J$191,"-",Kitchen!A211,Kitchen!A212,))))) ->  | S210: Furniture | U210: =IF(B210="","",SUM(D210/1.2)*(1-$T$2)/(1-$T$3)) -> 
A211: ENTER HEIGHT HERE
A212: ENTER WIDTH HERE
A213: Panel 2 | B213: Enter Qty
A214: Select Range | C214: =IFERROR(IF(B214="","",('Data Validation Lists'!$K$198)*(1-$T$3)),"") ->  | D214: =IF(B214="","",B214*C214) ->  | E214: =IF(B214<1,"",IF(C214="","Size Not Available",(IF(A214="Select Range","",_xlfn.CONCAT("SP-A-",'Data Validation Lists'!$J$191,"-",Kitchen!A215,Kitchen!A216,))))) ->  | S214: Furniture | U214: =IF(B214="","",SUM(D214/1.2)*(1-$T$2)/(1-$T$3)) -> 
A215: ENTER HEIGHT HERE
A216: ENTER WIDTH HERE
A217: Panel 3 | B217: Enter Qty
A218: Select Range | C218: =IFERROR(IF(B218="","",('Data Validation Lists'!$K$198)*(1-$T$3)),"") ->  | D218: =IF(B218="","",B218*C218) ->  | E218: =IF(B218<1,"",IF(C218="","Size Not Available",(IF(A218="Select Range","",_xlfn.CONCAT("SP-A-",'Data Validation Lists'!$J$191,"-",Kitchen!A219,Kitchen!A220,))))) ->  | S218: Furniture | U218: =IF(B218="","",SUM(D218/1.2)*(1-$T$2)/(1-$T$3)) -> 
A219: ENTER HEIGHT HERE
A220: ENTER WIDTH HERE
... 465 more rows

Sheet Summary
A2: YOUR LOGO HERE
B3: Summary Quote
A6: Your Company Name | B6: =TODAY() -> 2025-08-15
A7: Your Address
A8: Your Address
A9: Your Address
A11: Your Telephone
A12: Your Email
A13: Customer Name:
A14: Customer Address:
A18: Tel. Home:
A19: Tel. Mobile:
A20: Email:
A21: Range | B21: Sales Person
A22: FORM by LochAnna | B22: NAME
A23: =VLOOKUP('Data Validation Lists'!B1,'Data Validation Lists'!A2:B151,2,FALSE) -> PG4 Elswick Soft Black
A25: Description | B25: Sub Total
A26: Furniture | B26: =SUMIF(Kitchen!S:S,Summary!A26,Kitchen!D:D) -> 0
A27: Carron Sinks & Taps | B27: =SUMIF(Kitchen!S:S,Summary!A27,Kitchen!D:D) -> 0
A28: Quooker
A29: Lighting | B29: =SUMIF(Kitchen!S:S,Summary!A29,Kitchen!D:D) -> 0
A30: Eco Slabstone Splashbacks | B30: =SUMIF(Kitchen!S:S,Summary!A30,Kitchen!D:D) -> 0
A31: Worktops | B31: =SUMIF(Kitchen!S:S,Summary!A31,Kitchen!D:D) -> 0
A32: Other Items | B32: =SUMIF(Kitchen!S:S,Summary!A32,Kitchen!D:D) -> 0
A33: Delivery | B33: =Kitchen!D714 -> 
A34: Installation
B37: Total (inc VAT)
B38: =SUM(B26:B35) -> 0
A43: This quote is indicative and subject to change. Upon acceptance of this quote a survey will be carried out and any changes required may result in a change to the final costs. The price quoted includes VAT (unless otherwise stated). VAT will be charged at the rate applying at the time of delivery.
A49: To accept this quotation, sign here and return: __________________________________________________________________

Sheet Data Validation Lists (hidden)
B1: 90 | H1: Rigid | I1: 1 | U1: Elswick Painted MTM Panel | V1: 1 | W1: 2 | X1: 3 | Y1: 4 | Z1: 5 | AA1: 6 | AB1: 7 | AC1: 8 | AD1: 9 | AE1: 10 | AF1: 11 | AG1: 12 | AH1: 13
A2: 1 | B2: PG1 Mala Gloss Cashmere | C2: MCS | D2: 4 Week Lead Time | H2: 1 | I2: Yes | R2: Please Select | V2: 150 | W2: 300 | X2: 400 | Y2: 450 | Z2: 500 | AA2: 550 | AB2: 600 | AC2: 700 | AD2: 800 | AE2: 900 | AF2: 1000 | AG2: 1100 | AH2: 1200
A3: 2 | B3: PG1 Mala Gloss Dove Grey | C3: MGD | D3: 4 Week Lead Time | H3: 2 | I3: No | O3: LK-ES-VCTB-6M | P3: 600 x 750 Eco Slabstone Splash Back | Q3: Victorian Teal Blue Matt | R3: =_xlfn.CONCAT(P3," ",Q3) -> 600 x 750 Eco Slabstone Splash Back Victorian Teal Blue Matt | T3: 1 | U3: 100 | V3: 14 | W3: 23 | X3: 29 | Y3: 32 | Z3: 35 | AA3: 38 | AB3: 41 | AC3: 47 | AD3: 53 | AE3: 59 | AF3: 65 | AG3: 71 | AH3: 77
A4: 3 | B4: PG1 Mala Gloss Dust Grey | C4: MDS | D4: 4 Week Lead Time | O4: LK-ES-VCTB-9M | P4: 900 x 750 Eco Slabstone Splash Back | Q4: Victorian Teal Blue Matt | R4: 900 x 750 Eco Slabstone Splash Back Victorian Teal Blue Matt | T4: 2 | U4: 200 | V4: 21 | W4: 33 | X4: 40 | Y4: 44 | Z4: 48 | AA4: 52 | AB4: 56 | AC4: 64 | AD4: 72 | AE4: 80 | AF4: 88 | AG4: 96 | AH4: 104
A5: 4 | B5: PG1 Mala Gloss Graphite | C5: MGP | D5: 4 Week Lead Time | O5: LK-ES-VCTB-1M | P5: 1000 x 750 Eco Slabstone Splash Back | Q5: Victorian Teal Blue Matt | R5: 1000 x 750 Eco Slabstone Splash Back Victorian Teal Blue Matt | T5: 3 | U5: 300 | V5: 28 | W5: 42 | X5: 52 | Y5: 57 | Z5: 62 | AA5: 67 | AB5: 72 | AC5: 82 | AD5: 92 | AE5: 101 | AF5: 111 | AG5: 121 | AH5: 131
A6: 5 | B6: PG1 Mala Gloss Porcelain | C6: MPN | D6: 4 Week Lead Time | H6: D Box Upgrade | I6: 1 | O6: LK-ES-VCSB-6M | P6: 600 x 750 Eco Slabstone Splash Back | Q6: Victorian Soot Black Matt | R6: 600 x 750 Eco Slabstone Splash Back Victorian Soot Black Matt | T6: 4 | U6: 400 | V6: 35 | W6: 52 | X6: 64 | Y6: 70 | Z6: 76 | AA6: 82 | AB6: 87 | AC6: 99 | AD6: 111 | AE6: 123 | AF6: 134 | AG6: 146 | AH6: 158
A7: 6 | B7: PG1 Mala Gloss White | C7: MGW | D7: 4 Week Lead Time | H7: 1 | I7: Excel | O7: LK-ES-VCSB-9M | P7: 900 x 750 Eco Slabstone Splash Back | Q7: Victorian Soot Black Matt | R7: 900 x 750 Eco Slabstone Splash Back Victorian Soot Black Matt | T7: 5 | U7: 500 | V7: 42 | W7: 62 | X7: 76 | Y7: 83 | Z7: 89 | AA7: 96 | AB7: 103 | AC7: 117 | AD7: 130 | AE7: 144 | AF7: 158 | AG7: 171 | AH7: 185
A8: 7 | B8: PG1 Mala Matt Cashmere | C8: MCM | D8: 4 Week Lead Time | H8: 2 | I8: Legrabox | O8: LK-ES-VCSB-1M | P8: 1000 x 750 Eco Slabstone Splash Back | Q8: Victorian Soot Black Matt | R8: 1000 x 750 Eco Slabstone Splash Back Victorian Soot Black Matt | T8: 6 | U8: 600 | V8: 49 | W8: 72 | X8: 87 | Y8: 95 | Z8: 103 | AA8: 111 | AB8: 119 | AC8: 134 | AD8: 150 | AE8: 165 | AF8: 181 | AG8: 196 | AH8: 212
A9: 8 | B9: PG1 Mala Matt Dove Grey | C9: MDM | D9: 4 Week Lead Time | O9: LK-ES-VCPG-6M | P9: 600 x 750 Eco Slabstone Splash Back | Q9: Victorian Pencil Grey Matt | R9: 600 x 750 Eco Slabstone Splash Back Victorian Pencil Grey Matt | T9: 7 | U9: 800 | V9: 62 | W9: 92 | X9: 111 | Y9: 121 | Z9: 130 | AA9: 140 | AB9: 150 | AC9: 169 | AD9: 189 | AE9: 208 | AF9: 227 | AG9: 247 | AH9: 266
A10: 9 | B10: PG1 Mala Matt Dust Grey | C10: MTM | D10: 4 Week Lead Time | O10: LK-ES-VCPG-9M | P10: 900 x 750 Eco Slabstone Splash Back | Q10: Victorian Pencil Grey Matt | R10: 900 x 750 Eco Slabstone Splash Back Victorian Pencil Grey Matt | T10: 8 | U10: 900 | V10: 69 | W10: 101 | X10: 123 | Y10: 133 | Z10: 144 | AA10: 155 | AB10: 165 | AC10: 187 | AD10: 208 | AE10: 229 | AF10: 250 | AG10: 272 | AH10: 293
A11: 10 | B11: PG1 Mala Matt Graphite | C11: MGM | D11: 4 Week Lead Time | O11: LK-ES-VCPG-1M | P11: 1000 x 750 Eco Slabstone Splash Back | Q11: Victorian Pencil Grey Matt | R11: 1000 x 750 Eco Slabstone Splash Back Victorian Pencil Grey Matt | T11: 9 | U11: 1000 | V11: 76 | W11: 111 | X11: 134 | Y11: 146 | Z11: 158 | AA11: 169 | AB11: 181 | AC11: 204 | AD11: 227 | AE11: 250 | AF11: NA | AG11: NA | AH11: NA
A12: 11 | B12: PG1 Mala Matt Moss Green | C12: MGR | D12: 4 Week Lead Time | H12: Home Delivery | I12: 2 | O12: LK-ES-VCOG-6M | P12: 600 x 750 Eco Slabstone Splash Back | Q12: Victorian Olive Green Matt | R12: 600 x 750 Eco Slabstone Splash Back Victorian Olive Green Matt | T12: 10 | U12: 1100 | V12: 83 | W12: 121 | X12: 146 | Y12: 159 | Z12: 171 | AA12: 184 | AB12: 196 | AC12: 222 | AD12: 247 | AE12: 272 | AF12: NA | AG12: NA | AH12: NA
A13: 12 | B13: PG1 Mala Matt Navy Blue | C13: MIM | D13: 4 Week Lead Time | H13: 1 | I13: Yes | O13: LK-ES-VCOG-9M | P13: 900 x 750 Eco Slabstone Splash Back | Q13: Victorian Olive Green Matt | R13: 900 x 750 Eco Slabstone Splash Back Victorian Olive Green Matt | T13: 11 | U13: 1250 | V13: 94 | W13: 136 | X13: 164 | Y13: 178 | Z13: 192 | AA13: 206 | AB13: 220 | AC13: 248 | AD13: 276 | AE13: 304 | AF13: NA | AG13: NA | AH13: NA
A14: 13 | B14: PG1 Mala Matt Platinum Grey | C14: MSM | D14: 4 Week Lead Time | H14: 2 | I14: No | O14: LK-ES-VCOG-1M | P14: 1000 x 750 Eco Slabstone Splash Back | Q14: Victorian Olive Green Matt | R14: 1000 x 750 Eco Slabstone Splash Back Victorian Olive Green Matt | T14: 12 | U14: 1500 | V14: 111 | W14: 160 | X14: 193 | Y14: 210 | Z14: 226 | AA14: 242 | AB14: 259 | AC14: 291 | AD14: 324 | AE14: NA | AF14: NA | AG14: NA | AH14: NA
A15: 14 | B15: PG1 Mala Matt Porcelain | C15: MPM | D15: 4 Week Lead Time | O15: LK-ES-VCTO-6M | P15: 600 x 750 Eco Slabstone Splash Back | Q15: Victorian Terracotta Orange Matt | R15: 600 x 750 Eco Slabstone Splash Back Victorian Terracotta Orange Matt | T15: 13 | U15: 1600 | V15: 118 | W15: 170 | X15: 205 | Y15: 222 | Z15: 240 | AA15: 257 | AB15: 274 | AC15: 309 | AD15: 344 | AE15: NA | AF15: NA | AG15: NA | AH15: NA
A16: 15 | B16: PG1 Mala Matt Taupe Grey | C16: MTP | D16: 4 Week Lead Time | O16: LK-ES-VCTO-9M | P16: 900 x 750 Eco Slabstone Splash Back | Q16: Victorian Terracotta Orange Matt | R16: 900 x 750 Eco Slabstone Splash Back Victorian Terracotta Orange Matt | T16: 14 | U16: 1700 | V16: 125 | W16: 180 | X16: 217 | Y16: 235 | Z16: 253 | AA16: 272 | AB16: 290 | AC16: 326 | AD16: 363 | AE16: NA | AF16: NA | AG16: NA | AH16: NA
A17: 16 | B17: PG1 Mala Matt White | C17: MWM | D17: 4 Week Lead Time | H17: Rail Colour | I17: 2 | O17: LK-ES-VCTO-1M | P17: 1000 x 750 Eco Slabstone Splash Back | Q17: Victorian Terracotta Orange Matt | R17: 1000 x 750 Eco Slabstone Splash Back Victorian Terracotta Orange Matt | T17: 15 | U17: 2000 | V17: 155 | W17: 222 | X17: 267 | Y17: 290 | Z17: 312 | AA17: 334 | AB17: 357 | AC17: 402 | AD17: 447 | AE17: NA | AF17: NA | AG17: NA | AH17: NA
A18: 17 | B18: PG2 Eterna Ossido Grigio | C18: EOG | D18: 4 Week Lead Time | H18: 1 | I18: Anodised Aluminium | O18: LK-ES-VCYB-6M | P18: 600 x 750 Eco Slabstone Splash Back | Q18: Victorian Yale Blue Matt | R18: 600 x 750 Eco Slabstone Splash Back Victorian Yale Blue Matt | T18: 16 | U18: 2200 | V18: 170 | W18: 243 | X18: 292 | Y18: 317 | Z18: 341 | AA18: 365 | AB18: 390 | AC18: 439 | AD18: 488 | AE18: NA | AF18: NA | AG18: NA | AH18: NA
A19: 18 | B19: PG2 Eterna Ossido Marrone | C19: EOM | D19: 4 Week Lead Time | H19: 2 | I19: Anthracite | O19: LK-ES-VCYB-9M | P19: 900 x 750 Eco Slabstone Splash Back | Q19: Victorian Yale Blue Matt | R19: 900 x 750 Eco Slabstone Splash Back Victorian Yale Blue Matt | T19: 17 | U19: 2300 | V19: 177 | W19: 254 | X19: 305 | Y19: 330 | Z19: 356 | AA19: 381 | AB19: 406 | AC19: 457 | AD19: 508 | AE19: NA | AF19: NA | AG19: NA | AH19: NA
A20: 19 | B20: PG2 Eterna Patagonia Marble | C20: EPM | D20: 4 Week Lead Time | O20: LK-ES-VCYB-1M | P20: 1000 x 750 Eco Slabstone Splash Back | Q20: Victorian Yale Blue Matt | R20: 1000 x 750 Eco Slabstone Splash Back Victorian Yale Blue Matt | T20: 18 | U20: 2500 | V20: 192 | W20: 275 | X20: 330 | Y20: 357 | Z20: 385 | AA20: 412 | AB20: 439 | AC20: 494 | AD20: 604 | AE20: NA | AF20: NA | AG20: NA | AH20: NA
A21: 20 | B21: PG2 Eterna Venato Marble | C21: EVM | D21: 4 Week Lead Time | O21: LK-ES-HARE-6M | P21: 600 x 750 Eco Slabstone Splash Back | Q21: Hare ButtermiFM Cream Matt | R21: 600 x 750 Eco Slabstone Splash Back Hare ButtermiFM Cream Matt
A22: 21 | B22: PG2 Eterna Nero Marble | C22: ENM | D22: 4 Week Lead Time | O22: LK-ES-HARE-9M | P22: 900 x 750 Eco Slabstone Splash Back | Q22: Hare ButtermiFM Cream Matt | R22: 900 x 750 Eco Slabstone Splash Back Hare ButtermiFM Cream Matt | U22: Strato Painted MTM Panel | V22: 1 | W22: 2 | X22: 3 | Y22: 4 | Z22: 5 | AA22: 6 | AB22: 7 | AC22: 8 | AD22: 9 | AE22: 10 | AF22: 11 | AG22: 12 | AH22: 13
A23: 22 | B23: PG2 Eterna Laguna Grey Aged Oak | C23: ELA | D23: 4 Week Lead Time | O23: LK-ES-HARE-1M | P23: 1000 x 750 Eco Slabstone Splash Back | Q23: Hare ButtermiFM Cream Matt | R23: 1000 x 750 Eco Slabstone Splash Back Hare ButtermiFM Cream Matt | V23: 150 | W23: 300 | X23: 400 | Y23: 450 | Z23: 500 | AA23: 550 | AB23: 600 | AC23: 700 | AD23: 800 | AE23: 900 | AF23: 1000 | AG23: 1100 | AH23: 1200
A24: 23 | B24: PG2 Eterna Laguna Dark Oak | C24: ELD | D24: 4 Week Lead Time | O24: LK-ES-MWSB-6M | P24: 600 x 750 Eco Slabstone Splash Back | Q24: Meadow Steel Blue Matt | R24: 600 x 750 Eco Slabstone Splash Back Meadow Steel Blue Matt | T24: 1 | U24: 100 | V24: 13 | W24: 23 | X24: 29 | Y24: 32 | Z24: 35 | AA24: 38 | AB24: 42 | AC24: 48 | AD24: 54 | AE24: 60 | AF24: 67 | AG24: 73 | AH24: 79
A25: 24 | B25: PG2 Eterna Chalet Light Walnut | C25: ELW | D25: 4 Week Lead Time | H25: Minerva | I25: 1 | O25: LK-ES-MWSB-9M | P25: 900 x 750 Eco Slabstone Splash Back | Q25: Meadow Steel Blue Matt | R25: 900 x 750 Eco Slabstone Splash Back Meadow Steel Blue Matt | T25: 2 | U25: 200 | V25: 21 | W25: 34 | X25: 43 | Y25: 48 | Z25: 52 | AA25: 57 | AB25: 61 | AC25: 70 | AD25: 79 | AE25: 88 | AF25: 97 | AG25: 106 | AH25: 115
A26: 25 | B26: PG3 Strato Aegean | C26: SAG | D26: 5 Week Lead Time | H26: 1 | I26: None | O26: LK-ES-MWSB-1M | P26: 1000 x 750 Eco Slabstone Splash Back | Q26: Meadow Steel Blue Matt | R26: 1000 x 750 Eco Slabstone Splash Back Meadow Steel Blue Matt | T26: 3 | U26: 300 | V26: 29 | W26: 46 | X26: 58 | Y26: 63 | Z26: 69 | AA26: 75 | AB26: 81 | AC26: 92 | AD26: 104 | AE26: 115 | AF26: 127 | AG26: 139 | AH26: 150
A27: 26 | B27: PG3 Strato Atlantic | C27: SAT | D27: 5 Week Lead Time | H27: 2 | I27: Blue Venato PG3 | O27: LK-ES-MWSG-6M | P27: 600 x 750 Eco Slabstone Splash Back | Q27: Meadow Sage Matt | R27: 600 x 750 Eco Slabstone Splash Back Meadow Sage Matt | T27: 4 | U27: 400 | V27: 36 | W27: 58 | X27: 72 | Y27: 79 | Z27: 86 | AA27: 93 | AB27: 100 | AC27: 115 | AD27: 129 | AE27: 143 | AF27: 157 | AG27: 172 | AH27: 186
A28: 27 | B28: PG3 Strato Auburn | C28: SAB | D28: 5 Week Lead Time | H28: 3 | I28: Calcutta White PG4 | O28: LK-ES-MWSG-9M | P28: 900 x 750 Eco Slabstone Splash Back | Q28: Meadow Sage Matt | R28: 900 x 750 Eco Slabstone Splash Back Meadow Sage Matt | T28: 5 | U28: 500 | V28: 44 | W28: 69 | X28: 86 | Y28: 95 | Z28: 103 | AA28: 111 | AB28: 120 | AC28: 137 | AD28: 154 | AE28: 171 | AF28: 188 | AG28: 204 | AH28: 221
A29: 28 | B29: PG3 Strato Breeze | C29: SBR | D29: 5 Week Lead Time | H29: 4 | I29: Caramel Crunch PG2 | O29: LK-ES-MWSG-1M | P29: 1000 x 750 Eco Slabstone Splash Back | Q29: Meadow Sage Matt | R29: 1000 x 750 Eco Slabstone Splash Back Meadow Sage Matt | T29: 6 | U29: 600 | V29: 51 | W29: 81 | X29: 100 | Y29: 110 | Z29: 120 | AA29: 130 | AB29: 139 | AC29: 159 | AD29: 179 | AE29: 198 | AF29: 218 | AG29: 237 | AH29: 257
A30: 29 | B30: PG3 Strato Brigade | C30: SBG | D30: 5 Week Lead Time | H30: 5 | I30: Carrara White PG3 | O30: LK-ES-SFBC-6M | P30: 600 x 750 Eco Slabstone Splash Back | Q30: Star Flower ButtermiFM Cream Matt | R30: 600 x 750 Eco Slabstone Splash Back Star Flower ButtermiFM Cream Matt | T30: 7 | U30: 800 | V30: 67 | W30: 104 | X30: 129 | Y30: 141 | Z30: 154 | AA30: 166 | AB30: 179 | AC30: 204 | AD30: 228 | AE30: 253 | AF30: 278 | AG30: 303 | AH30: 328
A31: 30 | B31: PG3 Strato Bright White | C31: SBW | D31: 5 Week Lead Time | H31: 6 | I31: Chalk Venato PG3 | O31: LK-ES-SFBC-9M | P31: 900 x 750 Eco Slabstone Splash Back | Q31: Star Flower ButtermiFM Cream Matt | R31: 900 x 750 Eco Slabstone Splash Back Star Flower ButtermiFM Cream Matt | T31: 8 | U31: 900 | V31: 74 | W31: 115 | X31: 143 | Y31: 157 | Z31: 171 | AA31: 184 | AB31: 198 | AC31: 226 | AD31: 253 | AE31: 281 | AF31: 309 | AG31: 336 | AH31: 364
A32: 31 | B32: PG3 Strato Bronze | C32: SBZ | D32: 5 Week Lead Time | H32: 7 | I32: Concrete Haze PG3 | O32: LK-ES-SFBC-1M | P32: 1000 x 750 Eco Slabstone Splash Back | Q32: Star Flower ButtermiFM Cream Matt | R32: 1000 x 750 Eco Slabstone Splash Back Star Flower ButtermiFM Cream Matt | T32: 9 | U32: 1000 | V32: 82 | W32: 127 | X32: 157 | Y32: 172 | Z32: 188 | AA32: 203 | AB32: 218 | AC32: 248 | AD32: 278 | AE32: 309 | AF32: NA | AG32: NA | AH32: NA
A33: 32 | B33: PG3 Strato Buff | C33: SBF | D33: 5 Week Lead Time | H33: 8 | I33: Copper Fleck PG3 | O33: LK-ES-SFPB-6M | P33: 600 x 750 Eco Slabstone Splash Back | Q33: Star Flower Pastel Blue Matt | R33: 600 x 750 Eco Slabstone Splash Back Star Flower Pastel Blue Matt | T33: 10 | U33: 1100 | V33: 89 | W33: 139 | X33: 172 | Y33: 188 | Z33: 204 | AA33: 221 | AB33: 237 | AC33: 270 | AD33: 303 | AE33: 336 | AF33: NA | AG33: NA | AH33: NA
A34: 33 | B34: PG3 Strato Cashmere | C34: SCS | D34: 5 Week Lead Time | H34: 9 | I34: Grey Crystal PG2 | O34: LK-ES-SFPB-9M | P34: 900 x 750 Eco Slabstone Splash Back | Q34: Star Flower Pastel Blue Matt | R34: 900 x 750 Eco Slabstone Splash Back Star Flower Pastel Blue Matt | T34: 11 | U34: 1250 | V34: 97 | W34: 150 | X34: 186 | Y34: 204 | Z34: 221 | AA34: 239 | AB34: 257 | AC34: 293 | AD34: 328 | AE34: 364 | AF34: NA | AG34: NA | AH34: NA
A35: 34 | B35: PG3 Strato Charcoal Black | C35: SCB | D35: 5 Week Lead Time | H35: 10 | I35: Grey Storm PG3 | O35: LK-ES-SFPB-1M | P35: 1000 x 750 Eco Slabstone Splash Back | Q35: Star Flower Pastel Blue Matt | R35: 1000 x 750 Eco Slabstone Splash Back Star Flower Pastel Blue Matt | T35: 12 | U35: 1500 | V35: 120 | W35: 185 | X35: 229 | Y35: 250 | Z35: 272 | AA35: 294 | AB35: 316 | AC35: 359 | AD35: 403 | AE35: NA | AF35: NA | AG35: NA | AH35: NA
A36: 35 | B36: PG3 Strato Damson | C36: SDM | D36: 5 Week Lead Time | H36: 11 | I36: Ice Blue PG2 | O36: LK-ES-CYBB-6M | P36: 600 x 750 Eco Slabstone Splash Back | Q36: Canterbury Baltic Blue Matt | R36: 600 x 750 Eco Slabstone Splash Back Canterbury Baltic Blue Matt | T36: 13 | U36: 1600 | V36: 127 | W36: 197 | X36: 243 | Y36: 266 | Z36: 289 | AA36: 312 | AB36: 335 | AC36: 382 | AD36: 428 | AE36: NA | AF36: NA | AG36: NA | AH36: NA
A37: 36 | B37: PG3 Strato Desert Pink | C37: SDP | D37: 5 Week Lead Time | H37: 12 | I37: Ice Crystal PG2 | O37: LK-ES-CYBB-9M | P37: 900 x 750 Eco Slabstone Splash Back | Q37: Canterbury Baltic Blue Matt | R37: 900 x 750 Eco Slabstone Splash Back Canterbury Baltic Blue Matt | T37: 14 | U37: 1700 | V37: 135 | W37: 208 | X37: 257 | Y37: 281 | Z37: 306 | AA37: 330 | AB37: 355 | AC37: 404 | AD37: 453 | AE37: NA | AF37: NA | AG37: NA | AH37: NA
A38: 37 | B38: PG3 Strato Dust Grey | C38: SDS | D38: 5 Week Lead Time | H38: 13 | I38: Marble Wash PG3 | O38: LK-ES-CYBB-1M | P38: 1000 x 750 Eco Slabstone Splash Back | Q38: Canterbury Baltic Blue Matt | R38: 1000 x 750 Eco Slabstone Splash Back Canterbury Baltic Blue Matt | T38: 15 | U38: 2000 | V38: 157 | W38: 243 | X38: 300 | Y38: 328 | Z38: 357 | AA38: 385 | AB38: 414 | AC38: 471 | AD38: 527 | AE38: NA | AF38: NA | AG38: NA | AH38: NA
A39: 38 | B39: PG3 Strato Graphite | C39: SGP | D39: 5 Week Lead Time | H39: 14 | I39: Nimbus Grey PG2 | O39: LK-ES-CYCG-6M | P39: 600 x 750 Eco Slabstone Splash Back | Q39: Canterbury Charcoal Grey Matt | R39: 600 x 750 Eco Slabstone Splash Back Canterbury Charcoal Grey Matt | T39: 16 | U39: 2200 | V39: 173 | W39: 266 | X39: 328 | Y39: 359 | Z39: 391 | AA39: 422 | AB39: 453 | AC39: 515 | AD39: 577 | AE39: NA | AF39: NA | AG39: NA | AH39: NA
A40: 39 | B40: PG3 Strato Heather Green | C40: SHG | D40: 5 Week Lead Time | H40: 15 | I40: Peak Stone PG2 | O40: LK-ES-CYCG-9M | P40: 900 x 750 Eco Slabstone Splash Back | Q40: Canterbury Charcoal Grey Matt | R40: 900 x 750 Eco Slabstone Splash Back Canterbury Charcoal Grey Matt | T40: 17 | U40: 2300 | V40: 180 | W40: 278 | X40: 343 | Y40: 375 | Z40: 407 | AA40: 440 | AB40: 472 | AC40: 537 | AD40: 602 | AE40: NA | AF40: NA | AG40: NA | AH40: NA
A41: 40 | B41: PG3 Strato Indigo | C41: SIN | D41: 5 Week Lead Time | H41: 16 | I41: Silver Haze PG3 | O41: LK-ES-CYCG-1M | P41: 1000 x 750 Eco Slabstone Splash Back | Q41: Canterbury Charcoal Grey Matt | R41: 1000 x 750 Eco Slabstone Splash Back Canterbury Charcoal Grey Matt | T41: 18 | U41: 2500 | V41: 195 | W41: 301 | X41: 371 | Y41: 406 | Z41: 441 | AA41: 476 | AB41: 512 | AC41: 582 | AD41: 652 | AE41: NA | AF41: NA | AG41: NA | AH41: NA
A42: 41 | B42: PG3 Strato Ivory | C42: SIV | D42: 5 Week Lead Time | H42: 17 | I42: Sparkling White PG3 | O42: LK-ES-HBPC-6M | P42: 600 x 750 Eco Slabstone Splash Back | Q42: Herringbone Porcelain Cream Matt | R42: 600 x 750 Eco Slabstone Splash Back Herringbone Porcelain Cream Matt
A43: 42 | B43: PG3 Strato Laurel Green | C43: SLR | D43: 5 Week Lead Time | H43: 18 | I43: Travertine Haze PG3 | O43: LK-ES-HBPC-9M | P43: 900 x 750 Eco Slabstone Splash Back | Q43: Herringbone Porcelain Cream Matt | R43: 900 x 750 Eco Slabstone Splash Back Herringbone Porcelain Cream Matt | U43: Strato Stained MTM Panel | V43: 1 | W43: 2 | X43: 3 | Y43: 4 | Z43: 5 | AA43: 6 | AB43: 7 | AC43: 8 | AD43: 9 | AE43: 10 | AF43: 11 | AG43: 12 | AH43: 13
A44: 43 | B44: PG3 Strato Light Grey | C44: SDG | D44: 5 Week Lead Time | H44: 19 | I44: White PG1 | O44: LK-ES-HBPC-1M | P44: 1000 x 750 Eco Slabstone Splash Back | Q44: Herringbone Porcelain Cream Matt | R44: 1000 x 750 Eco Slabstone Splash Back Herringbone Porcelain Cream Matt | V44: 150 | W44: 300 | X44: 400 | Y44: 450 | Z44: 500 | AA44: 550 | AB44: 600 | AC44: 700 | AD44: 800 | AE44: 900 | AF44: 1000 | AG44: 1100 | AH44: 1200
A45: 44 | B45: PG3 Strato Meadow | C45: SMW | D45: 5 Week Lead Time | O45: LK-ES-HBCP-6M | P45: 600 x 750 Eco Slabstone Splash Back | Q45: Herringbone Cashmere Pink Matt | R45: 600 x 750 Eco Slabstone Splash Back Herringbone Cashmere Pink Matt | T45: 1 | U45: 100 | V45: 20 | W45: 35 | X45: 44 | Y45: 49 | Z45: 54 | AA45: 59 | AB45: 64 | AC45: 73 | AD45: 83 | AE45: 92 | AF45: 102 | AG45: 112 | AH45: 121
A46: 45 | B46: PG3 Strato Mezzo | C46: SMZ | D46: 5 Week Lead Time | H46: Solutions Open Units | O46: LK-ES-HBCP-9M | P46: 900 x 750 Eco Slabstone Splash Back | Q46: Herringbone Cashmere Pink Matt | R46: 900 x 750 Eco Slabstone Splash Back Herringbone Cashmere Pink Matt | T46: 2 | U46: 200 | V46: 32 | W46: 53 | X46: 66 | Y46: 73 | Z46: 80 | AA46: 87 | AB46: 94 | AC46: 107 | AD46: 121 | AE46: 135 | AF46: 149 | AG46: 162 | AH46: 176
A47: 46 | B47: PG3 Strato Midnight Grey | C47: SMN | D47: 5 Week Lead Time | O47: LK-ES-HBCP-1M | P47: 1000 x 750 Eco Slabstone Splash Back | Q47: Herringbone Cashmere Pink Matt | R47: 1000 x 750 Eco Slabstone Splash Back Herringbone Cashmere Pink Matt | T47: 3 | U47: 300 | V47: 44 | W47: 70 | X47: 88 | Y47: 97 | Z47: 106 | AA47: 115 | AB47: 124 | AC47: 142 | AD47: 160 | AE47: 177 | AF47: 195 | AG47: 213 | AH47: 231
A48: 47 | B48: PG3 Strato Mocha | C48: SMC | D48: 5 Week Lead Time | H48: 1 | I48: Select Range | J48: =VLOOKUP(Kitchen!$A410,$I49:$J52,2,FALSE) ->  | K48: =VLOOKUP(Kitchen!$A414,$I49:$J52,2,FALSE) ->  | L48: =VLOOKUP(Kitchen!$A418,$I49:$J52,2,FALSE) ->  | O48: LK-ES-HBIB-6M | P48: 600 x 750 Eco Slabstone Splash Back | Q48: Herringbone Indigo Blue Matt | R48: 600 x 750 Eco Slabstone Splash Back Herringbone Indigo Blue Matt | T48: 4 | U48: 400 | V48: 55 | W48: 88 | X48: 110 | Y48: 121 | Z48: 132 | AA48: 143 | AB48: 154 | AC48: 176 | AD48: 198 | AE48: 220 | AF48: 242 | AG48: 264 | AH48: 286
A49: 48 | B49: PG3 Strato Mussel | C49: SMU | D49: 5 Week Lead Time | H49: 2 | I49: Natural Oak Open Unit | J49: HNO | O49: LK-ES-HBIB-9M | P49: 900 x 750 Eco Slabstone Splash Back | Q49: Herringbone Indigo Blue Matt | R49: 900 x 750 Eco Slabstone Splash Back Herringbone Indigo Blue Matt | T49: 5 | U49: 500 | V49: 67 | W49: 106 | X49: 132 | Y49: 145 | Z49: 158 | AA49: 171 | AB49: 184 | AC49: 210 | AD49: 236 | AE49: 262 | AF49: 288 | AG49: 314 | AH49: 340
A50: 49 | B50: PG3 Strato Olive Green | C50: SOV | D50: 5 Week Lead Time | H50: 3 | I50: Tobacco Oak Open Unit | J50: HTO | O50: LK-ES-HBIB-1M | P50: 1000 x 750 Eco Slabstone Splash Back | Q50: Herringbone Indigo Blue Matt | R50: 1000 x 750 Eco Slabstone Splash Back Herringbone Indigo Blue Matt | T50: 6 | U50: 600 | V50: 79 | W50: 124 | X50: 154 | Y50: 169 | Z50: 184 | AA50: 199 | AB50: 214 | AC50: 244 | AD50: 275 | AE50: 305 | AF50: 335 | AG50: 365 | AH50: 395
A51: 50 | B51: PG3 Strato Pale Oak | C51: SPO | D51: 5 Week Lead Time | H51: 4 | I51: White Oak Open Unit | J51: HWO | O51: LK-ES-HBMG-6M | P51: 600 x 750 Eco Slabstone Splash Back | Q51: Herringbone Marble Grey Matt | R51: 600 x 750 Eco Slabstone Splash Back Herringbone Marble Grey Matt | T51: 7 | U51: 800 | V51: 102 | W51: 160 | X51: 198 | Y51: 217 | Z51: 236 | AA51: 255 | AB51: 275 | AC51: 313 | AD51: 351 | AE51: 390 | AF51: 428 | AG51: 466 | AH51: 505
A52: 51 | B52: PG3 Strato Pale Teal | C52: SPT | D52: 5 Week Lead Time | O52: LK-ES-HBMG-9M | P52: 900 x 750 Eco Slabstone Splash Back | Q52: Herringbone Marble Grey Matt | R52: 900 x 750 Eco Slabstone Splash Back Herringbone Marble Grey Matt | T52: 8 | U52: 900 | V52: 114 | W52: 177 | X52: 220 | Y52: 241 | Z52: 262 | AA52: 283 | AB52: 305 | AC52: 347 | AD52: 390 | AE52: 432 | AF52: 474 | AG52: 517 | AH52: 559
A53: 52 | B53: PG3 Strato Pearl | C53: SPE | D53: 5 Week Lead Time | O53: LK-ES-HBMG-1M | P53: 1000 x 750 Eco Slabstone Splash Back | Q53: Herringbone Marble Grey Matt | R53: 1000 x 750 Eco Slabstone Splash Back Herringbone Marble Grey Matt | T53: 9 | U53: 1000 | V53: 125 | W53: 195 | X53: 242 | Y53: 265 | Z53: 288 | AA53: 312 | AB53: 335 | AC53: 381 | AD53: 428 | AE53: 474 | AF53: NA | AG53: NA | AH53: NA
A54: 53 | B54: PG3 Strato Pebble Grey | C54: SPG | D54: 5 Week Lead Time | I54: Select Price | O54: LK-ES-HBJG-6M | P54: 600 x 750 Eco Slabstone Splash Back | Q54: Herringbone Jade Green Matt | R54: 600 x 750 Eco Slabstone Splash Back Herringbone Jade Green Matt | T54: 10 | U54: 1100 | V54: 137 | W54: 213 | X54: 264 | Y54: 289 | Z54: 314 | AA54: 340 | AB54: 365 | AC54: 416 | AD54: 466 | AE54: 517 | AF54: NA | AG54: NA | AH54: NA
A55: 54 | B55: PG3 Strato Porcelain | C55: SPN | D55: 5 Week Lead Time | I55: 212 | O55: LK-ES-HBJG-9M | P55: 900 x 750 Eco Slabstone Splash Back | Q55: Herringbone Jade Green Matt | R55: 900 x 750 Eco Slabstone Splash Back Herringbone Jade Green Matt | T55: 11 | U55: 1250 | V55: 149 | W55: 231 | X55: 286 | Y55: 313 | Z55: 340 | AA55: 368 | AB55: 395 | AC55: 450 | AD55: 505 | AE55: 559 | AF55: NA | AG55: NA | AH55: NA
A56: 55 | B56: PG3 Strato Sage | C56: SSG | D56: 5 Week Lead Time | I56: 234 | O56: LK-ES-HBJG-1M | P56: 1000 x 750 Eco Slabstone Splash Back | Q56: Herringbone Jade Green Matt | R56: 1000 x 750 Eco Slabstone Splash Back Herringbone Jade Green Matt | T56: 12 | U56: 1500 | V56: 184 | W56: 284 | X56: 351 | Y56: 385 | Z56: 418 | AA56: 452 | AB56: 485 | AC56: 552 | AD56: 620 | AE56: NA | AF56: NA | AG56: NA | AH56: NA
A57: 56 | B57: PG3 Strato Sapphire | C57: SSP | D57: 5 Week Lead Time | I57: 257 | T57: 13 | U57: 1600 | V57: 195 | W57: 302 | X57: 373 | Y57: 409 | Z57: 444 | AA57: 480 | AB57: 516 | AC57: 587 | AD57: 658 | AE57: NA | AF57: NA | AG57: NA | AH57: NA
A58: 57 | B58: PG3 Strato Soft Black | C58: SSB | D58: 5 Week Lead Time | I58: 275 | R58: Please Select | T58: 14 | U58: 1700 | V58: 207 | W58: 320 | X58: 395 | Y58: 433 | Z58: 470 | AA58: 508 | AB58: 546 | AC58: 621 | AD58: 696 | AE58: NA | AF58: NA | AG58: NA | AH58: NA
A59: 58 | B59: PG3 Strato Soot | C59: SSO | D59: 5 Week Lead Time | I59: 471 | O59: LK-ES-VCTB-6G | P59: 600 x 750 Eco Slabstone Splash Back | Q59: Victorian Teal Blue Gloss | R59: =_xlfn.CONCAT(P59," ",Q59) -> 600 x 750 Eco Slabstone Splash Back Victorian Teal Blue Gloss | T59: 15 | U59: 2000 | V59: 242 | W59: 373 | X59: 461 | Y59: 505 | Z59: 548 | AA59: 592 | AB59: 636 | AC59: 724 | AD59: 811 | AE59: NA | AF59: NA | AG59: NA | AH59: NA
A60: 59 | B60: PG3 Strato Steel Grey | C60: SSY | D60: 5 Week Lead Time | I60: 515 | O60: LK-ES-VCTB-9G | P60: 900 x 750 Eco Slabstone Splash Back | Q60: Victorian Teal Blue Gloss | R60: 900 x 750 Eco Slabstone Splash Back Victorian Teal Blue Gloss | T60: 16 | U60: 2200 | V60: 265 | W60: 409 | X60: 505 | Y60: 553 | Z60: 601 | AA60: 648 | AB60: 696 | AC60: 792 | AD60: 888 | AE60: NA | AF60: NA | AG60: NA | AH60: NA
A61: 60 | B61: PG3 Strato Stone | C61: SST | D61: 5 Week Lead Time | H61: Solutions Wine Racks | O61: LK-ES-VCTB-1G | P61: 1000 x 750 Eco Slabstone Splash Back | Q61: Victorian Teal Blue Gloss | R61: 1000 x 750 Eco Slabstone Splash Back Victorian Teal Blue Gloss | T61: 17 | U61: 2300 | V61: 277 | W61: 427 | X61: 527 | Y61: 577 | Z61: 627 | AA61: 676 | AB61: 726 | AC61: 826 | AD61: 926 | AE61: NA | AF61: NA | AG61: NA | AH61: NA
A62: 61 | B62: PG3 Strato Taupe | C62: STP | D62: 5 Week Lead Time | O62: LK-ES-VCSB-6G | P62: 600 x 750 Eco Slabstone Splash Back | Q62: Victorian Soot Black Gloss | R62: 600 x 750 Eco Slabstone Splash Back Victorian Soot Black Gloss | T62: 18 | U62: 2500 | V62: 300 | W62: 462 | X62: 571 | Y62: 625 | Z62: 679 | AA62: 733 | AB62: 787 | AC62: 895 | AD62: 1003 | AE62: NA | AF62: NA | AG62: NA | AH62: NA
A63: 62 | B63: PG3 Strato Thicket | C63: STK | D63: 5 Week Lead Time | H63: 1 | I63: Select Range | J63: =VLOOKUP(Kitchen!$A423,$I64:$J67,2,FALSE) ->  | K63: =VLOOKUP(Kitchen!$A427,$I64:$J67,2,FALSE) ->  | L63: =VLOOKUP(Kitchen!$A431,$I64:$J67,2,FALSE) ->  | O63: LK-ES-VCSB-9G | P63: 900 x 750 Eco Slabstone Splash Back | Q63: Victorian Soot Black Gloss | R63: 900 x 750 Eco Slabstone Splash Back Victorian Soot Black Gloss
A64: 63 | B64: PG3 Strato Warm Earth | C64: SWE | D64: 5 Week Lead Time | H64: 2 | I64: Natural Oak Wine Rack | J64: HNO | O64: LK-ES-VCSB-1G | P64: 1000 x 750 Eco Slabstone Splash Back | Q64: Victorian Soot Black Gloss | R64: 1000 x 750 Eco Slabstone Splash Back Victorian Soot Black Gloss
A65: 64 | B65: PG4 Elswick Aegean | C65: EAG | D65: 6 Week Lead Time | H65: 3 | I65: Tobacco Oak Wine Rack | J65: HTO | O65: LK-ES-VCPG-6G | P65: 600 x 750 Eco Slabstone Splash Back | Q65: Victorian Pencil Grey Gloss | R65: 600 x 750 Eco Slabstone Splash Back Victorian Pencil Grey Gloss
A66: 65 | B66: PG4 Elswick Atlantic | C66: EAT | D66: 6 Week Lead Time | H66: 4 | I66: White Oak Wine Rack | J66: HWO | O66: LK-ES-VCPG-9G | P66: 900 x 750 Eco Slabstone Splash Back | Q66: Victorian Pencil Grey Gloss | R66: 900 x 750 Eco Slabstone Splash Back Victorian Pencil Grey Gloss
A67: 66 | B67: PG4 Elswick Auburn | C67: EAB | D67: 6 Week Lead Time | O67: LK-ES-VCPG-1G | P67: 1000 x 750 Eco Slabstone Splash Back | Q67: Victorian Pencil Grey Gloss | R67: 1000 x 750 Eco Slabstone Splash Back Victorian Pencil Grey Gloss
A68: 67 | B68: PG4 Elswick Breeze | C68: EBR | D68: 6 Week Lead Time | O68: LK-ES-VCOG-6G | P68: 600 x 750 Eco Slabstone Splash Back | Q68: Victorian Olive Green Gloss | R68: 600 x 750 Eco Slabstone Splash Back Victorian Olive Green Gloss
A69: 68 | B69: PG4 Elswick Brigade | C69: EBG | D69: 6 Week Lead Time | H69: 1 | I69: 2 | J69: 3 | K69: 4 | L69: 5 | O69: LK-ES-VCOG-9G | P69: 900 x 750 Eco Slabstone Splash Back | Q69: Victorian Olive Green Gloss | R69: 900 x 750 Eco Slabstone Splash Back Victorian Olive Green Gloss
A70: 69 | B70: PG4 Elswick Bright White | C70: EBW | D70: 6 Week Lead Time | G70: Sizes | H70: 286 | I70: 360 | J70: 720 | K70: 900 | L70: 1960 | O70: LK-ES-VCOG-1G | P70: 1000 x 750 Eco Slabstone Splash Back | Q70: Victorian Olive Green Gloss | R70: 1000 x 750 Eco Slabstone Splash Back Victorian Olive Green Gloss
A71: 70 | B71: PG4 Elswick Cashmere | C71: ECS | D71: 6 Week Lead Time | E71: =ROUNDUP((L71*1.2),0) -> 680 | F71: 1 | G71: 150 | H71: 255 | I71: 255 | J71: 281 | K71: 309 | L71: 566 | O71: LK-ES-VCTO-6G | P71: 600 x 750 Eco Slabstone Splash Back | Q71: Victorian Terracotta Orange Gloss | R71: 600 x 750 Eco Slabstone Splash Back Victorian Terracotta Orange Gloss
A72: 71 | B72: PG4 Elswick Damson | C72: EDM | D72: 6 Week Lead Time | E72: =ROUNDUP((L72*1.2),0) -> 680 | F72: 2 | G72: 300 | H72: 255 | I72: 255 | J72: 281 | K72: 309 | L72: 566 | O72: LK-ES-VCTO-9G | P72: 900 x 750 Eco Slabstone Splash Back | Q72: Victorian Terracotta Orange Gloss | R72: 900 x 750 Eco Slabstone Splash Back Victorian Terracotta Orange Gloss
A73: 72 | B73: PG4 Elswick Desert Pink | C73: EDP | D73: 6 Week Lead Time | E73: 680 | F73: 3 | G73: 400 | H73: 255 | I73: 255 | J73: 281 | K73: 309 | L73: 566 | O73: LK-ES-VCTO-1G | P73: 1000 x 750 Eco Slabstone Splash Back | Q73: Victorian Terracotta Orange Gloss | R73: 1000 x 750 Eco Slabstone Splash Back Victorian Terracotta Orange Gloss
A74: 73 | B74: PG4 Elswick Dust Grey | C74: EDS | D74: 6 Week Lead Time | E74: 680 | F74: 4 | G74: 500 | H74: 255 | I74: 255 | J74: 281 | K74: 309 | L74: 566 | O74: LK-ES-VCYB-6G | P74: 600 x 750 Eco Slabstone Splash Back | Q74: Victorian Yale Blue Gloss | R74: 600 x 750 Eco Slabstone Splash Back Victorian Yale Blue Gloss
A75: 74 | B75: PG4 Elswick Graphite | C75: EGP | D75: 6 Week Lead Time | E75: 742 | F75: 5 | G75: 600 | H75: 255 | I75: 255 | J75: 281 | K75: 309 | L75: 618 | O75: LK-ES-VCYB-9G | P75: 900 x 750 Eco Slabstone Splash Back | Q75: Victorian Yale Blue Gloss | R75: 900 x 750 Eco Slabstone Splash Back Victorian Yale Blue Gloss
A76: 75 | B76: PG4 Elswick Heather Green | C76: EHG | D76: 6 Week Lead Time | F76: 6 | G76: 700 | H76: 281 | I76: 281 | J76: 309 | K76: 330 | L76: Not Available | O76: LK-ES-VCYB-1G | P76: 1000 x 750 Eco Slabstone Splash Back | Q76: Victorian Yale Blue Gloss | R76: 1000 x 750 Eco Slabstone Splash Back Victorian Yale Blue Gloss
A77: 76 | B77: PG4 Elswick Indigo | C77: EIN | D77: 6 Week Lead Time | F77: 7 | G77: 800 | H77: 281 | I77: 281 | J77: 309 | K77: 330 | L77: Not Available | O77: LK-ES-HARE-6G | P77: 600 x 750 Eco Slabstone Splash Back | Q77: Hare ButtermiFM Cream Gloss | R77: 600 x 750 Eco Slabstone Splash Back Hare ButtermiFM Cream Gloss
A78: 77 | B78: PG4 Elswick Ivory | C78: EIV | D78: 6 Week Lead Time | F78: 8 | G78: 900 | H78: 281 | I78: 281 | J78: 309 | K78: 330 | L78: Not Available | O78: LK-ES-HARE-9G | P78: 900 x 750 Eco Slabstone Splash Back | Q78: Hare ButtermiFM Cream Gloss | R78: 900 x 750 Eco Slabstone Splash Back Hare ButtermiFM Cream Gloss
A79: 78 | B79: PG4 Elswick Laurel Green | C79: ELN | D79: 6 Week Lead Time | F79: 9 | G79: 1000 | H79: 281 | I79: 281 | J79: 309 | K79: 330 | L79: Not Available | O79: LK-ES-HARE-1G | P79: 1000 x 750 Eco Slabstone Splash Back | Q79: Hare ButtermiFM Cream Gloss | R79: 1000 x 750 Eco Slabstone Splash Back Hare ButtermiFM Cream Gloss
A80: 79 | B80: PG4 Elswick Light Grey | C80: EDG | D80: 6 Week Lead Time | F80: 10 | G80: 1200 | H80: 309 | I80: 309 | J80: Not Available | K80: Not Available | L80: Not Available | O80: LK-ES-MWSB-6G | P80: 600 x 750 Eco Slabstone Splash Back | Q80: Meadow Steel Blue Gloss | R80: 600 x 750 Eco Slabstone Splash Back Meadow Steel Blue Gloss
A81: 80 | B81: PG4 Elswick Meadow | C81: EME | D81: 6 Week Lead Time | O81: LK-ES-MWSB-9G | P81: 900 x 750 Eco Slabstone Splash Back | Q81: Meadow Steel Blue Gloss | R81: 900 x 750 Eco Slabstone Splash Back Meadow Steel Blue Gloss
A82: 81 | B82: PG4 Elswick Midnight Grey | C82: EMN | D82: 6 Week Lead Time | O82: LK-ES-MWSB-1G | P82: 1000 x 750 Eco Slabstone Splash Back | Q82: Meadow Steel Blue Gloss | R82: 1000 x 750 Eco Slabstone Splash Back Meadow Steel Blue Gloss
A83: 82 | B83: PG4 Elswick Mussel | C83: EMU | D83: 6 Week Lead Time | O83: LK-ES-MWSG-6G | P83: 600 x 750 Eco Slabstone Splash Back | Q83: Meadow Sage Gloss | R83: 600 x 750 Eco Slabstone Splash Back Meadow Sage Gloss
A84: 83 | B84: PG4 Elswick Olive Green | C84: EOV | D84: 6 Week Lead Time | H84: Open Unit 1 | J84: Height | K84: =IFERROR(INDEX($H$69:$L$69,MATCH(I85,$H$70:$L$70,1)),1) -> 1 | O84: LK-ES-MWSG-9G | P84: 900 x 750 Eco Slabstone Splash Back | Q84: Meadow Sage Gloss | R84: 900 x 750 Eco Slabstone Splash Back Meadow Sage Gloss
A85: 84 | B85: PG4 Elswick Pale Teal | C85: EPT | D85: 6 Week Lead Time | H85: Chosen Height | I85: =Kitchen!A411 -> ENTER HEIGHT HERE | J85: Width | K85: =IFERROR(INDEX($F$71:$F$80,MATCH(I86,$G$71:$G$80,1)),1) -> 1 | O85: LK-ES-MWSG-1G | P85: 1000 x 750 Eco Slabstone Splash Back | Q85: Meadow Sage Gloss | R85: 1000 x 750 Eco Slabstone Splash Back Meadow Sage Gloss
A86: 85 | B86: PG4 Elswick Pearl | C86: EPE | D86: 6 Week Lead Time | H86: Chosen Width | I86: =Kitchen!A412 -> ENTER WIDTH HERE | J86: Price | K86: =IFERROR(VLOOKUP(K85,$F$71:$L$80,MATCH(K84,$F$69:$L$69,0),0),"") -> 255 | O86: LK-ES-SFBC-6G | P86: 600 x 750 Eco Slabstone Splash Back | Q86: Star Flower ButtermiFM Cream Gloss | R86: 600 x 750 Eco Slabstone Splash Back Star Flower ButtermiFM Cream Gloss
A87: 86 | B87: PG4 Elswick Pebble Grey | C87: EPG | D87: 6 Week Lead Time | O87: LK-ES-SFBC-9G | P87: 900 x 750 Eco Slabstone Splash Back | Q87: Star Flower ButtermiFM Cream Gloss | R87: 900 x 750 Eco Slabstone Splash Back Star Flower ButtermiFM Cream Gloss
A88: 87 | B88: PG4 Elswick Porcelain | C88: EPN | D88: 6 Week Lead Time | H88: Open Unit 2 | J88: Height | K88: =IFERROR(INDEX($H$69:$L$69,MATCH(I89,$H$70:$L$70,1)),1) -> 1 | O88: LK-ES-SFBC-1G | P88: 1000 x 750 Eco Slabstone Splash Back | Q88: Star Flower ButtermiFM Cream Gloss | R88: 1000 x 750 Eco Slabstone Splash Back Star Flower ButtermiFM Cream Gloss
A89: 88 | B89: PG4 Elswick Sage | C89: ESG | D89: 6 Week Lead Time | H89: Chosen Height | I89: =Kitchen!A415 -> ENTER HEIGHT HERE | J89: Width | K89: =IFERROR(INDEX($F$71:$F$80,MATCH(I90,$G$71:$G$80,1)),1) -> 1 | O89: LK-ES-SFPB-6G | P89: 600 x 750 Eco Slabstone Splash Back | Q89: Star Flower Pastel Blue Gloss | R89: 600 x 750 Eco Slabstone Splash Back Star Flower Pastel Blue Gloss
A90: 89 | B90: PG4 Elswick Sapphire | C90: ESP | D90: 6 Week Lead Time | H90: Chosen Width | I90: =Kitchen!A416 -> ENTER WIDTH HERE | J90: Price | K90: =IFERROR(VLOOKUP(K89,$F$71:$L$80,MATCH(K88,$F$69:$L$69,0),0),"") -> 255 | O90: LK-ES-SFPB-9G | P90: 900 x 750 Eco Slabstone Splash Back | Q90: Star Flower Pastel Blue Gloss | R90: 900 x 750 Eco Slabstone Splash Back Star Flower Pastel Blue Gloss
A91: 90 | B91: PG4 Elswick Soft Black | C91: ESK | D91: 6 Week Lead Time | O91: LK-ES-SFPB-1G | P91: 1000 x 750 Eco Slabstone Splash Back | Q91: Star Flower Pastel Blue Gloss | R91: 1000 x 750 Eco Slabstone Splash Back Star Flower Pastel Blue Gloss
A92: 91 | B92: PG4 Elswick Soot | C92: ESO | D92: 6 Week Lead Time | H92: Open Unit 3 | J92: Height | K92: =IFERROR(INDEX($H$69:$L$69,MATCH(I93,$H$70:$L$70,1)),1) -> 1 | O92: LK-ES-CYBB-6G | P92: 600 x 750 Eco Slabstone Splash Back | Q92: Canterbury Baltic Blue Gloss | R92: 600 x 750 Eco Slabstone Splash Back Canterbury Baltic Blue Gloss
A93: 92 | B93: PG4 Elswick Steel Grey | C93: ESY | D93: 6 Week Lead Time | H93: Chosen Height | I93: =Kitchen!A419 -> ENTER HEIGHT HERE | J93: Width | K93: =IFERROR(INDEX($F$71:$F$80,MATCH(I94,$G$71:$G$80,1)),1) -> 1 | O93: LK-ES-CYBB-9G | P93: 900 x 750 Eco Slabstone Splash Back | Q93: Canterbury Baltic Blue Gloss | R93: 900 x 750 Eco Slabstone Splash Back Canterbury Baltic Blue Gloss
A94: 93 | B94: PG4 Elswick Stone | C94: ESN | D94: 6 Week Lead Time | H94: Chosen Width | I94: =Kitchen!A420 -> ENTER WIDTH HERE | J94: Price | K94: =IFERROR(VLOOKUP(K93,$F$71:$L$80,MATCH(K92,$F$69:$L$69,0),0),"") -> 255 | O94: LK-ES-CYBB-1G | P94: 1000 x 750 Eco Slabstone Splash Back | Q94: Canterbury Baltic Blue Gloss | R94: 1000 x 750 Eco Slabstone Splash Back Canterbury Baltic Blue Gloss
A95: 94 | B95: PG4 Elswick Taupe | C95: ETP | D95: 6 Week Lead Time | O95: LK-ES-CYCG-6G | P95: 600 x 750 Eco Slabstone Splash Back | Q95: Canterbury Charcoal Grey Gloss | R95: 600 x 750 Eco Slabstone Splash Back Canterbury Charcoal Grey Gloss
A96: 95 | B96: PG4 Elswick Thicket | C96: ETK | D96: 6 Week Lead Time | O96: LK-ES-CYCG-9G | P96: 900 x 750 Eco Slabstone Splash Back | Q96: Canterbury Charcoal Grey Gloss | R96: 900 x 750 Eco Slabstone Splash Back Canterbury Charcoal Grey Gloss
A97: 96 | B97: PG4 Elswick Warm Earth | C97: EWE | D97: 6 Week Lead Time | O97: LK-ES-CYCG-1G | P97: 1000 x 750 Eco Slabstone Splash Back | Q97: Canterbury Charcoal Grey Gloss | R97: 1000 x 750 Eco Slabstone Splash Back Canterbury Charcoal Grey Gloss
H98: 1 | I98: 2 | J98: 3 | K98: 4 | O98: LK-ES-HBPC-6G | P98: 600 x 750 Eco Slabstone Splash Back | Q98: Herringbone Porcelain Cream Gloss | R98: 600 x 750 Eco Slabstone Splash Back Herringbone Porcelain Cream Gloss
H99: 286 | I99: 720 | J99: 900 | K99: 1960 | O99: LK-ES-HBPC-9G | P99: 900 x 750 Eco Slabstone Splash Back | Q99: Herringbone Porcelain Cream Gloss | R99: 900 x 750 Eco Slabstone Splash Back Herringbone Porcelain Cream Gloss
F100: 1 | G100: 150 | H100: 255 | I100: 281 | J100: 309 | K100: 330 | O100: LK-ES-HBPC-1G | P100: 1000 x 750 Eco Slabstone Splash Back | Q100: Herringbone Porcelain Cream Gloss | R100: 1000 x 750 Eco Slabstone Splash Back Herringbone Porcelain Cream Gloss
F101: 2 | G101: 300 | H101: 255 | I101: 281 | J101: 309 | K101: 566 | O101: LK-ES-HBCP-6G | P101: 600 x 750 Eco Slabstone Splash Back | Q101: Herringbone Cashmere Pink Gloss | R101: 600 x 750 Eco Slabstone Splash Back Herringbone Cashmere Pink Gloss
O102: LK-ES-HBCP-9G | P102: 900 x 750 Eco Slabstone Splash Back | Q102: Herringbone Cashmere Pink Gloss | R102: 900 x 750 Eco Slabstone Splash Back Herringbone Cashmere Pink Gloss
O103: LK-ES-HBCP-1G | P103: 1000 x 750 Eco Slabstone Splash Back | Q103: Herringbone Cashmere Pink Gloss | R103: 1000 x 750 Eco Slabstone Splash Back Herringbone Cashmere Pink Gloss
H104: Wine Rack 1 | J104: Height | K104: =IFERROR(INDEX($H$98:$K$98,MATCH(I105,$H$99:$K$99,1)),1) -> 1 | O104: LK-ES-HBIB-6G | P104: 600 x 750 Eco Slabstone Splash Back | Q104: Herringbone Indigo Blue Gloss | R104: 600 x 750 Eco Slabstone Splash Back Herringbone Indigo Blue Gloss
H105: Chosen Height | I105: =Kitchen!A424 -> ENTER HEIGHT HERE | J105: Width | K105: =IFERROR(INDEX($F$100:$F$101,MATCH(I106,$G$100:$G$101,1)),1) -> 1 | O105: LK-ES-HBIB-9G | P105: 900 x 750 Eco Slabstone Splash Back | Q105: Herringbone Indigo Blue Gloss | R105: 900 x 750 Eco Slabstone Splash Back Herringbone Indigo Blue Gloss
H106: Chosen Width | I106: =Kitchen!A425 -> ENTER WIDTH HERE | J106: Price | K106: =IFERROR(VLOOKUP(K105,$F$100:$K$101,MATCH(K104,$F$98:$K$98,0),0),"") -> 255 | O106: LK-ES-HBIB-1G | P106: 1000 x 750 Eco Slabstone Splash Back | Q106: Herringbone Indigo Blue Gloss | R106: 1000 x 750 Eco Slabstone Splash Back Herringbone Indigo Blue Gloss
O107: LK-ES-HBMG-6G | P107: 600 x 750 Eco Slabstone Splash Back | Q107: Herringbone Marble Grey Gloss | R107: 600 x 750 Eco Slabstone Splash Back Herringbone Marble Grey Gloss
H108: Wine Rack 2 | J108: Height | K108: =IFERROR(INDEX($H$98:$K$98,MATCH(I109,$H$99:$K$99,1)),1) -> 1 | O108: LK-ES-HBMG-9G | P108: 900 x 750 Eco Slabstone Splash Back | Q108: Herringbone Marble Grey Gloss | R108: 900 x 750 Eco Slabstone Splash Back Herringbone Marble Grey Gloss
H109: Chosen Height | I109: =Kitchen!A428 -> ENTER HEIGHT HERE | J109: Width | K109: =IFERROR(INDEX($F$100:$F$101,MATCH(I110,$G$100:$G$101,1)),1) -> 1 | O109: LK-ES-HBMG-1G | P109: 1000 x 750 Eco Slabstone Splash Back | Q109: Herringbone Marble Grey Gloss | R109: 1000 x 750 Eco Slabstone Splash Back Herringbone Marble Grey Gloss
H110: Chosen Width | I110: =Kitchen!A429 -> ENTER WIDTH HERE | J110: Price | K110: =IFERROR(VLOOKUP(K109,$F$100:$K$101,MATCH(K108,$F$98:$K$98,0),0),"") -> 255 | O110: LK-ES-HBJG-6G | P110: 600 x 750 Eco Slabstone Splash Back | Q110: Herringbone Jade Green Gloss | R110: 600 x 750 Eco Slabstone Splash Back Herringbone Jade Green Gloss
O111: LK-ES-HBJG-9G | P111: 900 x 750 Eco Slabstone Splash Back | Q111: Herringbone Jade Green Gloss | R111: 900 x 750 Eco Slabstone Splash Back Herringbone Jade Green Gloss
H112: Wine Rack 3 | J112: Height | K112: =IFERROR(INDEX($H$98:$K$98,MATCH(I113,$H$99:$K$99,1)),1) -> 1 | O112: LK-ES-HBJG-1G | P112: 1000 x 750 Eco Slabstone Splash Back | Q112: Herringbone Jade Green Gloss | R112: 1000 x 750 Eco Slabstone Splash Back Herringbone Jade Green Gloss
H113: Chosen Height | I113: =Kitchen!A432 -> ENTER HEIGHT HERE | J113: Width | K113: =IFERROR(INDEX($F$100:$F$101,MATCH(I114,$G$100:$G$101,1)),1) -> 1
H114: Chosen Width | I114: =Kitchen!A433 -> ENTER WIDTH HERE | J114: Price | K114: =IFERROR(VLOOKUP(K113,$F$100:$K$101,MATCH(K112,$F$98:$K$98,0),0),"") -> 255
H116: Eterna Open Units
H118: 1 | I118: Select Range | J118: =VLOOKUP(Kitchen!$A437,$I119:$J126,2,FALSE) ->  | K118: =VLOOKUP(Kitchen!$A441,$I119:$J126,2,FALSE) ->  | L118: =VLOOKUP(Kitchen!$A445,$I119:$J126,2,FALSE) -> 
H119: 2 | I119: Ossido Grigio Open Unit | J119: EOG
H120: 3 | I120: Ossido Marrone Open Unit | J120: EOM
H121: 4 | I121: Patagonia Marble Open Unit | J121: EPM
H122: 5 | I122: Venato Marble Open Unit | J122: EVM
H123: 6 | I123: Nero Marble Open Unit | J123: ENM
H124: 7 | I124: Laguna Grey Aged Oak Open Unit | J124: ELA
H125: 8 | I125: Laguna Dark Oak Open Unit | J125: ELD
H126: 9 | I126: Chalet Light Walnut Open Unit | J126: ELW
H128: Eterna Wine Racks
H129: 1 | I129: Select Range | J129: =VLOOKUP(Kitchen!$A445,$I130:$J137,2,FALSE) ->  | K129: =VLOOKUP(Kitchen!$A450,$I130:$J137,2,FALSE) ->  | L129: =VLOOKUP(Kitchen!$A454,$I130:$J137,2,FALSE) -> 
H130: 2 | I130: Ossido Grigio Wine Rack | J130: EOG
H131: 3 | I131: Ossido Marrone Wine Rack | J131: EOM
H132: 4 | I132: Patagonia Marble Wine Rack | J132: EPM
H133: 5 | I133: Venato Marble Wine Rack | J133: EVM
H134: 6 | I134: Nero Marble Wine Rack | J134: ENM
H135: 7 | I135: Laguna Grey Aged Oak Wine Rack | J135: ELA
H136: 8 | I136: Laguna Dark Oak Wine Rack | J136: ELD
H137: 9 | I137: Chalet Light Walnut Wine Rack | J137: ELW
H141: 1 | I141: 2 | J141: 3 | K141: 4 | L141: 5
G142: Sizes | H142: 286 | I142: 360 | J142: 720 | K142: 900 | L142: 1960
F143: 1 | G143: 150 | H143: 228 | I143: 228 | J143: 254 | K143: 280 | L143: 648
F144: 2 | G144: 300 | H144: 228 | I144: 228 | J144: 254 | K144: 280 | L144: 648
F145: 3 | G145: 400 | H145: 252 | I145: 252 | J145: 268 | K145: 292 | L145: 662
F146: 4 | G146: 500 | H146: 254 | I146: 254 | J146: 287 | K146: 312 | L146: 707
F147: 5 | G147: 600 | H147: 274 | I147: 274 | J147: 305 | K147: 338 | L147: 771
F148: 6 | G148: 700 | H148: 330 | I148: 330 | J148: 369 | K148: 401 | L148: Not Available
F149: 7 | G149: 800 | H149: 344 | I149: 344 | J149: 381 | K149: 419 | L149: Not Available
F150: 8 | G150: 900 | H150: 356 | I150: 356 | J150: 394 | K150: 440 | L150: Not Available
F151: 9 | G151: 1000 | H151: 369 | I151: 369 | J151: 407 | K151: 444 | L151: Not Available
F152: 10 | G152: 1200 | H152: 394 | I152: 394 | J152: Not Available | K152: Not Available | L152: Not Available
H156: Open Unit 1 | J156: Height | K156: =IFERROR(INDEX($H$141:$L$141,MATCH(I157,$H$142:$L$142,1)),1) -> 1
H157: Chosen Height | I157: =Kitchen!A438 -> ENTER HEIGHT HERE | J157: Width | K157: =IFERROR(INDEX($F$143:$F$152,MATCH(I158,$G$143:$G$152,1)),1) -> 1
H158: Chosen Width | I158: =Kitchen!A439 -> ENTER WIDTH HERE | J158: Price | K158: =IFERROR(VLOOKUP(K157,$F$143:$L$152,MATCH(K156,$F$141:$L$141,0),0),"") -> 228
H160: Open Unit 2 | J160: Height | K160: =IFERROR(INDEX($H$141:$L$141,MATCH(I161,$H$142:$L$142,1)),1) -> 1
H161: Chosen Height | I161: =Kitchen!A442 -> ENTER HEIGHT HERE | J161: Width | K161: =IFERROR(INDEX($F$143:$F$152,MATCH(I162,$G$143:$G$152,1)),1) -> 1
H162: Chosen Width | I162: =Kitchen!A443 -> ENTER WIDTH HERE | J162: Price | K162: =IFERROR(VLOOKUP(K161,$F$143:$L$152,MATCH(K160,$F$141:$L$141,0),0),"") -> 228
H164: Open Unit 3 | J164: Height | K164: =IFERROR(INDEX($H$141:$L$141,MATCH(I165,$H$142:$L$142,1)),1) -> 1
H165: Chosen Height | I165: =Kitchen!A446 -> ENTER HEIGHT HERE | J165: Width | K165: =IFERROR(INDEX($F$143:$F$152,MATCH(I166,$G$143:$G$152,1)),1) -> 1
H166: Chosen Width | I166: =Kitchen!A447 -> ENTER WIDTH HERE | J166: Price | K166: =IFERROR(VLOOKUP(K165,$F$143:$L$152,MATCH(K164,$F$141:$L$141,0),0),"") -> 228
H170: 1 | I170: 2 | J170: 3 | K170: 4
H171: 286 | I171: 720 | J171: 900 | K171: 1960
F172: 1 | G172: 150 | H172: 254 | I172: 344 | J172: 381 | K172: 762
F173: 2 | G173: 300 | H173: 330 | I173: 496 | J173: 585 | K173: 1017
H176: Wine Rack 1 | J176: Height | K176: =IFERROR(INDEX($H$170:$K$170,MATCH(I177,$H$171:$K$171,1)),1) -> 1
H177: Chosen Height | I177: =Kitchen!A451 -> ENTER HEIGHT HERE | J177: Width | K177: =IFERROR(INDEX($F$172:$F$173,MATCH(I178,$G$172:$G$173,1)),1) -> 1
H178: Chosen Width | I178: =Kitchen!A452 -> ENTER WIDTH HERE | J178: Price | K178: =IFERROR(VLOOKUP(K177,$F$172:$K$173,MATCH(K176,$F$170:$K$170,0),0),"") -> 254
H180: Wine Rack 2 | J180: Height | K180: =IFERROR(INDEX($H$170:$K$170,MATCH(I181,$H$171:$K$171,1)),1) -> 1
H181: Chosen Height | I181: =Kitchen!A455 -> ENTER HEIGHT HERE | J181: Width | K181: =IFERROR(INDEX($F$172:$F$173,MATCH(I182,$G$172:$G$173,1)),1) -> 1
H182: Chosen Width | I182: =Kitchen!A456 -> ENTER WIDTH HERE | J182: Price | K182: =IFERROR(VLOOKUP(K181,$F$172:$K$173,MATCH(K180,$F$170:$K$170,0),0),"") -> 254
H184: Wine Rack 3 | J184: Height | K184: =IFERROR(INDEX($H$170:$K$170,MATCH(I185,$H$171:$K$171,1)),1) -> 1
H185: Chosen Height | I185: =Kitchen!A459 -> ENTER HEIGHT HERE | J185: Width | K185: =IFERROR(INDEX($F$172:$F$173,MATCH(I186,$G$172:$G$173,1)),1) -> 1
H186: Chosen Width | I186: =Kitchen!A460 -> ENTER WIDTH HERE | J186: Price | K186: =IFERROR(VLOOKUP(K185,$F$172:$K$173,MATCH(K184,$F$170:$K$170,0),0),"") -> 254
H189: Timber MTM Panels
H191: 1 | I191: Select Range | J191: =VLOOKUP($B$1,A2:D97,3,0) -> ESK
H192: 2 | I192: Elswick Painted MTM Panel
H193: 3 | I193: Strato Painted MTM Panel
H194: 4 | I194: Strato Stained MTM Panel
H196: Panel 1 | I196: =Kitchen!$A$210 -> Select Range | J196: Height | K196: =IFERROR(INDEX($U$204:$U$221,MATCH(I197,$V$204:$V$221,1)),1) -> 1
H197: Chosen Height | I197: =Kitchen!$A$211 -> ENTER HEIGHT HERE | J197: Width | K197: =IFERROR(INDEX($W$202:$AI$202,MATCH(I198,$W$203:$AI$203,1)),1) -> 1
H198: Chosen Width | I198: =Kitchen!$A$212 -> ENTER WIDTH HERE | J198: Price | K198: =IFERROR(VLOOKUP(K196,$U$204:$AI$221,MATCH(K197,$U$202:$AI$202,0),0),"") -> FALSE
H200: Panel 2 | J200: Height | K200: =IFERROR(INDEX($U$204:$U$221,MATCH(I201,$V$204:$V$221,1)),1) -> 1
H201: Chosen Height | I201: =Kitchen!$A$215 -> ENTER HEIGHT HERE | J201: Width | K201: =IFERROR(INDEX($W$202:$AI$202,MATCH(I202,$W$203:$AI$203,1)),1) -> 1 | W201: W
H202: Chosen Width | I202: =Kitchen!$A$216 -> ENTER WIDTH HERE | J202: Price | K202: =IFERROR(VLOOKUP(K200,$U$204:$AI$221,MATCH(K201,$U$202:$AI$202,0),0),"") -> FALSE | W202: 1 | X202: 2 | Y202: 3 | Z202: 4 | AA202: 5 | AB202: 6 | AC202: 7 | AD202: 8 | AE202: 9 | AF202: 10 | AG202: 11 | AH202: 12 | AI202: 13
U203: H | W203: 150 | X203: 300 | Y203: 400 | Z203: 450 | AA203: 500 | AB203: 550 | AC203: 600 | AD203: 700 | AE203: 800 | AF203: 900 | AG203: 1000 | AH203: 1100 | AI203: 1200
H204: Panel 3 | J204: Height | K204: =IFERROR(INDEX($U$204:$U$221,MATCH(I205,$V$204:$V$221,1)),1) -> 1 | U204: 1 | V204: 100 | W204: =IF($I$196=$U$1,V3,IF($I$196=$U$22,V24,IF($I$196=$U$43,V45))) -> FALSE | X204: =IF($I$196=$U$1,W3,IF($I$196=$U$22,W24,IF($I$196=$U$43,W45))) -> FALSE | Y204: FALSE | Z204: FALSE | AA204: FALSE | AB204: FALSE | AC204: FALSE | AD204: FALSE | AE204: FALSE | AF204: FALSE | AG204: FALSE | AH204: FALSE | AI204: FALSE
H205: Chosen Height | I205: =Kitchen!$A$219 -> ENTER HEIGHT HERE | J205: Width | K205: =IFERROR(INDEX($W$202:$AI$202,MATCH(I206,$W$203:$AI$203,1)),1) -> 1 | U205: 2 | V205: 200 | W205: =IF($I$196=$U$1,V4,IF($I$196=$U$22,V25,IF($I$196=$U$43,V46))) -> FALSE | X205: FALSE | Y205: FALSE | Z205: FALSE | AA205: FALSE | AB205: FALSE | AC205: FALSE | AD205: FALSE | AE205: FALSE | AF205: FALSE | AG205: FALSE | AH205: FALSE | AI205: FALSE
H206: Chosen Width | I206: =Kitchen!$A$220 -> ENTER WIDTH HERE | J206: Price | K206: =IFERROR(VLOOKUP(K204,$U$204:$AI$221,MATCH(K205,$U$202:$AI$202,0),0),"") -> FALSE | U206: 3 | V206: 300 | W206: FALSE | X206: FALSE | Y206: FALSE | Z206: FALSE | AA206: FALSE | AB206: FALSE | AC206: FALSE | AD206: FALSE | AE206: FALSE | AF206: FALSE | AG206: FALSE | AH206: FALSE | AI206: FALSE
U207: 4 | V207: 400 | W207: FALSE | X207: FALSE | Y207: FALSE | Z207: FALSE | AA207: FALSE | AB207: FALSE | AC207: FALSE | AD207: FALSE | AE207: FALSE | AF207: FALSE | AG207: FALSE | AH207: FALSE | AI207: FALSE
H208: Panel 4 | J208: Height | K208: =IFERROR(INDEX($U$204:$U$221,MATCH(I209,$V$204:$V$221,1)),1) -> 1 | U208: 5 | V208: 500 | W208: FALSE | X208: FALSE | Y208: FALSE | Z208: FALSE | AA208: FALSE | AB208: FALSE | AC208: FALSE | AD208: FALSE | AE208: FALSE | AF208: FALSE | AG208: FALSE | AH208: FALSE | AI208: FALSE
H209: Chosen Height | I209: =Kitchen!$A$223 -> ENTER HEIGHT HERE | J209: Width | K209: =IFERROR(INDEX($W$202:$AI$202,MATCH(I210,$W$203:$AI$203,1)),1) -> 1 | U209: 6 | V209: 600 | W209: FALSE | X209: FALSE | Y209: FALSE | Z209: FALSE | AA209: FALSE | AB209: FALSE | AC209: FALSE | AD209: FALSE | AE209: FALSE | AF209: FALSE | AG209: FALSE | AH209: FALSE | AI209: FALSE
H210: Chosen Width | I210: =Kitchen!$A$224 -> ENTER WIDTH HERE | J210: Price | K210: =IFERROR(VLOOKUP(K208,$U$204:$AI$221,MATCH(K209,$U$202:$AI$202,0),0),"") -> FALSE | U210: 7 | V210: 800 | W210: FALSE | X210: FALSE | Y210: FALSE | Z210: FALSE | AA210: FALSE | AB210: FALSE | AC210: FALSE | AD210: FALSE | AE210: FALSE | AF210: FALSE | AG210: FALSE | AH210: FALSE | AI210: FALSE
U211: 8 | V211: 900 | W211: FALSE | X211: FALSE | Y211: FALSE | Z211: FALSE | AA211: FALSE | AB211: FALSE | AC211: FALSE | AD211: FALSE | AE211: FALSE | AF211: FALSE | AG211: FALSE | AH211: FALSE | AI211: FALSE
H212: Panel 5 | J212: Height | K212: =IFERROR(INDEX($U$204:$U$221,MATCH(I213,$V$204:$V$221,1)),1) -> 1 | U212: 9 | V212: 1000 | W212: FALSE | X212: FALSE | Y212: FALSE | Z212: FALSE | AA212: FALSE | AB212: FALSE | AC212: FALSE | AD212: FALSE | AE212: FALSE | AF212: FALSE | AG212: FALSE | AH212: FALSE | AI212: FALSE
H213: Chosen Height | I213: =Kitchen!$A$227 -> ENTER HEIGHT HERE | J213: Width | K213: =IFERROR(INDEX($W$202:$AI$202,MATCH(I214,$W$203:$AI$203,1)),1) -> 1 | U213: 10 | V213: 1100 | W213: FALSE | X213: FALSE | Y213: FALSE | Z213: FALSE | AA213: FALSE | AB213: FALSE | AC213: FALSE | AD213: FALSE | AE213: FALSE | AF213: FALSE | AG213: FALSE | AH213: FALSE | AI213: FALSE
H214: Chosen Width | I214: =Kitchen!$A$228 -> ENTER WIDTH HERE | J214: Price | K214: =IFERROR(VLOOKUP(K212,$U$204:$AI$221,MATCH(K213,$U$202:$AI$202,0),0),"") -> FALSE | U214: 11 | V214: 1250 | W214: FALSE | X214: FALSE | Y214: FALSE | Z214: FALSE | AA214: FALSE | AB214: FALSE | AC214: FALSE | AD214: FALSE | AE214: FALSE | AF214: FALSE | AG214: FALSE | AH214: FALSE | AI214: FALSE
U215: 12 | V215: 1500 | W215: FALSE | X215: FALSE | Y215: FALSE | Z215: FALSE | AA215: FALSE | AB215: FALSE | AC215: FALSE | AD215: FALSE | AE215: FALSE | AF215: FALSE | AG215: FALSE | AH215: FALSE | AI215: FALSE
U216: 13 | V216: 1600 | W216: FALSE | X216: FALSE | Y216: FALSE | Z216: FALSE | AA216: FALSE | AB216: FALSE | AC216: FALSE | AD216: FALSE | AE216: FALSE | AF216: FALSE | AG216: FALSE | AH216: FALSE | AI216: FALSE
U217: 14 | V217: 1700 | W217: FALSE | X217: FALSE | Y217: FALSE | Z217: FALSE | AA217: FALSE | AB217: FALSE | AC217: FALSE | AD217: FALSE | AE217: FALSE | AF217: FALSE | AG217: FALSE | AH217: FALSE | AI217: FALSE
U218: 15 | V218: 2000 | W218: FALSE | X218: FALSE | Y218: FALSE | Z218: FALSE | AA218: FALSE | AB218: FALSE | AC218: FALSE | AD218: FALSE | AE218: FALSE | AF218: FALSE | AG218: FALSE | AH218: FALSE | AI218: FALSE
U219: 16 | V219: 2200 | W219: FALSE | X219: FALSE | Y219: FALSE | Z219: FALSE | AA219: FALSE | AB219: FALSE | AC219: FALSE | AD219: FALSE | AE219: FALSE | AF219: FALSE | AG219: FALSE | AH219: FALSE | AI219: FALSE
U220: 17 | V220: 2300 | W220: FALSE | X220: FALSE | Y220: FALSE | Z220: FALSE | AA220: FALSE | AB220: FALSE | AC220: FALSE | AD220: FALSE | AE220: FALSE | AF220: FALSE | AG220: FALSE | AH220: FALSE | AI220: FALSE
U221: 18 | V221: 2500 | W221: FALSE | X221: FALSE | Y221: FALSE | Z221: FALSE | AA221: FALSE | AB221: FALSE | AC221: FALSE | AD221: FALSE | AE221: FALSE | AF221: FALSE | AG221: FALSE | AH221: FALSE | AI221: FALSE

Sheet Codes (hidden)
A1: FM-C | B1: @FM- | C1: FM-C | D1: 1 | E1: 2 | F1: 3 | G1: 4 | H1: 5 | I1: 6 | J1: 7 | K1: 8 | L1: 9 | M1: 10 | N1: 11 | O1: 12 | P1: 13 | Q1: 14 | R1: 15 | S1: 16 | T1: 17 | U1: 18 | V1: 19 | W1: 20 | X1: 21 | Y1: 22 | Z1: 23 | AA1: 24 | AB1: 25 | AC1: 26 | AD1: 27 | AE1: 28 | AF1: 29 | AG1: 30 | AH1: 31 | AI1: 32 | AJ1: 33 | AK1: 34 | AL1: 35 | AM1: 36 | AN1: 37 | AO1: 38 | AP1: 39 | AQ1: 40 | AR1: 41 | AS1: 42 | AT1: 43 | AU1: 44 | AV1: 45 | AW1: 46 | AX1: 47 | AY1: 48 | AZ1: 49 | BA1: 50 | BB1: 51 | BC1: 52 | BD1: 53 | BE1: 54 | BF1: 55 | BG1: 56 | BH1: 57 | BI1: 58 | BJ1: 59 | BK1: 60 | BL1: 61 | BM1: 62 | BN1: 63 | BO1: 64 | BP1: 65 | BQ1: 66 | BR1: 67 | BS1: 68 | BT1: 69 | BU1: 70 | BV1: 71 | BW1: 72 | BX1: 73 | BY1: 74 | BZ1: 75 | CA1: 76 | CB1: 77 | CC1: 78 | CD1: 79 | CE1: 80 | CF1: 81 | CG1: 82 | CH1: 83 | CI1: 84 | CJ1: 85 | CK1: 86 | CL1: 87 | CM1: 88 | CN1: 89 | CO1: 90 | CP1: 91 | CQ1: 92 | CR1: 93 | CS1: 94 | CT1: 95 | CU1: 96
B2: FM-A- | D2: Mala Gloss Cashmere | E2: Mala Gloss Dove Grey | F2: Mala Gloss Dust Grey | G2: Mala Gloss Graphite | H2: Mala Gloss Porcelain | I2: Mala Gloss White | J2: Mala Matt Cashmere | K2: Mala Matt Dove Grey | L2: Mala Matt Dust Grey | M2: Mala Matt Graphite | N2: Mala Matt Moss Green | O2: Mala Matt Navy Blue | P2: Mala Matt Platinum Grey | Q2: Mala Matt Porcelain | R2: Mala Matt Taupe Grey | S2: Mala Matt White | T2: Eterna Ossido Grigio | U2: Eterna Ossido Marrone | V2: Eterna Patagonia Marble | W2: Eterna Venato Marble | X2: Eterna Nero Marble | Y2: Eterna Laguna Grey Aged Oak | Z2: Eterna Laguna Dark Oak | AA2: Eterna Chalet Light Walnut | AB2: Strato Aegean | AC2: Strato Atlantic | AD2: Strato Auburn | AE2: Strato Breeze | AF2: Strato Brigade | AG2: Strato Bright White | AH2: Strato Bronze | AI2: Strato Buff | AJ2: Strato Cashmere | AK2: Strato Charcoal Black | AL2: Strato Damson | AM2: Strato Desert Pink | AN2: Strato Dust Grey | AO2: Strato Graphite | AP2: Strato Heather Green | AQ2: Strato Indigo | AR2: Strato Ivory | AS2: Strato Laurel Green | AT2: Strato Light Grey | AU2: Strato Meadow | AV2: Strato Mezzo | AW2: Strato Midnight Grey | AX2: Strato Mocha | AY2: Strato Mussel | AZ2: Strato Olive Green | BA2: Strato Pale Oak | BB2: Strato Pale Teal | BC2: Strato Pearl | BD2: Strato Pebble Grey | BE2: Strato Porcelain | BF2: Strato Sage | BG2: Strato Sapphire | BH2: Strato Soft Black | BI2: Strato Soot | BJ2: Strato Steel Grey | BK2: Strato Stone | BL2: Strato Taupe | BM2: Strato Thicket | BN2: Strato Warm Earth | BO2: Elswick Aegean | BP2: Elswick Atlantic | BQ2: Elswick Auburn | BR2: Elswick Breeze | BS2: Elswick Brigade | BT2: Elswick Bright White | BU2: Elswick Cashmere | BV2: Elswick Damson | BW2: Elswick Desert Pink | BX2: Elswick Dust Grey | BY2: Elswick Graphite | BZ2: Elswick Heather Green | CA2: Elswick Indigo | CB2: Elswick Ivory | CC2: Elswick Laurel Green | CD2: Elswick Light Grey | CE2: Elswick Meadow | CF2: Elswick Midnight Grey | CG2: Elswick Mussel | CH2: Elswick Olive Green | CI2: Elswick Pale Teal | CJ2: Elswick Pearl | CK2: Elswick Pebble Grey | CL2: Elswick Porcelain | CM2: Elswick Sage | CN2: Elswick Sapphire | CO2: Elswick Soft Black | CP2: Elswick Soot | CQ2: Elswick Steel Grey | CR2: Elswick Stone | CS2: Elswick Taupe | CT2: Elswick Thicket | CU2: Elswick Warm Earth
A3: BOM / Prod ID | B3: Product Description | C3: BOM / Prod ID | D3: MCS- | E3: MGD- | F3: MDS- | G3: MGP- | H3: MPN- | I3: MGW- | J3: MCM- | K3: MDM- | L3: MTM- | M3: MGM- | N3: MGR- | O3: MIM- | P3: MSM- | Q3: MPM- | R3: MTP- | S3: MWM- | T3: EOG- | U3: EOM- | V3: EPM- | W3: EVM- | X3: ENM- | Y3: ELA- | Z3: ELD- | AA3: ELW- | AB3: SAG- | AC3: SAT- | AD3: SAB- | AE3: SBR- | AF3: SBG- | AG3: SBW- | AH3: SBZ- | AI3: SBF- | AJ3: SCS- | AK3: SCB- | AL3: SDM- | AM3: SDP- | AN3: SDS- | AO3: SGP- | AP3: SHG- | AQ3: SIN- | AR3: SIV- | AS3: SLR- | AT3: SDG- | AU3: SMW- | AV3: SMZ- | AW3: SMN- | AX3: SMC- | AY3: SMU- | AZ3: SOV- | BA3: SPO- | BB3: SPT- | BC3: SPE- | BD3: SPG- | BE3: SPN- | BF3: SSG- | BG3: SSP- | BH3: SSB- | BI3: SSO- | BJ3: SSY- | BK3: SST- | BL3: STP- | BM3: STK- | BN3: SWE- | BO3: EAG- | BP3: EAT- | BQ3: EAB- | BR3: EBR- | BS3: EBG- | BT3: EBW- | BU3: ECS- | BV3: EDM- | BW3: EDP- | BX3: EDS- | BY3: EGP- | BZ3: EHG- | CA3: EIN- | CB3: EIV- | CC3: ELN- | CD3: EDG- | CE3: EME- | CF3: EMN- | CG3: EMU- | CH3: EOV- | CI3: EPT- | CJ3: EPE- | CK3: EPG- | CL3: EPN- | CM3: ESG- | CN3: ESP- | CO3: ESK- | CP3: ESO- | CQ3: ESY- | CR3: ESN- | CS3: ETP- | CT3: ETK- | CU3: EWE-
A4: BP15TY | B4: 150 HL Pull Out Base VS SUB | C4: BP15TY | D4: @FM-MCS-BP15TY | E4: @FM-MGD-BP15TY | F4: @FM-MDS-BP15TY | G4: @FM-MGP-BP15TY | H4: @FM-MPN-BP15TY | I4: @FM-MGW-BP15TY | J4: @FM-MCM-BP15TY | K4: @FM-MDM-BP15TY | L4: @FM-MTM-BP15TY | M4: @FM-MGM-BP15TY | N4: @FM-MGR-BP15TY | O4: @FM-MIM-BP15TY | P4: @FM-MSM-BP15TY | Q4: @FM-MPM-BP15TY | R4: @FM-MTP-BP15TY | S4: @FM-MWM-BP15TY | T4: @FM-EOG-BP15TY | U4: @FM-EOM-BP15TY | V4: @FM-EPM-BP15TY | W4: @FM-EVM-BP15TY | X4: @FM-ENM-BP15TY | Y4: @FM-ELA-BP15TY | Z4: @FM-ELD-BP15TY | AA4: @FM-ELW-BP15TY | AB4: @FM-SAG-BP15TY | AC4: @FM-SAT-BP15TY | AD4: @FM-SAB-BP15TY | AE4: @FM-SBR-BP15TY | AF4: @FM-SBG-BP15TY | AG4: @FM-SBW-BP15TY | AH4: @FM-SBZ-BP15TY | AI4: @FM-SBF-BP15TY | AJ4: @FM-SCS-BP15TY | AK4: @FM-SCB-BP15TY | AL4: @FM-SDM-BP15TY | AM4: @FM-SDP-BP15TY | AN4: @FM-SDS-BP15TY | AO4: @FM-SGP-BP15TY | AP4: @FM-SHG-BP15TY | AQ4: @FM-SIN-BP15TY | AR4: @FM-SIV-BP15TY | AS4: @FM-SLR-BP15TY | AT4: @FM-SDG-BP15TY | AU4: @FM-SMW-BP15TY | AV4: @FM-SMZ-BP15TY | AW4: @FM-SMN-BP15TY | AX4: @FM-SMC-BP15TY | AY4: @FM-SMU-BP15TY | AZ4: @FM-SOV-BP15TY | BA4: @FM-SPO-BP15TY | BB4: @FM-SPT-BP15TY | BC4: @FM-SPE-BP15TY | BD4: @FM-SPG-BP15TY | BE4: @FM-SPN-BP15TY | BF4: @FM-SSG-BP15TY | BG4: @FM-SSP-BP15TY | BH4: @FM-SSB-BP15TY | BI4: @FM-SSO-BP15TY | BJ4: @FM-SSY-BP15TY | BK4: @FM-SST-BP15TY | BL4: @FM-STP-BP15TY | BM4: @FM-STK-BP15TY | BN4: @FM-SWE-BP15TY | BO4: @FM-EAG-BP15TY | BP4: @FM-EAT-BP15TY | BQ4: @FM-EAB-BP15TY | BR4: @FM-EBR-BP15TY | BS4: @FM-EBG-BP15TY | BT4: @FM-EBW-BP15TY | BU4: @FM-ECS-BP15TY | BV4: @FM-EDM-BP15TY | BW4: @FM-EDP-BP15TY | BX4: @FM-EDS-BP15TY | BY4: @FM-EGP-BP15TY | BZ4: @FM-EHG-BP15TY | CA4: @FM-EIN-BP15TY | CB4: @FM-EIV-BP15TY | CC4: @FM-ELN-BP15TY | CD4: @FM-EDG-BP15TY | CE4: @FM-EME-BP15TY | CF4: @FM-EMN-BP15TY | CG4: @FM-EMU-BP15TY | CH4: @FM-EOV-BP15TY | CI4: @FM-EPT-BP15TY | CJ4: @FM-EPE-BP15TY | CK4: @FM-EPG-BP15TY | CL4: @FM-EPN-BP15TY | CM4: @FM-ESG-BP15TY | CN4: @FM-ESP-BP15TY | CO4: @FM-ESK-BP15TY | CP4: @FM-ESO-BP15TY | CQ4: @FM-ESY-BP15TY | CR4: @FM-ESN-BP15TY | CS4: @FM-ETP-BP15TY | CT4: @FM-ETK-BP15TY | CU4: @FM-EWE-BP15TY
A5: BP3TY | B5: 300 HL Pull Out Base VS SUB | C5: BP3TY | D5: @FM-MCS-BP3TY | E5: @FM-MGD-BP3TY | F5: @FM-MDS-BP3TY | G5: @FM-MGP-BP3TY | H5: @FM-MPN-BP3TY | I5: @FM-MGW-BP3TY | J5: @FM-MCM-BP3TY | K5: @FM-MDM-BP3TY | L5: @FM-MTM-BP3TY | M5: @FM-MGM-BP3TY | N5: @FM-MGR-BP3TY | O5: @FM-MIM-BP3TY | P5: @FM-MSM-BP3TY | Q5: @FM-MPM-BP3TY | R5: @FM-MTP-BP3TY | S5: @FM-MWM-BP3TY | T5: @FM-EOG-BP3TY | U5: @FM-EOM-BP3TY | V5: @FM-EPM-BP3TY | W5: @FM-EVM-BP3TY | X5: @FM-ENM-BP3TY | Y5: @FM-ELA-BP3TY | Z5: @FM-ELD-BP3TY | AA5: @FM-ELW-BP3TY | AB5: @FM-SAG-BP3TY | AC5: @FM-SAT-BP3TY | AD5: @FM-SAB-BP3TY | AE5: @FM-SBR-BP3TY | AF5: @FM-SBG-BP3TY | AG5: @FM-SBW-BP3TY | AH5: @FM-SBZ-BP3TY | AI5: @FM-SBF-BP3TY | AJ5: @FM-SCS-BP3TY | AK5: @FM-SCB-BP3TY | AL5: @FM-SDM-BP3TY | AM5: @FM-SDP-BP3TY | AN5: @FM-SDS-BP3TY | AO5: @FM-SGP-BP3TY | AP5: @FM-SHG-BP3TY | AQ5: @FM-SIN-BP3TY | AR5: @FM-SIV-BP3TY | AS5: @FM-SLR-BP3TY | AT5: @FM-SDG-BP3TY | AU5: @FM-SMW-BP3TY | AV5: @FM-SMZ-BP3TY | AW5: @FM-SMN-BP3TY | AX5: @FM-SMC-BP3TY | AY5: @FM-SMU-BP3TY | AZ5: @FM-SOV-BP3TY | BA5: @FM-SPO-BP3TY | BB5: @FM-SPT-BP3TY | BC5: @FM-SPE-BP3TY | BD5: @FM-SPG-BP3TY | BE5: @FM-SPN-BP3TY | BF5: @FM-SSG-BP3TY | BG5: @FM-SSP-BP3TY | BH5: @FM-SSB-BP3TY | BI5: @FM-SSO-BP3TY | BJ5: @FM-SSY-BP3TY | BK5: @FM-SST-BP3TY | BL5: @FM-STP-BP3TY | BM5: @FM-STK-BP3TY | BN5: @FM-SWE-BP3TY | BO5: @FM-EAG-BP3TY | BP5: @FM-EAT-BP3TY | BQ5: @FM-EAB-BP3TY | BR5: @FM-EBR-BP3TY | BS5: @FM-EBG-BP3TY | BT5: @FM-EBW-BP3TY | BU5: @FM-ECS-BP3TY | BV5: @FM-EDM-BP3TY | BW5: @FM-EDP-BP3TY | BX5: @FM-EDS-BP3TY | BY5: @FM-EGP-BP3TY | BZ5: @FM-EHG-BP3TY | CA5: @FM-EIN-BP3TY | CB5: @FM-EIV-BP3TY | CC5: @FM-ELN-BP3TY | CD5: @FM-EDG-BP3TY | CE5: @FM-EME-BP3TY | CF5: @FM-EMN-BP3TY | CG5: @FM-EMU-BP3TY | CH5: @FM-EOV-BP3TY | CI5: @FM-EPT-BP3TY | CJ5: @FM-EPE-BP3TY | CK5: @FM-EPG-BP3TY | CL5: @FM-EPN-BP3TY | CM5: @FM-ESG-BP3TY | CN5: @FM-ESP-BP3TY | CO5: @FM-ESK-BP3TY | CP5: @FM-ESO-BP3TY | CQ5: @FM-ESY-BP3TY | CR5: @FM-ESN-BP3TY | CS5: @FM-ETP-BP3TY | CT5: @FM-ETK-BP3TY | CU5: @FM-EWE-BP3TY
A6: BH15 | B6: 150 HL Base Unit | C6: BH15 | D6: @FM-MCS-BH15 | E6: @FM-MGD-BH15 | F6: @FM-MDS-BH15 | G6: @FM-MGP-BH15 | H6: @FM-MPN-BH15 | I6: @FM-MGW-BH15 | J6: @FM-MCM-BH15 | K6: @FM-MDM-BH15 | L6: @FM-MTM-BH15 | M6: @FM-MGM-BH15 | N6: @FM-MGR-BH15 | O6: @FM-MIM-BH15 | P6: @FM-MSM-BH15 | Q6: @FM-MPM-BH15 | R6: @FM-MTP-BH15 | S6: @FM-MWM-BH15 | T6: @FM-EOG-BH15 | U6: @FM-EOM-BH15 | V6: @FM-EPM-BH15 | W6: @FM-EVM-BH15 | X6: @FM-ENM-BH15 | Y6: @FM-ELA-BH15 | Z6: @FM-ELD-BH15 | AA6: @FM-ELW-BH15 | AB6: @FM-SAG-BH15 | AC6: @FM-SAT-BH15 | AD6: @FM-SAB-BH15 | AE6: @FM-SBR-BH15 | AF6: @FM-SBG-BH15 | AG6: @FM-SBW-BH15 | AH6: @FM-SBZ-BH15 | AI6: @FM-SBF-BH15 | AJ6: @FM-SCS-BH15 | AK6: @FM-SCB-BH15 | AL6: @FM-SDM-BH15 | AM6: @FM-SDP-BH15 | AN6: @FM-SDS-BH15 | AO6: @FM-SGP-BH15 | AP6: @FM-SHG-BH15 | AQ6: @FM-SIN-BH15 | AR6: @FM-SIV-BH15 | AS6: @FM-SLR-BH15 | AT6: @FM-SDG-BH15 | AU6: @FM-SMW-BH15 | AV6: @FM-SMZ-BH15 | AW6: @FM-SMN-BH15 | AX6: @FM-SMC-BH15 | AY6: @FM-SMU-BH15 | AZ6: @FM-SOV-BH15 | BA6: @FM-SPO-BH15 | BB6: @FM-SPT-BH15 | BC6: @FM-SPE-BH15 | BD6: @FM-SPG-BH15 | BE6: @FM-SPN-BH15 | BF6: @FM-SSG-BH15 | BG6: @FM-SSP-BH15 | BH6: @FM-SSB-BH15 | BI6: @FM-SSO-BH15 | BJ6: @FM-SSY-BH15 | BK6: @FM-SST-BH15 | BL6: @FM-STP-BH15 | BM6: @FM-STK-BH15 | BN6: @FM-SWE-BH15 | BO6: @FM-EAG-BH15 | BP6: @FM-EAT-BH15 | BQ6: @FM-EAB-BH15 | BR6: @FM-EBR-BH15 | BS6: @FM-EBG-BH15 | BT6: @FM-EBW-BH15 | BU6: @FM-ECS-BH15 | BV6: @FM-EDM-BH15 | BW6: @FM-EDP-BH15 | BX6: @FM-EDS-BH15 | BY6: @FM-EGP-BH15 | BZ6: @FM-EHG-BH15 | CA6: @FM-EIN-BH15 | CB6: @FM-EIV-BH15 | CC6: @FM-ELN-BH15 | CD6: @FM-EDG-BH15 | CE6: @FM-EME-BH15 | CF6: @FM-EMN-BH15 | CG6: @FM-EMU-BH15 | CH6: @FM-EOV-BH15 | CI6: @FM-EPT-BH15 | CJ6: @FM-EPE-BH15 | CK6: @FM-EPG-BH15 | CL6: @FM-EPN-BH15 | CM6: @FM-ESG-BH15 | CN6: @FM-ESP-BH15 | CO6: @FM-ESK-BH15 | CP6: @FM-ESO-BH15 | CQ6: @FM-ESY-BH15 | CR6: @FM-ESN-BH15 | CS6: @FM-ETP-BH15 | CT6: @FM-ETK-BH15 | CU6: @FM-EWE-BH15
A7: BH30 | B7: 300 HL Base Unit | C7: BH30 | D7: @FM-MCS-BH30 | E7: @FM-MGD-BH30 | F7: @FM-MDS-BH30 | G7: @FM-MGP-BH30 | H7: @FM-MPN-BH30 | I7: @FM-MGW-BH30 | J7: @FM-MCM-BH30 | K7: @FM-MDM-BH30 | L7: @FM-MTM-BH30 | M7: @FM-MGM-BH30 | N7: @FM-MGR-BH30 | O7: @FM-MIM-BH30 | P7: @FM-MSM-BH30 | Q7: @FM-MPM-BH30 | R7: @FM-MTP-BH30 | S7: @FM-MWM-BH30 | T7: @FM-EOG-BH30 | U7: @FM-EOM-BH30 | V7: @FM-EPM-BH30 | W7: @FM-EVM-BH30 | X7: @FM-ENM-BH30 | Y7: @FM-ELA-BH30 | Z7: @FM-ELD-BH30 | AA7: @FM-ELW-BH30 | AB7: @FM-SAG-BH30 | AC7: @FM-SAT-BH30 | AD7: @FM-SAB-BH30 | AE7: @FM-SBR-BH30 | AF7: @FM-SBG-BH30 | AG7: @FM-SBW-BH30 | AH7: @FM-SBZ-BH30 | AI7: @FM-SBF-BH30 | AJ7: @FM-SCS-BH30 | AK7: @FM-SCB-BH30 | AL7: @FM-SDM-BH30 | AM7: @FM-SDP-BH30 | AN7: @FM-SDS-BH30 | AO7: @FM-SGP-BH30 | AP7: @FM-SHG-BH30 | AQ7: @FM-SIN-BH30 | AR7: @FM-SIV-BH30 | AS7: @FM-SLR-BH30 | AT7: @FM-SDG-BH30 | AU7: @FM-SMW-BH30 | AV7: @FM-SMZ-BH30 | AW7: @FM-SMN-BH30 | AX7: @FM-SMC-BH30 | AY7: @FM-SMU-BH30 | AZ7: @FM-SOV-BH30 | BA7: @FM-SPO-BH30 | BB7: @FM-SPT-BH30 | BC7: @FM-SPE-BH30 | BD7: @FM-SPG-BH30 | BE7: @FM-SPN-BH30 | BF7: @FM-SSG-BH30 | BG7: @FM-SSP-BH30 | BH7: @FM-SSB-BH30 | BI7: @FM-SSO-BH30 | BJ7: @FM-SSY-BH30 | BK7: @FM-SST-BH30 | BL7: @FM-STP-BH30 | BM7: @FM-STK-BH30 | BN7: @FM-SWE-BH30 | BO7: @FM-EAG-BH30 | BP7: @FM-EAT-BH30 | BQ7: @FM-EAB-BH30 | BR7: @FM-EBR-BH30 | BS7: @FM-EBG-BH30 | BT7: @FM-EBW-BH30 | BU7: @FM-ECS-BH30 | BV7: @FM-EDM-BH30 | BW7: @FM-EDP-BH30 | BX7: @FM-EDS-BH30 | BY7: @FM-EGP-BH30 | BZ7: @FM-EHG-BH30 | CA7: @FM-EIN-BH30 | CB7: @FM-EIV-BH30 | CC7: @FM-ELN-BH30 | CD7: @FM-EDG-BH30 | CE7: @FM-EME-BH30 | CF7: @FM-EMN-BH30 | CG7: @FM-EMU-BH30 | CH7: @FM-EOV-BH30 | CI7: @FM-EPT-BH30 | CJ7: @FM-EPE-BH30 | CK7: @FM-EPG-BH30 | CL7: @FM-EPN-BH30 | CM7: @FM-ESG-BH30 | CN7: @FM-ESP-BH30 | CO7: @FM-ESK-BH30 | CP7: @FM-ESO-BH30 | CQ7: @FM-ESY-BH30 | CR7: @FM-ESN-BH30 | CS7: @FM-ETP-BH30 | CT7: @FM-ETK-BH30 | CU7: @FM-EWE-BH30
A8: BH40 | B8: 400 HL Base Unit | C8: BH40 | D8: @FM-MCS-BH40 | E8: @FM-MGD-BH40 | F8: @FM-MDS-BH40 | G8: @FM-MGP-BH40 | H8: @FM-MPN-BH40 | I8: @FM-MGW-BH40 | J8: @FM-MCM-BH40 | K8: @FM-MDM-BH40 | L8: @FM-MTM-BH40 | M8: @FM-MGM-BH40 | N8: @FM-MGR-BH40 | O8: @FM-MIM-BH40 | P8: @FM-MSM-BH40 | Q8: @FM-MPM-BH40 | R8: @FM-MTP-BH40 | S8: @FM-MWM-BH40 | T8: @FM-EOG-BH40 | U8: @FM-EOM-BH40 | V8: @FM-EPM-BH40 | W8: @FM-EVM-BH40 | X8: @FM-ENM-BH40 | Y8: @FM-ELA-BH40 | Z8: @FM-ELD-BH40 | AA8: @FM-ELW-BH40 | AB8: @FM-SAG-BH40 | AC8: @FM-SAT-BH40 | AD8: @FM-SAB-BH40 | AE8: @FM-SBR-BH40 | AF8: @FM-SBG-BH40 | AG8: @FM-SBW-BH40 | AH8: @FM-SBZ-BH40 | AI8: @FM-SBF-BH40 | AJ8: @FM-SCS-BH40 | AK8: @FM-SCB-BH40 | AL8: @FM-SDM-BH40 | AM8: @FM-SDP-BH40 | AN8: @FM-SDS-BH40 | AO8: @FM-SGP-BH40 | AP8: @FM-SHG-BH40 | AQ8: @FM-SIN-BH40 | AR8: @FM-SIV-BH40 | AS8: @FM-SLR-BH40 | AT8: @FM-SDG-BH40 | AU8: @FM-SMW-BH40 | AV8: @FM-SMZ-BH40 | AW8: @FM-SMN-BH40 | AX8: @FM-SMC-BH40 | AY8: @FM-SMU-BH40 | AZ8: @FM-SOV-BH40 | BA8: @FM-SPO-BH40 | BB8: @FM-SPT-BH40 | BC8: @FM-SPE-BH40 | BD8: @FM-SPG-BH40 | BE8: @FM-SPN-BH40 | BF8: @FM-SSG-BH40 | BG8: @FM-SSP-BH40 | BH8: @FM-SSB-BH40 | BI8: @FM-SSO-BH40 | BJ8: @FM-SSY-BH40 | BK8: @FM-SST-BH40 | BL8: @FM-STP-BH40 | BM8: @FM-STK-BH40 | BN8: @FM-SWE-BH40 | BO8: @FM-EAG-BH40 | BP8: @FM-EAT-BH40 | BQ8: @FM-EAB-BH40 | BR8: @FM-EBR-BH40 | BS8: @FM-EBG-BH40 | BT8: @FM-EBW-BH40 | BU8: @FM-ECS-BH40 | BV8: @FM-EDM-BH40 | BW8: @FM-EDP-BH40 | BX8: @FM-EDS-BH40 | BY8: @FM-EGP-BH40 | BZ8: @FM-EHG-BH40 | CA8: @FM-EIN-BH40 | CB8: @FM-EIV-BH40 | CC8: @FM-ELN-BH40 | CD8: @FM-EDG-BH40 | CE8: @FM-EME-BH40 | CF8: @FM-EMN-BH40 | CG8: @FM-EMU-BH40 | CH8: @FM-EOV-BH40 | CI8: @FM-EPT-BH40 | CJ8: @FM-EPE-BH40 | CK8: @FM-EPG-BH40 | CL8: @FM-EPN-BH40 | CM8: @FM-ESG-BH40 | CN8: @FM-ESP-BH40 | CO8: @FM-ESK-BH40 | CP8: @FM-ESO-BH40 | CQ8: @FM-ESY-BH40 | CR8: @FM-ESN-BH40 | CS8: @FM-ETP-BH40 | CT8: @FM-ETK-BH40 | CU8: @FM-EWE-BH40
A9: BH45 | B9: 450 HL Base Unit | C9: BH45 | D9: @FM-MCS-BH45 | E9: @FM-MGD-BH45 | F9: @FM-MDS-BH45 | G9: @FM-MGP-BH45 | H9: @FM-MPN-BH45 | I9: @FM-MGW-BH45 | J9: @FM-MCM-BH45 | K9: @FM-MDM-BH45 | L9: @FM-MTM-BH45 | M9: @FM-MGM-BH45 | N9: @FM-MGR-BH45 | O9: @FM-MIM-BH45 | P9: @FM-MSM-BH45 | Q9: @FM-MPM-BH45 | R9: @FM-MTP-BH45 | S9: @FM-MWM-BH45 | T9: @FM-EOG-BH45 | U9: @FM-EOM-BH45 | V9: @FM-EPM-BH45 | W9: @FM-EVM-BH45 | X9: @FM-ENM-BH45 | Y9: @FM-ELA-BH45 | Z9: @FM-ELD-BH45 | AA9: @FM-ELW-BH45 | AB9: @FM-SAG-BH45 | AC9: @FM-SAT-BH45 | AD9: @FM-SAB-BH45 | AE9: @FM-SBR-BH45 | AF9: @FM-SBG-BH45 | AG9: @FM-SBW-BH45 | AH9: @FM-SBZ-BH45 | AI9: @FM-SBF-BH45 | AJ9: @FM-SCS-BH45 | AK9: @FM-SCB-BH45 | AL9: @FM-SDM-BH45 | AM9: @FM-SDP-BH45 | AN9: @FM-SDS-BH45 | AO9: @FM-SGP-BH45 | AP9: @FM-SHG-BH45 | AQ9: @FM-SIN-BH45 | AR9: @FM-SIV-BH45 | AS9: @FM-SLR-BH45 | AT9: @FM-SDG-BH45 | AU9: @FM-SMW-BH45 | AV9: @FM-SMZ-BH45 | AW9: @FM-SMN-BH45 | AX9: @FM-SMC-BH45 | AY9: @FM-SMU-BH45 | AZ9: @FM-SOV-BH45 | BA9: @FM-SPO-BH45 | BB9: @FM-SPT-BH45 | BC9: @FM-SPE-BH45 | BD9: @FM-SPG-BH45 | BE9: @FM-SPN-BH45 | BF9: @FM-SSG-BH45 | BG9: @FM-SSP-BH45 | BH9: @FM-SSB-BH45 | BI9: @FM-SSO-BH45 | BJ9: @FM-SSY-BH45 | BK9: @FM-SST-BH45 | BL9: @FM-STP-BH45 | BM9: @FM-STK-BH45 | BN9: @FM-SWE-BH45 | BO9: @FM-EAG-BH45 | BP9: @FM-EAT-BH45 | BQ9: @FM-EAB-BH45 | BR9: @FM-EBR-BH45 | BS9: @FM-EBG-BH45 | BT9: @FM-EBW-BH45 | BU9: @FM-ECS-BH45 | BV9: @FM-EDM-BH45 | BW9: @FM-EDP-BH45 | BX9: @FM-EDS-BH45 | BY9: @FM-EGP-BH45 | BZ9: @FM-EHG-BH45 | CA9: @FM-EIN-BH45 | CB9: @FM-EIV-BH45 | CC9: @FM-ELN-BH45 | CD9: @FM-EDG-BH45 | CE9: @FM-EME-BH45 | CF9: @FM-EMN-BH45 | CG9: @FM-EMU-BH45 | CH9: @FM-EOV-BH45 | CI9: @FM-EPT-BH45 | CJ9: @FM-EPE-BH45 | CK9: @FM-EPG-BH45 | CL9: @FM-EPN-BH45 | CM9: @FM-ESG-BH45 | CN9: @FM-ESP-BH45 | CO9: @FM-ESK-BH45 | CP9: @FM-ESO-BH45 | CQ9: @FM-ESY-BH45 | CR9: @FM-ESN-BH45 | CS9: @FM-ETP-BH45 | CT9: @FM-ETK-BH45 | CU9: @FM-EWE-BH45
A10: BH50 | B10: 500 HL Base Unit | C10: BH50 | D10: @FM-MCS-BH50 | E10: @FM-MGD-BH50 | F10: @FM-MDS-BH50 | G10: @FM-MGP-BH50 | H10: @FM-MPN-BH50 | I10: @FM-MGW-BH50 | J10: @FM-MCM-BH50 | K10: @FM-MDM-BH50 | L10: @FM-MTM-BH50 | M10: @FM-MGM-BH50 | N10: @FM-MGR-BH50 | O10: @FM-MIM-BH50 | P10: @FM-MSM-BH50 | Q10: @FM-MPM-BH50 | R10: @FM-MTP-BH50 | S10: @FM-MWM-BH50 | T10: @FM-EOG-BH50 | U10: @FM-EOM-BH50 | V10: @FM-EPM-BH50 | W10: @FM-EVM-BH50 | X10: @FM-ENM-BH50 | Y10: @FM-ELA-BH50 | Z10: @FM-ELD-BH50 | AA10: @FM-ELW-BH50 | AB10: @FM-SAG-BH50 | AC10: @FM-SAT-BH50 | AD10: @FM-SAB-BH50 | AE10: @FM-SBR-BH50 | AF10: @FM-SBG-BH50 | AG10: @FM-SBW-BH50 | AH10: @FM-SBZ-BH50 | AI10: @FM-SBF-BH50 | AJ10: @FM-SCS-BH50 | AK10: @FM-SCB-BH50 | AL10: @FM-SDM-BH50 | AM10: @FM-SDP-BH50 | AN10: @FM-SDS-BH50 | AO10: @FM-SGP-BH50 | AP10: @FM-SHG-BH50 | AQ10: @FM-SIN-BH50 | AR10: @FM-SIV-BH50 | AS10: @FM-SLR-BH50 | AT10: @FM-SDG-BH50 | AU10: @FM-SMW-BH50 | AV10: @FM-SMZ-BH50 | AW10: @FM-SMN-BH50 | AX10: @FM-SMC-BH50 | AY10: @FM-SMU-BH50 | AZ10: @FM-SOV-BH50 | BA10: @FM-SPO-BH50 | BB10: @FM-SPT-BH50 | BC10: @FM-SPE-BH50 | BD10: @FM-SPG-BH50 | BE10: @FM-SPN-BH50 | BF10: @FM-SSG-BH50 | BG10: @FM-SSP-BH50 | BH10: @FM-SSB-BH50 | BI10: @FM-SSO-BH50 | BJ10: @FM-SSY-BH50 | BK10: @FM-SST-BH50 | BL10: @FM-STP-BH50 | BM10: @FM-STK-BH50 | BN10: @FM-SWE-BH50 | BO10: @FM-EAG-BH50 | BP10: @FM-EAT-BH50 | BQ10: @FM-EAB-BH50 | BR10: @FM-EBR-BH50 | BS10: @FM-EBG-BH50 | BT10: @FM-EBW-BH50 | BU10: @FM-ECS-BH50 | BV10: @FM-EDM-BH50 | BW10: @FM-EDP-BH50 | BX10: @FM-EDS-BH50 | BY10: @FM-EGP-BH50 | BZ10: @FM-EHG-BH50 | CA10: @FM-EIN-BH50 | CB10: @FM-EIV-BH50 | CC10: @FM-ELN-BH50 | CD10: @FM-EDG-BH50 | CE10: @FM-EME-BH50 | CF10: @FM-EMN-BH50 | CG10: @FM-EMU-BH50 | CH10: @FM-EOV-BH50 | CI10: @FM-EPT-BH50 | CJ10: @FM-EPE-BH50 | CK10: @FM-EPG-BH50 | CL10: @FM-EPN-BH50 | CM10: @FM-ESG-BH50 | CN10: @FM-ESP-BH50 | CO10: @FM-ESK-BH50 | CP10: @FM-ESO-BH50 | CQ10: @FM-ESY-BH50 | CR10: @FM-ESN-BH50 | CS10: @FM-ETP-BH50 | CT10: @FM-ETK-BH50 | CU10: @FM-EWE-BH50
A11: BH60 | B11: 600 HL Base Unit | C11: BH60 | D11: @FM-MCS-BH60 | E11: @FM-MGD-BH60 | F11: @FM-MDS-BH60 | G11: @FM-MGP-BH60 | H11: @FM-MPN-BH60 | I11: @FM-MGW-BH60 | J11: @FM-MCM-BH60 | K11: @FM-MDM-BH60 | L11: @FM-MTM-BH60 | M11: @FM-MGM-BH60 | N11: @FM-MGR-BH60 | O11: @FM-MIM-BH60 | P11: @FM-MSM-BH60 | Q11: @FM-MPM-BH60 | R11: @FM-MTP-BH60 | S11: @FM-MWM-BH60 | T11: @FM-EOG-BH60 | U11: @FM-EOM-BH60 | V11: @FM-EPM-BH60 | W11: @FM-EVM-BH60 | X11: @FM-ENM-BH60 | Y11: @FM-ELA-BH60 | Z11: @FM-ELD-BH60 | AA11: @FM-ELW-BH60 | AB11: @FM-SAG-BH60 | AC11: @FM-SAT-BH60 | AD11: @FM-SAB-BH60 | AE11: @FM-SBR-BH60 | AF11: @FM-SBG-BH60 | AG11: @FM-SBW-BH60 | AH11: @FM-SBZ-BH60 | AI11: @FM-SBF-BH60 | AJ11: @FM-SCS-BH60 | AK11: @FM-SCB-BH60 | AL11: @FM-SDM-BH60 | AM11: @FM-SDP-BH60 | AN11: @FM-SDS-BH60 | AO11: @FM-SGP-BH60 | AP11: @FM-SHG-BH60 | AQ11: @FM-SIN-BH60 | AR11: @FM-SIV-BH60 | AS11: @FM-SLR-BH60 | AT11: @FM-SDG-BH60 | AU11: @FM-SMW-BH60 | AV11: @FM-SMZ-BH60 | AW11: @FM-SMN-BH60 | AX11: @FM-SMC-BH60 | AY11: @FM-SMU-BH60 | AZ11: @FM-SOV-BH60 | BA11: @FM-SPO-BH60 | BB11: @FM-SPT-BH60 | BC11: @FM-SPE-BH60 | BD11: @FM-SPG-BH60 | BE11: @FM-SPN-BH60 | BF11: @FM-SSG-BH60 | BG11: @FM-SSP-BH60 | BH11: @FM-SSB-BH60 | BI11: @FM-SSO-BH60 | BJ11: @FM-SSY-BH60 | BK11: @FM-SST-BH60 | BL11: @FM-STP-BH60 | BM11: @FM-STK-BH60 | BN11: @FM-SWE-BH60 | BO11: @FM-EAG-BH60 | BP11: @FM-EAT-BH60 | BQ11: @FM-EAB-BH60 | BR11: @FM-EBR-BH60 | BS11: @FM-EBG-BH60 | BT11: @FM-EBW-BH60 | BU11: @FM-ECS-BH60 | BV11: @FM-EDM-BH60 | BW11: @FM-EDP-BH60 | BX11: @FM-EDS-BH60 | BY11: @FM-EGP-BH60 | BZ11: @FM-EHG-BH60 | CA11: @FM-EIN-BH60 | CB11: @FM-EIV-BH60 | CC11: @FM-ELN-BH60 | CD11: @FM-EDG-BH60 | CE11: @FM-EME-BH60 | CF11: @FM-EMN-BH60 | CG11: @FM-EMU-BH60 | CH11: @FM-EOV-BH60 | CI11: @FM-EPT-BH60 | CJ11: @FM-EPE-BH60 | CK11: @FM-EPG-BH60 | CL11: @FM-EPN-BH60 | CM11: @FM-ESG-BH60 | CN11: @FM-ESP-BH60 | CO11: @FM-ESK-BH60 | CP11: @FM-ESO-BH60 | CQ11: @FM-ESY-BH60 | CR11: @FM-ESN-BH60 | CS11: @FM-ETP-BH60 | CT11: @FM-ETK-BH60 | CU11: @FM-EWE-BH60
A12: BH3B | B12: 300 HL Base Unit & Bin | C12: BH3B | D12: @FM-MCS-BH3B | E12: @FM-MGD-BH3B | F12: @FM-MDS-BH3B | G12: @FM-MGP-BH3B | H12: @FM-MPN-BH3B | I12: @FM-MGW-BH3B | J12: @FM-MCM-BH3B | K12: @FM-MDM-BH3B | L12: @FM-MTM-BH3B | M12: @FM-MGM-BH3B | N12: @FM-MGR-BH3B | O12: @FM-MIM-BH3B | P12: @FM-MSM-BH3B | Q12: @FM-MPM-BH3B | R12: @FM-MTP-BH3B | S12: @FM-MWM-BH3B | T12: @FM-EOG-BH3B | U12: @FM-EOM-BH3B | V12: @FM-EPM-BH3B | W12: @FM-EVM-BH3B | X12: @FM-ENM-BH3B | Y12: @FM-ELA-BH3B | Z12: @FM-ELD-BH3B | AA12: @FM-ELW-BH3B | AB12: @FM-SAG-BH3B | AC12: @FM-SAT-BH3B | AD12: @FM-SAB-BH3B | AE12: @FM-SBR-BH3B | AF12: @FM-SBG-BH3B | AG12: @FM-SBW-BH3B | AH12: @FM-SBZ-BH3B | AI12: @FM-SBF-BH3B | AJ12: @FM-SCS-BH3B | AK12: @FM-SCB-BH3B | AL12: @FM-SDM-BH3B | AM12: @FM-SDP-BH3B | AN12: @FM-SDS-BH3B | AO12: @FM-SGP-BH3B | AP12: @FM-SHG-BH3B | AQ12: @FM-SIN-BH3B | AR12: @FM-SIV-BH3B | AS12: @FM-SLR-BH3B | AT12: @FM-SDG-BH3B | AU12: @FM-SMW-BH3B | AV12: @FM-SMZ-BH3B | AW12: @FM-SMN-BH3B | AX12: @FM-SMC-BH3B | AY12: @FM-SMU-BH3B | AZ12: @FM-SOV-BH3B | BA12: @FM-SPO-BH3B | BB12: @FM-SPT-BH3B | BC12: @FM-SPE-BH3B | BD12: @FM-SPG-BH3B | BE12: @FM-SPN-BH3B | BF12: @FM-SSG-BH3B | BG12: @FM-SSP-BH3B | BH12: @FM-SSB-BH3B | BI12: @FM-SSO-BH3B | BJ12: @FM-SSY-BH3B | BK12: @FM-SST-BH3B | BL12: @FM-STP-BH3B | BM12: @FM-STK-BH3B | BN12: @FM-SWE-BH3B | BO12: @FM-EAG-BH3B | BP12: @FM-EAT-BH3B | BQ12: @FM-EAB-BH3B | BR12: @FM-EBR-BH3B | BS12: @FM-EBG-BH3B | BT12: @FM-EBW-BH3B | BU12: @FM-ECS-BH3B | BV12: @FM-EDM-BH3B | BW12: @FM-EDP-BH3B | BX12: @FM-EDS-BH3B | BY12: @FM-EGP-BH3B | BZ12: @FM-EHG-BH3B | CA12: @FM-EIN-BH3B | CB12: @FM-EIV-BH3B | CC12: @FM-ELN-BH3B | CD12: @FM-EDG-BH3B | CE12: @FM-EME-BH3B | CF12: @FM-EMN-BH3B | CG12: @FM-EMU-BH3B | CH12: @FM-EOV-BH3B | CI12: @FM-EPT-BH3B | CJ12: @FM-EPE-BH3B | CK12: @FM-EPG-BH3B | CL12: @FM-EPN-BH3B | CM12: @FM-ESG-BH3B | CN12: @FM-ESP-BH3B | CO12: @FM-ESK-BH3B | CP12: @FM-ESO-BH3B | CQ12: @FM-ESY-BH3B | CR12: @FM-ESN-BH3B | CS12: @FM-ETP-BH3B | CT12: @FM-ETK-BH3B | CU12: @FM-EWE-BH3B
A13: BH4B | B13: 400 HL Base Unit & Bin | C13: BH4B | D13: @FM-MCS-BH4B | E13: @FM-MGD-BH4B | F13: @FM-MDS-BH4B | G13: @FM-MGP-BH4B | H13: @FM-MPN-BH4B | I13: @FM-MGW-BH4B | J13: @FM-MCM-BH4B | K13: @FM-MDM-BH4B | L13: @FM-MTM-BH4B | M13: @FM-MGM-BH4B | N13: @FM-MGR-BH4B | O13: @FM-MIM-BH4B | P13: @FM-MSM-BH4B | Q13: @FM-MPM-BH4B | R13: @FM-MTP-BH4B | S13: @FM-MWM-BH4B | T13: @FM-EOG-BH4B | U13: @FM-EOM-BH4B | V13: @FM-EPM-BH4B | W13: @FM-EVM-BH4B | X13: @FM-ENM-BH4B | Y13: @FM-ELA-BH4B | Z13: @FM-ELD-BH4B | AA13: @FM-ELW-BH4B | AB13: @FM-SAG-BH4B | AC13: @FM-SAT-BH4B | AD13: @FM-SAB-BH4B | AE13: @FM-SBR-BH4B | AF13: @FM-SBG-BH4B | AG13: @FM-SBW-BH4B | AH13: @FM-SBZ-BH4B | AI13: @FM-SBF-BH4B | AJ13: @FM-SCS-BH4B | AK13: @FM-SCB-BH4B | AL13: @FM-SDM-BH4B | AM13: @FM-SDP-BH4B | AN13: @FM-SDS-BH4B | AO13: @FM-SGP-BH4B | AP13: @FM-SHG-BH4B | AQ13: @FM-SIN-BH4B | AR13: @FM-SIV-BH4B | AS13: @FM-SLR-BH4B | AT13: @FM-SDG-BH4B | AU13: @FM-SMW-BH4B | AV13: @FM-SMZ-BH4B | AW13: @FM-SMN-BH4B | AX13: @FM-SMC-BH4B | AY13: @FM-SMU-BH4B | AZ13: @FM-SOV-BH4B | BA13: @FM-SPO-BH4B | BB13: @FM-SPT-BH4B | BC13: @FM-SPE-BH4B | BD13: @FM-SPG-BH4B | BE13: @FM-SPN-BH4B | BF13: @FM-SSG-BH4B | BG13: @FM-SSP-BH4B | BH13: @FM-SSB-BH4B | BI13: @FM-SSO-BH4B | BJ13: @FM-SSY-BH4B | BK13: @FM-SST-BH4B | BL13: @FM-STP-BH4B | BM13: @FM-STK-BH4B | BN13: @FM-SWE-BH4B | BO13: @FM-EAG-BH4B | BP13: @FM-EAT-BH4B | BQ13: @FM-EAB-BH4B | BR13: @FM-EBR-BH4B | BS13: @FM-EBG-BH4B | BT13: @FM-EBW-BH4B | BU13: @FM-ECS-BH4B | BV13: @FM-EDM-BH4B | BW13: @FM-EDP-BH4B | BX13: @FM-EDS-BH4B | BY13: @FM-EGP-BH4B | BZ13: @FM-EHG-BH4B | CA13: @FM-EIN-BH4B | CB13: @FM-EIV-BH4B | CC13: @FM-ELN-BH4B | CD13: @FM-EDG-BH4B | CE13: @FM-EME-BH4B | CF13: @FM-EMN-BH4B | CG13: @FM-EMU-BH4B | CH13: @FM-EOV-BH4B | CI13: @FM-EPT-BH4B | CJ13: @FM-EPE-BH4B | CK13: @FM-EPG-BH4B | CL13: @FM-EPN-BH4B | CM13: @FM-ESG-BH4B | CN13: @FM-ESP-BH4B | CO13: @FM-ESK-BH4B | CP13: @FM-ESO-BH4B | CQ13: @FM-ESY-BH4B | CR13: @FM-ESN-BH4B | CS13: @FM-ETP-BH4B | CT13: @FM-ETK-BH4B | CU13: @FM-EWE-BH4B
A14: BH45B | B14: 450 HL Base Unit & Bin | C14: BH45B | D14: @FM-MCS-BH45B | E14: @FM-MGD-BH45B | F14: @FM-MDS-BH45B | G14: @FM-MGP-BH45B | H14: @FM-MPN-BH45B | I14: @FM-MGW-BH45B | J14: @FM-MCM-BH45B | K14: @FM-MDM-BH45B | L14: @FM-MTM-BH45B | M14: @FM-MGM-BH45B | N14: @FM-MGR-BH45B | O14: @FM-MIM-BH45B | P14: @FM-MSM-BH45B | Q14: @FM-MPM-BH45B | R14: @FM-MTP-BH45B | S14: @FM-MWM-BH45B | T14: @FM-EOG-BH45B | U14: @FM-EOM-BH45B | V14: @FM-EPM-BH45B | W14: @FM-EVM-BH45B | X14: @FM-ENM-BH45B | Y14: @FM-ELA-BH45B | Z14: @FM-ELD-BH45B | AA14: @FM-ELW-BH45B | AB14: @FM-SAG-BH45B | AC14: @FM-SAT-BH45B | AD14: @FM-SAB-BH45B | AE14: @FM-SBR-BH45B | AF14: @FM-SBG-BH45B | AG14: @FM-SBW-BH45B | AH14: @FM-SBZ-BH45B | AI14: @FM-SBF-BH45B | AJ14: @FM-SCS-BH45B | AK14: @FM-SCB-BH45B | AL14: @FM-SDM-BH45B | AM14: @FM-SDP-BH45B | AN14: @FM-SDS-BH45B | AO14: @FM-SGP-BH45B | AP14: @FM-SHG-BH45B | AQ14: @FM-SIN-BH45B | AR14: @FM-SIV-BH45B | AS14: @FM-SLR-BH45B | AT14: @FM-SDG-BH45B | AU14: @FM-SMW-BH45B | AV14: @FM-SMZ-BH45B | AW14: @FM-SMN-BH45B | AX14: @FM-SMC-BH45B | AY14: @FM-SMU-BH45B | AZ14: @FM-SOV-BH45B | BA14: @FM-SPO-BH45B | BB14: @FM-SPT-BH45B | BC14: @FM-SPE-BH45B | BD14: @FM-SPG-BH45B | BE14: @FM-SPN-BH45B | BF14: @FM-SSG-BH45B | BG14: @FM-SSP-BH45B | BH14: @FM-SSB-BH45B | BI14: @FM-SSO-BH45B | BJ14: @FM-SSY-BH45B | BK14: @FM-SST-BH45B | BL14: @FM-STP-BH45B | BM14: @FM-STK-BH45B | BN14: @FM-SWE-BH45B | BO14: @FM-EAG-BH45B | BP14: @FM-EAT-BH45B | BQ14: @FM-EAB-BH45B | BR14: @FM-EBR-BH45B | BS14: @FM-EBG-BH45B | BT14: @FM-EBW-BH45B | BU14: @FM-ECS-BH45B | BV14: @FM-EDM-BH45B | BW14: @FM-EDP-BH45B | BX14: @FM-EDS-BH45B | BY14: @FM-EGP-BH45B | BZ14: @FM-EHG-BH45B | CA14: @FM-EIN-BH45B | CB14: @FM-EIV-BH45B | CC14: @FM-ELN-BH45B | CD14: @FM-EDG-BH45B | CE14: @FM-EME-BH45B | CF14: @FM-EMN-BH45B | CG14: @FM-EMU-BH45B | CH14: @FM-EOV-BH45B | CI14: @FM-EPT-BH45B | CJ14: @FM-EPE-BH45B | CK14: @FM-EPG-BH45B | CL14: @FM-EPN-BH45B | CM14: @FM-ESG-BH45B | CN14: @FM-ESP-BH45B | CO14: @FM-ESK-BH45B | CP14: @FM-ESO-BH45B | CQ14: @FM-ESY-BH45B | CR14: @FM-ESN-BH45B | CS14: @FM-ETP-BH45B | CT14: @FM-ETK-BH45B | CU14: @FM-EWE-BH45B
A15: BH5B | B15: 500 HL Base Unit & Bin | C15: BH5B | D15: @FM-MCS-BH5B | E15: @FM-MGD-BH5B | F15: @FM-MDS-BH5B | G15: @FM-MGP-BH5B | H15: @FM-MPN-BH5B | I15: @FM-MGW-BH5B | J15: @FM-MCM-BH5B | K15: @FM-MDM-BH5B | L15: @FM-MTM-BH5B | M15: @FM-MGM-BH5B | N15: @FM-MGR-BH5B | O15: @FM-MIM-BH5B | P15: @FM-MSM-BH5B | Q15: @FM-MPM-BH5B | R15: @FM-MTP-BH5B | S15: @FM-MWM-BH5B | T15: @FM-EOG-BH5B | U15: @FM-EOM-BH5B | V15: @FM-EPM-BH5B | W15: @FM-EVM-BH5B | X15: @FM-ENM-BH5B | Y15: @FM-ELA-BH5B | Z15: @FM-ELD-BH5B | AA15: @FM-ELW-BH5B | AB15: @FM-SAG-BH5B | AC15: @FM-SAT-BH5B | AD15: @FM-SAB-BH5B | AE15: @FM-SBR-BH5B | AF15: @FM-SBG-BH5B | AG15: @FM-SBW-BH5B | AH15: @FM-SBZ-BH5B | AI15: @FM-SBF-BH5B | AJ15: @FM-SCS-BH5B | AK15: @FM-SCB-BH5B | AL15: @FM-SDM-BH5B | AM15: @FM-SDP-BH5B | AN15: @FM-SDS-BH5B | AO15: @FM-SGP-BH5B | AP15: @FM-SHG-BH5B | AQ15: @FM-SIN-BH5B | AR15: @FM-SIV-BH5B | AS15: @FM-SLR-BH5B | AT15: @FM-SDG-BH5B | AU15: @FM-SMW-BH5B | AV15: @FM-SMZ-BH5B | AW15: @FM-SMN-BH5B | AX15: @FM-SMC-BH5B | AY15: @FM-SMU-BH5B | AZ15: @FM-SOV-BH5B | BA15: @FM-SPO-BH5B | BB15: @FM-SPT-BH5B | BC15: @FM-SPE-BH5B | BD15: @FM-SPG-BH5B | BE15: @FM-SPN-BH5B | BF15: @FM-SSG-BH5B | BG15: @FM-SSP-BH5B | BH15: @FM-SSB-BH5B | BI15: @FM-SSO-BH5B | BJ15: @FM-SSY-BH5B | BK15: @FM-SST-BH5B | BL15: @FM-STP-BH5B | BM15: @FM-STK-BH5B | BN15: @FM-SWE-BH5B | BO15: @FM-EAG-BH5B | BP15: @FM-EAT-BH5B | BQ15: @FM-EAB-BH5B | BR15: @FM-EBR-BH5B | BS15: @FM-EBG-BH5B | BT15: @FM-EBW-BH5B | BU15: @FM-ECS-BH5B | BV15: @FM-EDM-BH5B | BW15: @FM-EDP-BH5B | BX15: @FM-EDS-BH5B | BY15: @FM-EGP-BH5B | BZ15: @FM-EHG-BH5B | CA15: @FM-EIN-BH5B | CB15: @FM-EIV-BH5B | CC15: @FM-ELN-BH5B | CD15: @FM-EDG-BH5B | CE15: @FM-EME-BH5B | CF15: @FM-EMN-BH5B | CG15: @FM-EMU-BH5B | CH15: @FM-EOV-BH5B | CI15: @FM-EPT-BH5B | CJ15: @FM-EPE-BH5B | CK15: @FM-EPG-BH5B | CL15: @FM-EPN-BH5B | CM15: @FM-ESG-BH5B | CN15: @FM-ESP-BH5B | CO15: @FM-ESK-BH5B | CP15: @FM-ESO-BH5B | CQ15: @FM-ESY-BH5B | CR15: @FM-ESN-BH5B | CS15: @FM-ETP-BH5B | CT15: @FM-ETK-BH5B | CU15: @FM-EWE-BH5B
A16: BH6B4 | B16: 600 HL Base Unit & Bin (4 Bins) | C16: BH6B4 | D16: @FM-MCS-BH6B4 | E16: @FM-MGD-BH6B4 | F16: @FM-MDS-BH6B4 | G16: @FM-MGP-BH6B4 | H16: @FM-MPN-BH6B4 | I16: @FM-MGW-BH6B4 | J16: @FM-MCM-BH6B4 | K16: @FM-MDM-BH6B4 | L16: @FM-MTM-BH6B4 | M16: @FM-MGM-BH6B4 | N16: @FM-MGR-BH6B4 | O16: @FM-MIM-BH6B4 | P16: @FM-MSM-BH6B4 | Q16: @FM-MPM-BH6B4 | R16: @FM-MTP-BH6B4 | S16: @FM-MWM-BH6B4 | T16: @FM-EOG-BH6B4 | U16: @FM-EOM-BH6B4 | V16: @FM-EPM-BH6B4 | W16: @FM-EVM-BH6B4 | X16: @FM-ENM-BH6B4 | Y16: @FM-ELA-BH6B4 | Z16: @FM-ELD-BH6B4 | AA16: @FM-ELW-BH6B4 | AB16: @FM-SAG-BH6B4 | AC16: @FM-SAT-BH6B4 | AD16: @FM-SAB-BH6B4 | AE16: @FM-SBR-BH6B4 | AF16: @FM-SBG-BH6B4 | AG16: @FM-SBW-BH6B4 | AH16: @FM-SBZ-BH6B4 | AI16: @FM-SBF-BH6B4 | AJ16: @FM-SCS-BH6B4 | AK16: @FM-SCB-BH6B4 | AL16: @FM-SDM-BH6B4 | AM16: @FM-SDP-BH6B4 | AN16: @FM-SDS-BH6B4 | AO16: @FM-SGP-BH6B4 | AP16: @FM-SHG-BH6B4 | AQ16: @FM-SIN-BH6B4 | AR16: @FM-SIV-BH6B4 | AS16: @FM-SLR-BH6B4 | AT16: @FM-SDG-BH6B4 | AU16: @FM-SMW-BH6B4 | AV16: @FM-SMZ-BH6B4 | AW16: @FM-SMN-BH6B4 | AX16: @FM-SMC-BH6B4 | AY16: @FM-SMU-BH6B4 | AZ16: @FM-SOV-BH6B4 | BA16: @FM-SPO-BH6B4 | BB16: @FM-SPT-BH6B4 | BC16: @FM-SPE-BH6B4 | BD16: @FM-SPG-BH6B4 | BE16: @FM-SPN-BH6B4 | BF16: @FM-SSG-BH6B4 | BG16: @FM-SSP-BH6B4 | BH16: @FM-SSB-BH6B4 | BI16: @FM-SSO-BH6B4 | BJ16: @FM-SSY-BH6B4 | BK16: @FM-SST-BH6B4 | BL16: @FM-STP-BH6B4 | BM16: @FM-STK-BH6B4 | BN16: @FM-SWE-BH6B4 | BO16: @FM-EAG-BH6B4 | BP16: @FM-EAT-BH6B4 | BQ16: @FM-EAB-BH6B4 | BR16: @FM-EBR-BH6B4 | BS16: @FM-EBG-BH6B4 | BT16: @FM-EBW-BH6B4 | BU16: @FM-ECS-BH6B4 | BV16: @FM-EDM-BH6B4 | BW16: @FM-EDP-BH6B4 | BX16: @FM-EDS-BH6B4 | BY16: @FM-EGP-BH6B4 | BZ16: @FM-EHG-BH6B4 | CA16: @FM-EIN-BH6B4 | CB16: @FM-EIV-BH6B4 | CC16: @FM-ELN-BH6B4 | CD16: @FM-EDG-BH6B4 | CE16: @FM-EME-BH6B4 | CF16: @FM-EMN-BH6B4 | CG16: @FM-EMU-BH6B4 | CH16: @FM-EOV-BH6B4 | CI16: @FM-EPT-BH6B4 | CJ16: @FM-EPE-BH6B4 | CK16: @FM-EPG-BH6B4 | CL16: @FM-EPN-BH6B4 | CM16: @FM-ESG-BH6B4 | CN16: @FM-ESP-BH6B4 | CO16: @FM-ESK-BH6B4 | CP16: @FM-ESO-BH6B4 | CQ16: @FM-ESY-BH6B4 | CR16: @FM-ESN-BH6B4 | CS16: @FM-ETP-BH6B4 | CT16: @FM-ETK-BH6B4 | CU16: @FM-EWE-BH6B4
A17: BH6B2 | B17: 600 HL Base Unit & Bin (2 Bins) | C17: BH6B2 | D17: @FM-MCS-BH6B2 | E17: @FM-MGD-BH6B2 | F17: @FM-MDS-BH6B2 | G17: @FM-MGP-BH6B2 | H17: @FM-MPN-BH6B2 | I17: @FM-MGW-BH6B2 | J17: @FM-MCM-BH6B2 | K17: @FM-MDM-BH6B2 | L17: @FM-MTM-BH6B2 | M17: @FM-MGM-BH6B2 | N17: @FM-MGR-BH6B2 | O17: @FM-MIM-BH6B2 | P17: @FM-MSM-BH6B2 | Q17: @FM-MPM-BH6B2 | R17: @FM-MTP-BH6B2 | S17: @FM-MWM-BH6B2 | T17: @FM-EOG-BH6B2 | U17: @FM-EOM-BH6B2 | V17: @FM-EPM-BH6B2 | W17: @FM-EVM-BH6B2 | X17: @FM-ENM-BH6B2 | Y17: @FM-ELA-BH6B2 | Z17: @FM-ELD-BH6B2 | AA17: @FM-ELW-BH6B2 | AB17: @FM-SAG-BH6B2 | AC17: @FM-SAT-BH6B2 | AD17: @FM-SAB-BH6B2 | AE17: @FM-SBR-BH6B2 | AF17: @FM-SBG-BH6B2 | AG17: @FM-SBW-BH6B2 | AH17: @FM-SBZ-BH6B2 | AI17: @FM-SBF-BH6B2 | AJ17: @FM-SCS-BH6B2 | AK17: @FM-SCB-BH6B2 | AL17: @FM-SDM-BH6B2 | AM17: @FM-SDP-BH6B2 | AN17: @FM-SDS-BH6B2 | AO17: @FM-SGP-BH6B2 | AP17: @FM-SHG-BH6B2 | AQ17: @FM-SIN-BH6B2 | AR17: @FM-SIV-BH6B2 | AS17: @FM-SLR-BH6B2 | AT17: @FM-SDG-BH6B2 | AU17: @FM-SMW-BH6B2 | AV17: @FM-SMZ-BH6B2 | AW17: @FM-SMN-BH6B2 | AX17: @FM-SMC-BH6B2 | AY17: @FM-SMU-BH6B2 | AZ17: @FM-SOV-BH6B2 | BA17: @FM-SPO-BH6B2 | BB17: @FM-SPT-BH6B2 | BC17: @FM-SPE-BH6B2 | BD17: @FM-SPG-BH6B2 | BE17: @FM-SPN-BH6B2 | BF17: @FM-SSG-BH6B2 | BG17: @FM-SSP-BH6B2 | BH17: @FM-SSB-BH6B2 | BI17: @FM-SSO-BH6B2 | BJ17: @FM-SSY-BH6B2 | BK17: @FM-SST-BH6B2 | BL17: @FM-STP-BH6B2 | BM17: @FM-STK-BH6B2 | BN17: @FM-SWE-BH6B2 | BO17: @FM-EAG-BH6B2 | BP17: @FM-EAT-BH6B2 | BQ17: @FM-EAB-BH6B2 | BR17: @FM-EBR-BH6B2 | BS17: @FM-EBG-BH6B2 | BT17: @FM-EBW-BH6B2 | BU17: @FM-ECS-BH6B2 | BV17: @FM-EDM-BH6B2 | BW17: @FM-EDP-BH6B2 | BX17: @FM-EDS-BH6B2 | BY17: @FM-EGP-BH6B2 | BZ17: @FM-EHG-BH6B2 | CA17: @FM-EIN-BH6B2 | CB17: @FM-EIV-BH6B2 | CC17: @FM-ELN-BH6B2 | CD17: @FM-EDG-BH6B2 | CE17: @FM-EME-BH6B2 | CF17: @FM-EMN-BH6B2 | CG17: @FM-EMU-BH6B2 | CH17: @FM-EOV-BH6B2 | CI17: @FM-EPT-BH6B2 | CJ17: @FM-EPE-BH6B2 | CK17: @FM-EPG-BH6B2 | CL17: @FM-EPN-BH6B2 | CM17: @FM-ESG-BH6B2 | CN17: @FM-ESP-BH6B2 | CO17: @FM-ESK-BH6B2 | CP17: @FM-ESO-BH6B2 | CQ17: @FM-ESY-BH6B2 | CR17: @FM-ESN-BH6B2 | CS17: @FM-ETP-BH6B2 | CT17: @FM-ETK-BH6B2 | CU17: @FM-EWE-BH6B2
A18: BH70 | B18: 700 HL Base Unit | C18: BH70 | D18: @FM-MCS-BH70 | E18: @FM-MGD-BH70 | F18: @FM-MDS-BH70 | G18: @FM-MGP-BH70 | H18: @FM-MPN-BH70 | I18: @FM-MGW-BH70 | J18: @FM-MCM-BH70 | K18: @FM-MDM-BH70 | L18: @FM-MTM-BH70 | M18: @FM-MGM-BH70 | N18: @FM-MGR-BH70 | O18: @FM-MIM-BH70 | P18: @FM-MSM-BH70 | Q18: @FM-MPM-BH70 | R18: @FM-MTP-BH70 | S18: @FM-MWM-BH70 | T18: @FM-EOG-BH70 | U18: @FM-EOM-BH70 | V18: @FM-EPM-BH70 | W18: @FM-EVM-BH70 | X18: @FM-ENM-BH70 | Y18: @FM-ELA-BH70 | Z18: @FM-ELD-BH70 | AA18: @FM-ELW-BH70 | AB18: @FM-SAG-BH70 | AC18: @FM-SAT-BH70 | AD18: @FM-SAB-BH70 | AE18: @FM-SBR-BH70 | AF18: @FM-SBG-BH70 | AG18: @FM-SBW-BH70 | AH18: @FM-SBZ-BH70 | AI18: @FM-SBF-BH70 | AJ18: @FM-SCS-BH70 | AK18: @FM-SCB-BH70 | AL18: @FM-SDM-BH70 | AM18: @FM-SDP-BH70 | AN18: @FM-SDS-BH70 | AO18: @FM-SGP-BH70 | AP18: @FM-SHG-BH70 | AQ18: @FM-SIN-BH70 | AR18: @FM-SIV-BH70 | AS18: @FM-SLR-BH70 | AT18: @FM-SDG-BH70 | AU18: @FM-SMW-BH70 | AV18: @FM-SMZ-BH70 | AW18: @FM-SMN-BH70 | AX18: @FM-SMC-BH70 | AY18: @FM-SMU-BH70 | AZ18: @FM-SOV-BH70 | BA18: @FM-SPO-BH70 | BB18: @FM-SPT-BH70 | BC18: @FM-SPE-BH70 | BD18: @FM-SPG-BH70 | BE18: @FM-SPN-BH70 | BF18: @FM-SSG-BH70 | BG18: @FM-SSP-BH70 | BH18: @FM-SSB-BH70 | BI18: @FM-SSO-BH70 | BJ18: @FM-SSY-BH70 | BK18: @FM-SST-BH70 | BL18: @FM-STP-BH70 | BM18: @FM-STK-BH70 | BN18: @FM-SWE-BH70 | BO18: @FM-EAG-BH70 | BP18: @FM-EAT-BH70 | BQ18: @FM-EAB-BH70 | BR18: @FM-EBR-BH70 | BS18: @FM-EBG-BH70 | BT18: @FM-EBW-BH70 | BU18: @FM-ECS-BH70 | BV18: @FM-EDM-BH70 | BW18: @FM-EDP-BH70 | BX18: @FM-EDS-BH70 | BY18: @FM-EGP-BH70 | BZ18: @FM-EHG-BH70 | CA18: @FM-EIN-BH70 | CB18: @FM-EIV-BH70 | CC18: @FM-ELN-BH70 | CD18: @FM-EDG-BH70 | CE18: @FM-EME-BH70 | CF18: @FM-EMN-BH70 | CG18: @FM-EMU-BH70 | CH18: @FM-EOV-BH70 | CI18: @FM-EPT-BH70 | CJ18: @FM-EPE-BH70 | CK18: @FM-EPG-BH70 | CL18: @FM-EPN-BH70 | CM18: @FM-ESG-BH70 | CN18: @FM-ESP-BH70 | CO18: @FM-ESK-BH70 | CP18: @FM-ESO-BH70 | CQ18: @FM-ESY-BH70 | CR18: @FM-ESN-BH70 | CS18: @FM-ETP-BH70 | CT18: @FM-ETK-BH70 | CU18: @FM-EWE-BH70
A19: BH80 | B19: 800 HL Base Unit | C19: BH80 | D19: @FM-MCS-BH80 | E19: @FM-MGD-BH80 | F19: @FM-MDS-BH80 | G19: @FM-MGP-BH80 | H19: @FM-MPN-BH80 | I19: @FM-MGW-BH80 | J19: @FM-MCM-BH80 | K19: @FM-MDM-BH80 | L19: @FM-MTM-BH80 | M19: @FM-MGM-BH80 | N19: @FM-MGR-BH80 | O19: @FM-MIM-BH80 | P19: @FM-MSM-BH80 | Q19: @FM-MPM-BH80 | R19: @FM-MTP-BH80 | S19: @FM-MWM-BH80 | T19: @FM-EOG-BH80 | U19: @FM-EOM-BH80 | V19: @FM-EPM-BH80 | W19: @FM-EVM-BH80 | X19: @FM-ENM-BH80 | Y19: @FM-ELA-BH80 | Z19: @FM-ELD-BH80 | AA19: @FM-ELW-BH80 | AB19: @FM-SAG-BH80 | AC19: @FM-SAT-BH80 | AD19: @FM-SAB-BH80 | AE19: @FM-SBR-BH80 | AF19: @FM-SBG-BH80 | AG19: @FM-SBW-BH80 | AH19: @FM-SBZ-BH80 | AI19: @FM-SBF-BH80 | AJ19: @FM-SCS-BH80 | AK19: @FM-SCB-BH80 | AL19: @FM-SDM-BH80 | AM19: @FM-SDP-BH80 | AN19: @FM-SDS-BH80 | AO19: @FM-SGP-BH80 | AP19: @FM-SHG-BH80 | AQ19: @FM-SIN-BH80 | AR19: @FM-SIV-BH80 | AS19: @FM-SLR-BH80 | AT19: @FM-SDG-BH80 | AU19: @FM-SMW-BH80 | AV19: @FM-SMZ-BH80 | AW19: @FM-SMN-BH80 | AX19: @FM-SMC-BH80 | AY19: @FM-SMU-BH80 | AZ19: @FM-SOV-BH80 | BA19: @FM-SPO-BH80 | BB19: @FM-SPT-BH80 | BC19: @FM-SPE-BH80 | BD19: @FM-SPG-BH80 | BE19: @FM-SPN-BH80 | BF19: @FM-SSG-BH80 | BG19: @FM-SSP-BH80 | BH19: @FM-SSB-BH80 | BI19: @FM-SSO-BH80 | BJ19: @FM-SSY-BH80 | BK19: @FM-SST-BH80 | BL19: @FM-STP-BH80 | BM19: @FM-STK-BH80 | BN19: @FM-SWE-BH80 | BO19: @FM-EAG-BH80 | BP19: @FM-EAT-BH80 | BQ19: @FM-EAB-BH80 | BR19: @FM-EBR-BH80 | BS19: @FM-EBG-BH80 | BT19: @FM-EBW-BH80 | BU19: @FM-ECS-BH80 | BV19: @FM-EDM-BH80 | BW19: @FM-EDP-BH80 | BX19: @FM-EDS-BH80 | BY19: @FM-EGP-BH80 | BZ19: @FM-EHG-BH80 | CA19: @FM-EIN-BH80 | CB19: @FM-EIV-BH80 | CC19: @FM-ELN-BH80 | CD19: @FM-EDG-BH80 | CE19: @FM-EME-BH80 | CF19: @FM-EMN-BH80 | CG19: @FM-EMU-BH80 | CH19: @FM-EOV-BH80 | CI19: @FM-EPT-BH80 | CJ19: @FM-EPE-BH80 | CK19: @FM-EPG-BH80 | CL19: @FM-EPN-BH80 | CM19: @FM-ESG-BH80 | CN19: @FM-ESP-BH80 | CO19: @FM-ESK-BH80 | CP19: @FM-ESO-BH80 | CQ19: @FM-ESY-BH80 | CR19: @FM-ESN-BH80 | CS19: @FM-ETP-BH80 | CT19: @FM-ETK-BH80 | CU19: @FM-EWE-BH80
A20: BH90 | B20: 900 HL Base Unit | C20: BH90 | D20: @FM-MCS-BH90 | E20: @FM-MGD-BH90 | F20: @FM-MDS-BH90 | G20: @FM-MGP-BH90 | H20: @FM-MPN-BH90 | I20: @FM-MGW-BH90 | J20: @FM-MCM-BH90 | K20: @FM-MDM-BH90 | L20: @FM-MTM-BH90 | M20: @FM-MGM-BH90 | N20: @FM-MGR-BH90 | O20: @FM-MIM-BH90 | P20: @FM-MSM-BH90 | Q20: @FM-MPM-BH90 | R20: @FM-MTP-BH90 | S20: @FM-MWM-BH90 | T20: @FM-EOG-BH90 | U20: @FM-EOM-BH90 | V20: @FM-EPM-BH90 | W20: @FM-EVM-BH90 | X20: @FM-ENM-BH90 | Y20: @FM-ELA-BH90 | Z20: @FM-ELD-BH90 | AA20: @FM-ELW-BH90 | AB20: @FM-SAG-BH90 | AC20: @FM-SAT-BH90 | AD20: @FM-SAB-BH90 | AE20: @FM-SBR-BH90 | AF20: @FM-SBG-BH90 | AG20: @FM-SBW-BH90 | AH20: @FM-SBZ-BH90 | AI20: @FM-SBF-BH90 | AJ20: @FM-SCS-BH90 | AK20: @FM-SCB-BH90 | AL20: @FM-SDM-BH90 | AM20: @FM-SDP-BH90 | AN20: @FM-SDS-BH90 | AO20: @FM-SGP-BH90 | AP20: @FM-SHG-BH90 | AQ20: @FM-SIN-BH90 | AR20: @FM-SIV-BH90 | AS20: @FM-SLR-BH90 | AT20: @FM-SDG-BH90 | AU20: @FM-SMW-BH90 | AV20: @FM-SMZ-BH90 | AW20: @FM-SMN-BH90 | AX20: @FM-SMC-BH90 | AY20: @FM-SMU-BH90 | AZ20: @FM-SOV-BH90 | BA20: @FM-SPO-BH90 | BB20: @FM-SPT-BH90 | BC20: @FM-SPE-BH90 | BD20: @FM-SPG-BH90 | BE20: @FM-SPN-BH90 | BF20: @FM-SSG-BH90 | BG20: @FM-SSP-BH90 | BH20: @FM-SSB-BH90 | BI20: @FM-SSO-BH90 | BJ20: @FM-SSY-BH90 | BK20: @FM-SST-BH90 | BL20: @FM-STP-BH90 | BM20: @FM-STK-BH90 | BN20: @FM-SWE-BH90 | BO20: @FM-EAG-BH90 | BP20: @FM-EAT-BH90 | BQ20: @FM-EAB-BH90 | BR20: @FM-EBR-BH90 | BS20: @FM-EBG-BH90 | BT20: @FM-EBW-BH90 | BU20: @FM-ECS-BH90 | BV20: @FM-EDM-BH90 | BW20: @FM-EDP-BH90 | BX20: @FM-EDS-BH90 | BY20: @FM-EGP-BH90 | BZ20: @FM-EHG-BH90 | CA20: @FM-EIN-BH90 | CB20: @FM-EIV-BH90 | CC20: @FM-ELN-BH90 | CD20: @FM-EDG-BH90 | CE20: @FM-EME-BH90 | CF20: @FM-EMN-BH90 | CG20: @FM-EMU-BH90 | CH20: @FM-EOV-BH90 | CI20: @FM-EPT-BH90 | CJ20: @FM-EPE-BH90 | CK20: @FM-EPG-BH90 | CL20: @FM-EPN-BH90 | CM20: @FM-ESG-BH90 | CN20: @FM-ESP-BH90 | CO20: @FM-ESK-BH90 | CP20: @FM-ESO-BH90 | CQ20: @FM-ESY-BH90 | CR20: @FM-ESN-BH90 | CS20: @FM-ETP-BH90 | CT20: @FM-ETK-BH90 | CU20: @FM-EWE-BH90
A21: BH100 | B21: 1000 HL Base Unit | C21: BH100 | D21: @FM-MCS-BH100 | E21: @FM-MGD-BH100 | F21: @FM-MDS-BH100 | G21: @FM-MGP-BH100 | H21: @FM-MPN-BH100 | I21: @FM-MGW-BH100 | J21: @FM-MCM-BH100 | K21: @FM-MDM-BH100 | L21: @FM-MTM-BH100 | M21: @FM-MGM-BH100 | N21: @FM-MGR-BH100 | O21: @FM-MIM-BH100 | P21: @FM-MSM-BH100 | Q21: @FM-MPM-BH100 | R21: @FM-MTP-BH100 | S21: @FM-MWM-BH100 | T21: @FM-EOG-BH100 | U21: @FM-EOM-BH100 | V21: @FM-EPM-BH100 | W21: @FM-EVM-BH100 | X21: @FM-ENM-BH100 | Y21: @FM-ELA-BH100 | Z21: @FM-ELD-BH100 | AA21: @FM-ELW-BH100 | AB21: @FM-SAG-BH100 | AC21: @FM-SAT-BH100 | AD21: @FM-SAB-BH100 | AE21: @FM-SBR-BH100 | AF21: @FM-SBG-BH100 | AG21: @FM-SBW-BH100 | AH21: @FM-SBZ-BH100 | AI21: @FM-SBF-BH100 | AJ21: @FM-SCS-BH100 | AK21: @FM-SCB-BH100 | AL21: @FM-SDM-BH100 | AM21: @FM-SDP-BH100 | AN21: @FM-SDS-BH100 | AO21: @FM-SGP-BH100 | AP21: @FM-SHG-BH100 | AQ21: @FM-SIN-BH100 | AR21: @FM-SIV-BH100 | AS21: @FM-SLR-BH100 | AT21: @FM-SDG-BH100 | AU21: @FM-SMW-BH100 | AV21: @FM-SMZ-BH100 | AW21: @FM-SMN-BH100 | AX21: @FM-SMC-BH100 | AY21: @FM-SMU-BH100 | AZ21: @FM-SOV-BH100 | BA21: @FM-SPO-BH100 | BB21: @FM-SPT-BH100 | BC21: @FM-SPE-BH100 | BD21: @FM-SPG-BH100 | BE21: @FM-SPN-BH100 | BF21: @FM-SSG-BH100 | BG21: @FM-SSP-BH100 | BH21: @FM-SSB-BH100 | BI21: @FM-SSO-BH100 | BJ21: @FM-SSY-BH100 | BK21: @FM-SST-BH100 | BL21: @FM-STP-BH100 | BM21: @FM-STK-BH100 | BN21: @FM-SWE-BH100 | BO21: @FM-EAG-BH100 | BP21: @FM-EAT-BH100 | BQ21: @FM-EAB-BH100 | BR21: @FM-EBR-BH100 | BS21: @FM-EBG-BH100 | BT21: @FM-EBW-BH100 | BU21: @FM-ECS-BH100 | BV21: @FM-EDM-BH100 | BW21: @FM-EDP-BH100 | BX21: @FM-EDS-BH100 | BY21: @FM-EGP-BH100 | BZ21: @FM-EHG-BH100 | CA21: @FM-EIN-BH100 | CB21: @FM-EIV-BH100 | CC21: @FM-ELN-BH100 | CD21: @FM-EDG-BH100 | CE21: @FM-EME-BH100 | CF21: @FM-EMN-BH100 | CG21: @FM-EMU-BH100 | CH21: @FM-EOV-BH100 | CI21: @FM-EPT-BH100 | CJ21: @FM-EPE-BH100 | CK21: @FM-EPG-BH100 | CL21: @FM-EPN-BH100 | CM21: @FM-ESG-BH100 | CN21: @FM-ESP-BH100 | CO21: @FM-ESK-BH100 | CP21: @FM-ESO-BH100 | CQ21: @FM-ESY-BH100 | CR21: @FM-ESN-BH100 | CS21: @FM-ETP-BH100 | CT21: @FM-ETK-BH100 | CU21: @FM-EWE-BH100
A22: BC83 | B22: 800 HL Corner Base Unit (300 Door) | C22: BC83 | D22: @FM-MCS-BC83 | E22: @FM-MGD-BC83 | F22: @FM-MDS-BC83 | G22: @FM-MGP-BC83 | H22: @FM-MPN-BC83 | I22: @FM-MGW-BC83 | J22: @FM-MCM-BC83 | K22: @FM-MDM-BC83 | L22: @FM-MTM-BC83 | M22: @FM-MGM-BC83 | N22: @FM-MGR-BC83 | O22: @FM-MIM-BC83 | P22: @FM-MSM-BC83 | Q22: @FM-MPM-BC83 | R22: @FM-MTP-BC83 | S22: @FM-MWM-BC83 | T22: @FM-EOG-BC83 | U22: @FM-EOM-BC83 | V22: @FM-EPM-BC83 | W22: @FM-EVM-BC83 | X22: @FM-ENM-BC83 | Y22: @FM-ELA-BC83 | Z22: @FM-ELD-BC83 | AA22: @FM-ELW-BC83 | AB22: @FM-SAG-BC83 | AC22: @FM-SAT-BC83 | AD22: @FM-SAB-BC83 | AE22: @FM-SBR-BC83 | AF22: @FM-SBG-BC83 | AG22: @FM-SBW-BC83 | AH22: @FM-SBZ-BC83 | AI22: @FM-SBF-BC83 | AJ22: @FM-SCS-BC83 | AK22: @FM-SCB-BC83 | AL22: @FM-SDM-BC83 | AM22: @FM-SDP-BC83 | AN22: @FM-SDS-BC83 | AO22: @FM-SGP-BC83 | AP22: @FM-SHG-BC83 | AQ22: @FM-SIN-BC83 | AR22: @FM-SIV-BC83 | AS22: @FM-SLR-BC83 | AT22: @FM-SDG-BC83 | AU22: @FM-SMW-BC83 | AV22: @FM-SMZ-BC83 | AW22: @FM-SMN-BC83 | AX22: @FM-SMC-BC83 | AY22: @FM-SMU-BC83 | AZ22: @FM-SOV-BC83 | BA22: @FM-SPO-BC83 | BB22: @FM-SPT-BC83 | BC22: @FM-SPE-BC83 | BD22: @FM-SPG-BC83 | BE22: @FM-SPN-BC83 | BF22: @FM-SSG-BC83 | BG22: @FM-SSP-BC83 | BH22: @FM-SSB-BC83 | BI22: @FM-SSO-BC83 | BJ22: @FM-SSY-BC83 | BK22: @FM-SST-BC83 | BL22: @FM-STP-BC83 | BM22: @FM-STK-BC83 | BN22: @FM-SWE-BC83 | BO22: @FM-EAG-BC83 | BP22: @FM-EAT-BC83 | BQ22: @FM-EAB-BC83 | BR22: @FM-EBR-BC83 | BS22: @FM-EBG-BC83 | BT22: @FM-EBW-BC83 | BU22: @FM-ECS-BC83 | BV22: @FM-EDM-BC83 | BW22: @FM-EDP-BC83 | BX22: @FM-EDS-BC83 | BY22: @FM-EGP-BC83 | BZ22: @FM-EHG-BC83 | CA22: @FM-EIN-BC83 | CB22: @FM-EIV-BC83 | CC22: @FM-ELN-BC83 | CD22: @FM-EDG-BC83 | CE22: @FM-EME-BC83 | CF22: @FM-EMN-BC83 | CG22: @FM-EMU-BC83 | CH22: @FM-EOV-BC83 | CI22: @FM-EPT-BC83 | CJ22: @FM-EPE-BC83 | CK22: @FM-EPG-BC83 | CL22: @FM-EPN-BC83 | CM22: @FM-ESG-BC83 | CN22: @FM-ESP-BC83 | CO22: @FM-ESK-BC83 | CP22: @FM-ESO-BC83 | CQ22: @FM-ESY-BC83 | CR22: @FM-ESN-BC83 | CS22: @FM-ETP-BC83 | CT22: @FM-ETK-BC83 | CU22: @FM-EWE-BC83
A23: BC84 | B23: 800 HL Corner Base Unit (400 Door) | C23: BC84 | D23: @FM-MCS-BC84 | E23: @FM-MGD-BC84 | F23: @FM-MDS-BC84 | G23: @FM-MGP-BC84 | H23: @FM-MPN-BC84 | I23: @FM-MGW-BC84 | J23: @FM-MCM-BC84 | K23: @FM-MDM-BC84 | L23: @FM-MTM-BC84 | M23: @FM-MGM-BC84 | N23: @FM-MGR-BC84 | O23: @FM-MIM-BC84 | P23: @FM-MSM-BC84 | Q23: @FM-MPM-BC84 | R23: @FM-MTP-BC84 | S23: @FM-MWM-BC84 | T23: @FM-EOG-BC84 | U23: @FM-EOM-BC84 | V23: @FM-EPM-BC84 | W23: @FM-EVM-BC84 | X23: @FM-ENM-BC84 | Y23: @FM-ELA-BC84 | Z23: @FM-ELD-BC84 | AA23: @FM-ELW-BC84 | AB23: @FM-SAG-BC84 | AC23: @FM-SAT-BC84 | AD23: @FM-SAB-BC84 | AE23: @FM-SBR-BC84 | AF23: @FM-SBG-BC84 | AG23: @FM-SBW-BC84 | AH23: @FM-SBZ-BC84 | AI23: @FM-SBF-BC84 | AJ23: @FM-SCS-BC84 | AK23: @FM-SCB-BC84 | AL23: @FM-SDM-BC84 | AM23: @FM-SDP-BC84 | AN23: @FM-SDS-BC84 | AO23: @FM-SGP-BC84 | AP23: @FM-SHG-BC84 | AQ23: @FM-SIN-BC84 | AR23: @FM-SIV-BC84 | AS23: @FM-SLR-BC84 | AT23: @FM-SDG-BC84 | AU23: @FM-SMW-BC84 | AV23: @FM-SMZ-BC84 | AW23: @FM-SMN-BC84 | AX23: @FM-SMC-BC84 | AY23: @FM-SMU-BC84 | AZ23: @FM-SOV-BC84 | BA23: @FM-SPO-BC84 | BB23: @FM-SPT-BC84 | BC23: @FM-SPE-BC84 | BD23: @FM-SPG-BC84 | BE23: @FM-SPN-BC84 | BF23: @FM-SSG-BC84 | BG23: @FM-SSP-BC84 | BH23: @FM-SSB-BC84 | BI23: @FM-SSO-BC84 | BJ23: @FM-SSY-BC84 | BK23: @FM-SST-BC84 | BL23: @FM-STP-BC84 | BM23: @FM-STK-BC84 | BN23: @FM-SWE-BC84 | BO23: @FM-EAG-BC84 | BP23: @FM-EAT-BC84 | BQ23: @FM-EAB-BC84 | BR23: @FM-EBR-BC84 | BS23: @FM-EBG-BC84 | BT23: @FM-EBW-BC84 | BU23: @FM-ECS-BC84 | BV23: @FM-EDM-BC84 | BW23: @FM-EDP-BC84 | BX23: @FM-EDS-BC84 | BY23: @FM-EGP-BC84 | BZ23: @FM-EHG-BC84 | CA23: @FM-EIN-BC84 | CB23: @FM-EIV-BC84 | CC23: @FM-ELN-BC84 | CD23: @FM-EDG-BC84 | CE23: @FM-EME-BC84 | CF23: @FM-EMN-BC84 | CG23: @FM-EMU-BC84 | CH23: @FM-EOV-BC84 | CI23: @FM-EPT-BC84 | CJ23: @FM-EPE-BC84 | CK23: @FM-EPG-BC84 | CL23: @FM-EPN-BC84 | CM23: @FM-ESG-BC84 | CN23: @FM-ESP-BC84 | CO23: @FM-ESK-BC84 | CP23: @FM-ESO-BC84 | CQ23: @FM-ESY-BC84 | CR23: @FM-ESN-BC84 | CS23: @FM-ETP-BC84 | CT23: @FM-ETK-BC84 | CU23: @FM-EWE-BC84
A24: BC845 | B24: 800 HL Corner Base Unit (450 Door) | C24: BC845 | D24: @FM-MCS-BC845 | E24: @FM-MGD-BC845 | F24: @FM-MDS-BC845 | G24: @FM-MGP-BC845 | H24: @FM-MPN-BC845 | I24: @FM-MGW-BC845 | J24: @FM-MCM-BC845 | K24: @FM-MDM-BC845 | L24: @FM-MTM-BC845 | M24: @FM-MGM-BC845 | N24: @FM-MGR-BC845 | O24: @FM-MIM-BC845 | P24: @FM-MSM-BC845 | Q24: @FM-MPM-BC845 | R24: @FM-MTP-BC845 | S24: @FM-MWM-BC845 | T24: @FM-EOG-BC845 | U24: @FM-EOM-BC845 | V24: @FM-EPM-BC845 | W24: @FM-EVM-BC845 | X24: @FM-ENM-BC845 | Y24: @FM-ELA-BC845 | Z24: @FM-ELD-BC845 | AA24: @FM-ELW-BC845 | AB24: @FM-SAG-BC845 | AC24: @FM-SAT-BC845 | AD24: @FM-SAB-BC845 | AE24: @FM-SBR-BC845 | AF24: @FM-SBG-BC845 | AG24: @FM-SBW-BC845 | AH24: @FM-SBZ-BC845 | AI24: @FM-SBF-BC845 | AJ24: @FM-SCS-BC845 | AK24: @FM-SCB-BC845 | AL24: @FM-SDM-BC845 | AM24: @FM-SDP-BC845 | AN24: @FM-SDS-BC845 | AO24: @FM-SGP-BC845 | AP24: @FM-SHG-BC845 | AQ24: @FM-SIN-BC845 | AR24: @FM-SIV-BC845 | AS24: @FM-SLR-BC845 | AT24: @FM-SDG-BC845 | AU24: @FM-SMW-BC845 | AV24: @FM-SMZ-BC845 | AW24: @FM-SMN-BC845 | AX24: @FM-SMC-BC845 | AY24: @FM-SMU-BC845 | AZ24: @FM-SOV-BC845 | BA24: @FM-SPO-BC845 | BB24: @FM-SPT-BC845 | BC24: @FM-SPE-BC845 | BD24: @FM-SPG-BC845 | BE24: @FM-SPN-BC845 | BF24: @FM-SSG-BC845 | BG24: @FM-SSP-BC845 | BH24: @FM-SSB-BC845 | BI24: @FM-SSO-BC845 | BJ24: @FM-SSY-BC845 | BK24: @FM-SST-BC845 | BL24: @FM-STP-BC845 | BM24: @FM-STK-BC845 | BN24: @FM-SWE-BC845 | BO24: @FM-EAG-BC845 | BP24: @FM-EAT-BC845 | BQ24: @FM-EAB-BC845 | BR24: @FM-EBR-BC845 | BS24: @FM-EBG-BC845 | BT24: @FM-EBW-BC845 | BU24: @FM-ECS-BC845 | BV24: @FM-EDM-BC845 | BW24: @FM-EDP-BC845 | BX24: @FM-EDS-BC845 | BY24: @FM-EGP-BC845 | BZ24: @FM-EHG-BC845 | CA24: @FM-EIN-BC845 | CB24: @FM-EIV-BC845 | CC24: @FM-ELN-BC845 | CD24: @FM-EDG-BC845 | CE24: @FM-EME-BC845 | CF24: @FM-EMN-BC845 | CG24: @FM-EMU-BC845 | CH24: @FM-EOV-BC845 | CI24: @FM-EPT-BC845 | CJ24: @FM-EPE-BC845 | CK24: @FM-EPG-BC845 | CL24: @FM-EPN-BC845 | CM24: @FM-ESG-BC845 | CN24: @FM-ESP-BC845 | CO24: @FM-ESK-BC845 | CP24: @FM-ESO-BC845 | CQ24: @FM-ESY-BC845 | CR24: @FM-ESN-BC845 | CS24: @FM-ETP-BC845 | CT24: @FM-ETK-BC845 | CU24: @FM-EWE-BC845
A25: BC945 | B25: 900 HL Corner Base Unit (450 Door) | C25: BC945 | D25: @FM-MCS-BC945 | E25: @FM-MGD-BC945 | F25: @FM-MDS-BC945 | G25: @FM-MGP-BC945 | H25: @FM-MPN-BC945 | I25: @FM-MGW-BC945 | J25: @FM-MCM-BC945 | K25: @FM-MDM-BC945 | L25: @FM-MTM-BC945 | M25: @FM-MGM-BC945 | N25: @FM-MGR-BC945 | O25: @FM-MIM-BC945 | P25: @FM-MSM-BC945 | Q25: @FM-MPM-BC945 | R25: @FM-MTP-BC945 | S25: @FM-MWM-BC945 | T25: @FM-EOG-BC945 | U25: @FM-EOM-BC945 | V25: @FM-EPM-BC945 | W25: @FM-EVM-BC945 | X25: @FM-ENM-BC945 | Y25: @FM-ELA-BC945 | Z25: @FM-ELD-BC945 | AA25: @FM-ELW-BC945 | AB25: @FM-SAG-BC945 | AC25: @FM-SAT-BC945 | AD25: @FM-SAB-BC945 | AE25: @FM-SBR-BC945 | AF25: @FM-SBG-BC945 | AG25: @FM-SBW-BC945 | AH25: @FM-SBZ-BC945 | AI25: @FM-SBF-BC945 | AJ25: @FM-SCS-BC945 | AK25: @FM-SCB-BC945 | AL25: @FM-SDM-BC945 | AM25: @FM-SDP-BC945 | AN25: @FM-SDS-BC945 | AO25: @FM-SGP-BC945 | AP25: @FM-SHG-BC945 | AQ25: @FM-SIN-BC945 | AR25: @FM-SIV-BC945 | AS25: @FM-SLR-BC945 | AT25: @FM-SDG-BC945 | AU25: @FM-SMW-BC945 | AV25: @FM-SMZ-BC945 | AW25: @FM-SMN-BC945 | AX25: @FM-SMC-BC945 | AY25: @FM-SMU-BC945 | AZ25: @FM-SOV-BC945 | BA25: @FM-SPO-BC945 | BB25: @FM-SPT-BC945 | BC25: @FM-SPE-BC945 | BD25: @FM-SPG-BC945 | BE25: @FM-SPN-BC945 | BF25: @FM-SSG-BC945 | BG25: @FM-SSP-BC945 | BH25: @FM-SSB-BC945 | BI25: @FM-SSO-BC945 | BJ25: @FM-SSY-BC945 | BK25: @FM-SST-BC945 | BL25: @FM-STP-BC945 | BM25: @FM-STK-BC945 | BN25: @FM-SWE-BC945 | BO25: @FM-EAG-BC945 | BP25: @FM-EAT-BC945 | BQ25: @FM-EAB-BC945 | BR25: @FM-EBR-BC945 | BS25: @FM-EBG-BC945 | BT25: @FM-EBW-BC945 | BU25: @FM-ECS-BC945 | BV25: @FM-EDM-BC945 | BW25: @FM-EDP-BC945 | BX25: @FM-EDS-BC945 | BY25: @FM-EGP-BC945 | BZ25: @FM-EHG-BC945 | CA25: @FM-EIN-BC945 | CB25: @FM-EIV-BC945 | CC25: @FM-ELN-BC945 | CD25: @FM-EDG-BC945 | CE25: @FM-EME-BC945 | CF25: @FM-EMN-BC945 | CG25: @FM-EMU-BC945 | CH25: @FM-EOV-BC945 | CI25: @FM-EPT-BC945 | CJ25: @FM-EPE-BC945 | CK25: @FM-EPG-BC945 | CL25: @FM-EPN-BC945 | CM25: @FM-ESG-BC945 | CN25: @FM-ESP-BC945 | CO25: @FM-ESK-BC945 | CP25: @FM-ESO-BC945 | CQ25: @FM-ESY-BC945 | CR25: @FM-ESN-BC945 | CS25: @FM-ETP-BC945 | CT25: @FM-ETK-BC945 | CU25: @FM-EWE-BC945
A26: BC145 | B26: 1000 HL Corner Base Unit (450 Door) | C26: BC145 | D26: @FM-MCS-BC145 | E26: @FM-MGD-BC145 | F26: @FM-MDS-BC145 | G26: @FM-MGP-BC145 | H26: @FM-MPN-BC145 | I26: @FM-MGW-BC145 | J26: @FM-MCM-BC145 | K26: @FM-MDM-BC145 | L26: @FM-MTM-BC145 | M26: @FM-MGM-BC145 | N26: @FM-MGR-BC145 | O26: @FM-MIM-BC145 | P26: @FM-MSM-BC145 | Q26: @FM-MPM-BC145 | R26: @FM-MTP-BC145 | S26: @FM-MWM-BC145 | T26: @FM-EOG-BC145 | U26: @FM-EOM-BC145 | V26: @FM-EPM-BC145 | W26: @FM-EVM-BC145 | X26: @FM-ENM-BC145 | Y26: @FM-ELA-BC145 | Z26: @FM-ELD-BC145 | AA26: @FM-ELW-BC145 | AB26: @FM-SAG-BC145 | AC26: @FM-SAT-BC145 | AD26: @FM-SAB-BC145 | AE26: @FM-SBR-BC145 | AF26: @FM-SBG-BC145 | AG26: @FM-SBW-BC145 | AH26: @FM-SBZ-BC145 | AI26: @FM-SBF-BC145 | AJ26: @FM-SCS-BC145 | AK26: @FM-SCB-BC145 | AL26: @FM-SDM-BC145 | AM26: @FM-SDP-BC145 | AN26: @FM-SDS-BC145 | AO26: @FM-SGP-BC145 | AP26: @FM-SHG-BC145 | AQ26: @FM-SIN-BC145 | AR26: @FM-SIV-BC145 | AS26: @FM-SLR-BC145 | AT26: @FM-SDG-BC145 | AU26: @FM-SMW-BC145 | AV26: @FM-SMZ-BC145 | AW26: @FM-SMN-BC145 | AX26: @FM-SMC-BC145 | AY26: @FM-SMU-BC145 | AZ26: @FM-SOV-BC145 | BA26: @FM-SPO-BC145 | BB26: @FM-SPT-BC145 | BC26: @FM-SPE-BC145 | BD26: @FM-SPG-BC145 | BE26: @FM-SPN-BC145 | BF26: @FM-SSG-BC145 | BG26: @FM-SSP-BC145 | BH26: @FM-SSB-BC145 | BI26: @FM-SSO-BC145 | BJ26: @FM-SSY-BC145 | BK26: @FM-SST-BC145 | BL26: @FM-STP-BC145 | BM26: @FM-STK-BC145 | BN26: @FM-SWE-BC145 | BO26: @FM-EAG-BC145 | BP26: @FM-EAT-BC145 | BQ26: @FM-EAB-BC145 | BR26: @FM-EBR-BC145 | BS26: @FM-EBG-BC145 | BT26: @FM-EBW-BC145 | BU26: @FM-ECS-BC145 | BV26: @FM-EDM-BC145 | BW26: @FM-EDP-BC145 | BX26: @FM-EDS-BC145 | BY26: @FM-EGP-BC145 | BZ26: @FM-EHG-BC145 | CA26: @FM-EIN-BC145 | CB26: @FM-EIV-BC145 | CC26: @FM-ELN-BC145 | CD26: @FM-EDG-BC145 | CE26: @FM-EME-BC145 | CF26: @FM-EMN-BC145 | CG26: @FM-EMU-BC145 | CH26: @FM-EOV-BC145 | CI26: @FM-EPT-BC145 | CJ26: @FM-EPE-BC145 | CK26: @FM-EPG-BC145 | CL26: @FM-EPN-BC145 | CM26: @FM-ESG-BC145 | CN26: @FM-ESP-BC145 | CO26: @FM-ESK-BC145 | CP26: @FM-ESO-BC145 | CQ26: @FM-ESY-BC145 | CR26: @FM-ESN-BC145 | CS26: @FM-ETP-BC145 | CT26: @FM-ETK-BC145 | CU26: @FM-EWE-BC145
A27: BC15 | B27: 1000 HL Corner Base Unit (500 Door) | C27: BC15 | D27: @FM-MCS-BC15 | E27: @FM-MGD-BC15 | F27: @FM-MDS-BC15 | G27: @FM-MGP-BC15 | H27: @FM-MPN-BC15 | I27: @FM-MGW-BC15 | J27: @FM-MCM-BC15 | K27: @FM-MDM-BC15 | L27: @FM-MTM-BC15 | M27: @FM-MGM-BC15 | N27: @FM-MGR-BC15 | O27: @FM-MIM-BC15 | P27: @FM-MSM-BC15 | Q27: @FM-MPM-BC15 | R27: @FM-MTP-BC15 | S27: @FM-MWM-BC15 | T27: @FM-EOG-BC15 | U27: @FM-EOM-BC15 | V27: @FM-EPM-BC15 | W27: @FM-EVM-BC15 | X27: @FM-ENM-BC15 | Y27: @FM-ELA-BC15 | Z27: @FM-ELD-BC15 | AA27: @FM-ELW-BC15 | AB27: @FM-SAG-BC15 | AC27: @FM-SAT-BC15 | AD27: @FM-SAB-BC15 | AE27: @FM-SBR-BC15 | AF27: @FM-SBG-BC15 | AG27: @FM-SBW-BC15 | AH27: @FM-SBZ-BC15 | AI27: @FM-SBF-BC15 | AJ27: @FM-SCS-BC15 | AK27: @FM-SCB-BC15 | AL27: @FM-SDM-BC15 | AM27: @FM-SDP-BC15 | AN27: @FM-SDS-BC15 | AO27: @FM-SGP-BC15 | AP27: @FM-SHG-BC15 | AQ27: @FM-SIN-BC15 | AR27: @FM-SIV-BC15 | AS27: @FM-SLR-BC15 | AT27: @FM-SDG-BC15 | AU27: @FM-SMW-BC15 | AV27: @FM-SMZ-BC15 | AW27: @FM-SMN-BC15 | AX27: @FM-SMC-BC15 | AY27: @FM-SMU-BC15 | AZ27: @FM-SOV-BC15 | BA27: @FM-SPO-BC15 | BB27: @FM-SPT-BC15 | BC27: @FM-SPE-BC15 | BD27: @FM-SPG-BC15 | BE27: @FM-SPN-BC15 | BF27: @FM-SSG-BC15 | BG27: @FM-SSP-BC15 | BH27: @FM-SSB-BC15 | BI27: @FM-SSO-BC15 | BJ27: @FM-SSY-BC15 | BK27: @FM-SST-BC15 | BL27: @FM-STP-BC15 | BM27: @FM-STK-BC15 | BN27: @FM-SWE-BC15 | BO27: @FM-EAG-BC15 | BP27: @FM-EAT-BC15 | BQ27: @FM-EAB-BC15 | BR27: @FM-EBR-BC15 | BS27: @FM-EBG-BC15 | BT27: @FM-EBW-BC15 | BU27: @FM-ECS-BC15 | BV27: @FM-EDM-BC15 | BW27: @FM-EDP-BC15 | BX27: @FM-EDS-BC15 | BY27: @FM-EGP-BC15 | BZ27: @FM-EHG-BC15 | CA27: @FM-EIN-BC15 | CB27: @FM-EIV-BC15 | CC27: @FM-ELN-BC15 | CD27: @FM-EDG-BC15 | CE27: @FM-EME-BC15 | CF27: @FM-EMN-BC15 | CG27: @FM-EMU-BC15 | CH27: @FM-EOV-BC15 | CI27: @FM-EPT-BC15 | CJ27: @FM-EPE-BC15 | CK27: @FM-EPG-BC15 | CL27: @FM-EPN-BC15 | CM27: @FM-ESG-BC15 | CN27: @FM-ESP-BC15 | CO27: @FM-ESK-BC15 | CP27: @FM-ESO-BC15 | CQ27: @FM-ESY-BC15 | CR27: @FM-ESN-BC15 | CS27: @FM-ETP-BC15 | CT27: @FM-ETK-BC15 | CU27: @FM-EWE-BC15
A28: BC16 | B28: 1000 HL Corner Base Unit (600 Door) | C28: BC16 | D28: @FM-MCS-BC16 | E28: @FM-MGD-BC16 | F28: @FM-MDS-BC16 | G28: @FM-MGP-BC16 | H28: @FM-MPN-BC16 | I28: @FM-MGW-BC16 | J28: @FM-MCM-BC16 | K28: @FM-MDM-BC16 | L28: @FM-MTM-BC16 | M28: @FM-MGM-BC16 | N28: @FM-MGR-BC16 | O28: @FM-MIM-BC16 | P28: @FM-MSM-BC16 | Q28: @FM-MPM-BC16 | R28: @FM-MTP-BC16 | S28: @FM-MWM-BC16 | T28: @FM-EOG-BC16 | U28: @FM-EOM-BC16 | V28: @FM-EPM-BC16 | W28: @FM-EVM-BC16 | X28: @FM-ENM-BC16 | Y28: @FM-ELA-BC16 | Z28: @FM-ELD-BC16 | AA28: @FM-ELW-BC16 | AB28: @FM-SAG-BC16 | AC28: @FM-SAT-BC16 | AD28: @FM-SAB-BC16 | AE28: @FM-SBR-BC16 | AF28: @FM-SBG-BC16 | AG28: @FM-SBW-BC16 | AH28: @FM-SBZ-BC16 | AI28: @FM-SBF-BC16 | AJ28: @FM-SCS-BC16 | AK28: @FM-SCB-BC16 | AL28: @FM-SDM-BC16 | AM28: @FM-SDP-BC16 | AN28: @FM-SDS-BC16 | AO28: @FM-SGP-BC16 | AP28: @FM-SHG-BC16 | AQ28: @FM-SIN-BC16 | AR28: @FM-SIV-BC16 | AS28: @FM-SLR-BC16 | AT28: @FM-SDG-BC16 | AU28: @FM-SMW-BC16 | AV28: @FM-SMZ-BC16 | AW28: @FM-SMN-BC16 | AX28: @FM-SMC-BC16 | AY28: @FM-SMU-BC16 | AZ28: @FM-SOV-BC16 | BA28: @FM-SPO-BC16 | BB28: @FM-SPT-BC16 | BC28: @FM-SPE-BC16 | BD28: @FM-SPG-BC16 | BE28: @FM-SPN-BC16 | BF28: @FM-SSG-BC16 | BG28: @FM-SSP-BC16 | BH28: @FM-SSB-BC16 | BI28: @FM-SSO-BC16 | BJ28: @FM-SSY-BC16 | BK28: @FM-SST-BC16 | BL28: @FM-STP-BC16 | BM28: @FM-STK-BC16 | BN28: @FM-SWE-BC16 | BO28: @FM-EAG-BC16 | BP28: @FM-EAT-BC16 | BQ28: @FM-EAB-BC16 | BR28: @FM-EBR-BC16 | BS28: @FM-EBG-BC16 | BT28: @FM-EBW-BC16 | BU28: @FM-ECS-BC16 | BV28: @FM-EDM-BC16 | BW28: @FM-EDP-BC16 | BX28: @FM-EDS-BC16 | BY28: @FM-EGP-BC16 | BZ28: @FM-EHG-BC16 | CA28: @FM-EIN-BC16 | CB28: @FM-EIV-BC16 | CC28: @FM-ELN-BC16 | CD28: @FM-EDG-BC16 | CE28: @FM-EME-BC16 | CF28: @FM-EMN-BC16 | CG28: @FM-EMU-BC16 | CH28: @FM-EOV-BC16 | CI28: @FM-EPT-BC16 | CJ28: @FM-EPE-BC16 | CK28: @FM-EPG-BC16 | CL28: @FM-EPN-BC16 | CM28: @FM-ESG-BC16 | CN28: @FM-ESP-BC16 | CO28: @FM-ESK-BC16 | CP28: @FM-ESO-BC16 | CQ28: @FM-ESY-BC16 | CR28: @FM-ESN-BC16 | CS28: @FM-ETP-BC16 | CT28: @FM-ETK-BC16 | CU28: @FM-EWE-BC16
A29: BCL15L | B29: 1000 Cnr Base CORNERSTONE MAXX LH - 500 door | C29: BCL15L | D29: @FM-MCS-BCL15L | E29: @FM-MGD-BCL15L | F29: @FM-MDS-BCL15L | G29: @FM-MGP-BCL15L | H29: @FM-MPN-BCL15L | I29: @FM-MGW-BCL15L | J29: @FM-MCM-BCL15L | K29: @FM-MDM-BCL15L | L29: @FM-MTM-BCL15L | M29: @FM-MGM-BCL15L | N29: @FM-MGR-BCL15L | O29: @FM-MIM-BCL15L | P29: @FM-MSM-BCL15L | Q29: @FM-MPM-BCL15L | R29: @FM-MTP-BCL15L | S29: @FM-MWM-BCL15L | T29: @FM-EOG-BCL15L | U29: @FM-EOM-BCL15L | V29: @FM-EPM-BCL15L | W29: @FM-EVM-BCL15L | X29: @FM-ENM-BCL15L | Y29: @FM-ELA-BCL15L | Z29: @FM-ELD-BCL15L | AA29: @FM-ELW-BCL15L | AB29: @FM-SAG-BCL15L | AC29: @FM-SAT-BCL15L | AD29: @FM-SAB-BCL15L | AE29: @FM-SBR-BCL15L | AF29: @FM-SBG-BCL15L | AG29: @FM-SBW-BCL15L | AH29: @FM-SBZ-BCL15L | AI29: @FM-SBF-BCL15L | AJ29: @FM-SCS-BCL15L | AK29: @FM-SCB-BCL15L | AL29: @FM-SDM-BCL15L | AM29: @FM-SDP-BCL15L | AN29: @FM-SDS-BCL15L | AO29: @FM-SGP-BCL15L | AP29: @FM-SHG-BCL15L | AQ29: @FM-SIN-BCL15L | AR29: @FM-SIV-BCL15L | AS29: @FM-SLR-BCL15L | AT29: @FM-SDG-BCL15L | AU29: @FM-SMW-BCL15L | AV29: @FM-SMZ-BCL15L | AW29: @FM-SMN-BCL15L | AX29: @FM-SMC-BCL15L | AY29: @FM-SMU-BCL15L | AZ29: @FM-SOV-BCL15L | BA29: @FM-SPO-BCL15L | BB29: @FM-SPT-BCL15L | BC29: @FM-SPE-BCL15L | BD29: @FM-SPG-BCL15L | BE29: @FM-SPN-BCL15L | BF29: @FM-SSG-BCL15L | BG29: @FM-SSP-BCL15L | BH29: @FM-SSB-BCL15L | BI29: @FM-SSO-BCL15L | BJ29: @FM-SSY-BCL15L | BK29: @FM-SST-BCL15L | BL29: @FM-STP-BCL15L | BM29: @FM-STK-BCL15L | BN29: @FM-SWE-BCL15L | BO29: @FM-EAG-BCL15L | BP29: @FM-EAT-BCL15L | BQ29: @FM-EAB-BCL15L | BR29: @FM-EBR-BCL15L | BS29: @FM-EBG-BCL15L | BT29: @FM-EBW-BCL15L | BU29: @FM-ECS-BCL15L | BV29: @FM-EDM-BCL15L | BW29: @FM-EDP-BCL15L | BX29: @FM-EDS-BCL15L | BY29: @FM-EGP-BCL15L | BZ29: @FM-EHG-BCL15L | CA29: @FM-EIN-BCL15L | CB29: @FM-EIV-BCL15L | CC29: @FM-ELN-BCL15L | CD29: @FM-EDG-BCL15L | CE29: @FM-EME-BCL15L | CF29: @FM-EMN-BCL15L | CG29: @FM-EMU-BCL15L | CH29: @FM-EOV-BCL15L | CI29: @FM-EPT-BCL15L | CJ29: @FM-EPE-BCL15L | CK29: @FM-EPG-BCL15L | CL29: @FM-EPN-BCL15L | CM29: @FM-ESG-BCL15L | CN29: @FM-ESP-BCL15L | CO29: @FM-ESK-BCL15L | CP29: @FM-ESO-BCL15L | CQ29: @FM-ESY-BCL15L | CR29: @FM-ESN-BCL15L | CS29: @FM-ETP-BCL15L | CT29: @FM-ETK-BCL15L | CU29: @FM-EWE-BCL15L
A30: BCL15R | B30: 1000 Cnr Base CORNERSTONE MAXX RH - 500 door | C30: BCL15R | D30: @FM-MCS-BCL15R | E30: @FM-MGD-BCL15R | F30: @FM-MDS-BCL15R | G30: @FM-MGP-BCL15R | H30: @FM-MPN-BCL15R | I30: @FM-MGW-BCL15R | J30: @FM-MCM-BCL15R | K30: @FM-MDM-BCL15R | L30: @FM-MTM-BCL15R | M30: @FM-MGM-BCL15R | N30: @FM-MGR-BCL15R | O30: @FM-MIM-BCL15R | P30: @FM-MSM-BCL15R | Q30: @FM-MPM-BCL15R | R30: @FM-MTP-BCL15R | S30: @FM-MWM-BCL15R | T30: @FM-EOG-BCL15R | U30: @FM-EOM-BCL15R | V30: @FM-EPM-BCL15R | W30: @FM-EVM-BCL15R | X30: @FM-ENM-BCL15R | Y30: @FM-ELA-BCL15R | Z30: @FM-ELD-BCL15R | AA30: @FM-ELW-BCL15R | AB30: @FM-SAG-BCL15R | AC30: @FM-SAT-BCL15R | AD30: @FM-SAB-BCL15R | AE30: @FM-SBR-BCL15R | AF30: @FM-SBG-BCL15R | AG30: @FM-SBW-BCL15R | AH30: @FM-SBZ-BCL15R | AI30: @FM-SBF-BCL15R | AJ30: @FM-SCS-BCL15R | AK30: @FM-SCB-BCL15R | AL30: @FM-SDM-BCL15R | AM30: @FM-SDP-BCL15R | AN30: @FM-SDS-BCL15R | AO30: @FM-SGP-BCL15R | AP30: @FM-SHG-BCL15R | AQ30: @FM-SIN-BCL15R | AR30: @FM-SIV-BCL15R | AS30: @FM-SLR-BCL15R | AT30: @FM-SDG-BCL15R | AU30: @FM-SMW-BCL15R | AV30: @FM-SMZ-BCL15R | AW30: @FM-SMN-BCL15R | AX30: @FM-SMC-BCL15R | AY30: @FM-SMU-BCL15R | AZ30: @FM-SOV-BCL15R | BA30: @FM-SPO-BCL15R | BB30: @FM-SPT-BCL15R | BC30: @FM-SPE-BCL15R | BD30: @FM-SPG-BCL15R | BE30: @FM-SPN-BCL15R | BF30: @FM-SSG-BCL15R | BG30: @FM-SSP-BCL15R | BH30: @FM-SSB-BCL15R | BI30: @FM-SSO-BCL15R | BJ30: @FM-SSY-BCL15R | BK30: @FM-SST-BCL15R | BL30: @FM-STP-BCL15R | BM30: @FM-STK-BCL15R | BN30: @FM-SWE-BCL15R | BO30: @FM-EAG-BCL15R | BP30: @FM-EAT-BCL15R | BQ30: @FM-EAB-BCL15R | BR30: @FM-EBR-BCL15R | BS30: @FM-EBG-BCL15R | BT30: @FM-EBW-BCL15R | BU30: @FM-ECS-BCL15R | BV30: @FM-EDM-BCL15R | BW30: @FM-EDP-BCL15R | BX30: @FM-EDS-BCL15R | BY30: @FM-EGP-BCL15R | BZ30: @FM-EHG-BCL15R | CA30: @FM-EIN-BCL15R | CB30: @FM-EIV-BCL15R | CC30: @FM-ELN-BCL15R | CD30: @FM-EDG-BCL15R | CE30: @FM-EME-BCL15R | CF30: @FM-EMN-BCL15R | CG30: @FM-EMU-BCL15R | CH30: @FM-EOV-BCL15R | CI30: @FM-EPT-BCL15R | CJ30: @FM-EPE-BCL15R | CK30: @FM-EPG-BCL15R | CL30: @FM-EPN-BCL15R | CM30: @FM-ESG-BCL15R | CN30: @FM-ESP-BCL15R | CO30: @FM-ESK-BCL15R | CP30: @FM-ESO-BCL15R | CQ30: @FM-ESY-BCL15R | CR30: @FM-ESN-BCL15R | CS30: @FM-ETP-BCL15R | CT30: @FM-ETK-BCL15R | CU30: @FM-EWE-BCL15R
A31: BCL16L | B31: 1000 Cnr Base CORNERSTONE MAXX LH - 600 door | C31: BCL16L | D31: @FM-MCS-BCL16L | E31: @FM-MGD-BCL16L | F31: @FM-MDS-BCL16L | G31: @FM-MGP-BCL16L | H31: @FM-MPN-BCL16L | I31: @FM-MGW-BCL16L | J31: @FM-MCM-BCL16L | K31: @FM-MDM-BCL16L | L31: @FM-MTM-BCL16L | M31: @FM-MGM-BCL16L | N31: @FM-MGR-BCL16L | O31: @FM-MIM-BCL16L | P31: @FM-MSM-BCL16L | Q31: @FM-MPM-BCL16L | R31: @FM-MTP-BCL16L | S31: @FM-MWM-BCL16L | T31: @FM-EOG-BCL16L | U31: @FM-EOM-BCL16L | V31: @FM-EPM-BCL16L | W31: @FM-EVM-BCL16L | X31: @FM-ENM-BCL16L | Y31: @FM-ELA-BCL16L | Z31: @FM-ELD-BCL16L | AA31: @FM-ELW-BCL16L | AB31: @FM-SAG-BCL16L | AC31: @FM-SAT-BCL16L | AD31: @FM-SAB-BCL16L | AE31: @FM-SBR-BCL16L | AF31: @FM-SBG-BCL16L | AG31: @FM-SBW-BCL16L | AH31: @FM-SBZ-BCL16L | AI31: @FM-SBF-BCL16L | AJ31: @FM-SCS-BCL16L | AK31: @FM-SCB-BCL16L | AL31: @FM-SDM-BCL16L | AM31: @FM-SDP-BCL16L | AN31: @FM-SDS-BCL16L | AO31: @FM-SGP-BCL16L | AP31: @FM-SHG-BCL16L | AQ31: @FM-SIN-BCL16L | AR31: @FM-SIV-BCL16L | AS31: @FM-SLR-BCL16L | AT31: @FM-SDG-BCL16L | AU31: @FM-SMW-BCL16L | AV31: @FM-SMZ-BCL16L | AW31: @FM-SMN-BCL16L | AX31: @FM-SMC-BCL16L | AY31: @FM-SMU-BCL16L | AZ31: @FM-SOV-BCL16L | BA31: @FM-SPO-BCL16L | BB31: @FM-SPT-BCL16L | BC31: @FM-SPE-BCL16L | BD31: @FM-SPG-BCL16L | BE31: @FM-SPN-BCL16L | BF31: @FM-SSG-BCL16L | BG31: @FM-SSP-BCL16L | BH31: @FM-SSB-BCL16L | BI31: @FM-SSO-BCL16L | BJ31: @FM-SSY-BCL16L | BK31: @FM-SST-BCL16L | BL31: @FM-STP-BCL16L | BM31: @FM-STK-BCL16L | BN31: @FM-SWE-BCL16L | BO31: @FM-EAG-BCL16L | BP31: @FM-EAT-BCL16L | BQ31: @FM-EAB-BCL16L | BR31: @FM-EBR-BCL16L | BS31: @FM-EBG-BCL16L | BT31: @FM-EBW-BCL16L | BU31: @FM-ECS-BCL16L | BV31: @FM-EDM-BCL16L | BW31: @FM-EDP-BCL16L | BX31: @FM-EDS-BCL16L | BY31: @FM-EGP-BCL16L | BZ31: @FM-EHG-BCL16L | CA31: @FM-EIN-BCL16L | CB31: @FM-EIV-BCL16L | CC31: @FM-ELN-BCL16L | CD31: @FM-EDG-BCL16L | CE31: @FM-EME-BCL16L | CF31: @FM-EMN-BCL16L | CG31: @FM-EMU-BCL16L | CH31: @FM-EOV-BCL16L | CI31: @FM-EPT-BCL16L | CJ31: @FM-EPE-BCL16L | CK31: @FM-EPG-BCL16L | CL31: @FM-EPN-BCL16L | CM31: @FM-ESG-BCL16L | CN31: @FM-ESP-BCL16L | CO31: @FM-ESK-BCL16L | CP31: @FM-ESO-BCL16L | CQ31: @FM-ESY-BCL16L | CR31: @FM-ESN-BCL16L | CS31: @FM-ETP-BCL16L | CT31: @FM-ETK-BCL16L | CU31: @FM-EWE-BCL16L
A32: BCL16R | B32: 1000 Cnr Base CORNERSTONE MAXX RH - 600 door | C32: BCL16R | D32: @FM-MCS-BCL16R | E32: @FM-MGD-BCL16R | F32: @FM-MDS-BCL16R | G32: @FM-MGP-BCL16R | H32: @FM-MPN-BCL16R | I32: @FM-MGW-BCL16R | J32: @FM-MCM-BCL16R | K32: @FM-MDM-BCL16R | L32: @FM-MTM-BCL16R | M32: @FM-MGM-BCL16R | N32: @FM-MGR-BCL16R | O32: @FM-MIM-BCL16R | P32: @FM-MSM-BCL16R | Q32: @FM-MPM-BCL16R | R32: @FM-MTP-BCL16R | S32: @FM-MWM-BCL16R | T32: @FM-EOG-BCL16R | U32: @FM-EOM-BCL16R | V32: @FM-EPM-BCL16R | W32: @FM-EVM-BCL16R | X32: @FM-ENM-BCL16R | Y32: @FM-ELA-BCL16R | Z32: @FM-ELD-BCL16R | AA32: @FM-ELW-BCL16R | AB32: @FM-SAG-BCL16R | AC32: @FM-SAT-BCL16R | AD32: @FM-SAB-BCL16R | AE32: @FM-SBR-BCL16R | AF32: @FM-SBG-BCL16R | AG32: @FM-SBW-BCL16R | AH32: @FM-SBZ-BCL16R | AI32: @FM-SBF-BCL16R | AJ32: @FM-SCS-BCL16R | AK32: @FM-SCB-BCL16R | AL32: @FM-SDM-BCL16R | AM32: @FM-SDP-BCL16R | AN32: @FM-SDS-BCL16R | AO32: @FM-SGP-BCL16R | AP32: @FM-SHG-BCL16R | AQ32: @FM-SIN-BCL16R | AR32: @FM-SIV-BCL16R | AS32: @FM-SLR-BCL16R | AT32: @FM-SDG-BCL16R | AU32: @FM-SMW-BCL16R | AV32: @FM-SMZ-BCL16R | AW32: @FM-SMN-BCL16R | AX32: @FM-SMC-BCL16R | AY32: @FM-SMU-BCL16R | AZ32: @FM-SOV-BCL16R | BA32: @FM-SPO-BCL16R | BB32: @FM-SPT-BCL16R | BC32: @FM-SPE-BCL16R | BD32: @FM-SPG-BCL16R | BE32: @FM-SPN-BCL16R | BF32: @FM-SSG-BCL16R | BG32: @FM-SSP-BCL16R | BH32: @FM-SSB-BCL16R | BI32: @FM-SSO-BCL16R | BJ32: @FM-SSY-BCL16R | BK32: @FM-SST-BCL16R | BL32: @FM-STP-BCL16R | BM32: @FM-STK-BCL16R | BN32: @FM-SWE-BCL16R | BO32: @FM-EAG-BCL16R | BP32: @FM-EAT-BCL16R | BQ32: @FM-EAB-BCL16R | BR32: @FM-EBR-BCL16R | BS32: @FM-EBG-BCL16R | BT32: @FM-EBW-BCL16R | BU32: @FM-ECS-BCL16R | BV32: @FM-EDM-BCL16R | BW32: @FM-EDP-BCL16R | BX32: @FM-EDS-BCL16R | BY32: @FM-EGP-BCL16R | BZ32: @FM-EHG-BCL16R | CA32: @FM-EIN-BCL16R | CB32: @FM-EIV-BCL16R | CC32: @FM-ELN-BCL16R | CD32: @FM-EDG-BCL16R | CE32: @FM-EME-BCL16R | CF32: @FM-EMN-BCL16R | CG32: @FM-EMU-BCL16R | CH32: @FM-EOV-BCL16R | CI32: @FM-EPT-BCL16R | CJ32: @FM-EPE-BCL16R | CK32: @FM-EPG-BCL16R | CL32: @FM-EPN-BCL16R | CM32: @FM-ESG-BCL16R | CN32: @FM-ESP-BCL16R | CO32: @FM-ESK-BCL16R | CP32: @FM-ESO-BCL16R | CQ32: @FM-ESY-BCL16R | CR32: @FM-ESN-BCL16R | CS32: @FM-ETP-BCL16R | CT32: @FM-ETK-BCL16R | CU32: @FM-EWE-BCL16R
A33: BCO945 | B33: 900 Corner Base VS COR FLEX - 450 door | C33: BCO945 | D33: @FM-MCS-BCO945 | E33: @FM-MGD-BCO945 | F33: @FM-MDS-BCO945 | G33: @FM-MGP-BCO945 | H33: @FM-MPN-BCO945 | I33: @FM-MGW-BCO945 | J33: @FM-MCM-BCO945 | K33: @FM-MDM-BCO945 | L33: @FM-MTM-BCO945 | M33: @FM-MGM-BCO945 | N33: @FM-MGR-BCO945 | O33: @FM-MIM-BCO945 | P33: @FM-MSM-BCO945 | Q33: @FM-MPM-BCO945 | R33: @FM-MTP-BCO945 | S33: @FM-MWM-BCO945 | T33: @FM-EOG-BCO945 | U33: @FM-EOM-BCO945 | V33: @FM-EPM-BCO945 | W33: @FM-EVM-BCO945 | X33: @FM-ENM-BCO945 | Y33: @FM-ELA-BCO945 | Z33: @FM-ELD-BCO945 | AA33: @FM-ELW-BCO945 | AB33: @FM-SAG-BCO945 | AC33: @FM-SAT-BCO945 | AD33: @FM-SAB-BCO945 | AE33: @FM-SBR-BCO945 | AF33: @FM-SBG-BCO945 | AG33: @FM-SBW-BCO945 | AH33: @FM-SBZ-BCO945 | AI33: @FM-SBF-BCO945 | AJ33: @FM-SCS-BCO945 | AK33: @FM-SCB-BCO945 | AL33: @FM-SDM-BCO945 | AM33: @FM-SDP-BCO945 | AN33: @FM-SDS-BCO945 | AO33: @FM-SGP-BCO945 | AP33: @FM-SHG-BCO945 | AQ33: @FM-SIN-BCO945 | AR33: @FM-SIV-BCO945 | AS33: @FM-SLR-BCO945 | AT33: @FM-SDG-BCO945 | AU33: @FM-SMW-BCO945 | AV33: @FM-SMZ-BCO945 | AW33: @FM-SMN-BCO945 | AX33: @FM-SMC-BCO945 | AY33: @FM-SMU-BCO945 | AZ33: @FM-SOV-BCO945 | BA33: @FM-SPO-BCO945 | BB33: @FM-SPT-BCO945 | BC33: @FM-SPE-BCO945 | BD33: @FM-SPG-BCO945 | BE33: @FM-SPN-BCO945 | BF33: @FM-SSG-BCO945 | BG33: @FM-SSP-BCO945 | BH33: @FM-SSB-BCO945 | BI33: @FM-SSO-BCO945 | BJ33: @FM-SSY-BCO945 | BK33: @FM-SST-BCO945 | BL33: @FM-STP-BCO945 | BM33: @FM-STK-BCO945 | BN33: @FM-SWE-BCO945 | BO33: @FM-EAG-BCO945 | BP33: @FM-EAT-BCO945 | BQ33: @FM-EAB-BCO945 | BR33: @FM-EBR-BCO945 | BS33: @FM-EBG-BCO945 | BT33: @FM-EBW-BCO945 | BU33: @FM-ECS-BCO945 | BV33: @FM-EDM-BCO945 | BW33: @FM-EDP-BCO945 | BX33: @FM-EDS-BCO945 | BY33: @FM-EGP-BCO945 | BZ33: @FM-EHG-BCO945 | CA33: @FM-EIN-BCO945 | CB33: @FM-EIV-BCO945 | CC33: @FM-ELN-BCO945 | CD33: @FM-EDG-BCO945 | CE33: @FM-EME-BCO945 | CF33: @FM-EMN-BCO945 | CG33: @FM-EMU-BCO945 | CH33: @FM-EOV-BCO945 | CI33: @FM-EPT-BCO945 | CJ33: @FM-EPE-BCO945 | CK33: @FM-EPG-BCO945 | CL33: @FM-EPN-BCO945 | CM33: @FM-ESG-BCO945 | CN33: @FM-ESP-BCO945 | CO33: @FM-ESK-BCO945 | CP33: @FM-ESO-BCO945 | CQ33: @FM-ESY-BCO945 | CR33: @FM-ESN-BCO945 | CS33: @FM-ETP-BCO945 | CT33: @FM-ETK-BCO945 | CU33: @FM-EWE-BCO945
A34: BCO145 | B34: 1000 Corner Base VS COR FLEX - 450 door | C34: BCO145 | D34: @FM-MCS-BCO145 | E34: @FM-MGD-BCO145 | F34: @FM-MDS-BCO145 | G34: @FM-MGP-BCO145 | H34: @FM-MPN-BCO145 | I34: @FM-MGW-BCO145 | J34: @FM-MCM-BCO145 | K34: @FM-MDM-BCO145 | L34: @FM-MTM-BCO145 | M34: @FM-MGM-BCO145 | N34: @FM-MGR-BCO145 | O34: @FM-MIM-BCO145 | P34: @FM-MSM-BCO145 | Q34: @FM-MPM-BCO145 | R34: @FM-MTP-BCO145 | S34: @FM-MWM-BCO145 | T34: @FM-EOG-BCO145 | U34: @FM-EOM-BCO145 | V34: @FM-EPM-BCO145 | W34: @FM-EVM-BCO145 | X34: @FM-ENM-BCO145 | Y34: @FM-ELA-BCO145 | Z34: @FM-ELD-BCO145 | AA34: @FM-ELW-BCO145 | AB34: @FM-SAG-BCO145 | AC34: @FM-SAT-BCO145 | AD34: @FM-SAB-BCO145 | AE34: @FM-SBR-BCO145 | AF34: @FM-SBG-BCO145 | AG34: @FM-SBW-BCO145 | AH34: @FM-SBZ-BCO145 | AI34: @FM-SBF-BCO145 | AJ34: @FM-SCS-BCO145 | AK34: @FM-SCB-BCO145 | AL34: @FM-SDM-BCO145 | AM34: @FM-SDP-BCO145 | AN34: @FM-SDS-BCO145 | AO34: @FM-SGP-BCO145 | AP34: @FM-SHG-BCO145 | AQ34: @FM-SIN-BCO145 | AR34: @FM-SIV-BCO145 | AS34: @FM-SLR-BCO145 | AT34: @FM-SDG-BCO145 | AU34: @FM-SMW-BCO145 | AV34: @FM-SMZ-BCO145 | AW34: @FM-SMN-BCO145 | AX34: @FM-SMC-BCO145 | AY34: @FM-SMU-BCO145 | AZ34: @FM-SOV-BCO145 | BA34: @FM-SPO-BCO145 | BB34: @FM-SPT-BCO145 | BC34: @FM-SPE-BCO145 | BD34: @FM-SPG-BCO145 | BE34: @FM-SPN-BCO145 | BF34: @FM-SSG-BCO145 | BG34: @FM-SSP-BCO145 | BH34: @FM-SSB-BCO145 | BI34: @FM-SSO-BCO145 | BJ34: @FM-SSY-BCO145 | BK34: @FM-SST-BCO145 | BL34: @FM-STP-BCO145 | BM34: @FM-STK-BCO145 | BN34: @FM-SWE-BCO145 | BO34: @FM-EAG-BCO145 | BP34: @FM-EAT-BCO145 | BQ34: @FM-EAB-BCO145 | BR34: @FM-EBR-BCO145 | BS34: @FM-EBG-BCO145 | BT34: @FM-EBW-BCO145 | BU34: @FM-ECS-BCO145 | BV34: @FM-EDM-BCO145 | BW34: @FM-EDP-BCO145 | BX34: @FM-EDS-BCO145 | BY34: @FM-EGP-BCO145 | BZ34: @FM-EHG-BCO145 | CA34: @FM-EIN-BCO145 | CB34: @FM-EIV-BCO145 | CC34: @FM-ELN-BCO145 | CD34: @FM-EDG-BCO145 | CE34: @FM-EME-BCO145 | CF34: @FM-EMN-BCO145 | CG34: @FM-EMU-BCO145 | CH34: @FM-EOV-BCO145 | CI34: @FM-EPT-BCO145 | CJ34: @FM-EPE-BCO145 | CK34: @FM-EPG-BCO145 | CL34: @FM-EPN-BCO145 | CM34: @FM-ESG-BCO145 | CN34: @FM-ESP-BCO145 | CO34: @FM-ESK-BCO145 | CP34: @FM-ESO-BCO145 | CQ34: @FM-ESY-BCO145 | CR34: @FM-ESN-BCO145 | CS34: @FM-ETP-BCO145 | CT34: @FM-ETK-BCO145 | CU34: @FM-EWE-BCO145
A35: BCO15 | B35: 1000 Corner Base VS COR FLEX - 500 door | C35: BCO15 | D35: @FM-MCS-BCO15 | E35: @FM-MGD-BCO15 | F35: @FM-MDS-BCO15 | G35: @FM-MGP-BCO15 | H35: @FM-MPN-BCO15 | I35: @FM-MGW-BCO15 | J35: @FM-MCM-BCO15 | K35: @FM-MDM-BCO15 | L35: @FM-MTM-BCO15 | M35: @FM-MGM-BCO15 | N35: @FM-MGR-BCO15 | O35: @FM-MIM-BCO15 | P35: @FM-MSM-BCO15 | Q35: @FM-MPM-BCO15 | R35: @FM-MTP-BCO15 | S35: @FM-MWM-BCO15 | T35: @FM-EOG-BCO15 | U35: @FM-EOM-BCO15 | V35: @FM-EPM-BCO15 | W35: @FM-EVM-BCO15 | X35: @FM-ENM-BCO15 | Y35: @FM-ELA-BCO15 | Z35: @FM-ELD-BCO15 | AA35: @FM-ELW-BCO15 | AB35: @FM-SAG-BCO15 | AC35: @FM-SAT-BCO15 | AD35: @FM-SAB-BCO15 | AE35: @FM-SBR-BCO15 | AF35: @FM-SBG-BCO15 | AG35: @FM-SBW-BCO15 | AH35: @FM-SBZ-BCO15 | AI35: @FM-SBF-BCO15 | AJ35: @FM-SCS-BCO15 | AK35: @FM-SCB-BCO15 | AL35: @FM-SDM-BCO15 | AM35: @FM-SDP-BCO15 | AN35: @FM-SDS-BCO15 | AO35: @FM-SGP-BCO15 | AP35: @FM-SHG-BCO15 | AQ35: @FM-SIN-BCO15 | AR35: @FM-SIV-BCO15 | AS35: @FM-SLR-BCO15 | AT35: @FM-SDG-BCO15 | AU35: @FM-SMW-BCO15 | AV35: @FM-SMZ-BCO15 | AW35: @FM-SMN-BCO15 | AX35: @FM-SMC-BCO15 | AY35: @FM-SMU-BCO15 | AZ35: @FM-SOV-BCO15 | BA35: @FM-SPO-BCO15 | BB35: @FM-SPT-BCO15 | BC35: @FM-SPE-BCO15 | BD35: @FM-SPG-BCO15 | BE35: @FM-SPN-BCO15 | BF35: @FM-SSG-BCO15 | BG35: @FM-SSP-BCO15 | BH35: @FM-SSB-BCO15 | BI35: @FM-SSO-BCO15 | BJ35: @FM-SSY-BCO15 | BK35: @FM-SST-BCO15 | BL35: @FM-STP-BCO15 | BM35: @FM-STK-BCO15 | BN35: @FM-SWE-BCO15 | BO35: @FM-EAG-BCO15 | BP35: @FM-EAT-BCO15 | BQ35: @FM-EAB-BCO15 | BR35: @FM-EBR-BCO15 | BS35: @FM-EBG-BCO15 | BT35: @FM-EBW-BCO15 | BU35: @FM-ECS-BCO15 | BV35: @FM-EDM-BCO15 | BW35: @FM-EDP-BCO15 | BX35: @FM-EDS-BCO15 | BY35: @FM-EGP-BCO15 | BZ35: @FM-EHG-BCO15 | CA35: @FM-EIN-BCO15 | CB35: @FM-EIV-BCO15 | CC35: @FM-ELN-BCO15 | CD35: @FM-EDG-BCO15 | CE35: @FM-EME-BCO15 | CF35: @FM-EMN-BCO15 | CG35: @FM-EMU-BCO15 | CH35: @FM-EOV-BCO15 | CI35: @FM-EPT-BCO15 | CJ35: @FM-EPE-BCO15 | CK35: @FM-EPG-BCO15 | CL35: @FM-EPN-BCO15 | CM35: @FM-ESG-BCO15 | CN35: @FM-ESP-BCO15 | CO35: @FM-ESK-BCO15 | CP35: @FM-ESO-BCO15 | CQ35: @FM-ESY-BCO15 | CR35: @FM-ESN-BCO15 | CS35: @FM-ETP-BCO15 | CT35: @FM-ETK-BCO15 | CU35: @FM-EWE-BCO15
A36: BCO16 | B36: 1000 Corner Base VS COR FLEX - 600 door | C36: BCO16 | D36: @FM-MCS-BCO16 | E36: @FM-MGD-BCO16 | F36: @FM-MDS-BCO16 | G36: @FM-MGP-BCO16 | H36: @FM-MPN-BCO16 | I36: @FM-MGW-BCO16 | J36: @FM-MCM-BCO16 | K36: @FM-MDM-BCO16 | L36: @FM-MTM-BCO16 | M36: @FM-MGM-BCO16 | N36: @FM-MGR-BCO16 | O36: @FM-MIM-BCO16 | P36: @FM-MSM-BCO16 | Q36: @FM-MPM-BCO16 | R36: @FM-MTP-BCO16 | S36: @FM-MWM-BCO16 | T36: @FM-EOG-BCO16 | U36: @FM-EOM-BCO16 | V36: @FM-EPM-BCO16 | W36: @FM-EVM-BCO16 | X36: @FM-ENM-BCO16 | Y36: @FM-ELA-BCO16 | Z36: @FM-ELD-BCO16 | AA36: @FM-ELW-BCO16 | AB36: @FM-SAG-BCO16 | AC36: @FM-SAT-BCO16 | AD36: @FM-SAB-BCO16 | AE36: @FM-SBR-BCO16 | AF36: @FM-SBG-BCO16 | AG36: @FM-SBW-BCO16 | AH36: @FM-SBZ-BCO16 | AI36: @FM-SBF-BCO16 | AJ36: @FM-SCS-BCO16 | AK36: @FM-SCB-BCO16 | AL36: @FM-SDM-BCO16 | AM36: @FM-SDP-BCO16 | AN36: @FM-SDS-BCO16 | AO36: @FM-SGP-BCO16 | AP36: @FM-SHG-BCO16 | AQ36: @FM-SIN-BCO16 | AR36: @FM-SIV-BCO16 | AS36: @FM-SLR-BCO16 | AT36: @FM-SDG-BCO16 | AU36: @FM-SMW-BCO16 | AV36: @FM-SMZ-BCO16 | AW36: @FM-SMN-BCO16 | AX36: @FM-SMC-BCO16 | AY36: @FM-SMU-BCO16 | AZ36: @FM-SOV-BCO16 | BA36: @FM-SPO-BCO16 | BB36: @FM-SPT-BCO16 | BC36: @FM-SPE-BCO16 | BD36: @FM-SPG-BCO16 | BE36: @FM-SPN-BCO16 | BF36: @FM-SSG-BCO16 | BG36: @FM-SSP-BCO16 | BH36: @FM-SSB-BCO16 | BI36: @FM-SSO-BCO16 | BJ36: @FM-SSY-BCO16 | BK36: @FM-SST-BCO16 | BL36: @FM-STP-BCO16 | BM36: @FM-STK-BCO16 | BN36: @FM-SWE-BCO16 | BO36: @FM-EAG-BCO16 | BP36: @FM-EAT-BCO16 | BQ36: @FM-EAB-BCO16 | BR36: @FM-EBR-BCO16 | BS36: @FM-EBG-BCO16 | BT36: @FM-EBW-BCO16 | BU36: @FM-ECS-BCO16 | BV36: @FM-EDM-BCO16 | BW36: @FM-EDP-BCO16 | BX36: @FM-EDS-BCO16 | BY36: @FM-EGP-BCO16 | BZ36: @FM-EHG-BCO16 | CA36: @FM-EIN-BCO16 | CB36: @FM-EIV-BCO16 | CC36: @FM-ELN-BCO16 | CD36: @FM-EDG-BCO16 | CE36: @FM-EME-BCO16 | CF36: @FM-EMN-BCO16 | CG36: @FM-EMU-BCO16 | CH36: @FM-EOV-BCO16 | CI36: @FM-EPT-BCO16 | CJ36: @FM-EPE-BCO16 | CK36: @FM-EPG-BCO16 | CL36: @FM-EPN-BCO16 | CM36: @FM-ESG-BCO16 | CN36: @FM-ESP-BCO16 | CO36: @FM-ESK-BCO16 | CP36: @FM-ESO-BCO16 | CQ36: @FM-ESY-BCO16 | CR36: @FM-ESN-BCO16 | CS36: @FM-ETP-BCO16 | CT36: @FM-ETK-BCO16 | CU36: @FM-EWE-BCO16
A37: BCL9 | B37: 930 HL Corner L Base | C37: BCL9 | D37: @FM-MCS-BCL9 | E37: @FM-MGD-BCL9 | F37: @FM-MDS-BCL9 | G37: @FM-MGP-BCL9 | H37: @FM-MPN-BCL9 | I37: @FM-MGW-BCL9 | J37: @FM-MCM-BCL9 | K37: @FM-MDM-BCL9 | L37: @FM-MTM-BCL9 | M37: @FM-MGM-BCL9 | N37: @FM-MGR-BCL9 | O37: @FM-MIM-BCL9 | P37: @FM-MSM-BCL9 | Q37: @FM-MPM-BCL9 | R37: @FM-MTP-BCL9 | S37: @FM-MWM-BCL9 | T37: @FM-EOG-BCL9 | U37: @FM-EOM-BCL9 | V37: @FM-EPM-BCL9 | W37: @FM-EVM-BCL9 | X37: @FM-ENM-BCL9 | Y37: @FM-ELA-BCL9 | Z37: @FM-ELD-BCL9 | AA37: @FM-ELW-BCL9 | AB37: @FM-SAG-BCL9 | AC37: @FM-SAT-BCL9 | AD37: @FM-SAB-BCL9 | AE37: @FM-SBR-BCL9 | AF37: @FM-SBG-BCL9 | AG37: @FM-SBW-BCL9 | AH37: @FM-SBZ-BCL9 | AI37: @FM-SBF-BCL9 | AJ37: @FM-SCS-BCL9 | AK37: @FM-SCB-BCL9 | AL37: @FM-SDM-BCL9 | AM37: @FM-SDP-BCL9 | AN37: @FM-SDS-BCL9 | AO37: @FM-SGP-BCL9 | AP37: @FM-SHG-BCL9 | AQ37: @FM-SIN-BCL9 | AR37: @FM-SIV-BCL9 | AS37: @FM-SLR-BCL9 | AT37: @FM-SDG-BCL9 | AU37: @FM-SMW-BCL9 | AV37: @FM-SMZ-BCL9 | AW37: @FM-SMN-BCL9 | AX37: @FM-SMC-BCL9 | AY37: @FM-SMU-BCL9 | AZ37: @FM-SOV-BCL9 | BA37: @FM-SPO-BCL9 | BB37: @FM-SPT-BCL9 | BC37: @FM-SPE-BCL9 | BD37: @FM-SPG-BCL9 | BE37: @FM-SPN-BCL9 | BF37: @FM-SSG-BCL9 | BG37: @FM-SSP-BCL9 | BH37: @FM-SSB-BCL9 | BI37: @FM-SSO-BCL9 | BJ37: @FM-SSY-BCL9 | BK37: @FM-SST-BCL9 | BL37: @FM-STP-BCL9 | BM37: @FM-STK-BCL9 | BN37: @FM-SWE-BCL9 | BO37: @FM-EAG-BCL9 | BP37: @FM-EAT-BCL9 | BQ37: @FM-EAB-BCL9 | BR37: @FM-EBR-BCL9 | BS37: @FM-EBG-BCL9 | BT37: @FM-EBW-BCL9 | BU37: @FM-ECS-BCL9 | BV37: @FM-EDM-BCL9 | BW37: @FM-EDP-BCL9 | BX37: @FM-EDS-BCL9 | BY37: @FM-EGP-BCL9 | BZ37: @FM-EHG-BCL9 | CA37: @FM-EIN-BCL9 | CB37: @FM-EIV-BCL9 | CC37: @FM-ELN-BCL9 | CD37: @FM-EDG-BCL9 | CE37: @FM-EME-BCL9 | CF37: @FM-EMN-BCL9 | CG37: @FM-EMU-BCL9 | CH37: @FM-EOV-BCL9 | CI37: @FM-EPT-BCL9 | CJ37: @FM-EPE-BCL9 | CK37: @FM-EPG-BCL9 | CL37: @FM-EPN-BCL9 | CM37: @FM-ESG-BCL9 | CN37: @FM-ESP-BCL9 | CO37: @FM-ESK-BCL9 | CP37: @FM-ESO-BCL9 | CQ37: @FM-ESY-BCL9 | CR37: @FM-ESN-BCL9 | CS37: @FM-ETP-BCL9 | CT37: @FM-ETK-BCL9 | CU37: @FM-EWE-BCL9
A38: BI50 | B38: 500 HL Island Base Unit 270 Deep | C38: BI50 | D38: @FM-MCS-BI50 | E38: @FM-MGD-BI50 | F38: @FM-MDS-BI50 | G38: @FM-MGP-BI50 | H38: @FM-MPN-BI50 | I38: @FM-MGW-BI50 | J38: @FM-MCM-BI50 | K38: @FM-MDM-BI50 | L38: @FM-MTM-BI50 | M38: @FM-MGM-BI50 | N38: @FM-MGR-BI50 | O38: @FM-MIM-BI50 | P38: @FM-MSM-BI50 | Q38: @FM-MPM-BI50 | R38: @FM-MTP-BI50 | S38: @FM-MWM-BI50 | T38: @FM-EOG-BI50 | U38: @FM-EOM-BI50 | V38: @FM-EPM-BI50 | W38: @FM-EVM-BI50 | X38: @FM-ENM-BI50 | Y38: @FM-ELA-BI50 | Z38: @FM-ELD-BI50 | AA38: @FM-ELW-BI50 | AB38: @FM-SAG-BI50 | AC38: @FM-SAT-BI50 | AD38: @FM-SAB-BI50 | AE38: @FM-SBR-BI50 | AF38: @FM-SBG-BI50 | AG38: @FM-SBW-BI50 | AH38: @FM-SBZ-BI50 | AI38: @FM-SBF-BI50 | AJ38: @FM-SCS-BI50 | AK38: @FM-SCB-BI50 | AL38: @FM-SDM-BI50 | AM38: @FM-SDP-BI50 | AN38: @FM-SDS-BI50 | AO38: @FM-SGP-BI50 | AP38: @FM-SHG-BI50 | AQ38: @FM-SIN-BI50 | AR38: @FM-SIV-BI50 | AS38: @FM-SLR-BI50 | AT38: @FM-SDG-BI50 | AU38: @FM-SMW-BI50 | AV38: @FM-SMZ-BI50 | AW38: @FM-SMN-BI50 | AX38: @FM-SMC-BI50 | AY38: @FM-SMU-BI50 | AZ38: @FM-SOV-BI50 | BA38: @FM-SPO-BI50 | BB38: @FM-SPT-BI50 | BC38: @FM-SPE-BI50 | BD38: @FM-SPG-BI50 | BE38: @FM-SPN-BI50 | BF38: @FM-SSG-BI50 | BG38: @FM-SSP-BI50 | BH38: @FM-SSB-BI50 | BI38: @FM-SSO-BI50 | BJ38: @FM-SSY-BI50 | BK38: @FM-SST-BI50 | BL38: @FM-STP-BI50 | BM38: @FM-STK-BI50 | BN38: @FM-SWE-BI50 | BO38: @FM-EAG-BI50 | BP38: @FM-EAT-BI50 | BQ38: @FM-EAB-BI50 | BR38: @FM-EBR-BI50 | BS38: @FM-EBG-BI50 | BT38: @FM-EBW-BI50 | BU38: @FM-ECS-BI50 | BV38: @FM-EDM-BI50 | BW38: @FM-EDP-BI50 | BX38: @FM-EDS-BI50 | BY38: @FM-EGP-BI50 | BZ38: @FM-EHG-BI50 | CA38: @FM-EIN-BI50 | CB38: @FM-EIV-BI50 | CC38: @FM-ELN-BI50 | CD38: @FM-EDG-BI50 | CE38: @FM-EME-BI50 | CF38: @FM-EMN-BI50 | CG38: @FM-EMU-BI50 | CH38: @FM-EOV-BI50 | CI38: @FM-EPT-BI50 | CJ38: @FM-EPE-BI50 | CK38: @FM-EPG-BI50 | CL38: @FM-EPN-BI50 | CM38: @FM-ESG-BI50 | CN38: @FM-ESP-BI50 | CO38: @FM-ESK-BI50 | CP38: @FM-ESO-BI50 | CQ38: @FM-ESY-BI50 | CR38: @FM-ESN-BI50 | CS38: @FM-ETP-BI50 | CT38: @FM-ETK-BI50 | CU38: @FM-EWE-BI50
A39: BI10 | B39: 1000 HL Island Base Unit 270 Deep | C39: BI10 | D39: @FM-MCS-BI10 | E39: @FM-MGD-BI10 | F39: @FM-MDS-BI10 | G39: @FM-MGP-BI10 | H39: @FM-MPN-BI10 | I39: @FM-MGW-BI10 | J39: @FM-MCM-BI10 | K39: @FM-MDM-BI10 | L39: @FM-MTM-BI10 | M39: @FM-MGM-BI10 | N39: @FM-MGR-BI10 | O39: @FM-MIM-BI10 | P39: @FM-MSM-BI10 | Q39: @FM-MPM-BI10 | R39: @FM-MTP-BI10 | S39: @FM-MWM-BI10 | T39: @FM-EOG-BI10 | U39: @FM-EOM-BI10 | V39: @FM-EPM-BI10 | W39: @FM-EVM-BI10 | X39: @FM-ENM-BI10 | Y39: @FM-ELA-BI10 | Z39: @FM-ELD-BI10 | AA39: @FM-ELW-BI10 | AB39: @FM-SAG-BI10 | AC39: @FM-SAT-BI10 | AD39: @FM-SAB-BI10 | AE39: @FM-SBR-BI10 | AF39: @FM-SBG-BI10 | AG39: @FM-SBW-BI10 | AH39: @FM-SBZ-BI10 | AI39: @FM-SBF-BI10 | AJ39: @FM-SCS-BI10 | AK39: @FM-SCB-BI10 | AL39: @FM-SDM-BI10 | AM39: @FM-SDP-BI10 | AN39: @FM-SDS-BI10 | AO39: @FM-SGP-BI10 | AP39: @FM-SHG-BI10 | AQ39: @FM-SIN-BI10 | AR39: @FM-SIV-BI10 | AS39: @FM-SLR-BI10 | AT39: @FM-SDG-BI10 | AU39: @FM-SMW-BI10 | AV39: @FM-SMZ-BI10 | AW39: @FM-SMN-BI10 | AX39: @FM-SMC-BI10 | AY39: @FM-SMU-BI10 | AZ39: @FM-SOV-BI10 | BA39: @FM-SPO-BI10 | BB39: @FM-SPT-BI10 | BC39: @FM-SPE-BI10 | BD39: @FM-SPG-BI10 | BE39: @FM-SPN-BI10 | BF39: @FM-SSG-BI10 | BG39: @FM-SSP-BI10 | BH39: @FM-SSB-BI10 | BI39: @FM-SSO-BI10 | BJ39: @FM-SSY-BI10 | BK39: @FM-SST-BI10 | BL39: @FM-STP-BI10 | BM39: @FM-STK-BI10 | BN39: @FM-SWE-BI10 | BO39: @FM-EAG-BI10 | BP39: @FM-EAT-BI10 | BQ39: @FM-EAB-BI10 | BR39: @FM-EBR-BI10 | BS39: @FM-EBG-BI10 | BT39: @FM-EBW-BI10 | BU39: @FM-ECS-BI10 | BV39: @FM-EDM-BI10 | BW39: @FM-EDP-BI10 | BX39: @FM-EDS-BI10 | BY39: @FM-EGP-BI10 | BZ39: @FM-EHG-BI10 | CA39: @FM-EIN-BI10 | CB39: @FM-EIV-BI10 | CC39: @FM-ELN-BI10 | CD39: @FM-EDG-BI10 | CE39: @FM-EME-BI10 | CF39: @FM-EMN-BI10 | CG39: @FM-EMU-BI10 | CH39: @FM-EOV-BI10 | CI39: @FM-EPT-BI10 | CJ39: @FM-EPE-BI10 | CK39: @FM-EPG-BI10 | CL39: @FM-EPN-BI10 | CM39: @FM-ESG-BI10 | CN39: @FM-ESP-BI10 | CO39: @FM-ESK-BI10 | CP39: @FM-ESO-BI10 | CQ39: @FM-ESY-BI10 | CR39: @FM-ESN-BI10 | CS39: @FM-ETP-BI10 | CT39: @FM-ETK-BI10 | CU39: @FM-EWE-BI10
A40: BD53 | B40: 500 3 Drawer Base Unit | C40: BD53 | D40: @FM-MCS-BD53 | E40: @FM-MGD-BD53 | F40: @FM-MDS-BD53 | G40: @FM-MGP-BD53 | H40: @FM-MPN-BD53 | I40: @FM-MGW-BD53 | J40: @FM-MCM-BD53 | K40: @FM-MDM-BD53 | L40: @FM-MTM-BD53 | M40: @FM-MGM-BD53 | N40: @FM-MGR-BD53 | O40: @FM-MIM-BD53 | P40: @FM-MSM-BD53 | Q40: @FM-MPM-BD53 | R40: @FM-MTP-BD53 | S40: @FM-MWM-BD53 | T40: @FM-EOG-BD53 | U40: @FM-EOM-BD53 | V40: @FM-EPM-BD53 | W40: @FM-EVM-BD53 | X40: @FM-ENM-BD53 | Y40: @FM-ELA-BD53 | Z40: @FM-ELD-BD53 | AA40: @FM-ELW-BD53 | AB40: @FM-SAG-BD53 | AC40: @FM-SAT-BD53 | AD40: @FM-SAB-BD53 | AE40: @FM-SBR-BD53 | AF40: @FM-SBG-BD53 | AG40: @FM-SBW-BD53 | AH40: @FM-SBZ-BD53 | AI40: @FM-SBF-BD53 | AJ40: @FM-SCS-BD53 | AK40: @FM-SCB-BD53 | AL40: @FM-SDM-BD53 | AM40: @FM-SDP-BD53 | AN40: @FM-SDS-BD53 | AO40: @FM-SGP-BD53 | AP40: @FM-SHG-BD53 | AQ40: @FM-SIN-BD53 | AR40: @FM-SIV-BD53 | AS40: @FM-SLR-BD53 | AT40: @FM-SDG-BD53 | AU40: @FM-SMW-BD53 | AV40: @FM-SMZ-BD53 | AW40: @FM-SMN-BD53 | AX40: @FM-SMC-BD53 | AY40: @FM-SMU-BD53 | AZ40: @FM-SOV-BD53 | BA40: @FM-SPO-BD53 | BB40: @FM-SPT-BD53 | BC40: @FM-SPE-BD53 | BD40: @FM-SPG-BD53 | BE40: @FM-SPN-BD53 | BF40: @FM-SSG-BD53 | BG40: @FM-SSP-BD53 | BH40: @FM-SSB-BD53 | BI40: @FM-SSO-BD53 | BJ40: @FM-SSY-BD53 | BK40: @FM-SST-BD53 | BL40: @FM-STP-BD53 | BM40: @FM-STK-BD53 | BN40: @FM-SWE-BD53 | BO40: @FM-EAG-BD53 | BP40: @FM-EAT-BD53 | BQ40: @FM-EAB-BD53 | BR40: @FM-EBR-BD53 | BS40: @FM-EBG-BD53 | BT40: @FM-EBW-BD53 | BU40: @FM-ECS-BD53 | BV40: @FM-EDM-BD53 | BW40: @FM-EDP-BD53 | BX40: @FM-EDS-BD53 | BY40: @FM-EGP-BD53 | BZ40: @FM-EHG-BD53 | CA40: @FM-EIN-BD53 | CB40: @FM-EIV-BD53 | CC40: @FM-ELN-BD53 | CD40: @FM-EDG-BD53 | CE40: @FM-EME-BD53 | CF40: @FM-EMN-BD53 | CG40: @FM-EMU-BD53 | CH40: @FM-EOV-BD53 | CI40: @FM-EPT-BD53 | CJ40: @FM-EPE-BD53 | CK40: @FM-EPG-BD53 | CL40: @FM-EPN-BD53 | CM40: @FM-ESG-BD53 | CN40: @FM-ESP-BD53 | CO40: @FM-ESK-BD53 | CP40: @FM-ESO-BD53 | CQ40: @FM-ESY-BD53 | CR40: @FM-ESN-BD53 | CS40: @FM-ETP-BD53 | CT40: @FM-ETK-BD53 | CU40: @FM-EWE-BD53
A41: BD63 | B41: 600 3 Drawer Base Unit | C41: BD63 | D41: @FM-MCS-BD63 | E41: @FM-MGD-BD63 | F41: @FM-MDS-BD63 | G41: @FM-MGP-BD63 | H41: @FM-MPN-BD63 | I41: @FM-MGW-BD63 | J41: @FM-MCM-BD63 | K41: @FM-MDM-BD63 | L41: @FM-MTM-BD63 | M41: @FM-MGM-BD63 | N41: @FM-MGR-BD63 | O41: @FM-MIM-BD63 | P41: @FM-MSM-BD63 | Q41: @FM-MPM-BD63 | R41: @FM-MTP-BD63 | S41: @FM-MWM-BD63 | T41: @FM-EOG-BD63 | U41: @FM-EOM-BD63 | V41: @FM-EPM-BD63 | W41: @FM-EVM-BD63 | X41: @FM-ENM-BD63 | Y41: @FM-ELA-BD63 | Z41: @FM-ELD-BD63 | AA41: @FM-ELW-BD63 | AB41: @FM-SAG-BD63 | AC41: @FM-SAT-BD63 | AD41: @FM-SAB-BD63 | AE41: @FM-SBR-BD63 | AF41: @FM-SBG-BD63 | AG41: @FM-SBW-BD63 | AH41: @FM-SBZ-BD63 | AI41: @FM-SBF-BD63 | AJ41: @FM-SCS-BD63 | AK41: @FM-SCB-BD63 | AL41: @FM-SDM-BD63 | AM41: @FM-SDP-BD63 | AN41: @FM-SDS-BD63 | AO41: @FM-SGP-BD63 | AP41: @FM-SHG-BD63 | AQ41: @FM-SIN-BD63 | AR41: @FM-SIV-BD63 | AS41: @FM-SLR-BD63 | AT41: @FM-SDG-BD63 | AU41: @FM-SMW-BD63 | AV41: @FM-SMZ-BD63 | AW41: @FM-SMN-BD63 | AX41: @FM-SMC-BD63 | AY41: @FM-SMU-BD63 | AZ41: @FM-SOV-BD63 | BA41: @FM-SPO-BD63 | BB41: @FM-SPT-BD63 | BC41: @FM-SPE-BD63 | BD41: @FM-SPG-BD63 | BE41: @FM-SPN-BD63 | BF41: @FM-SSG-BD63 | BG41: @FM-SSP-BD63 | BH41: @FM-SSB-BD63 | BI41: @FM-SSO-BD63 | BJ41: @FM-SSY-BD63 | BK41: @FM-SST-BD63 | BL41: @FM-STP-BD63 | BM41: @FM-STK-BD63 | BN41: @FM-SWE-BD63 | BO41: @FM-EAG-BD63 | BP41: @FM-EAT-BD63 | BQ41: @FM-EAB-BD63 | BR41: @FM-EBR-BD63 | BS41: @FM-EBG-BD63 | BT41: @FM-EBW-BD63 | BU41: @FM-ECS-BD63 | BV41: @FM-EDM-BD63 | BW41: @FM-EDP-BD63 | BX41: @FM-EDS-BD63 | BY41: @FM-EGP-BD63 | BZ41: @FM-EHG-BD63 | CA41: @FM-EIN-BD63 | CB41: @FM-EIV-BD63 | CC41: @FM-ELN-BD63 | CD41: @FM-EDG-BD63 | CE41: @FM-EME-BD63 | CF41: @FM-EMN-BD63 | CG41: @FM-EMU-BD63 | CH41: @FM-EOV-BD63 | CI41: @FM-EPT-BD63 | CJ41: @FM-EPE-BD63 | CK41: @FM-EPG-BD63 | CL41: @FM-EPN-BD63 | CM41: @FM-ESG-BD63 | CN41: @FM-ESP-BD63 | CO41: @FM-ESK-BD63 | CP41: @FM-ESO-BD63 | CQ41: @FM-ESY-BD63 | CR41: @FM-ESN-BD63 | CS41: @FM-ETP-BD63 | CT41: @FM-ETK-BD63 | CU41: @FM-EWE-BD63
A42: BD83 | B42: 800 3 Drawer Base Unit | C42: BD83 | D42: @FM-MCS-BD83 | E42: @FM-MGD-BD83 | F42: @FM-MDS-BD83 | G42: @FM-MGP-BD83 | H42: @FM-MPN-BD83 | I42: @FM-MGW-BD83 | J42: @FM-MCM-BD83 | K42: @FM-MDM-BD83 | L42: @FM-MTM-BD83 | M42: @FM-MGM-BD83 | N42: @FM-MGR-BD83 | O42: @FM-MIM-BD83 | P42: @FM-MSM-BD83 | Q42: @FM-MPM-BD83 | R42: @FM-MTP-BD83 | S42: @FM-MWM-BD83 | T42: @FM-EOG-BD83 | U42: @FM-EOM-BD83 | V42: @FM-EPM-BD83 | W42: @FM-EVM-BD83 | X42: @FM-ENM-BD83 | Y42: @FM-ELA-BD83 | Z42: @FM-ELD-BD83 | AA42: @FM-ELW-BD83 | AB42: @FM-SAG-BD83 | AC42: @FM-SAT-BD83 | AD42: @FM-SAB-BD83 | AE42: @FM-SBR-BD83 | AF42: @FM-SBG-BD83 | AG42: @FM-SBW-BD83 | AH42: @FM-SBZ-BD83 | AI42: @FM-SBF-BD83 | AJ42: @FM-SCS-BD83 | AK42: @FM-SCB-BD83 | AL42: @FM-SDM-BD83 | AM42: @FM-SDP-BD83 | AN42: @FM-SDS-BD83 | AO42: @FM-SGP-BD83 | AP42: @FM-SHG-BD83 | AQ42: @FM-SIN-BD83 | AR42: @FM-SIV-BD83 | AS42: @FM-SLR-BD83 | AT42: @FM-SDG-BD83 | AU42: @FM-SMW-BD83 | AV42: @FM-SMZ-BD83 | AW42: @FM-SMN-BD83 | AX42: @FM-SMC-BD83 | AY42: @FM-SMU-BD83 | AZ42: @FM-SOV-BD83 | BA42: @FM-SPO-BD83 | BB42: @FM-SPT-BD83 | BC42: @FM-SPE-BD83 | BD42: @FM-SPG-BD83 | BE42: @FM-SPN-BD83 | BF42: @FM-SSG-BD83 | BG42: @FM-SSP-BD83 | BH42: @FM-SSB-BD83 | BI42: @FM-SSO-BD83 | BJ42: @FM-SSY-BD83 | BK42: @FM-SST-BD83 | BL42: @FM-STP-BD83 | BM42: @FM-STK-BD83 | BN42: @FM-SWE-BD83 | BO42: @FM-EAG-BD83 | BP42: @FM-EAT-BD83 | BQ42: @FM-EAB-BD83 | BR42: @FM-EBR-BD83 | BS42: @FM-EBG-BD83 | BT42: @FM-EBW-BD83 | BU42: @FM-ECS-BD83 | BV42: @FM-EDM-BD83 | BW42: @FM-EDP-BD83 | BX42: @FM-EDS-BD83 | BY42: @FM-EGP-BD83 | BZ42: @FM-EHG-BD83 | CA42: @FM-EIN-BD83 | CB42: @FM-EIV-BD83 | CC42: @FM-ELN-BD83 | CD42: @FM-EDG-BD83 | CE42: @FM-EME-BD83 | CF42: @FM-EMN-BD83 | CG42: @FM-EMU-BD83 | CH42: @FM-EOV-BD83 | CI42: @FM-EPT-BD83 | CJ42: @FM-EPE-BD83 | CK42: @FM-EPG-BD83 | CL42: @FM-EPN-BD83 | CM42: @FM-ESG-BD83 | CN42: @FM-ESP-BD83 | CO42: @FM-ESK-BD83 | CP42: @FM-ESO-BD83 | CQ42: @FM-ESY-BD83 | CR42: @FM-ESN-BD83 | CS42: @FM-ETP-BD83 | CT42: @FM-ETK-BD83 | CU42: @FM-EWE-BD83
A43: BD93 | B43: 900 3 Drawer Base Unit | C43: BD93 | D43: @FM-MCS-BD93 | E43: @FM-MGD-BD93 | F43: @FM-MDS-BD93 | G43: @FM-MGP-BD93 | H43: @FM-MPN-BD93 | I43: @FM-MGW-BD93 | J43: @FM-MCM-BD93 | K43: @FM-MDM-BD93 | L43: @FM-MTM-BD93 | M43: @FM-MGM-BD93 | N43: @FM-MGR-BD93 | O43: @FM-MIM-BD93 | P43: @FM-MSM-BD93 | Q43: @FM-MPM-BD93 | R43: @FM-MTP-BD93 | S43: @FM-MWM-BD93 | T43: @FM-EOG-BD93 | U43: @FM-EOM-BD93 | V43: @FM-EPM-BD93 | W43: @FM-EVM-BD93 | X43: @FM-ENM-BD93 | Y43: @FM-ELA-BD93 | Z43: @FM-ELD-BD93 | AA43: @FM-ELW-BD93 | AB43: @FM-SAG-BD93 | AC43: @FM-SAT-BD93 | AD43: @FM-SAB-BD93 | AE43: @FM-SBR-BD93 | AF43: @FM-SBG-BD93 | AG43: @FM-SBW-BD93 | AH43: @FM-SBZ-BD93 | AI43: @FM-SBF-BD93 | AJ43: @FM-SCS-BD93 | AK43: @FM-SCB-BD93 | AL43: @FM-SDM-BD93 | AM43: @FM-SDP-BD93 | AN43: @FM-SDS-BD93 | AO43: @FM-SGP-BD93 | AP43: @FM-SHG-BD93 | AQ43: @FM-SIN-BD93 | AR43: @FM-SIV-BD93 | AS43: @FM-SLR-BD93 | AT43: @FM-SDG-BD93 | AU43: @FM-SMW-BD93 | AV43: @FM-SMZ-BD93 | AW43: @FM-SMN-BD93 | AX43: @FM-SMC-BD93 | AY43: @FM-SMU-BD93 | AZ43: @FM-SOV-BD93 | BA43: @FM-SPO-BD93 | BB43: @FM-SPT-BD93 | BC43: @FM-SPE-BD93 | BD43: @FM-SPG-BD93 | BE43: @FM-SPN-BD93 | BF43: @FM-SSG-BD93 | BG43: @FM-SSP-BD93 | BH43: @FM-SSB-BD93 | BI43: @FM-SSO-BD93 | BJ43: @FM-SSY-BD93 | BK43: @FM-SST-BD93 | BL43: @FM-STP-BD93 | BM43: @FM-STK-BD93 | BN43: @FM-SWE-BD93 | BO43: @FM-EAG-BD93 | BP43: @FM-EAT-BD93 | BQ43: @FM-EAB-BD93 | BR43: @FM-EBR-BD93 | BS43: @FM-EBG-BD93 | BT43: @FM-EBW-BD93 | BU43: @FM-ECS-BD93 | BV43: @FM-EDM-BD93 | BW43: @FM-EDP-BD93 | BX43: @FM-EDS-BD93 | BY43: @FM-EGP-BD93 | BZ43: @FM-EHG-BD93 | CA43: @FM-EIN-BD93 | CB43: @FM-EIV-BD93 | CC43: @FM-ELN-BD93 | CD43: @FM-EDG-BD93 | CE43: @FM-EME-BD93 | CF43: @FM-EMN-BD93 | CG43: @FM-EMU-BD93 | CH43: @FM-EOV-BD93 | CI43: @FM-EPT-BD93 | CJ43: @FM-EPE-BD93 | CK43: @FM-EPG-BD93 | CL43: @FM-EPN-BD93 | CM43: @FM-ESG-BD93 | CN43: @FM-ESP-BD93 | CO43: @FM-ESK-BD93 | CP43: @FM-ESO-BD93 | CQ43: @FM-ESY-BD93 | CR43: @FM-ESN-BD93 | CS43: @FM-ETP-BD93 | CT43: @FM-ETK-BD93 | CU43: @FM-EWE-BD93
A44: BD13 | B44: 1000 3 Drawer Base Unit | C44: BD13 | D44: @FM-MCS-BD13 | E44: @FM-MGD-BD13 | F44: @FM-MDS-BD13 | G44: @FM-MGP-BD13 | H44: @FM-MPN-BD13 | I44: @FM-MGW-BD13 | J44: @FM-MCM-BD13 | K44: @FM-MDM-BD13 | L44: @FM-MTM-BD13 | M44: @FM-MGM-BD13 | N44: @FM-MGR-BD13 | O44: @FM-MIM-BD13 | P44: @FM-MSM-BD13 | Q44: @FM-MPM-BD13 | R44: @FM-MTP-BD13 | S44: @FM-MWM-BD13 | T44: @FM-EOG-BD13 | U44: @FM-EOM-BD13 | V44: @FM-EPM-BD13 | W44: @FM-EVM-BD13 | X44: @FM-ENM-BD13 | Y44: @FM-ELA-BD13 | Z44: @FM-ELD-BD13 | AA44: @FM-ELW-BD13 | AB44: @FM-SAG-BD13 | AC44: @FM-SAT-BD13 | AD44: @FM-SAB-BD13 | AE44: @FM-SBR-BD13 | AF44: @FM-SBG-BD13 | AG44: @FM-SBW-BD13 | AH44: @FM-SBZ-BD13 | AI44: @FM-SBF-BD13 | AJ44: @FM-SCS-BD13 | AK44: @FM-SCB-BD13 | AL44: @FM-SDM-BD13 | AM44: @FM-SDP-BD13 | AN44: @FM-SDS-BD13 | AO44: @FM-SGP-BD13 | AP44: @FM-SHG-BD13 | AQ44: @FM-SIN-BD13 | AR44: @FM-SIV-BD13 | AS44: @FM-SLR-BD13 | AT44: @FM-SDG-BD13 | AU44: @FM-SMW-BD13 | AV44: @FM-SMZ-BD13 | AW44: @FM-SMN-BD13 | AX44: @FM-SMC-BD13 | AY44: @FM-SMU-BD13 | AZ44: @FM-SOV-BD13 | BA44: @FM-SPO-BD13 | BB44: @FM-SPT-BD13 | BC44: @FM-SPE-BD13 | BD44: @FM-SPG-BD13 | BE44: @FM-SPN-BD13 | BF44: @FM-SSG-BD13 | BG44: @FM-SSP-BD13 | BH44: @FM-SSB-BD13 | BI44: @FM-SSO-BD13 | BJ44: @FM-SSY-BD13 | BK44: @FM-SST-BD13 | BL44: @FM-STP-BD13 | BM44: @FM-STK-BD13 | BN44: @FM-SWE-BD13 | BO44: @FM-EAG-BD13 | BP44: @FM-EAT-BD13 | BQ44: @FM-EAB-BD13 | BR44: @FM-EBR-BD13 | BS44: @FM-EBG-BD13 | BT44: @FM-EBW-BD13 | BU44: @FM-ECS-BD13 | BV44: @FM-EDM-BD13 | BW44: @FM-EDP-BD13 | BX44: @FM-EDS-BD13 | BY44: @FM-EGP-BD13 | BZ44: @FM-EHG-BD13 | CA44: @FM-EIN-BD13 | CB44: @FM-EIV-BD13 | CC44: @FM-ELN-BD13 | CD44: @FM-EDG-BD13 | CE44: @FM-EME-BD13 | CF44: @FM-EMN-BD13 | CG44: @FM-EMU-BD13 | CH44: @FM-EOV-BD13 | CI44: @FM-EPT-BD13 | CJ44: @FM-EPE-BD13 | CK44: @FM-EPG-BD13 | CL44: @FM-EPN-BD13 | CM44: @FM-ESG-BD13 | CN44: @FM-ESP-BD13 | CO44: @FM-ESK-BD13 | CP44: @FM-ESO-BD13 | CQ44: @FM-ESY-BD13 | CR44: @FM-ESN-BD13 | CS44: @FM-ETP-BD13 | CT44: @FM-ETK-BD13 | CU44: @FM-EWE-BD13
A45: BD52 | B45: 500 2 Pan Drawer Unit | C45: BD52 | D45: @FM-MCS-BD52 | E45: @FM-MGD-BD52 | F45: @FM-MDS-BD52 | G45: @FM-MGP-BD52 | H45: @FM-MPN-BD52 | I45: @FM-MGW-BD52 | J45: @FM-MCM-BD52 | K45: @FM-MDM-BD52 | L45: @FM-MTM-BD52 | M45: @FM-MGM-BD52 | N45: @FM-MGR-BD52 | O45: @FM-MIM-BD52 | P45: @FM-MSM-BD52 | Q45: @FM-MPM-BD52 | R45: @FM-MTP-BD52 | S45: @FM-MWM-BD52 | T45: @FM-EOG-BD52 | U45: @FM-EOM-BD52 | V45: @FM-EPM-BD52 | W45: @FM-EVM-BD52 | X45: @FM-ENM-BD52 | Y45: @FM-ELA-BD52 | Z45: @FM-ELD-BD52 | AA45: @FM-ELW-BD52 | AB45: @FM-SAG-BD52 | AC45: @FM-SAT-BD52 | AD45: @FM-SAB-BD52 | AE45: @FM-SBR-BD52 | AF45: @FM-SBG-BD52 | AG45: @FM-SBW-BD52 | AH45: @FM-SBZ-BD52 | AI45: @FM-SBF-BD52 | AJ45: @FM-SCS-BD52 | AK45: @FM-SCB-BD52 | AL45: @FM-SDM-BD52 | AM45: @FM-SDP-BD52 | AN45: @FM-SDS-BD52 | AO45: @FM-SGP-BD52 | AP45: @FM-SHG-BD52 | AQ45: @FM-SIN-BD52 | AR45: @FM-SIV-BD52 | AS45: @FM-SLR-BD52 | AT45: @FM-SDG-BD52 | AU45: @FM-SMW-BD52 | AV45: @FM-SMZ-BD52 | AW45: @FM-SMN-BD52 | AX45: @FM-SMC-BD52 | AY45: @FM-SMU-BD52 | AZ45: @FM-SOV-BD52 | BA45: @FM-SPO-BD52 | BB45: @FM-SPT-BD52 | BC45: @FM-SPE-BD52 | BD45: @FM-SPG-BD52 | BE45: @FM-SPN-BD52 | BF45: @FM-SSG-BD52 | BG45: @FM-SSP-BD52 | BH45: @FM-SSB-BD52 | BI45: @FM-SSO-BD52 | BJ45: @FM-SSY-BD52 | BK45: @FM-SST-BD52 | BL45: @FM-STP-BD52 | BM45: @FM-STK-BD52 | BN45: @FM-SWE-BD52 | BO45: @FM-EAG-BD52 | BP45: @FM-EAT-BD52 | BQ45: @FM-EAB-BD52 | BR45: @FM-EBR-BD52 | BS45: @FM-EBG-BD52 | BT45: @FM-EBW-BD52 | BU45: @FM-ECS-BD52 | BV45: @FM-EDM-BD52 | BW45: @FM-EDP-BD52 | BX45: @FM-EDS-BD52 | BY45: @FM-EGP-BD52 | BZ45: @FM-EHG-BD52 | CA45: @FM-EIN-BD52 | CB45: @FM-EIV-BD52 | CC45: @FM-ELN-BD52 | CD45: @FM-EDG-BD52 | CE45: @FM-EME-BD52 | CF45: @FM-EMN-BD52 | CG45: @FM-EMU-BD52 | CH45: @FM-EOV-BD52 | CI45: @FM-EPT-BD52 | CJ45: @FM-EPE-BD52 | CK45: @FM-EPG-BD52 | CL45: @FM-EPN-BD52 | CM45: @FM-ESG-BD52 | CN45: @FM-ESP-BD52 | CO45: @FM-ESK-BD52 | CP45: @FM-ESO-BD52 | CQ45: @FM-ESY-BD52 | CR45: @FM-ESN-BD52 | CS45: @FM-ETP-BD52 | CT45: @FM-ETK-BD52 | CU45: @FM-EWE-BD52
A46: BD62 | B46: 600 2 Pan Drawer Unit | C46: BD62 | D46: @FM-MCS-BD62 | E46: @FM-MGD-BD62 | F46: @FM-MDS-BD62 | G46: @FM-MGP-BD62 | H46: @FM-MPN-BD62 | I46: @FM-MGW-BD62 | J46: @FM-MCM-BD62 | K46: @FM-MDM-BD62 | L46: @FM-MTM-BD62 | M46: @FM-MGM-BD62 | N46: @FM-MGR-BD62 | O46: @FM-MIM-BD62 | P46: @FM-MSM-BD62 | Q46: @FM-MPM-BD62 | R46: @FM-MTP-BD62 | S46: @FM-MWM-BD62 | T46: @FM-EOG-BD62 | U46: @FM-EOM-BD62 | V46: @FM-EPM-BD62 | W46: @FM-EVM-BD62 | X46: @FM-ENM-BD62 | Y46: @FM-ELA-BD62 | Z46: @FM-ELD-BD62 | AA46: @FM-ELW-BD62 | AB46: @FM-SAG-BD62 | AC46: @FM-SAT-BD62 | AD46: @FM-SAB-BD62 | AE46: @FM-SBR-BD62 | AF46: @FM-SBG-BD62 | AG46: @FM-SBW-BD62 | AH46: @FM-SBZ-BD62 | AI46: @FM-SBF-BD62 | AJ46: @FM-SCS-BD62 | AK46: @FM-SCB-BD62 | AL46: @FM-SDM-BD62 | AM46: @FM-SDP-BD62 | AN46: @FM-SDS-BD62 | AO46: @FM-SGP-BD62 | AP46: @FM-SHG-BD62 | AQ46: @FM-SIN-BD62 | AR46: @FM-SIV-BD62 | AS46: @FM-SLR-BD62 | AT46: @FM-SDG-BD62 | AU46: @FM-SMW-BD62 | AV46: @FM-SMZ-BD62 | AW46: @FM-SMN-BD62 | AX46: @FM-SMC-BD62 | AY46: @FM-SMU-BD62 | AZ46: @FM-SOV-BD62 | BA46: @FM-SPO-BD62 | BB46: @FM-SPT-BD62 | BC46: @FM-SPE-BD62 | BD46: @FM-SPG-BD62 | BE46: @FM-SPN-BD62 | BF46: @FM-SSG-BD62 | BG46: @FM-SSP-BD62 | BH46: @FM-SSB-BD62 | BI46: @FM-SSO-BD62 | BJ46: @FM-SSY-BD62 | BK46: @FM-SST-BD62 | BL46: @FM-STP-BD62 | BM46: @FM-STK-BD62 | BN46: @FM-SWE-BD62 | BO46: @FM-EAG-BD62 | BP46: @FM-EAT-BD62 | BQ46: @FM-EAB-BD62 | BR46: @FM-EBR-BD62 | BS46: @FM-EBG-BD62 | BT46: @FM-EBW-BD62 | BU46: @FM-ECS-BD62 | BV46: @FM-EDM-BD62 | BW46: @FM-EDP-BD62 | BX46: @FM-EDS-BD62 | BY46: @FM-EGP-BD62 | BZ46: @FM-EHG-BD62 | CA46: @FM-EIN-BD62 | CB46: @FM-EIV-BD62 | CC46: @FM-ELN-BD62 | CD46: @FM-EDG-BD62 | CE46: @FM-EME-BD62 | CF46: @FM-EMN-BD62 | CG46: @FM-EMU-BD62 | CH46: @FM-EOV-BD62 | CI46: @FM-EPT-BD62 | CJ46: @FM-EPE-BD62 | CK46: @FM-EPG-BD62 | CL46: @FM-EPN-BD62 | CM46: @FM-ESG-BD62 | CN46: @FM-ESP-BD62 | CO46: @FM-ESK-BD62 | CP46: @FM-ESO-BD62 | CQ46: @FM-ESY-BD62 | CR46: @FM-ESN-BD62 | CS46: @FM-ETP-BD62 | CT46: @FM-ETK-BD62 | CU46: @FM-EWE-BD62
A47: BD82 | B47: 800 2 Pan Drawer Unit | C47: BD82 | D47: @FM-MCS-BD82 | E47: @FM-MGD-BD82 | F47: @FM-MDS-BD82 | G47: @FM-MGP-BD82 | H47: @FM-MPN-BD82 | I47: @FM-MGW-BD82 | J47: @FM-MCM-BD82 | K47: @FM-MDM-BD82 | L47: @FM-MTM-BD82 | M47: @FM-MGM-BD82 | N47: @FM-MGR-BD82 | O47: @FM-MIM-BD82 | P47: @FM-MSM-BD82 | Q47: @FM-MPM-BD82 | R47: @FM-MTP-BD82 | S47: @FM-MWM-BD82 | T47: @FM-EOG-BD82 | U47: @FM-EOM-BD82 | V47: @FM-EPM-BD82 | W47: @FM-EVM-BD82 | X47: @FM-ENM-BD82 | Y47: @FM-ELA-BD82 | Z47: @FM-ELD-BD82 | AA47: @FM-ELW-BD82 | AB47: @FM-SAG-BD82 | AC47: @FM-SAT-BD82 | AD47: @FM-SAB-BD82 | AE47: @FM-SBR-BD82 | AF47: @FM-SBG-BD82 | AG47: @FM-SBW-BD82 | AH47: @FM-SBZ-BD82 | AI47: @FM-SBF-BD82 | AJ47: @FM-SCS-BD82 | AK47: @FM-SCB-BD82 | AL47: @FM-SDM-BD82 | AM47: @FM-SDP-BD82 | AN47: @FM-SDS-BD82 | AO47: @FM-SGP-BD82 | AP47: @FM-SHG-BD82 | AQ47: @FM-SIN-BD82 | AR47: @FM-SIV-BD82 | AS47: @FM-SLR-BD82 | AT47: @FM-SDG-BD82 | AU47: @FM-SMW-BD82 | AV47: @FM-SMZ-BD82 | AW47: @FM-SMN-BD82 | AX47: @FM-SMC-BD82 | AY47: @FM-SMU-BD82 | AZ47: @FM-SOV-BD82 | BA47: @FM-SPO-BD82 | BB47: @FM-SPT-BD82 | BC47: @FM-SPE-BD82 | BD47: @FM-SPG-BD82 | BE47: @FM-SPN-BD82 | BF47: @FM-SSG-BD82 | BG47: @FM-SSP-BD82 | BH47: @FM-SSB-BD82 | BI47: @FM-SSO-BD82 | BJ47: @FM-SSY-BD82 | BK47: @FM-SST-BD82 | BL47: @FM-STP-BD82 | BM47: @FM-STK-BD82 | BN47: @FM-SWE-BD82 | BO47: @FM-EAG-BD82 | BP47: @FM-EAT-BD82 | BQ47: @FM-EAB-BD82 | BR47: @FM-EBR-BD82 | BS47: @FM-EBG-BD82 | BT47: @FM-EBW-BD82 | BU47: @FM-ECS-BD82 | BV47: @FM-EDM-BD82 | BW47: @FM-EDP-BD82 | BX47: @FM-EDS-BD82 | BY47: @FM-EGP-BD82 | BZ47: @FM-EHG-BD82 | CA47: @FM-EIN-BD82 | CB47: @FM-EIV-BD82 | CC47: @FM-ELN-BD82 | CD47: @FM-EDG-BD82 | CE47: @FM-EME-BD82 | CF47: @FM-EMN-BD82 | CG47: @FM-EMU-BD82 | CH47: @FM-EOV-BD82 | CI47: @FM-EPT-BD82 | CJ47: @FM-EPE-BD82 | CK47: @FM-EPG-BD82 | CL47: @FM-EPN-BD82 | CM47: @FM-ESG-BD82 | CN47: @FM-ESP-BD82 | CO47: @FM-ESK-BD82 | CP47: @FM-ESO-BD82 | CQ47: @FM-ESY-BD82 | CR47: @FM-ESN-BD82 | CS47: @FM-ETP-BD82 | CT47: @FM-ETK-BD82 | CU47: @FM-EWE-BD82
A48: BD92 | B48: 900 2 Pan Drawer Unit | C48: BD92 | D48: @FM-MCS-BD92 | E48: @FM-MGD-BD92 | F48: @FM-MDS-BD92 | G48: @FM-MGP-BD92 | H48: @FM-MPN-BD92 | I48: @FM-MGW-BD92 | J48: @FM-MCM-BD92 | K48: @FM-MDM-BD92 | L48: @FM-MTM-BD92 | M48: @FM-MGM-BD92 | N48: @FM-MGR-BD92 | O48: @FM-MIM-BD92 | P48: @FM-MSM-BD92 | Q48: @FM-MPM-BD92 | R48: @FM-MTP-BD92 | S48: @FM-MWM-BD92 | T48: @FM-EOG-BD92 | U48: @FM-EOM-BD92 | V48: @FM-EPM-BD92 | W48: @FM-EVM-BD92 | X48: @FM-ENM-BD92 | Y48: @FM-ELA-BD92 | Z48: @FM-ELD-BD92 | AA48: @FM-ELW-BD92 | AB48: @FM-SAG-BD92 | AC48: @FM-SAT-BD92 | AD48: @FM-SAB-BD92 | AE48: @FM-SBR-BD92 | AF48: @FM-SBG-BD92 | AG48: @FM-SBW-BD92 | AH48: @FM-SBZ-BD92 | AI48: @FM-SBF-BD92 | AJ48: @FM-SCS-BD92 | AK48: @FM-SCB-BD92 | AL48: @FM-SDM-BD92 | AM48: @FM-SDP-BD92 | AN48: @FM-SDS-BD92 | AO48: @FM-SGP-BD92 | AP48: @FM-SHG-BD92 | AQ48: @FM-SIN-BD92 | AR48: @FM-SIV-BD92 | AS48: @FM-SLR-BD92 | AT48: @FM-SDG-BD92 | AU48: @FM-SMW-BD92 | AV48: @FM-SMZ-BD92 | AW48: @FM-SMN-BD92 | AX48: @FM-SMC-BD92 | AY48: @FM-SMU-BD92 | AZ48: @FM-SOV-BD92 | BA48: @FM-SPO-BD92 | BB48: @FM-SPT-BD92 | BC48: @FM-SPE-BD92 | BD48: @FM-SPG-BD92 | BE48: @FM-SPN-BD92 | BF48: @FM-SSG-BD92 | BG48: @FM-SSP-BD92 | BH48: @FM-SSB-BD92 | BI48: @FM-SSO-BD92 | BJ48: @FM-SSY-BD92 | BK48: @FM-SST-BD92 | BL48: @FM-STP-BD92 | BM48: @FM-STK-BD92 | BN48: @FM-SWE-BD92 | BO48: @FM-EAG-BD92 | BP48: @FM-EAT-BD92 | BQ48: @FM-EAB-BD92 | BR48: @FM-EBR-BD92 | BS48: @FM-EBG-BD92 | BT48: @FM-EBW-BD92 | BU48: @FM-ECS-BD92 | BV48: @FM-EDM-BD92 | BW48: @FM-EDP-BD92 | BX48: @FM-EDS-BD92 | BY48: @FM-EGP-BD92 | BZ48: @FM-EHG-BD92 | CA48: @FM-EIN-BD92 | CB48: @FM-EIV-BD92 | CC48: @FM-ELN-BD92 | CD48: @FM-EDG-BD92 | CE48: @FM-EME-BD92 | CF48: @FM-EMN-BD92 | CG48: @FM-EMU-BD92 | CH48: @FM-EOV-BD92 | CI48: @FM-EPT-BD92 | CJ48: @FM-EPE-BD92 | CK48: @FM-EPG-BD92 | CL48: @FM-EPN-BD92 | CM48: @FM-ESG-BD92 | CN48: @FM-ESP-BD92 | CO48: @FM-ESK-BD92 | CP48: @FM-ESO-BD92 | CQ48: @FM-ESY-BD92 | CR48: @FM-ESN-BD92 | CS48: @FM-ETP-BD92 | CT48: @FM-ETK-BD92 | CU48: @FM-EWE-BD92
A49: BD12 | B49: 1000 2 Pan Drawer Unit | C49: BD12 | D49: @FM-MCS-BD12 | E49: @FM-MGD-BD12 | F49: @FM-MDS-BD12 | G49: @FM-MGP-BD12 | H49: @FM-MPN-BD12 | I49: @FM-MGW-BD12 | J49: @FM-MCM-BD12 | K49: @FM-MDM-BD12 | L49: @FM-MTM-BD12 | M49: @FM-MGM-BD12 | N49: @FM-MGR-BD12 | O49: @FM-MIM-BD12 | P49: @FM-MSM-BD12 | Q49: @FM-MPM-BD12 | R49: @FM-MTP-BD12 | S49: @FM-MWM-BD12 | T49: @FM-EOG-BD12 | U49: @FM-EOM-BD12 | V49: @FM-EPM-BD12 | W49: @FM-EVM-BD12 | X49: @FM-ENM-BD12 | Y49: @FM-ELA-BD12 | Z49: @FM-ELD-BD12 | AA49: @FM-ELW-BD12 | AB49: @FM-SAG-BD12 | AC49: @FM-SAT-BD12 | AD49: @FM-SAB-BD12 | AE49: @FM-SBR-BD12 | AF49: @FM-SBG-BD12 | AG49: @FM-SBW-BD12 | AH49: @FM-SBZ-BD12 | AI49: @FM-SBF-BD12 | AJ49: @FM-SCS-BD12 | AK49: @FM-SCB-BD12 | AL49: @FM-SDM-BD12 | AM49: @FM-SDP-BD12 | AN49: @FM-SDS-BD12 | AO49: @FM-SGP-BD12 | AP49: @FM-SHG-BD12 | AQ49: @FM-SIN-BD12 | AR49: @FM-SIV-BD12 | AS49: @FM-SLR-BD12 | AT49: @FM-SDG-BD12 | AU49: @FM-SMW-BD12 | AV49: @FM-SMZ-BD12 | AW49: @FM-SMN-BD12 | AX49: @FM-SMC-BD12 | AY49: @FM-SMU-BD12 | AZ49: @FM-SOV-BD12 | BA49: @FM-SPO-BD12 | BB49: @FM-SPT-BD12 | BC49: @FM-SPE-BD12 | BD49: @FM-SPG-BD12 | BE49: @FM-SPN-BD12 | BF49: @FM-SSG-BD12 | BG49: @FM-SSP-BD12 | BH49: @FM-SSB-BD12 | BI49: @FM-SSO-BD12 | BJ49: @FM-SSY-BD12 | BK49: @FM-SST-BD12 | BL49: @FM-STP-BD12 | BM49: @FM-STK-BD12 | BN49: @FM-SWE-BD12 | BO49: @FM-EAG-BD12 | BP49: @FM-EAT-BD12 | BQ49: @FM-EAB-BD12 | BR49: @FM-EBR-BD12 | BS49: @FM-EBG-BD12 | BT49: @FM-EBW-BD12 | BU49: @FM-ECS-BD12 | BV49: @FM-EDM-BD12 | BW49: @FM-EDP-BD12 | BX49: @FM-EDS-BD12 | BY49: @FM-EGP-BD12 | BZ49: @FM-EHG-BD12 | CA49: @FM-EIN-BD12 | CB49: @FM-EIV-BD12 | CC49: @FM-ELN-BD12 | CD49: @FM-EDG-BD12 | CE49: @FM-EME-BD12 | CF49: @FM-EMN-BD12 | CG49: @FM-EMU-BD12 | CH49: @FM-EOV-BD12 | CI49: @FM-EPT-BD12 | CJ49: @FM-EPE-BD12 | CK49: @FM-EPG-BD12 | CL49: @FM-EPN-BD12 | CM49: @FM-ESG-BD12 | CN49: @FM-ESP-BD12 | CO49: @FM-ESK-BD12 | CP49: @FM-ESO-BD12 | CQ49: @FM-ESY-BD12 | CR49: @FM-ESN-BD12 | CS49: @FM-ETP-BD12 | CT49: @FM-ETK-BD12 | CU49: @FM-EWE-BD12
A50: BD52I | B50: 500 2 Drawer Unit + Internal Drawer | C50: BD52I | D50: @FM-MCS-BD52I | E50: @FM-MGD-BD52I | F50: @FM-MDS-BD52I | G50: @FM-MGP-BD52I | H50: @FM-MPN-BD52I | I50: @FM-MGW-BD52I | J50: @FM-MCM-BD52I | K50: @FM-MDM-BD52I | L50: @FM-MTM-BD52I | M50: @FM-MGM-BD52I | N50: @FM-MGR-BD52I | O50: @FM-MIM-BD52I | P50: @FM-MSM-BD52I | Q50: @FM-MPM-BD52I | R50: @FM-MTP-BD52I | S50: @FM-MWM-BD52I | T50: @FM-EOG-BD52I | U50: @FM-EOM-BD52I | V50: @FM-EPM-BD52I | W50: @FM-EVM-BD52I | X50: @FM-ENM-BD52I | Y50: @FM-ELA-BD52I | Z50: @FM-ELD-BD52I | AA50: @FM-ELW-BD52I | AB50: @FM-SAG-BD52I | AC50: @FM-SAT-BD52I | AD50: @FM-SAB-BD52I | AE50: @FM-SBR-BD52I | AF50: @FM-SBG-BD52I | AG50: @FM-SBW-BD52I | AH50: @FM-SBZ-BD52I | AI50: @FM-SBF-BD52I | AJ50: @FM-SCS-BD52I | AK50: @FM-SCB-BD52I | AL50: @FM-SDM-BD52I | AM50: @FM-SDP-BD52I | AN50: @FM-SDS-BD52I | AO50: @FM-SGP-BD52I | AP50: @FM-SHG-BD52I | AQ50: @FM-SIN-BD52I | AR50: @FM-SIV-BD52I | AS50: @FM-SLR-BD52I | AT50: @FM-SDG-BD52I | AU50: @FM-SMW-BD52I | AV50: @FM-SMZ-BD52I | AW50: @FM-SMN-BD52I | AX50: @FM-SMC-BD52I | AY50: @FM-SMU-BD52I | AZ50: @FM-SOV-BD52I | BA50: @FM-SPO-BD52I | BB50: @FM-SPT-BD52I | BC50: @FM-SPE-BD52I | BD50: @FM-SPG-BD52I | BE50: @FM-SPN-BD52I | BF50: @FM-SSG-BD52I | BG50: @FM-SSP-BD52I | BH50: @FM-SSB-BD52I | BI50: @FM-SSO-BD52I | BJ50: @FM-SSY-BD52I | BK50: @FM-SST-BD52I | BL50: @FM-STP-BD52I | BM50: @FM-STK-BD52I | BN50: @FM-SWE-BD52I | BO50: @FM-EAG-BD52I | BP50: @FM-EAT-BD52I | BQ50: @FM-EAB-BD52I | BR50: @FM-EBR-BD52I | BS50: @FM-EBG-BD52I | BT50: @FM-EBW-BD52I | BU50: @FM-ECS-BD52I | BV50: @FM-EDM-BD52I | BW50: @FM-EDP-BD52I | BX50: @FM-EDS-BD52I | BY50: @FM-EGP-BD52I | BZ50: @FM-EHG-BD52I | CA50: @FM-EIN-BD52I | CB50: @FM-EIV-BD52I | CC50: @FM-ELN-BD52I | CD50: @FM-EDG-BD52I | CE50: @FM-EME-BD52I | CF50: @FM-EMN-BD52I | CG50: @FM-EMU-BD52I | CH50: @FM-EOV-BD52I | CI50: @FM-EPT-BD52I | CJ50: @FM-EPE-BD52I | CK50: @FM-EPG-BD52I | CL50: @FM-EPN-BD52I | CM50: @FM-ESG-BD52I | CN50: @FM-ESP-BD52I | CO50: @FM-ESK-BD52I | CP50: @FM-ESO-BD52I | CQ50: @FM-ESY-BD52I | CR50: @FM-ESN-BD52I | CS50: @FM-ETP-BD52I | CT50: @FM-ETK-BD52I | CU50: @FM-EWE-BD52I
A51: BD62I | B51: 600 2 Drawer Unit + Internal Drawer | C51: BD62I | D51: @FM-MCS-BD62I | E51: @FM-MGD-BD62I | F51: @FM-MDS-BD62I | G51: @FM-MGP-BD62I | H51: @FM-MPN-BD62I | I51: @FM-MGW-BD62I | J51: @FM-MCM-BD62I | K51: @FM-MDM-BD62I | L51: @FM-MTM-BD62I | M51: @FM-MGM-BD62I | N51: @FM-MGR-BD62I | O51: @FM-MIM-BD62I | P51: @FM-MSM-BD62I | Q51: @FM-MPM-BD62I | R51: @FM-MTP-BD62I | S51: @FM-MWM-BD62I | T51: @FM-EOG-BD62I | U51: @FM-EOM-BD62I | V51: @FM-EPM-BD62I | W51: @FM-EVM-BD62I | X51: @FM-ENM-BD62I | Y51: @FM-ELA-BD62I | Z51: @FM-ELD-BD62I | AA51: @FM-ELW-BD62I | AB51: @FM-SAG-BD62I | AC51: @FM-SAT-BD62I | AD51: @FM-SAB-BD62I | AE51: @FM-SBR-BD62I | AF51: @FM-SBG-BD62I | AG51: @FM-SBW-BD62I | AH51: @FM-SBZ-BD62I | AI51: @FM-SBF-BD62I | AJ51: @FM-SCS-BD62I | AK51: @FM-SCB-BD62I | AL51: @FM-SDM-BD62I | AM51: @FM-SDP-BD62I | AN51: @FM-SDS-BD62I | AO51: @FM-SGP-BD62I | AP51: @FM-SHG-BD62I | AQ51: @FM-SIN-BD62I | AR51: @FM-SIV-BD62I | AS51: @FM-SLR-BD62I | AT51: @FM-SDG-BD62I | AU51: @FM-SMW-BD62I | AV51: @FM-SMZ-BD62I | AW51: @FM-SMN-BD62I | AX51: @FM-SMC-BD62I | AY51: @FM-SMU-BD62I | AZ51: @FM-SOV-BD62I | BA51: @FM-SPO-BD62I | BB51: @FM-SPT-BD62I | BC51: @FM-SPE-BD62I | BD51: @FM-SPG-BD62I | BE51: @FM-SPN-BD62I | BF51: @FM-SSG-BD62I | BG51: @FM-SSP-BD62I | BH51: @FM-SSB-BD62I | BI51: @FM-SSO-BD62I | BJ51: @FM-SSY-BD62I | BK51: @FM-SST-BD62I | BL51: @FM-STP-BD62I | BM51: @FM-STK-BD62I | BN51: @FM-SWE-BD62I | BO51: @FM-EAG-BD62I | BP51: @FM-EAT-BD62I | BQ51: @FM-EAB-BD62I | BR51: @FM-EBR-BD62I | BS51: @FM-EBG-BD62I | BT51: @FM-EBW-BD62I | BU51: @FM-ECS-BD62I | BV51: @FM-EDM-BD62I | BW51: @FM-EDP-BD62I | BX51: @FM-EDS-BD62I | BY51: @FM-EGP-BD62I | BZ51: @FM-EHG-BD62I | CA51: @FM-EIN-BD62I | CB51: @FM-EIV-BD62I | CC51: @FM-ELN-BD62I | CD51: @FM-EDG-BD62I | CE51: @FM-EME-BD62I | CF51: @FM-EMN-BD62I | CG51: @FM-EMU-BD62I | CH51: @FM-EOV-BD62I | CI51: @FM-EPT-BD62I | CJ51: @FM-EPE-BD62I | CK51: @FM-EPG-BD62I | CL51: @FM-EPN-BD62I | CM51: @FM-ESG-BD62I | CN51: @FM-ESP-BD62I | CO51: @FM-ESK-BD62I | CP51: @FM-ESO-BD62I | CQ51: @FM-ESY-BD62I | CR51: @FM-ESN-BD62I | CS51: @FM-ETP-BD62I | CT51: @FM-ETK-BD62I | CU51: @FM-EWE-BD62I
A52: BD82I | B52: 800 2 Drawer Unit + Internal Drawer | C52: BD82I | D52: @FM-MCS-BD82I | E52: @FM-MGD-BD82I | F52: @FM-MDS-BD82I | G52: @FM-MGP-BD82I | H52: @FM-MPN-BD82I | I52: @FM-MGW-BD82I | J52: @FM-MCM-BD82I | K52: @FM-MDM-BD82I | L52: @FM-MTM-BD82I | M52: @FM-MGM-BD82I | N52: @FM-MGR-BD82I | O52: @FM-MIM-BD82I | P52: @FM-MSM-BD82I | Q52: @FM-MPM-BD82I | R52: @FM-MTP-BD82I | S52: @FM-MWM-BD82I | T52: @FM-EOG-BD82I | U52: @FM-EOM-BD82I | V52: @FM-EPM-BD82I | W52: @FM-EVM-BD82I | X52: @FM-ENM-BD82I | Y52: @FM-ELA-BD82I | Z52: @FM-ELD-BD82I | AA52: @FM-ELW-BD82I | AB52: @FM-SAG-BD82I | AC52: @FM-SAT-BD82I | AD52: @FM-SAB-BD82I | AE52: @FM-SBR-BD82I | AF52: @FM-SBG-BD82I | AG52: @FM-SBW-BD82I | AH52: @FM-SBZ-BD82I | AI52: @FM-SBF-BD82I | AJ52: @FM-SCS-BD82I | AK52: @FM-SCB-BD82I | AL52: @FM-SDM-BD82I | AM52: @FM-SDP-BD82I | AN52: @FM-SDS-BD82I | AO52: @FM-SGP-BD82I | AP52: @FM-SHG-BD82I | AQ52: @FM-SIN-BD82I | AR52: @FM-SIV-BD82I | AS52: @FM-SLR-BD82I | AT52: @FM-SDG-BD82I | AU52: @FM-SMW-BD82I | AV52: @FM-SMZ-BD82I | AW52: @FM-SMN-BD82I | AX52: @FM-SMC-BD82I | AY52: @FM-SMU-BD82I | AZ52: @FM-SOV-BD82I | BA52: @FM-SPO-BD82I | BB52: @FM-SPT-BD82I | BC52: @FM-SPE-BD82I | BD52: @FM-SPG-BD82I | BE52: @FM-SPN-BD82I | BF52: @FM-SSG-BD82I | BG52: @FM-SSP-BD82I | BH52: @FM-SSB-BD82I | BI52: @FM-SSO-BD82I | BJ52: @FM-SSY-BD82I | BK52: @FM-SST-BD82I | BL52: @FM-STP-BD82I | BM52: @FM-STK-BD82I | BN52: @FM-SWE-BD82I | BO52: @FM-EAG-BD82I | BP52: @FM-EAT-BD82I | BQ52: @FM-EAB-BD82I | BR52: @FM-EBR-BD82I | BS52: @FM-EBG-BD82I | BT52: @FM-EBW-BD82I | BU52: @FM-ECS-BD82I | BV52: @FM-EDM-BD82I | BW52: @FM-EDP-BD82I | BX52: @FM-EDS-BD82I | BY52: @FM-EGP-BD82I | BZ52: @FM-EHG-BD82I | CA52: @FM-EIN-BD82I | CB52: @FM-EIV-BD82I | CC52: @FM-ELN-BD82I | CD52: @FM-EDG-BD82I | CE52: @FM-EME-BD82I | CF52: @FM-EMN-BD82I | CG52: @FM-EMU-BD82I | CH52: @FM-EOV-BD82I | CI52: @FM-EPT-BD82I | CJ52: @FM-EPE-BD82I | CK52: @FM-EPG-BD82I | CL52: @FM-EPN-BD82I | CM52: @FM-ESG-BD82I | CN52: @FM-ESP-BD82I | CO52: @FM-ESK-BD82I | CP52: @FM-ESO-BD82I | CQ52: @FM-ESY-BD82I | CR52: @FM-ESN-BD82I | CS52: @FM-ETP-BD82I | CT52: @FM-ETK-BD82I | CU52: @FM-EWE-BD82I
A53: BD92I | B53: 900 2 Drawer Unit + Internal Drawer | C53: BD92I | D53: @FM-MCS-BD92I | E53: @FM-MGD-BD92I | F53: @FM-MDS-BD92I | G53: @FM-MGP-BD92I | H53: @FM-MPN-BD92I | I53: @FM-MGW-BD92I | J53: @FM-MCM-BD92I | K53: @FM-MDM-BD92I | L53: @FM-MTM-BD92I | M53: @FM-MGM-BD92I | N53: @FM-MGR-BD92I | O53: @FM-MIM-BD92I | P53: @FM-MSM-BD92I | Q53: @FM-MPM-BD92I | R53: @FM-MTP-BD92I | S53: @FM-MWM-BD92I | T53: @FM-EOG-BD92I | U53: @FM-EOM-BD92I | V53: @FM-EPM-BD92I | W53: @FM-EVM-BD92I | X53: @FM-ENM-BD92I | Y53: @FM-ELA-BD92I | Z53: @FM-ELD-BD92I | AA53: @FM-ELW-BD92I | AB53: @FM-SAG-BD92I | AC53: @FM-SAT-BD92I | AD53: @FM-SAB-BD92I | AE53: @FM-SBR-BD92I | AF53: @FM-SBG-BD92I | AG53: @FM-SBW-BD92I | AH53: @FM-SBZ-BD92I | AI53: @FM-SBF-BD92I | AJ53: @FM-SCS-BD92I | AK53: @FM-SCB-BD92I | AL53: @FM-SDM-BD92I | AM53: @FM-SDP-BD92I | AN53: @FM-SDS-BD92I | AO53: @FM-SGP-BD92I | AP53: @FM-SHG-BD92I | AQ53: @FM-SIN-BD92I | AR53: @FM-SIV-BD92I | AS53: @FM-SLR-BD92I | AT53: @FM-SDG-BD92I | AU53: @FM-SMW-BD92I | AV53: @FM-SMZ-BD92I | AW53: @FM-SMN-BD92I | AX53: @FM-SMC-BD92I | AY53: @FM-SMU-BD92I | AZ53: @FM-SOV-BD92I | BA53: @FM-SPO-BD92I | BB53: @FM-SPT-BD92I | BC53: @FM-SPE-BD92I | BD53: @FM-SPG-BD92I | BE53: @FM-SPN-BD92I | BF53: @FM-SSG-BD92I | BG53: @FM-SSP-BD92I | BH53: @FM-SSB-BD92I | BI53: @FM-SSO-BD92I | BJ53: @FM-SSY-BD92I | BK53: @FM-SST-BD92I | BL53: @FM-STP-BD92I | BM53: @FM-STK-BD92I | BN53: @FM-SWE-BD92I | BO53: @FM-EAG-BD92I | BP53: @FM-EAT-BD92I | BQ53: @FM-EAB-BD92I | BR53: @FM-EBR-BD92I | BS53: @FM-EBG-BD92I | BT53: @FM-EBW-BD92I | BU53: @FM-ECS-BD92I | BV53: @FM-EDM-BD92I | BW53: @FM-EDP-BD92I | BX53: @FM-EDS-BD92I | BY53: @FM-EGP-BD92I | BZ53: @FM-EHG-BD92I | CA53: @FM-EIN-BD92I | CB53: @FM-EIV-BD92I | CC53: @FM-ELN-BD92I | CD53: @FM-EDG-BD92I | CE53: @FM-EME-BD92I | CF53: @FM-EMN-BD92I | CG53: @FM-EMU-BD92I | CH53: @FM-EOV-BD92I | CI53: @FM-EPT-BD92I | CJ53: @FM-EPE-BD92I | CK53: @FM-EPG-BD92I | CL53: @FM-EPN-BD92I | CM53: @FM-ESG-BD92I | CN53: @FM-ESP-BD92I | CO53: @FM-ESK-BD92I | CP53: @FM-ESO-BD92I | CQ53: @FM-ESY-BD92I | CR53: @FM-ESN-BD92I | CS53: @FM-ETP-BD92I | CT53: @FM-ETK-BD92I | CU53: @FM-EWE-BD92I
A54: BD12I | B54: 1000 2 Drawer Unit + Internal Drawer | C54: BD12I | D54: @FM-MCS-BD12I | E54: @FM-MGD-BD12I | F54: @FM-MDS-BD12I | G54: @FM-MGP-BD12I | H54: @FM-MPN-BD12I | I54: @FM-MGW-BD12I | J54: @FM-MCM-BD12I | K54: @FM-MDM-BD12I | L54: @FM-MTM-BD12I | M54: @FM-MGM-BD12I | N54: @FM-MGR-BD12I | O54: @FM-MIM-BD12I | P54: @FM-MSM-BD12I | Q54: @FM-MPM-BD12I | R54: @FM-MTP-BD12I | S54: @FM-MWM-BD12I | T54: @FM-EOG-BD12I | U54: @FM-EOM-BD12I | V54: @FM-EPM-BD12I | W54: @FM-EVM-BD12I | X54: @FM-ENM-BD12I | Y54: @FM-ELA-BD12I | Z54: @FM-ELD-BD12I | AA54: @FM-ELW-BD12I | AB54: @FM-SAG-BD12I | AC54: @FM-SAT-BD12I | AD54: @FM-SAB-BD12I | AE54: @FM-SBR-BD12I | AF54: @FM-SBG-BD12I | AG54: @FM-SBW-BD12I | AH54: @FM-SBZ-BD12I | AI54: @FM-SBF-BD12I | AJ54: @FM-SCS-BD12I | AK54: @FM-SCB-BD12I | AL54: @FM-SDM-BD12I | AM54: @FM-SDP-BD12I | AN54: @FM-SDS-BD12I | AO54: @FM-SGP-BD12I | AP54: @FM-SHG-BD12I | AQ54: @FM-SIN-BD12I | AR54: @FM-SIV-BD12I | AS54: @FM-SLR-BD12I | AT54: @FM-SDG-BD12I | AU54: @FM-SMW-BD12I | AV54: @FM-SMZ-BD12I | AW54: @FM-SMN-BD12I | AX54: @FM-SMC-BD12I | AY54: @FM-SMU-BD12I | AZ54: @FM-SOV-BD12I | BA54: @FM-SPO-BD12I | BB54: @FM-SPT-BD12I | BC54: @FM-SPE-BD12I | BD54: @FM-SPG-BD12I | BE54: @FM-SPN-BD12I | BF54: @FM-SSG-BD12I | BG54: @FM-SSP-BD12I | BH54: @FM-SSB-BD12I | BI54: @FM-SSO-BD12I | BJ54: @FM-SSY-BD12I | BK54: @FM-SST-BD12I | BL54: @FM-STP-BD12I | BM54: @FM-STK-BD12I | BN54: @FM-SWE-BD12I | BO54: @FM-EAG-BD12I | BP54: @FM-EAT-BD12I | BQ54: @FM-EAB-BD12I | BR54: @FM-EBR-BD12I | BS54: @FM-EBG-BD12I | BT54: @FM-EBW-BD12I | BU54: @FM-ECS-BD12I | BV54: @FM-EDM-BD12I | BW54: @FM-EDP-BD12I | BX54: @FM-EDS-BD12I | BY54: @FM-EGP-BD12I | BZ54: @FM-EHG-BD12I | CA54: @FM-EIN-BD12I | CB54: @FM-EIV-BD12I | CC54: @FM-ELN-BD12I | CD54: @FM-EDG-BD12I | CE54: @FM-EME-BD12I | CF54: @FM-EMN-BD12I | CG54: @FM-EMU-BD12I | CH54: @FM-EOV-BD12I | CI54: @FM-EPT-BD12I | CJ54: @FM-EPE-BD12I | CK54: @FM-EPG-BD12I | CL54: @FM-EPN-BD12I | CM54: @FM-ESG-BD12I | CN54: @FM-ESP-BD12I | CO54: @FM-ESK-BD12I | CP54: @FM-ESO-BD12I | CQ54: @FM-ESY-BD12I | CR54: @FM-ESN-BD12I | CS54: @FM-ETP-BD12I | CT54: @FM-ETK-BD12I | CU54: @FM-EWE-BD12I
A55: W26 | B55: 260 Wall Unit - 720 High | C55: W26 | D55: @FM-MCS-W26 | E55: @FM-MGD-W26 | F55: @FM-MDS-W26 | G55: @FM-MGP-W26 | H55: @FM-MPN-W26 | I55: @FM-MGW-W26 | J55: @FM-MCM-W26 | K55: @FM-MDM-W26 | L55: @FM-MTM-W26 | M55: @FM-MGM-W26 | N55: @FM-MGR-W26 | O55: @FM-MIM-W26 | P55: @FM-MSM-W26 | Q55: @FM-MPM-W26 | R55: @FM-MTP-W26 | S55: @FM-MWM-W26 | T55: @FM-EOG-W26 | U55: @FM-EOM-W26 | V55: @FM-EPM-W26 | W55: @FM-EVM-W26 | X55: @FM-ENM-W26 | Y55: @FM-ELA-W26 | Z55: @FM-ELD-W26 | AA55: @FM-ELW-W26 | AB55: @FM-SAG-W26 | AC55: @FM-SAT-W26 | AD55: @FM-SAB-W26 | AE55: @FM-SBR-W26 | AF55: @FM-SBG-W26 | AG55: @FM-SBW-W26 | AH55: @FM-SBZ-W26 | AI55: @FM-SBF-W26 | AJ55: @FM-SCS-W26 | AK55: @FM-SCB-W26 | AL55: @FM-SDM-W26 | AM55: @FM-SDP-W26 | AN55: @FM-SDS-W26 | AO55: @FM-SGP-W26 | AP55: @FM-SHG-W26 | AQ55: @FM-SIN-W26 | AR55: @FM-SIV-W26 | AS55: @FM-SLR-W26 | AT55: @FM-SDG-W26 | AU55: @FM-SMW-W26 | AV55: @FM-SMZ-W26 | AW55: @FM-SMN-W26 | AX55: @FM-SMC-W26 | AY55: @FM-SMU-W26 | AZ55: @FM-SOV-W26 | BA55: @FM-SPO-W26 | BB55: @FM-SPT-W26 | BC55: @FM-SPE-W26 | BD55: @FM-SPG-W26 | BE55: @FM-SPN-W26 | BF55: @FM-SSG-W26 | BG55: @FM-SSP-W26 | BH55: @FM-SSB-W26 | BI55: @FM-SSO-W26 | BJ55: @FM-SSY-W26 | BK55: @FM-SST-W26 | BL55: @FM-STP-W26 | BM55: @FM-STK-W26 | BN55: @FM-SWE-W26 | BO55: @FM-EAG-W26 | BP55: @FM-EAT-W26 | BQ55: @FM-EAB-W26 | BR55: @FM-EBR-W26 | BS55: @FM-EBG-W26 | BT55: @FM-EBW-W26 | BU55: @FM-ECS-W26 | BV55: @FM-EDM-W26 | BW55: @FM-EDP-W26 | BX55: @FM-EDS-W26 | BY55: @FM-EGP-W26 | BZ55: @FM-EHG-W26 | CA55: @FM-EIN-W26 | CB55: @FM-EIV-W26 | CC55: @FM-ELN-W26 | CD55: @FM-EDG-W26 | CE55: @FM-EME-W26 | CF55: @FM-EMN-W26 | CG55: @FM-EMU-W26 | CH55: @FM-EOV-W26 | CI55: @FM-EPT-W26 | CJ55: @FM-EPE-W26 | CK55: @FM-EPG-W26 | CL55: @FM-EPN-W26 | CM55: @FM-ESG-W26 | CN55: @FM-ESP-W26 | CO55: @FM-ESK-W26 | CP55: @FM-ESO-W26 | CQ55: @FM-ESY-W26 | CR55: @FM-ESN-W26 | CS55: @FM-ETP-W26 | CT55: @FM-ETK-W26 | CU55: @FM-EWE-W26
A56: W30 | B56: 300 Wall Unit - 720 High | C56: W30 | D56: @FM-MCS-W30 | E56: @FM-MGD-W30 | F56: @FM-MDS-W30 | G56: @FM-MGP-W30 | H56: @FM-MPN-W30 | I56: @FM-MGW-W30 | J56: @FM-MCM-W30 | K56: @FM-MDM-W30 | L56: @FM-MTM-W30 | M56: @FM-MGM-W30 | N56: @FM-MGR-W30 | O56: @FM-MIM-W30 | P56: @FM-MSM-W30 | Q56: @FM-MPM-W30 | R56: @FM-MTP-W30 | S56: @FM-MWM-W30 | T56: @FM-EOG-W30 | U56: @FM-EOM-W30 | V56: @FM-EPM-W30 | W56: @FM-EVM-W30 | X56: @FM-ENM-W30 | Y56: @FM-ELA-W30 | Z56: @FM-ELD-W30 | AA56: @FM-ELW-W30 | AB56: @FM-SAG-W30 | AC56: @FM-SAT-W30 | AD56: @FM-SAB-W30 | AE56: @FM-SBR-W30 | AF56: @FM-SBG-W30 | AG56: @FM-SBW-W30 | AH56: @FM-SBZ-W30 | AI56: @FM-SBF-W30 | AJ56: @FM-SCS-W30 | AK56: @FM-SCB-W30 | AL56: @FM-SDM-W30 | AM56: @FM-SDP-W30 | AN56: @FM-SDS-W30 | AO56: @FM-SGP-W30 | AP56: @FM-SHG-W30 | AQ56: @FM-SIN-W30 | AR56: @FM-SIV-W30 | AS56: @FM-SLR-W30 | AT56: @FM-SDG-W30 | AU56: @FM-SMW-W30 | AV56: @FM-SMZ-W30 | AW56: @FM-SMN-W30 | AX56: @FM-SMC-W30 | AY56: @FM-SMU-W30 | AZ56: @FM-SOV-W30 | BA56: @FM-SPO-W30 | BB56: @FM-SPT-W30 | BC56: @FM-SPE-W30 | BD56: @FM-SPG-W30 | BE56: @FM-SPN-W30 | BF56: @FM-SSG-W30 | BG56: @FM-SSP-W30 | BH56: @FM-SSB-W30 | BI56: @FM-SSO-W30 | BJ56: @FM-SSY-W30 | BK56: @FM-SST-W30 | BL56: @FM-STP-W30 | BM56: @FM-STK-W30 | BN56: @FM-SWE-W30 | BO56: @FM-EAG-W30 | BP56: @FM-EAT-W30 | BQ56: @FM-EAB-W30 | BR56: @FM-EBR-W30 | BS56: @FM-EBG-W30 | BT56: @FM-EBW-W30 | BU56: @FM-ECS-W30 | BV56: @FM-EDM-W30 | BW56: @FM-EDP-W30 | BX56: @FM-EDS-W30 | BY56: @FM-EGP-W30 | BZ56: @FM-EHG-W30 | CA56: @FM-EIN-W30 | CB56: @FM-EIV-W30 | CC56: @FM-ELN-W30 | CD56: @FM-EDG-W30 | CE56: @FM-EME-W30 | CF56: @FM-EMN-W30 | CG56: @FM-EMU-W30 | CH56: @FM-EOV-W30 | CI56: @FM-EPT-W30 | CJ56: @FM-EPE-W30 | CK56: @FM-EPG-W30 | CL56: @FM-EPN-W30 | CM56: @FM-ESG-W30 | CN56: @FM-ESP-W30 | CO56: @FM-ESK-W30 | CP56: @FM-ESO-W30 | CQ56: @FM-ESY-W30 | CR56: @FM-ESN-W30 | CS56: @FM-ETP-W30 | CT56: @FM-ETK-W30 | CU56: @FM-EWE-W30
A57: W40 | B57: 400 Wall Unit - 720 High | C57: W40 | D57: @FM-MCS-W40 | E57: @FM-MGD-W40 | F57: @FM-MDS-W40 | G57: @FM-MGP-W40 | H57: @FM-MPN-W40 | I57: @FM-MGW-W40 | J57: @FM-MCM-W40 | K57: @FM-MDM-W40 | L57: @FM-MTM-W40 | M57: @FM-MGM-W40 | N57: @FM-MGR-W40 | O57: @FM-MIM-W40 | P57: @FM-MSM-W40 | Q57: @FM-MPM-W40 | R57: @FM-MTP-W40 | S57: @FM-MWM-W40 | T57: @FM-EOG-W40 | U57: @FM-EOM-W40 | V57: @FM-EPM-W40 | W57: @FM-EVM-W40 | X57: @FM-ENM-W40 | Y57: @FM-ELA-W40 | Z57: @FM-ELD-W40 | AA57: @FM-ELW-W40 | AB57: @FM-SAG-W40 | AC57: @FM-SAT-W40 | AD57: @FM-SAB-W40 | AE57: @FM-SBR-W40 | AF57: @FM-SBG-W40 | AG57: @FM-SBW-W40 | AH57: @FM-SBZ-W40 | AI57: @FM-SBF-W40 | AJ57: @FM-SCS-W40 | AK57: @FM-SCB-W40 | AL57: @FM-SDM-W40 | AM57: @FM-SDP-W40 | AN57: @FM-SDS-W40 | AO57: @FM-SGP-W40 | AP57: @FM-SHG-W40 | AQ57: @FM-SIN-W40 | AR57: @FM-SIV-W40 | AS57: @FM-SLR-W40 | AT57: @FM-SDG-W40 | AU57: @FM-SMW-W40 | AV57: @FM-SMZ-W40 | AW57: @FM-SMN-W40 | AX57: @FM-SMC-W40 | AY57: @FM-SMU-W40 | AZ57: @FM-SOV-W40 | BA57: @FM-SPO-W40 | BB57: @FM-SPT-W40 | BC57: @FM-SPE-W40 | BD57: @FM-SPG-W40 | BE57: @FM-SPN-W40 | BF57: @FM-SSG-W40 | BG57: @FM-SSP-W40 | BH57: @FM-SSB-W40 | BI57: @FM-SSO-W40 | BJ57: @FM-SSY-W40 | BK57: @FM-SST-W40 | BL57: @FM-STP-W40 | BM57: @FM-STK-W40 | BN57: @FM-SWE-W40 | BO57: @FM-EAG-W40 | BP57: @FM-EAT-W40 | BQ57: @FM-EAB-W40 | BR57: @FM-EBR-W40 | BS57: @FM-EBG-W40 | BT57: @FM-EBW-W40 | BU57: @FM-ECS-W40 | BV57: @FM-EDM-W40 | BW57: @FM-EDP-W40 | BX57: @FM-EDS-W40 | BY57: @FM-EGP-W40 | BZ57: @FM-EHG-W40 | CA57: @FM-EIN-W40 | CB57: @FM-EIV-W40 | CC57: @FM-ELN-W40 | CD57: @FM-EDG-W40 | CE57: @FM-EME-W40 | CF57: @FM-EMN-W40 | CG57: @FM-EMU-W40 | CH57: @FM-EOV-W40 | CI57: @FM-EPT-W40 | CJ57: @FM-EPE-W40 | CK57: @FM-EPG-W40 | CL57: @FM-EPN-W40 | CM57: @FM-ESG-W40 | CN57: @FM-ESP-W40 | CO57: @FM-ESK-W40 | CP57: @FM-ESO-W40 | CQ57: @FM-ESY-W40 | CR57: @FM-ESN-W40 | CS57: @FM-ETP-W40 | CT57: @FM-ETK-W40 | CU57: @FM-EWE-W40
A58: W45 | B58: 450 Wall Unit - 720 High | C58: W45 | D58: @FM-MCS-W45 | E58: @FM-MGD-W45 | F58: @FM-MDS-W45 | G58: @FM-MGP-W45 | H58: @FM-MPN-W45 | I58: @FM-MGW-W45 | J58: @FM-MCM-W45 | K58: @FM-MDM-W45 | L58: @FM-MTM-W45 | M58: @FM-MGM-W45 | N58: @FM-MGR-W45 | O58: @FM-MIM-W45 | P58: @FM-MSM-W45 | Q58: @FM-MPM-W45 | R58: @FM-MTP-W45 | S58: @FM-MWM-W45 | T58: @FM-EOG-W45 | U58: @FM-EOM-W45 | V58: @FM-EPM-W45 | W58: @FM-EVM-W45 | X58: @FM-ENM-W45 | Y58: @FM-ELA-W45 | Z58: @FM-ELD-W45 | AA58: @FM-ELW-W45 | AB58: @FM-SAG-W45 | AC58: @FM-SAT-W45 | AD58: @FM-SAB-W45 | AE58: @FM-SBR-W45 | AF58: @FM-SBG-W45 | AG58: @FM-SBW-W45 | AH58: @FM-SBZ-W45 | AI58: @FM-SBF-W45 | AJ58: @FM-SCS-W45 | AK58: @FM-SCB-W45 | AL58: @FM-SDM-W45 | AM58: @FM-SDP-W45 | AN58: @FM-SDS-W45 | AO58: @FM-SGP-W45 | AP58: @FM-SHG-W45 | AQ58: @FM-SIN-W45 | AR58: @FM-SIV-W45 | AS58: @FM-SLR-W45 | AT58: @FM-SDG-W45 | AU58: @FM-SMW-W45 | AV58: @FM-SMZ-W45 | AW58: @FM-SMN-W45 | AX58: @FM-SMC-W45 | AY58: @FM-SMU-W45 | AZ58: @FM-SOV-W45 | BA58: @FM-SPO-W45 | BB58: @FM-SPT-W45 | BC58: @FM-SPE-W45 | BD58: @FM-SPG-W45 | BE58: @FM-SPN-W45 | BF58: @FM-SSG-W45 | BG58: @FM-SSP-W45 | BH58: @FM-SSB-W45 | BI58: @FM-SSO-W45 | BJ58: @FM-SSY-W45 | BK58: @FM-SST-W45 | BL58: @FM-STP-W45 | BM58: @FM-STK-W45 | BN58: @FM-SWE-W45 | BO58: @FM-EAG-W45 | BP58: @FM-EAT-W45 | BQ58: @FM-EAB-W45 | BR58: @FM-EBR-W45 | BS58: @FM-EBG-W45 | BT58: @FM-EBW-W45 | BU58: @FM-ECS-W45 | BV58: @FM-EDM-W45 | BW58: @FM-EDP-W45 | BX58: @FM-EDS-W45 | BY58: @FM-EGP-W45 | BZ58: @FM-EHG-W45 | CA58: @FM-EIN-W45 | CB58: @FM-EIV-W45 | CC58: @FM-ELN-W45 | CD58: @FM-EDG-W45 | CE58: @FM-EME-W45 | CF58: @FM-EMN-W45 | CG58: @FM-EMU-W45 | CH58: @FM-EOV-W45 | CI58: @FM-EPT-W45 | CJ58: @FM-EPE-W45 | CK58: @FM-EPG-W45 | CL58: @FM-EPN-W45 | CM58: @FM-ESG-W45 | CN58: @FM-ESP-W45 | CO58: @FM-ESK-W45 | CP58: @FM-ESO-W45 | CQ58: @FM-ESY-W45 | CR58: @FM-ESN-W45 | CS58: @FM-ETP-W45 | CT58: @FM-ETK-W45 | CU58: @FM-EWE-W45
A59: W50 | B59: 500 Wall Unit - 720 High | C59: W50 | D59: @FM-MCS-W50 | E59: @FM-MGD-W50 | F59: @FM-MDS-W50 | G59: @FM-MGP-W50 | H59: @FM-MPN-W50 | I59: @FM-MGW-W50 | J59: @FM-MCM-W50 | K59: @FM-MDM-W50 | L59: @FM-MTM-W50 | M59: @FM-MGM-W50 | N59: @FM-MGR-W50 | O59: @FM-MIM-W50 | P59: @FM-MSM-W50 | Q59: @FM-MPM-W50 | R59: @FM-MTP-W50 | S59: @FM-MWM-W50 | T59: @FM-EOG-W50 | U59: @FM-EOM-W50 | V59: @FM-EPM-W50 | W59: @FM-EVM-W50 | X59: @FM-ENM-W50 | Y59: @FM-ELA-W50 | Z59: @FM-ELD-W50 | AA59: @FM-ELW-W50 | AB59: @FM-SAG-W50 | AC59: @FM-SAT-W50 | AD59: @FM-SAB-W50 | AE59: @FM-SBR-W50 | AF59: @FM-SBG-W50 | AG59: @FM-SBW-W50 | AH59: @FM-SBZ-W50 | AI59: @FM-SBF-W50 | AJ59: @FM-SCS-W50 | AK59: @FM-SCB-W50 | AL59: @FM-SDM-W50 | AM59: @FM-SDP-W50 | AN59: @FM-SDS-W50 | AO59: @FM-SGP-W50 | AP59: @FM-SHG-W50 | AQ59: @FM-SIN-W50 | AR59: @FM-SIV-W50 | AS59: @FM-SLR-W50 | AT59: @FM-SDG-W50 | AU59: @FM-SMW-W50 | AV59: @FM-SMZ-W50 | AW59: @FM-SMN-W50 | AX59: @FM-SMC-W50 | AY59: @FM-SMU-W50 | AZ59: @FM-SOV-W50 | BA59: @FM-SPO-W50 | BB59: @FM-SPT-W50 | BC59: @FM-SPE-W50 | BD59: @FM-SPG-W50 | BE59: @FM-SPN-W50 | BF59: @FM-SSG-W50 | BG59: @FM-SSP-W50 | BH59: @FM-SSB-W50 | BI59: @FM-SSO-W50 | BJ59: @FM-SSY-W50 | BK59: @FM-SST-W50 | BL59: @FM-STP-W50 | BM59: @FM-STK-W50 | BN59: @FM-SWE-W50 | BO59: @FM-EAG-W50 | BP59: @FM-EAT-W50 | BQ59: @FM-EAB-W50 | BR59: @FM-EBR-W50 | BS59: @FM-EBG-W50 | BT59: @FM-EBW-W50 | BU59: @FM-ECS-W50 | BV59: @FM-EDM-W50 | BW59: @FM-EDP-W50 | BX59: @FM-EDS-W50 | BY59: @FM-EGP-W50 | BZ59: @FM-EHG-W50 | CA59: @FM-EIN-W50 | CB59: @FM-EIV-W50 | CC59: @FM-ELN-W50 | CD59: @FM-EDG-W50 | CE59: @FM-EME-W50 | CF59: @FM-EMN-W50 | CG59: @FM-EMU-W50 | CH59: @FM-EOV-W50 | CI59: @FM-EPT-W50 | CJ59: @FM-EPE-W50 | CK59: @FM-EPG-W50 | CL59: @FM-EPN-W50 | CM59: @FM-ESG-W50 | CN59: @FM-ESP-W50 | CO59: @FM-ESK-W50 | CP59: @FM-ESO-W50 | CQ59: @FM-ESY-W50 | CR59: @FM-ESN-W50 | CS59: @FM-ETP-W50 | CT59: @FM-ETK-W50 | CU59: @FM-EWE-W50
A60: W60 | B60: 600 Wall Unit - 720 High | C60: W60 | D60: @FM-MCS-W60 | E60: @FM-MGD-W60 | F60: @FM-MDS-W60 | G60: @FM-MGP-W60 | H60: @FM-MPN-W60 | I60: @FM-MGW-W60 | J60: @FM-MCM-W60 | K60: @FM-MDM-W60 | L60: @FM-MTM-W60 | M60: @FM-MGM-W60 | N60: @FM-MGR-W60 | O60: @FM-MIM-W60 | P60: @FM-MSM-W60 | Q60: @FM-MPM-W60 | R60: @FM-MTP-W60 | S60: @FM-MWM-W60 | T60: @FM-EOG-W60 | U60: @FM-EOM-W60 | V60: @FM-EPM-W60 | W60: @FM-EVM-W60 | X60: @FM-ENM-W60 | Y60: @FM-ELA-W60 | Z60: @FM-ELD-W60 | AA60: @FM-ELW-W60 | AB60: @FM-SAG-W60 | AC60: @FM-SAT-W60 | AD60: @FM-SAB-W60 | AE60: @FM-SBR-W60 | AF60: @FM-SBG-W60 | AG60: @FM-SBW-W60 | AH60: @FM-SBZ-W60 | AI60: @FM-SBF-W60 | AJ60: @FM-SCS-W60 | AK60: @FM-SCB-W60 | AL60: @FM-SDM-W60 | AM60: @FM-SDP-W60 | AN60: @FM-SDS-W60 | AO60: @FM-SGP-W60 | AP60: @FM-SHG-W60 | AQ60: @FM-SIN-W60 | AR60: @FM-SIV-W60 | AS60: @FM-SLR-W60 | AT60: @FM-SDG-W60 | AU60: @FM-SMW-W60 | AV60: @FM-SMZ-W60 | AW60: @FM-SMN-W60 | AX60: @FM-SMC-W60 | AY60: @FM-SMU-W60 | AZ60: @FM-SOV-W60 | BA60: @FM-SPO-W60 | BB60: @FM-SPT-W60 | BC60: @FM-SPE-W60 | BD60: @FM-SPG-W60 | BE60: @FM-SPN-W60 | BF60: @FM-SSG-W60 | BG60: @FM-SSP-W60 | BH60: @FM-SSB-W60 | BI60: @FM-SSO-W60 | BJ60: @FM-SSY-W60 | BK60: @FM-SST-W60 | BL60: @FM-STP-W60 | BM60: @FM-STK-W60 | BN60: @FM-SWE-W60 | BO60: @FM-EAG-W60 | BP60: @FM-EAT-W60 | BQ60: @FM-EAB-W60 | BR60: @FM-EBR-W60 | BS60: @FM-EBG-W60 | BT60: @FM-EBW-W60 | BU60: @FM-ECS-W60 | BV60: @FM-EDM-W60 | BW60: @FM-EDP-W60 | BX60: @FM-EDS-W60 | BY60: @FM-EGP-W60 | BZ60: @FM-EHG-W60 | CA60: @FM-EIN-W60 | CB60: @FM-EIV-W60 | CC60: @FM-ELN-W60 | CD60: @FM-EDG-W60 | CE60: @FM-EME-W60 | CF60: @FM-EMN-W60 | CG60: @FM-EMU-W60 | CH60: @FM-EOV-W60 | CI60: @FM-EPT-W60 | CJ60: @FM-EPE-W60 | CK60: @FM-EPG-W60 | CL60: @FM-EPN-W60 | CM60: @FM-ESG-W60 | CN60: @FM-ESP-W60 | CO60: @FM-ESK-W60 | CP60: @FM-ESO-W60 | CQ60: @FM-ESY-W60 | CR60: @FM-ESN-W60 | CS60: @FM-ETP-W60 | CT60: @FM-ETK-W60 | CU60: @FM-EWE-W60
A61: W70 | B61: 700 Wall Unit - 720 High | C61: W70 | D61: @FM-MCS-W70 | E61: @FM-MGD-W70 | F61: @FM-MDS-W70 | G61: @FM-MGP-W70 | H61: @FM-MPN-W70 | I61: @FM-MGW-W70 | J61: @FM-MCM-W70 | K61: @FM-MDM-W70 | L61: @FM-MTM-W70 | M61: @FM-MGM-W70 | N61: @FM-MGR-W70 | O61: @FM-MIM-W70 | P61: @FM-MSM-W70 | Q61: @FM-MPM-W70 | R61: @FM-MTP-W70 | S61: @FM-MWM-W70 | T61: @FM-EOG-W70 | U61: @FM-EOM-W70 | V61: @FM-EPM-W70 | W61: @FM-EVM-W70 | X61: @FM-ENM-W70 | Y61: @FM-ELA-W70 | Z61: @FM-ELD-W70 | AA61: @FM-ELW-W70 | AB61: @FM-SAG-W70 | AC61: @FM-SAT-W70 | AD61: @FM-SAB-W70 | AE61: @FM-SBR-W70 | AF61: @FM-SBG-W70 | AG61: @FM-SBW-W70 | AH61: @FM-SBZ-W70 | AI61: @FM-SBF-W70 | AJ61: @FM-SCS-W70 | AK61: @FM-SCB-W70 | AL61: @FM-SDM-W70 | AM61: @FM-SDP-W70 | AN61: @FM-SDS-W70 | AO61: @FM-SGP-W70 | AP61: @FM-SHG-W70 | AQ61: @FM-SIN-W70 | AR61: @FM-SIV-W70 | AS61: @FM-SLR-W70 | AT61: @FM-SDG-W70 | AU61: @FM-SMW-W70 | AV61: @FM-SMZ-W70 | AW61: @FM-SMN-W70 | AX61: @FM-SMC-W70 | AY61: @FM-SMU-W70 | AZ61: @FM-SOV-W70 | BA61: @FM-SPO-W70 | BB61: @FM-SPT-W70 | BC61: @FM-SPE-W70 | BD61: @FM-SPG-W70 | BE61: @FM-SPN-W70 | BF61: @FM-SSG-W70 | BG61: @FM-SSP-W70 | BH61: @FM-SSB-W70 | BI61: @FM-SSO-W70 | BJ61: @FM-SSY-W70 | BK61: @FM-SST-W70 | BL61: @FM-STP-W70 | BM61: @FM-STK-W70 | BN61: @FM-SWE-W70 | BO61: @FM-EAG-W70 | BP61: @FM-EAT-W70 | BQ61: @FM-EAB-W70 | BR61: @FM-EBR-W70 | BS61: @FM-EBG-W70 | BT61: @FM-EBW-W70 | BU61: @FM-ECS-W70 | BV61: @FM-EDM-W70 | BW61: @FM-EDP-W70 | BX61: @FM-EDS-W70 | BY61: @FM-EGP-W70 | BZ61: @FM-EHG-W70 | CA61: @FM-EIN-W70 | CB61: @FM-EIV-W70 | CC61: @FM-ELN-W70 | CD61: @FM-EDG-W70 | CE61: @FM-EME-W70 | CF61: @FM-EMN-W70 | CG61: @FM-EMU-W70 | CH61: @FM-EOV-W70 | CI61: @FM-EPT-W70 | CJ61: @FM-EPE-W70 | CK61: @FM-EPG-W70 | CL61: @FM-EPN-W70 | CM61: @FM-ESG-W70 | CN61: @FM-ESP-W70 | CO61: @FM-ESK-W70 | CP61: @FM-ESO-W70 | CQ61: @FM-ESY-W70 | CR61: @FM-ESN-W70 | CS61: @FM-ETP-W70 | CT61: @FM-ETK-W70 | CU61: @FM-EWE-W70
A62: W80 | B62: 800 Wall Unit - 720 High | C62: W80 | D62: @FM-MCS-W80 | E62: @FM-MGD-W80 | F62: @FM-MDS-W80 | G62: @FM-MGP-W80 | H62: @FM-MPN-W80 | I62: @FM-MGW-W80 | J62: @FM-MCM-W80 | K62: @FM-MDM-W80 | L62: @FM-MTM-W80 | M62: @FM-MGM-W80 | N62: @FM-MGR-W80 | O62: @FM-MIM-W80 | P62: @FM-MSM-W80 | Q62: @FM-MPM-W80 | R62: @FM-MTP-W80 | S62: @FM-MWM-W80 | T62: @FM-EOG-W80 | U62: @FM-EOM-W80 | V62: @FM-EPM-W80 | W62: @FM-EVM-W80 | X62: @FM-ENM-W80 | Y62: @FM-ELA-W80 | Z62: @FM-ELD-W80 | AA62: @FM-ELW-W80 | AB62: @FM-SAG-W80 | AC62: @FM-SAT-W80 | AD62: @FM-SAB-W80 | AE62: @FM-SBR-W80 | AF62: @FM-SBG-W80 | AG62: @FM-SBW-W80 | AH62: @FM-SBZ-W80 | AI62: @FM-SBF-W80 | AJ62: @FM-SCS-W80 | AK62: @FM-SCB-W80 | AL62: @FM-SDM-W80 | AM62: @FM-SDP-W80 | AN62: @FM-SDS-W80 | AO62: @FM-SGP-W80 | AP62: @FM-SHG-W80 | AQ62: @FM-SIN-W80 | AR62: @FM-SIV-W80 | AS62: @FM-SLR-W80 | AT62: @FM-SDG-W80 | AU62: @FM-SMW-W80 | AV62: @FM-SMZ-W80 | AW62: @FM-SMN-W80 | AX62: @FM-SMC-W80 | AY62: @FM-SMU-W80 | AZ62: @FM-SOV-W80 | BA62: @FM-SPO-W80 | BB62: @FM-SPT-W80 | BC62: @FM-SPE-W80 | BD62: @FM-SPG-W80 | BE62: @FM-SPN-W80 | BF62: @FM-SSG-W80 | BG62: @FM-SSP-W80 | BH62: @FM-SSB-W80 | BI62: @FM-SSO-W80 | BJ62: @FM-SSY-W80 | BK62: @FM-SST-W80 | BL62: @FM-STP-W80 | BM62: @FM-STK-W80 | BN62: @FM-SWE-W80 | BO62: @FM-EAG-W80 | BP62: @FM-EAT-W80 | BQ62: @FM-EAB-W80 | BR62: @FM-EBR-W80 | BS62: @FM-EBG-W80 | BT62: @FM-EBW-W80 | BU62: @FM-ECS-W80 | BV62: @FM-EDM-W80 | BW62: @FM-EDP-W80 | BX62: @FM-EDS-W80 | BY62: @FM-EGP-W80 | BZ62: @FM-EHG-W80 | CA62: @FM-EIN-W80 | CB62: @FM-EIV-W80 | CC62: @FM-ELN-W80 | CD62: @FM-EDG-W80 | CE62: @FM-EME-W80 | CF62: @FM-EMN-W80 | CG62: @FM-EMU-W80 | CH62: @FM-EOV-W80 | CI62: @FM-EPT-W80 | CJ62: @FM-EPE-W80 | CK62: @FM-EPG-W80 | CL62: @FM-EPN-W80 | CM62: @FM-ESG-W80 | CN62: @FM-ESP-W80 | CO62: @FM-ESK-W80 | CP62: @FM-ESO-W80 | CQ62: @FM-ESY-W80 | CR62: @FM-ESN-W80 | CS62: @FM-ETP-W80 | CT62: @FM-ETK-W80 | CU62: @FM-EWE-W80
A63: W90 | B63: 900 Wall Unit - 720 High | C63: W90 | D63: @FM-MCS-W90 | E63: @FM-MGD-W90 | F63: @FM-MDS-W90 | G63: @FM-MGP-W90 | H63: @FM-MPN-W90 | I63: @FM-MGW-W90 | J63: @FM-MCM-W90 | K63: @FM-MDM-W90 | L63: @FM-MTM-W90 | M63: @FM-MGM-W90 | N63: @FM-MGR-W90 | O63: @FM-MIM-W90 | P63: @FM-MSM-W90 | Q63: @FM-MPM-W90 | R63: @FM-MTP-W90 | S63: @FM-MWM-W90 | T63: @FM-EOG-W90 | U63: @FM-EOM-W90 | V63: @FM-EPM-W90 | W63: @FM-EVM-W90 | X63: @FM-ENM-W90 | Y63: @FM-ELA-W90 | Z63: @FM-ELD-W90 | AA63: @FM-ELW-W90 | AB63: @FM-SAG-W90 | AC63: @FM-SAT-W90 | AD63: @FM-SAB-W90 | AE63: @FM-SBR-W90 | AF63: @FM-SBG-W90 | AG63: @FM-SBW-W90 | AH63: @FM-SBZ-W90 | AI63: @FM-SBF-W90 | AJ63: @FM-SCS-W90 | AK63: @FM-SCB-W90 | AL63: @FM-SDM-W90 | AM63: @FM-SDP-W90 | AN63: @FM-SDS-W90 | AO63: @FM-SGP-W90 | AP63: @FM-SHG-W90 | AQ63: @FM-SIN-W90 | AR63: @FM-SIV-W90 | AS63: @FM-SLR-W90 | AT63: @FM-SDG-W90 | AU63: @FM-SMW-W90 | AV63: @FM-SMZ-W90 | AW63: @FM-SMN-W90 | AX63: @FM-SMC-W90 | AY63: @FM-SMU-W90 | AZ63: @FM-SOV-W90 | BA63: @FM-SPO-W90 | BB63: @FM-SPT-W90 | BC63: @FM-SPE-W90 | BD63: @FM-SPG-W90 | BE63: @FM-SPN-W90 | BF63: @FM-SSG-W90 | BG63: @FM-SSP-W90 | BH63: @FM-SSB-W90 | BI63: @FM-SSO-W90 | BJ63: @FM-SSY-W90 | BK63: @FM-SST-W90 | BL63: @FM-STP-W90 | BM63: @FM-STK-W90 | BN63: @FM-SWE-W90 | BO63: @FM-EAG-W90 | BP63: @FM-EAT-W90 | BQ63: @FM-EAB-W90 | BR63: @FM-EBR-W90 | BS63: @FM-EBG-W90 | BT63: @FM-EBW-W90 | BU63: @FM-ECS-W90 | BV63: @FM-EDM-W90 | BW63: @FM-EDP-W90 | BX63: @FM-EDS-W90 | BY63: @FM-EGP-W90 | BZ63: @FM-EHG-W90 | CA63: @FM-EIN-W90 | CB63: @FM-EIV-W90 | CC63: @FM-ELN-W90 | CD63: @FM-EDG-W90 | CE63: @FM-EME-W90 | CF63: @FM-EMN-W90 | CG63: @FM-EMU-W90 | CH63: @FM-EOV-W90 | CI63: @FM-EPT-W90 | CJ63: @FM-EPE-W90 | CK63: @FM-EPG-W90 | CL63: @FM-EPN-W90 | CM63: @FM-ESG-W90 | CN63: @FM-ESP-W90 | CO63: @FM-ESK-W90 | CP63: @FM-ESO-W90 | CQ63: @FM-ESY-W90 | CR63: @FM-ESN-W90 | CS63: @FM-ETP-W90 | CT63: @FM-ETK-W90 | CU63: @FM-EWE-W90
A64: W100 | B64: 1000 Wall Unit - 720 High | C64: W100 | D64: @FM-MCS-W100 | E64: @FM-MGD-W100 | F64: @FM-MDS-W100 | G64: @FM-MGP-W100 | H64: @FM-MPN-W100 | I64: @FM-MGW-W100 | J64: @FM-MCM-W100 | K64: @FM-MDM-W100 | L64: @FM-MTM-W100 | M64: @FM-MGM-W100 | N64: @FM-MGR-W100 | O64: @FM-MIM-W100 | P64: @FM-MSM-W100 | Q64: @FM-MPM-W100 | R64: @FM-MTP-W100 | S64: @FM-MWM-W100 | T64: @FM-EOG-W100 | U64: @FM-EOM-W100 | V64: @FM-EPM-W100 | W64: @FM-EVM-W100 | X64: @FM-ENM-W100 | Y64: @FM-ELA-W100 | Z64: @FM-ELD-W100 | AA64: @FM-ELW-W100 | AB64: @FM-SAG-W100 | AC64: @FM-SAT-W100 | AD64: @FM-SAB-W100 | AE64: @FM-SBR-W100 | AF64: @FM-SBG-W100 | AG64: @FM-SBW-W100 | AH64: @FM-SBZ-W100 | AI64: @FM-SBF-W100 | AJ64: @FM-SCS-W100 | AK64: @FM-SCB-W100 | AL64: @FM-SDM-W100 | AM64: @FM-SDP-W100 | AN64: @FM-SDS-W100 | AO64: @FM-SGP-W100 | AP64: @FM-SHG-W100 | AQ64: @FM-SIN-W100 | AR64: @FM-SIV-W100 | AS64: @FM-SLR-W100 | AT64: @FM-SDG-W100 | AU64: @FM-SMW-W100 | AV64: @FM-SMZ-W100 | AW64: @FM-SMN-W100 | AX64: @FM-SMC-W100 | AY64: @FM-SMU-W100 | AZ64: @FM-SOV-W100 | BA64: @FM-SPO-W100 | BB64: @FM-SPT-W100 | BC64: @FM-SPE-W100 | BD64: @FM-SPG-W100 | BE64: @FM-SPN-W100 | BF64: @FM-SSG-W100 | BG64: @FM-SSP-W100 | BH64: @FM-SSB-W100 | BI64: @FM-SSO-W100 | BJ64: @FM-SSY-W100 | BK64: @FM-SST-W100 | BL64: @FM-STP-W100 | BM64: @FM-STK-W100 | BN64: @FM-SWE-W100 | BO64: @FM-EAG-W100 | BP64: @FM-EAT-W100 | BQ64: @FM-EAB-W100 | BR64: @FM-EBR-W100 | BS64: @FM-EBG-W100 | BT64: @FM-EBW-W100 | BU64: @FM-ECS-W100 | BV64: @FM-EDM-W100 | BW64: @FM-EDP-W100 | BX64: @FM-EDS-W100 | BY64: @FM-EGP-W100 | BZ64: @FM-EHG-W100 | CA64: @FM-EIN-W100 | CB64: @FM-EIV-W100 | CC64: @FM-ELN-W100 | CD64: @FM-EDG-W100 | CE64: @FM-EME-W100 | CF64: @FM-EMN-W100 | CG64: @FM-EMU-W100 | CH64: @FM-EOV-W100 | CI64: @FM-EPT-W100 | CJ64: @FM-EPE-W100 | CK64: @FM-EPG-W100 | CL64: @FM-EPN-W100 | CM64: @FM-ESG-W100 | CN64: @FM-ESP-W100 | CO64: @FM-ESK-W100 | CP64: @FM-ESO-W100 | CQ64: @FM-ESY-W100 | CR64: @FM-ESN-W100 | CS64: @FM-ETP-W100 | CT64: @FM-ETK-W100 | CU64: @FM-EWE-W100
A65: WC60 | B65: 600 Corner Wall Unit - 720 High | C65: WC60 | D65: @FM-MCS-WC60 | E65: @FM-MGD-WC60 | F65: @FM-MDS-WC60 | G65: @FM-MGP-WC60 | H65: @FM-MPN-WC60 | I65: @FM-MGW-WC60 | J65: @FM-MCM-WC60 | K65: @FM-MDM-WC60 | L65: @FM-MTM-WC60 | M65: @FM-MGM-WC60 | N65: @FM-MGR-WC60 | O65: @FM-MIM-WC60 | P65: @FM-MSM-WC60 | Q65: @FM-MPM-WC60 | R65: @FM-MTP-WC60 | S65: @FM-MWM-WC60 | T65: @FM-EOG-WC60 | U65: @FM-EOM-WC60 | V65: @FM-EPM-WC60 | W65: @FM-EVM-WC60 | X65: @FM-ENM-WC60 | Y65: @FM-ELA-WC60 | Z65: @FM-ELD-WC60 | AA65: @FM-ELW-WC60 | AB65: @FM-SAG-WC60 | AC65: @FM-SAT-WC60 | AD65: @FM-SAB-WC60 | AE65: @FM-SBR-WC60 | AF65: @FM-SBG-WC60 | AG65: @FM-SBW-WC60 | AH65: @FM-SBZ-WC60 | AI65: @FM-SBF-WC60 | AJ65: @FM-SCS-WC60 | AK65: @FM-SCB-WC60 | AL65: @FM-SDM-WC60 | AM65: @FM-SDP-WC60 | AN65: @FM-SDS-WC60 | AO65: @FM-SGP-WC60 | AP65: @FM-SHG-WC60 | AQ65: @FM-SIN-WC60 | AR65: @FM-SIV-WC60 | AS65: @FM-SLR-WC60 | AT65: @FM-SDG-WC60 | AU65: @FM-SMW-WC60 | AV65: @FM-SMZ-WC60 | AW65: @FM-SMN-WC60 | AX65: @FM-SMC-WC60 | AY65: @FM-SMU-WC60 | AZ65: @FM-SOV-WC60 | BA65: @FM-SPO-WC60 | BB65: @FM-SPT-WC60 | BC65: @FM-SPE-WC60 | BD65: @FM-SPG-WC60 | BE65: @FM-SPN-WC60 | BF65: @FM-SSG-WC60 | BG65: @FM-SSP-WC60 | BH65: @FM-SSB-WC60 | BI65: @FM-SSO-WC60 | BJ65: @FM-SSY-WC60 | BK65: @FM-SST-WC60 | BL65: @FM-STP-WC60 | BM65: @FM-STK-WC60 | BN65: @FM-SWE-WC60 | BO65: @FM-EAG-WC60 | BP65: @FM-EAT-WC60 | BQ65: @FM-EAB-WC60 | BR65: @FM-EBR-WC60 | BS65: @FM-EBG-WC60 | BT65: @FM-EBW-WC60 | BU65: @FM-ECS-WC60 | BV65: @FM-EDM-WC60 | BW65: @FM-EDP-WC60 | BX65: @FM-EDS-WC60 | BY65: @FM-EGP-WC60 | BZ65: @FM-EHG-WC60 | CA65: @FM-EIN-WC60 | CB65: @FM-EIV-WC60 | CC65: @FM-ELN-WC60 | CD65: @FM-EDG-WC60 | CE65: @FM-EME-WC60 | CF65: @FM-EMN-WC60 | CG65: @FM-EMU-WC60 | CH65: @FM-EOV-WC60 | CI65: @FM-EPT-WC60 | CJ65: @FM-EPE-WC60 | CK65: @FM-EPG-WC60 | CL65: @FM-EPN-WC60 | CM65: @FM-ESG-WC60 | CN65: @FM-ESP-WC60 | CO65: @FM-ESK-WC60 | CP65: @FM-ESO-WC60 | CQ65: @FM-ESY-WC60 | CR65: @FM-ESN-WC60 | CS65: @FM-ETP-WC60 | CT65: @FM-ETK-WC60 | CU65: @FM-EWE-WC60
A66: WC90 | B66: 900 Corner Wall Unit - 720 High | C66: WC90 | D66: @FM-MCS-WC90 | E66: @FM-MGD-WC90 | F66: @FM-MDS-WC90 | G66: @FM-MGP-WC90 | H66: @FM-MPN-WC90 | I66: @FM-MGW-WC90 | J66: @FM-MCM-WC90 | K66: @FM-MDM-WC90 | L66: @FM-MTM-WC90 | M66: @FM-MGM-WC90 | N66: @FM-MGR-WC90 | O66: @FM-MIM-WC90 | P66: @FM-MSM-WC90 | Q66: @FM-MPM-WC90 | R66: @FM-MTP-WC90 | S66: @FM-MWM-WC90 | T66: @FM-EOG-WC90 | U66: @FM-EOM-WC90 | V66: @FM-EPM-WC90 | W66: @FM-EVM-WC90 | X66: @FM-ENM-WC90 | Y66: @FM-ELA-WC90 | Z66: @FM-ELD-WC90 | AA66: @FM-ELW-WC90 | AB66: @FM-SAG-WC90 | AC66: @FM-SAT-WC90 | AD66: @FM-SAB-WC90 | AE66: @FM-SBR-WC90 | AF66: @FM-SBG-WC90 | AG66: @FM-SBW-WC90 | AH66: @FM-SBZ-WC90 | AI66: @FM-SBF-WC90 | AJ66: @FM-SCS-WC90 | AK66: @FM-SCB-WC90 | AL66: @FM-SDM-WC90 | AM66: @FM-SDP-WC90 | AN66: @FM-SDS-WC90 | AO66: @FM-SGP-WC90 | AP66: @FM-SHG-WC90 | AQ66: @FM-SIN-WC90 | AR66: @FM-SIV-WC90 | AS66: @FM-SLR-WC90 | AT66: @FM-SDG-WC90 | AU66: @FM-SMW-WC90 | AV66: @FM-SMZ-WC90 | AW66: @FM-SMN-WC90 | AX66: @FM-SMC-WC90 | AY66: @FM-SMU-WC90 | AZ66: @FM-SOV-WC90 | BA66: @FM-SPO-WC90 | BB66: @FM-SPT-WC90 | BC66: @FM-SPE-WC90 | BD66: @FM-SPG-WC90 | BE66: @FM-SPN-WC90 | BF66: @FM-SSG-WC90 | BG66: @FM-SSP-WC90 | BH66: @FM-SSB-WC90 | BI66: @FM-SSO-WC90 | BJ66: @FM-SSY-WC90 | BK66: @FM-SST-WC90 | BL66: @FM-STP-WC90 | BM66: @FM-STK-WC90 | BN66: @FM-SWE-WC90 | BO66: @FM-EAG-WC90 | BP66: @FM-EAT-WC90 | BQ66: @FM-EAB-WC90 | BR66: @FM-EBR-WC90 | BS66: @FM-EBG-WC90 | BT66: @FM-EBW-WC90 | BU66: @FM-ECS-WC90 | BV66: @FM-EDM-WC90 | BW66: @FM-EDP-WC90 | BX66: @FM-EDS-WC90 | BY66: @FM-EGP-WC90 | BZ66: @FM-EHG-WC90 | CA66: @FM-EIN-WC90 | CB66: @FM-EIV-WC90 | CC66: @FM-ELN-WC90 | CD66: @FM-EDG-WC90 | CE66: @FM-EME-WC90 | CF66: @FM-EMN-WC90 | CG66: @FM-EMU-WC90 | CH66: @FM-EOV-WC90 | CI66: @FM-EPT-WC90 | CJ66: @FM-EPE-WC90 | CK66: @FM-EPG-WC90 | CL66: @FM-EPN-WC90 | CM66: @FM-ESG-WC90 | CN66: @FM-ESP-WC90 | CO66: @FM-ESK-WC90 | CP66: @FM-ESO-WC90 | CQ66: @FM-ESY-WC90 | CR66: @FM-ESN-WC90 | CS66: @FM-ETP-WC90 | CT66: @FM-ETK-WC90 | CU66: @FM-EWE-WC90
A67: W357 | B67: 300 Wall Unit - 575 High | C67: W357 | D67: @FM-MCS-W357 | E67: @FM-MGD-W357 | F67: @FM-MDS-W357 | G67: @FM-MGP-W357 | H67: @FM-MPN-W357 | I67: @FM-MGW-W357 | J67: @FM-MCM-W357 | K67: @FM-MDM-W357 | L67: @FM-MTM-W357 | M67: @FM-MGM-W357 | N67: @FM-MGR-W357 | O67: @FM-MIM-W357 | P67: @FM-MSM-W357 | Q67: @FM-MPM-W357 | R67: @FM-MTP-W357 | S67: @FM-MWM-W357 | T67: @FM-EOG-W357 | U67: @FM-EOM-W357 | V67: @FM-EPM-W357 | W67: @FM-EVM-W357 | X67: @FM-ENM-W357 | Y67: @FM-ELA-W357 | Z67: @FM-ELD-W357 | AA67: @FM-ELW-W357 | AB67: @FM-SAG-W357 | AC67: @FM-SAT-W357 | AD67: @FM-SAB-W357 | AE67: @FM-SBR-W357 | AF67: @FM-SBG-W357 | AG67: @FM-SBW-W357 | AH67: @FM-SBZ-W357 | AI67: @FM-SBF-W357 | AJ67: @FM-SCS-W357 | AK67: @FM-SCB-W357 | AL67: @FM-SDM-W357 | AM67: @FM-SDP-W357 | AN67: @FM-SDS-W357 | AO67: @FM-SGP-W357 | AP67: @FM-SHG-W357 | AQ67: @FM-SIN-W357 | AR67: @FM-SIV-W357 | AS67: @FM-SLR-W357 | AT67: @FM-SDG-W357 | AU67: @FM-SMW-W357 | AV67: @FM-SMZ-W357 | AW67: @FM-SMN-W357 | AX67: @FM-SMC-W357 | AY67: @FM-SMU-W357 | AZ67: @FM-SOV-W357 | BA67: @FM-SPO-W357 | BB67: @FM-SPT-W357 | BC67: @FM-SPE-W357 | BD67: @FM-SPG-W357 | BE67: @FM-SPN-W357 | BF67: @FM-SSG-W357 | BG67: @FM-SSP-W357 | BH67: @FM-SSB-W357 | BI67: @FM-SSO-W357 | BJ67: @FM-SSY-W357 | BK67: @FM-SST-W357 | BL67: @FM-STP-W357 | BM67: @FM-STK-W357 | BN67: @FM-SWE-W357 | BO67: @FM-EAG-W357 | BP67: @FM-EAT-W357 | BQ67: @FM-EAB-W357 | BR67: @FM-EBR-W357 | BS67: @FM-EBG-W357 | BT67: @FM-EBW-W357 | BU67: @FM-ECS-W357 | BV67: @FM-EDM-W357 | BW67: @FM-EDP-W357 | BX67: @FM-EDS-W357 | BY67: @FM-EGP-W357 | BZ67: @FM-EHG-W357 | CA67: @FM-EIN-W357 | CB67: @FM-EIV-W357 | CC67: @FM-ELN-W357 | CD67: @FM-EDG-W357 | CE67: @FM-EME-W357 | CF67: @FM-EMN-W357 | CG67: @FM-EMU-W357 | CH67: @FM-EOV-W357 | CI67: @FM-EPT-W357 | CJ67: @FM-EPE-W357 | CK67: @FM-EPG-W357 | CL67: @FM-EPN-W357 | CM67: @FM-ESG-W357 | CN67: @FM-ESP-W357 | CO67: @FM-ESK-W357 | CP67: @FM-ESO-W357 | CQ67: @FM-ESY-W357 | CR67: @FM-ESN-W357 | CS67: @FM-ETP-W357 | CT67: @FM-ETK-W357 | CU67: @FM-EWE-W357
A68: W457 | B68: 400 Wall Unit - 575 High | C68: W457 | D68: @FM-MCS-W457 | E68: @FM-MGD-W457 | F68: @FM-MDS-W457 | G68: @FM-MGP-W457 | H68: @FM-MPN-W457 | I68: @FM-MGW-W457 | J68: @FM-MCM-W457 | K68: @FM-MDM-W457 | L68: @FM-MTM-W457 | M68: @FM-MGM-W457 | N68: @FM-MGR-W457 | O68: @FM-MIM-W457 | P68: @FM-MSM-W457 | Q68: @FM-MPM-W457 | R68: @FM-MTP-W457 | S68: @FM-MWM-W457 | T68: @FM-EOG-W457 | U68: @FM-EOM-W457 | V68: @FM-EPM-W457 | W68: @FM-EVM-W457 | X68: @FM-ENM-W457 | Y68: @FM-ELA-W457 | Z68: @FM-ELD-W457 | AA68: @FM-ELW-W457 | AB68: @FM-SAG-W457 | AC68: @FM-SAT-W457 | AD68: @FM-SAB-W457 | AE68: @FM-SBR-W457 | AF68: @FM-SBG-W457 | AG68: @FM-SBW-W457 | AH68: @FM-SBZ-W457 | AI68: @FM-SBF-W457 | AJ68: @FM-SCS-W457 | AK68: @FM-SCB-W457 | AL68: @FM-SDM-W457 | AM68: @FM-SDP-W457 | AN68: @FM-SDS-W457 | AO68: @FM-SGP-W457 | AP68: @FM-SHG-W457 | AQ68: @FM-SIN-W457 | AR68: @FM-SIV-W457 | AS68: @FM-SLR-W457 | AT68: @FM-SDG-W457 | AU68: @FM-SMW-W457 | AV68: @FM-SMZ-W457 | AW68: @FM-SMN-W457 | AX68: @FM-SMC-W457 | AY68: @FM-SMU-W457 | AZ68: @FM-SOV-W457 | BA68: @FM-SPO-W457 | BB68: @FM-SPT-W457 | BC68: @FM-SPE-W457 | BD68: @FM-SPG-W457 | BE68: @FM-SPN-W457 | BF68: @FM-SSG-W457 | BG68: @FM-SSP-W457 | BH68: @FM-SSB-W457 | BI68: @FM-SSO-W457 | BJ68: @FM-SSY-W457 | BK68: @FM-SST-W457 | BL68: @FM-STP-W457 | BM68: @FM-STK-W457 | BN68: @FM-SWE-W457 | BO68: @FM-EAG-W457 | BP68: @FM-EAT-W457 | BQ68: @FM-EAB-W457 | BR68: @FM-EBR-W457 | BS68: @FM-EBG-W457 | BT68: @FM-EBW-W457 | BU68: @FM-ECS-W457 | BV68: @FM-EDM-W457 | BW68: @FM-EDP-W457 | BX68: @FM-EDS-W457 | BY68: @FM-EGP-W457 | BZ68: @FM-EHG-W457 | CA68: @FM-EIN-W457 | CB68: @FM-EIV-W457 | CC68: @FM-ELN-W457 | CD68: @FM-EDG-W457 | CE68: @FM-EME-W457 | CF68: @FM-EMN-W457 | CG68: @FM-EMU-W457 | CH68: @FM-EOV-W457 | CI68: @FM-EPT-W457 | CJ68: @FM-EPE-W457 | CK68: @FM-EPG-W457 | CL68: @FM-EPN-W457 | CM68: @FM-ESG-W457 | CN68: @FM-ESP-W457 | CO68: @FM-ESK-W457 | CP68: @FM-ESO-W457 | CQ68: @FM-ESY-W457 | CR68: @FM-ESN-W457 | CS68: @FM-ETP-W457 | CT68: @FM-ETK-W457 | CU68: @FM-EWE-W457
A69: W4557 | B69: 450 Wall Unit - 575 High | C69: W4557 | D69: @FM-MCS-W4557 | E69: @FM-MGD-W4557 | F69: @FM-MDS-W4557 | G69: @FM-MGP-W4557 | H69: @FM-MPN-W4557 | I69: @FM-MGW-W4557 | J69: @FM-MCM-W4557 | K69: @FM-MDM-W4557 | L69: @FM-MTM-W4557 | M69: @FM-MGM-W4557 | N69: @FM-MGR-W4557 | O69: @FM-MIM-W4557 | P69: @FM-MSM-W4557 | Q69: @FM-MPM-W4557 | R69: @FM-MTP-W4557 | S69: @FM-MWM-W4557 | T69: @FM-EOG-W4557 | U69: @FM-EOM-W4557 | V69: @FM-EPM-W4557 | W69: @FM-EVM-W4557 | X69: @FM-ENM-W4557 | Y69: @FM-ELA-W4557 | Z69: @FM-ELD-W4557 | AA69: @FM-ELW-W4557 | AB69: @FM-SAG-W4557 | AC69: @FM-SAT-W4557 | AD69: @FM-SAB-W4557 | AE69: @FM-SBR-W4557 | AF69: @FM-SBG-W4557 | AG69: @FM-SBW-W4557 | AH69: @FM-SBZ-W4557 | AI69: @FM-SBF-W4557 | AJ69: @FM-SCS-W4557 | AK69: @FM-SCB-W4557 | AL69: @FM-SDM-W4557 | AM69: @FM-SDP-W4557 | AN69: @FM-SDS-W4557 | AO69: @FM-SGP-W4557 | AP69: @FM-SHG-W4557 | AQ69: @FM-SIN-W4557 | AR69: @FM-SIV-W4557 | AS69: @FM-SLR-W4557 | AT69: @FM-SDG-W4557 | AU69: @FM-SMW-W4557 | AV69: @FM-SMZ-W4557 | AW69: @FM-SMN-W4557 | AX69: @FM-SMC-W4557 | AY69: @FM-SMU-W4557 | AZ69: @FM-SOV-W4557 | BA69: @FM-SPO-W4557 | BB69: @FM-SPT-W4557 | BC69: @FM-SPE-W4557 | BD69: @FM-SPG-W4557 | BE69: @FM-SPN-W4557 | BF69: @FM-SSG-W4557 | BG69: @FM-SSP-W4557 | BH69: @FM-SSB-W4557 | BI69: @FM-SSO-W4557 | BJ69: @FM-SSY-W4557 | BK69: @FM-SST-W4557 | BL69: @FM-STP-W4557 | BM69: @FM-STK-W4557 | BN69: @FM-SWE-W4557 | BO69: @FM-EAG-W4557 | BP69: @FM-EAT-W4557 | BQ69: @FM-EAB-W4557 | BR69: @FM-EBR-W4557 | BS69: @FM-EBG-W4557 | BT69: @FM-EBW-W4557 | BU69: @FM-ECS-W4557 | BV69: @FM-EDM-W4557 | BW69: @FM-EDP-W4557 | BX69: @FM-EDS-W4557 | BY69: @FM-EGP-W4557 | BZ69: @FM-EHG-W4557 | CA69: @FM-EIN-W4557 | CB69: @FM-EIV-W4557 | CC69: @FM-ELN-W4557 | CD69: @FM-EDG-W4557 | CE69: @FM-EME-W4557 | CF69: @FM-EMN-W4557 | CG69: @FM-EMU-W4557 | CH69: @FM-EOV-W4557 | CI69: @FM-EPT-W4557 | CJ69: @FM-EPE-W4557 | CK69: @FM-EPG-W4557 | CL69: @FM-EPN-W4557 | CM69: @FM-ESG-W4557 | CN69: @FM-ESP-W4557 | CO69: @FM-ESK-W4557 | CP69: @FM-ESO-W4557 | CQ69: @FM-ESY-W4557 | CR69: @FM-ESN-W4557 | CS69: @FM-ETP-W4557 | CT69: @FM-ETK-W4557 | CU69: @FM-EWE-W4557
A70: W557 | B70: 500 Wall Unit - 575 High | C70: W557 | D70: @FM-MCS-W557 | E70: @FM-MGD-W557 | F70: @FM-MDS-W557 | G70: @FM-MGP-W557 | H70: @FM-MPN-W557 | I70: @FM-MGW-W557 | J70: @FM-MCM-W557 | K70: @FM-MDM-W557 | L70: @FM-MTM-W557 | M70: @FM-MGM-W557 | N70: @FM-MGR-W557 | O70: @FM-MIM-W557 | P70: @FM-MSM-W557 | Q70: @FM-MPM-W557 | R70: @FM-MTP-W557 | S70: @FM-MWM-W557 | T70: @FM-EOG-W557 | U70: @FM-EOM-W557 | V70: @FM-EPM-W557 | W70: @FM-EVM-W557 | X70: @FM-ENM-W557 | Y70: @FM-ELA-W557 | Z70: @FM-ELD-W557 | AA70: @FM-ELW-W557 | AB70: @FM-SAG-W557 | AC70: @FM-SAT-W557 | AD70: @FM-SAB-W557 | AE70: @FM-SBR-W557 | AF70: @FM-SBG-W557 | AG70: @FM-SBW-W557 | AH70: @FM-SBZ-W557 | AI70: @FM-SBF-W557 | AJ70: @FM-SCS-W557 | AK70: @FM-SCB-W557 | AL70: @FM-SDM-W557 | AM70: @FM-SDP-W557 | AN70: @FM-SDS-W557 | AO70: @FM-SGP-W557 | AP70: @FM-SHG-W557 | AQ70: @FM-SIN-W557 | AR70: @FM-SIV-W557 | AS70: @FM-SLR-W557 | AT70: @FM-SDG-W557 | AU70: @FM-SMW-W557 | AV70: @FM-SMZ-W557 | AW70: @FM-SMN-W557 | AX70: @FM-SMC-W557 | AY70: @FM-SMU-W557 | AZ70: @FM-SOV-W557 | BA70: @FM-SPO-W557 | BB70: @FM-SPT-W557 | BC70: @FM-SPE-W557 | BD70: @FM-SPG-W557 | BE70: @FM-SPN-W557 | BF70: @FM-SSG-W557 | BG70: @FM-SSP-W557 | BH70: @FM-SSB-W557 | BI70: @FM-SSO-W557 | BJ70: @FM-SSY-W557 | BK70: @FM-SST-W557 | BL70: @FM-STP-W557 | BM70: @FM-STK-W557 | BN70: @FM-SWE-W557 | BO70: @FM-EAG-W557 | BP70: @FM-EAT-W557 | BQ70: @FM-EAB-W557 | BR70: @FM-EBR-W557 | BS70: @FM-EBG-W557 | BT70: @FM-EBW-W557 | BU70: @FM-ECS-W557 | BV70: @FM-EDM-W557 | BW70: @FM-EDP-W557 | BX70: @FM-EDS-W557 | BY70: @FM-EGP-W557 | BZ70: @FM-EHG-W557 | CA70: @FM-EIN-W557 | CB70: @FM-EIV-W557 | CC70: @FM-ELN-W557 | CD70: @FM-EDG-W557 | CE70: @FM-EME-W557 | CF70: @FM-EMN-W557 | CG70: @FM-EMU-W557 | CH70: @FM-EOV-W557 | CI70: @FM-EPT-W557 | CJ70: @FM-EPE-W557 | CK70: @FM-EPG-W557 | CL70: @FM-EPN-W557 | CM70: @FM-ESG-W557 | CN70: @FM-ESP-W557 | CO70: @FM-ESK-W557 | CP70: @FM-ESO-W557 | CQ70: @FM-ESY-W557 | CR70: @FM-ESN-W557 | CS70: @FM-ETP-W557 | CT70: @FM-ETK-W557 | CU70: @FM-EWE-W557
A71: W657 | B71: 600 Wall Unit - 575 High | C71: W657 | D71: @FM-MCS-W657 | E71: @FM-MGD-W657 | F71: @FM-MDS-W657 | G71: @FM-MGP-W657 | H71: @FM-MPN-W657 | I71: @FM-MGW-W657 | J71: @FM-MCM-W657 | K71: @FM-MDM-W657 | L71: @FM-MTM-W657 | M71: @FM-MGM-W657 | N71: @FM-MGR-W657 | O71: @FM-MIM-W657 | P71: @FM-MSM-W657 | Q71: @FM-MPM-W657 | R71: @FM-MTP-W657 | S71: @FM-MWM-W657 | T71: @FM-EOG-W657 | U71: @FM-EOM-W657 | V71: @FM-EPM-W657 | W71: @FM-EVM-W657 | X71: @FM-ENM-W657 | Y71: @FM-ELA-W657 | Z71: @FM-ELD-W657 | AA71: @FM-ELW-W657 | AB71: @FM-SAG-W657 | AC71: @FM-SAT-W657 | AD71: @FM-SAB-W657 | AE71: @FM-SBR-W657 | AF71: @FM-SBG-W657 | AG71: @FM-SBW-W657 | AH71: @FM-SBZ-W657 | AI71: @FM-SBF-W657 | AJ71: @FM-SCS-W657 | AK71: @FM-SCB-W657 | AL71: @FM-SDM-W657 | AM71: @FM-SDP-W657 | AN71: @FM-SDS-W657 | AO71: @FM-SGP-W657 | AP71: @FM-SHG-W657 | AQ71: @FM-SIN-W657 | AR71: @FM-SIV-W657 | AS71: @FM-SLR-W657 | AT71: @FM-SDG-W657 | AU71: @FM-SMW-W657 | AV71: @FM-SMZ-W657 | AW71: @FM-SMN-W657 | AX71: @FM-SMC-W657 | AY71: @FM-SMU-W657 | AZ71: @FM-SOV-W657 | BA71: @FM-SPO-W657 | BB71: @FM-SPT-W657 | BC71: @FM-SPE-W657 | BD71: @FM-SPG-W657 | BE71: @FM-SPN-W657 | BF71: @FM-SSG-W657 | BG71: @FM-SSP-W657 | BH71: @FM-SSB-W657 | BI71: @FM-SSO-W657 | BJ71: @FM-SSY-W657 | BK71: @FM-SST-W657 | BL71: @FM-STP-W657 | BM71: @FM-STK-W657 | BN71: @FM-SWE-W657 | BO71: @FM-EAG-W657 | BP71: @FM-EAT-W657 | BQ71: @FM-EAB-W657 | BR71: @FM-EBR-W657 | BS71: @FM-EBG-W657 | BT71: @FM-EBW-W657 | BU71: @FM-ECS-W657 | BV71: @FM-EDM-W657 | BW71: @FM-EDP-W657 | BX71: @FM-EDS-W657 | BY71: @FM-EGP-W657 | BZ71: @FM-EHG-W657 | CA71: @FM-EIN-W657 | CB71: @FM-EIV-W657 | CC71: @FM-ELN-W657 | CD71: @FM-EDG-W657 | CE71: @FM-EME-W657 | CF71: @FM-EMN-W657 | CG71: @FM-EMU-W657 | CH71: @FM-EOV-W657 | CI71: @FM-EPT-W657 | CJ71: @FM-EPE-W657 | CK71: @FM-EPG-W657 | CL71: @FM-EPN-W657 | CM71: @FM-ESG-W657 | CN71: @FM-ESP-W657 | CO71: @FM-ESK-W657 | CP71: @FM-ESO-W657 | CQ71: @FM-ESY-W657 | CR71: @FM-ESN-W657 | CS71: @FM-ETP-W657 | CT71: @FM-ETK-W657 | CU71: @FM-EWE-W657
A72: W857 | B72: 800 Wall Unit - 575 High | C72: W857 | D72: @FM-MCS-W857 | E72: @FM-MGD-W857 | F72: @FM-MDS-W857 | G72: @FM-MGP-W857 | H72: @FM-MPN-W857 | I72: @FM-MGW-W857 | J72: @FM-MCM-W857 | K72: @FM-MDM-W857 | L72: @FM-MTM-W857 | M72: @FM-MGM-W857 | N72: @FM-MGR-W857 | O72: @FM-MIM-W857 | P72: @FM-MSM-W857 | Q72: @FM-MPM-W857 | R72: @FM-MTP-W857 | S72: @FM-MWM-W857 | T72: @FM-EOG-W857 | U72: @FM-EOM-W857 | V72: @FM-EPM-W857 | W72: @FM-EVM-W857 | X72: @FM-ENM-W857 | Y72: @FM-ELA-W857 | Z72: @FM-ELD-W857 | AA72: @FM-ELW-W857 | AB72: @FM-SAG-W857 | AC72: @FM-SAT-W857 | AD72: @FM-SAB-W857 | AE72: @FM-SBR-W857 | AF72: @FM-SBG-W857 | AG72: @FM-SBW-W857 | AH72: @FM-SBZ-W857 | AI72: @FM-SBF-W857 | AJ72: @FM-SCS-W857 | AK72: @FM-SCB-W857 | AL72: @FM-SDM-W857 | AM72: @FM-SDP-W857 | AN72: @FM-SDS-W857 | AO72: @FM-SGP-W857 | AP72: @FM-SHG-W857 | AQ72: @FM-SIN-W857 | AR72: @FM-SIV-W857 | AS72: @FM-SLR-W857 | AT72: @FM-SDG-W857 | AU72: @FM-SMW-W857 | AV72: @FM-SMZ-W857 | AW72: @FM-SMN-W857 | AX72: @FM-SMC-W857 | AY72: @FM-SMU-W857 | AZ72: @FM-SOV-W857 | BA72: @FM-SPO-W857 | BB72: @FM-SPT-W857 | BC72: @FM-SPE-W857 | BD72: @FM-SPG-W857 | BE72: @FM-SPN-W857 | BF72: @FM-SSG-W857 | BG72: @FM-SSP-W857 | BH72: @FM-SSB-W857 | BI72: @FM-SSO-W857 | BJ72: @FM-SSY-W857 | BK72: @FM-SST-W857 | BL72: @FM-STP-W857 | BM72: @FM-STK-W857 | BN72: @FM-SWE-W857 | BO72: @FM-EAG-W857 | BP72: @FM-EAT-W857 | BQ72: @FM-EAB-W857 | BR72: @FM-EBR-W857 | BS72: @FM-EBG-W857 | BT72: @FM-EBW-W857 | BU72: @FM-ECS-W857 | BV72: @FM-EDM-W857 | BW72: @FM-EDP-W857 | BX72: @FM-EDS-W857 | BY72: @FM-EGP-W857 | BZ72: @FM-EHG-W857 | CA72: @FM-EIN-W857 | CB72: @FM-EIV-W857 | CC72: @FM-ELN-W857 | CD72: @FM-EDG-W857 | CE72: @FM-EME-W857 | CF72: @FM-EMN-W857 | CG72: @FM-EMU-W857 | CH72: @FM-EOV-W857 | CI72: @FM-EPT-W857 | CJ72: @FM-EPE-W857 | CK72: @FM-EPG-W857 | CL72: @FM-EPN-W857 | CM72: @FM-ESG-W857 | CN72: @FM-ESP-W857 | CO72: @FM-ESK-W857 | CP72: @FM-ESO-W857 | CQ72: @FM-ESY-W857 | CR72: @FM-ESN-W857 | CS72: @FM-ETP-W857 | CT72: @FM-ETK-W857 | CU72: @FM-EWE-W857
A73: W957 | B73: 900 Wall Unit - 575 High | C73: W957 | D73: @FM-MCS-W957 | E73: @FM-MGD-W957 | F73: @FM-MDS-W957 | G73: @FM-MGP-W957 | H73: @FM-MPN-W957 | I73: @FM-MGW-W957 | J73: @FM-MCM-W957 | K73: @FM-MDM-W957 | L73: @FM-MTM-W957 | M73: @FM-MGM-W957 | N73: @FM-MGR-W957 | O73: @FM-MIM-W957 | P73: @FM-MSM-W957 | Q73: @FM-MPM-W957 | R73: @FM-MTP-W957 | S73: @FM-MWM-W957 | T73: @FM-EOG-W957 | U73: @FM-EOM-W957 | V73: @FM-EPM-W957 | W73: @FM-EVM-W957 | X73: @FM-ENM-W957 | Y73: @FM-ELA-W957 | Z73: @FM-ELD-W957 | AA73: @FM-ELW-W957 | AB73: @FM-SAG-W957 | AC73: @FM-SAT-W957 | AD73: @FM-SAB-W957 | AE73: @FM-SBR-W957 | AF73: @FM-SBG-W957 | AG73: @FM-SBW-W957 | AH73: @FM-SBZ-W957 | AI73: @FM-SBF-W957 | AJ73: @FM-SCS-W957 | AK73: @FM-SCB-W957 | AL73: @FM-SDM-W957 | AM73: @FM-SDP-W957 | AN73: @FM-SDS-W957 | AO73: @FM-SGP-W957 | AP73: @FM-SHG-W957 | AQ73: @FM-SIN-W957 | AR73: @FM-SIV-W957 | AS73: @FM-SLR-W957 | AT73: @FM-SDG-W957 | AU73: @FM-SMW-W957 | AV73: @FM-SMZ-W957 | AW73: @FM-SMN-W957 | AX73: @FM-SMC-W957 | AY73: @FM-SMU-W957 | AZ73: @FM-SOV-W957 | BA73: @FM-SPO-W957 | BB73: @FM-SPT-W957 | BC73: @FM-SPE-W957 | BD73: @FM-SPG-W957 | BE73: @FM-SPN-W957 | BF73: @FM-SSG-W957 | BG73: @FM-SSP-W957 | BH73: @FM-SSB-W957 | BI73: @FM-SSO-W957 | BJ73: @FM-SSY-W957 | BK73: @FM-SST-W957 | BL73: @FM-STP-W957 | BM73: @FM-STK-W957 | BN73: @FM-SWE-W957 | BO73: @FM-EAG-W957 | BP73: @FM-EAT-W957 | BQ73: @FM-EAB-W957 | BR73: @FM-EBR-W957 | BS73: @FM-EBG-W957 | BT73: @FM-EBW-W957 | BU73: @FM-ECS-W957 | BV73: @FM-EDM-W957 | BW73: @FM-EDP-W957 | BX73: @FM-EDS-W957 | BY73: @FM-EGP-W957 | BZ73: @FM-EHG-W957 | CA73: @FM-EIN-W957 | CB73: @FM-EIV-W957 | CC73: @FM-ELN-W957 | CD73: @FM-EDG-W957 | CE73: @FM-EME-W957 | CF73: @FM-EMN-W957 | CG73: @FM-EMU-W957 | CH73: @FM-EOV-W957 | CI73: @FM-EPT-W957 | CJ73: @FM-EPE-W957 | CK73: @FM-EPG-W957 | CL73: @FM-EPN-W957 | CM73: @FM-ESG-W957 | CN73: @FM-ESP-W957 | CO73: @FM-ESK-W957 | CP73: @FM-ESO-W957 | CQ73: @FM-ESY-W957 | CR73: @FM-ESN-W957 | CS73: @FM-ETP-W957 | CT73: @FM-ETK-W957 | CU73: @FM-EWE-W957
A74: W157 | B74: 1000 Wall Unit - 575 High | C74: W157 | D74: @FM-MCS-W157 | E74: @FM-MGD-W157 | F74: @FM-MDS-W157 | G74: @FM-MGP-W157 | H74: @FM-MPN-W157 | I74: @FM-MGW-W157 | J74: @FM-MCM-W157 | K74: @FM-MDM-W157 | L74: @FM-MTM-W157 | M74: @FM-MGM-W157 | N74: @FM-MGR-W157 | O74: @FM-MIM-W157 | P74: @FM-MSM-W157 | Q74: @FM-MPM-W157 | R74: @FM-MTP-W157 | S74: @FM-MWM-W157 | T74: @FM-EOG-W157 | U74: @FM-EOM-W157 | V74: @FM-EPM-W157 | W74: @FM-EVM-W157 | X74: @FM-ENM-W157 | Y74: @FM-ELA-W157 | Z74: @FM-ELD-W157 | AA74: @FM-ELW-W157 | AB74: @FM-SAG-W157 | AC74: @FM-SAT-W157 | AD74: @FM-SAB-W157 | AE74: @FM-SBR-W157 | AF74: @FM-SBG-W157 | AG74: @FM-SBW-W157 | AH74: @FM-SBZ-W157 | AI74: @FM-SBF-W157 | AJ74: @FM-SCS-W157 | AK74: @FM-SCB-W157 | AL74: @FM-SDM-W157 | AM74: @FM-SDP-W157 | AN74: @FM-SDS-W157 | AO74: @FM-SGP-W157 | AP74: @FM-SHG-W157 | AQ74: @FM-SIN-W157 | AR74: @FM-SIV-W157 | AS74: @FM-SLR-W157 | AT74: @FM-SDG-W157 | AU74: @FM-SMW-W157 | AV74: @FM-SMZ-W157 | AW74: @FM-SMN-W157 | AX74: @FM-SMC-W157 | AY74: @FM-SMU-W157 | AZ74: @FM-SOV-W157 | BA74: @FM-SPO-W157 | BB74: @FM-SPT-W157 | BC74: @FM-SPE-W157 | BD74: @FM-SPG-W157 | BE74: @FM-SPN-W157 | BF74: @FM-SSG-W157 | BG74: @FM-SSP-W157 | BH74: @FM-SSB-W157 | BI74: @FM-SSO-W157 | BJ74: @FM-SSY-W157 | BK74: @FM-SST-W157 | BL74: @FM-STP-W157 | BM74: @FM-STK-W157 | BN74: @FM-SWE-W157 | BO74: @FM-EAG-W157 | BP74: @FM-EAT-W157 | BQ74: @FM-EAB-W157 | BR74: @FM-EBR-W157 | BS74: @FM-EBG-W157 | BT74: @FM-EBW-W157 | BU74: @FM-ECS-W157 | BV74: @FM-EDM-W157 | BW74: @FM-EDP-W157 | BX74: @FM-EDS-W157 | BY74: @FM-EGP-W157 | BZ74: @FM-EHG-W157 | CA74: @FM-EIN-W157 | CB74: @FM-EIV-W157 | CC74: @FM-ELN-W157 | CD74: @FM-EDG-W157 | CE74: @FM-EME-W157 | CF74: @FM-EMN-W157 | CG74: @FM-EMU-W157 | CH74: @FM-EOV-W157 | CI74: @FM-EPT-W157 | CJ74: @FM-EPE-W157 | CK74: @FM-EPG-W157 | CL74: @FM-EPN-W157 | CM74: @FM-ESG-W157 | CN74: @FM-ESP-W157 | CO74: @FM-ESK-W157 | CP74: @FM-ESO-W157 | CQ74: @FM-ESY-W157 | CR74: @FM-ESN-W157 | CS74: @FM-ETP-W157 | CT74: @FM-ETK-W157 | CU74: @FM-EWE-W157
A75: WC657 | B75: 600 Corner Wall Unit - 575 High | C75: WC657 | D75: @FM-MCS-WC657 | E75: @FM-MGD-WC657 | F75: @FM-MDS-WC657 | G75: @FM-MGP-WC657 | H75: @FM-MPN-WC657 | I75: @FM-MGW-WC657 | J75: @FM-MCM-WC657 | K75: @FM-MDM-WC657 | L75: @FM-MTM-WC657 | M75: @FM-MGM-WC657 | N75: @FM-MGR-WC657 | O75: @FM-MIM-WC657 | P75: @FM-MSM-WC657 | Q75: @FM-MPM-WC657 | R75: @FM-MTP-WC657 | S75: @FM-MWM-WC657 | T75: @FM-EOG-WC657 | U75: @FM-EOM-WC657 | V75: @FM-EPM-WC657 | W75: @FM-EVM-WC657 | X75: @FM-ENM-WC657 | Y75: @FM-ELA-WC657 | Z75: @FM-ELD-WC657 | AA75: @FM-ELW-WC657 | AB75: @FM-SAG-WC657 | AC75: @FM-SAT-WC657 | AD75: @FM-SAB-WC657 | AE75: @FM-SBR-WC657 | AF75: @FM-SBG-WC657 | AG75: @FM-SBW-WC657 | AH75: @FM-SBZ-WC657 | AI75: @FM-SBF-WC657 | AJ75: @FM-SCS-WC657 | AK75: @FM-SCB-WC657 | AL75: @FM-SDM-WC657 | AM75: @FM-SDP-WC657 | AN75: @FM-SDS-WC657 | AO75: @FM-SGP-WC657 | AP75: @FM-SHG-WC657 | AQ75: @FM-SIN-WC657 | AR75: @FM-SIV-WC657 | AS75: @FM-SLR-WC657 | AT75: @FM-SDG-WC657 | AU75: @FM-SMW-WC657 | AV75: @FM-SMZ-WC657 | AW75: @FM-SMN-WC657 | AX75: @FM-SMC-WC657 | AY75: @FM-SMU-WC657 | AZ75: @FM-SOV-WC657 | BA75: @FM-SPO-WC657 | BB75: @FM-SPT-WC657 | BC75: @FM-SPE-WC657 | BD75: @FM-SPG-WC657 | BE75: @FM-SPN-WC657 | BF75: @FM-SSG-WC657 | BG75: @FM-SSP-WC657 | BH75: @FM-SSB-WC657 | BI75: @FM-SSO-WC657 | BJ75: @FM-SSY-WC657 | BK75: @FM-SST-WC657 | BL75: @FM-STP-WC657 | BM75: @FM-STK-WC657 | BN75: @FM-SWE-WC657 | BO75: @FM-EAG-WC657 | BP75: @FM-EAT-WC657 | BQ75: @FM-EAB-WC657 | BR75: @FM-EBR-WC657 | BS75: @FM-EBG-WC657 | BT75: @FM-EBW-WC657 | BU75: @FM-ECS-WC657 | BV75: @FM-EDM-WC657 | BW75: @FM-EDP-WC657 | BX75: @FM-EDS-WC657 | BY75: @FM-EGP-WC657 | BZ75: @FM-EHG-WC657 | CA75: @FM-EIN-WC657 | CB75: @FM-EIV-WC657 | CC75: @FM-ELN-WC657 | CD75: @FM-EDG-WC657 | CE75: @FM-EME-WC657 | CF75: @FM-EMN-WC657 | CG75: @FM-EMU-WC657 | CH75: @FM-EOV-WC657 | CI75: @FM-EPT-WC657 | CJ75: @FM-EPE-WC657 | CK75: @FM-EPG-WC657 | CL75: @FM-EPN-WC657 | CM75: @FM-ESG-WC657 | CN75: @FM-ESP-WC657 | CO75: @FM-ESK-WC657 | CP75: @FM-ESO-WC657 | CQ75: @FM-ESY-WC657 | CR75: @FM-ESN-WC657 | CS75: @FM-ETP-WC657 | CT75: @FM-ETK-WC657 | CU75: @FM-EWE-WC657
A76: WC957 | B76: 900 Corner Wall Unit - 575 High | C76: WC957 | D76: @FM-MCS-WC957 | E76: @FM-MGD-WC957 | F76: @FM-MDS-WC957 | G76: @FM-MGP-WC957 | H76: @FM-MPN-WC957 | I76: @FM-MGW-WC957 | J76: @FM-MCM-WC957 | K76: @FM-MDM-WC957 | L76: @FM-MTM-WC957 | M76: @FM-MGM-WC957 | N76: @FM-MGR-WC957 | O76: @FM-MIM-WC957 | P76: @FM-MSM-WC957 | Q76: @FM-MPM-WC957 | R76: @FM-MTP-WC957 | S76: @FM-MWM-WC957 | T76: @FM-EOG-WC957 | U76: @FM-EOM-WC957 | V76: @FM-EPM-WC957 | W76: @FM-EVM-WC957 | X76: @FM-ENM-WC957 | Y76: @FM-ELA-WC957 | Z76: @FM-ELD-WC957 | AA76: @FM-ELW-WC957 | AB76: @FM-SAG-WC957 | AC76: @FM-SAT-WC957 | AD76: @FM-SAB-WC957 | AE76: @FM-SBR-WC957 | AF76: @FM-SBG-WC957 | AG76: @FM-SBW-WC957 | AH76: @FM-SBZ-WC957 | AI76: @FM-SBF-WC957 | AJ76: @FM-SCS-WC957 | AK76: @FM-SCB-WC957 | AL76: @FM-SDM-WC957 | AM76: @FM-SDP-WC957 | AN76: @FM-SDS-WC957 | AO76: @FM-SGP-WC957 | AP76: @FM-SHG-WC957 | AQ76: @FM-SIN-WC957 | AR76: @FM-SIV-WC957 | AS76: @FM-SLR-WC957 | AT76: @FM-SDG-WC957 | AU76: @FM-SMW-WC957 | AV76: @FM-SMZ-WC957 | AW76: @FM-SMN-WC957 | AX76: @FM-SMC-WC957 | AY76: @FM-SMU-WC957 | AZ76: @FM-SOV-WC957 | BA76: @FM-SPO-WC957 | BB76: @FM-SPT-WC957 | BC76: @FM-SPE-WC957 | BD76: @FM-SPG-WC957 | BE76: @FM-SPN-WC957 | BF76: @FM-SSG-WC957 | BG76: @FM-SSP-WC957 | BH76: @FM-SSB-WC957 | BI76: @FM-SSO-WC957 | BJ76: @FM-SSY-WC957 | BK76: @FM-SST-WC957 | BL76: @FM-STP-WC957 | BM76: @FM-STK-WC957 | BN76: @FM-SWE-WC957 | BO76: @FM-EAG-WC957 | BP76: @FM-EAT-WC957 | BQ76: @FM-EAB-WC957 | BR76: @FM-EBR-WC957 | BS76: @FM-EBG-WC957 | BT76: @FM-EBW-WC957 | BU76: @FM-ECS-WC957 | BV76: @FM-EDM-WC957 | BW76: @FM-EDP-WC957 | BX76: @FM-EDS-WC957 | BY76: @FM-EGP-WC957 | BZ76: @FM-EHG-WC957 | CA76: @FM-EIN-WC957 | CB76: @FM-EIV-WC957 | CC76: @FM-ELN-WC957 | CD76: @FM-EDG-WC957 | CE76: @FM-EME-WC957 | CF76: @FM-EMN-WC957 | CG76: @FM-EMU-WC957 | CH76: @FM-EOV-WC957 | CI76: @FM-EPT-WC957 | CJ76: @FM-EPE-WC957 | CK76: @FM-EPG-WC957 | CL76: @FM-EPN-WC957 | CM76: @FM-ESG-WC957 | CN76: @FM-ESP-WC957 | CO76: @FM-ESK-WC957 | CP76: @FM-ESO-WC957 | CQ76: @FM-ESY-WC957 | CR76: @FM-ESN-WC957 | CS76: @FM-ETP-WC957 | CT76: @FM-ETK-WC957 | CU76: @FM-EWE-WC957
A77: WBI60 | B77: 600 Bifold Unit | C77: WBI60 | D77: @FM-MCS-WBI60 | E77: @FM-MGD-WBI60 | F77: @FM-MDS-WBI60 | G77: @FM-MGP-WBI60 | H77: @FM-MPN-WBI60 | I77: @FM-MGW-WBI60 | J77: @FM-MCM-WBI60 | K77: @FM-MDM-WBI60 | L77: @FM-MTM-WBI60 | M77: @FM-MGM-WBI60 | N77: @FM-MGR-WBI60 | O77: @FM-MIM-WBI60 | P77: @FM-MSM-WBI60 | Q77: @FM-MPM-WBI60 | R77: @FM-MTP-WBI60 | S77: @FM-MWM-WBI60 | T77: @FM-EOG-WBI60 | U77: @FM-EOM-WBI60 | V77: @FM-EPM-WBI60 | W77: @FM-EVM-WBI60 | X77: @FM-ENM-WBI60 | Y77: @FM-ELA-WBI60 | Z77: @FM-ELD-WBI60 | AA77: @FM-ELW-WBI60 | AB77: @FM-SAG-WBI60 | AC77: @FM-SAT-WBI60 | AD77: @FM-SAB-WBI60 | AE77: @FM-SBR-WBI60 | AF77: @FM-SBG-WBI60 | AG77: @FM-SBW-WBI60 | AH77: @FM-SBZ-WBI60 | AI77: @FM-SBF-WBI60 | AJ77: @FM-SCS-WBI60 | AK77: @FM-SCB-WBI60 | AL77: @FM-SDM-WBI60 | AM77: @FM-SDP-WBI60 | AN77: @FM-SDS-WBI60 | AO77: @FM-SGP-WBI60 | AP77: @FM-SHG-WBI60 | AQ77: @FM-SIN-WBI60 | AR77: @FM-SIV-WBI60 | AS77: @FM-SLR-WBI60 | AT77: @FM-SDG-WBI60 | AU77: @FM-SMW-WBI60 | AV77: @FM-SMZ-WBI60 | AW77: @FM-SMN-WBI60 | AX77: @FM-SMC-WBI60 | AY77: @FM-SMU-WBI60 | AZ77: @FM-SOV-WBI60 | BA77: @FM-SPO-WBI60 | BB77: @FM-SPT-WBI60 | BC77: @FM-SPE-WBI60 | BD77: @FM-SPG-WBI60 | BE77: @FM-SPN-WBI60 | BF77: @FM-SSG-WBI60 | BG77: @FM-SSP-WBI60 | BH77: @FM-SSB-WBI60 | BI77: @FM-SSO-WBI60 | BJ77: @FM-SSY-WBI60 | BK77: @FM-SST-WBI60 | BL77: @FM-STP-WBI60 | BM77: @FM-STK-WBI60 | BN77: @FM-SWE-WBI60 | BO77: @FM-EAG-WBI60 | BP77: @FM-EAT-WBI60 | BQ77: @FM-EAB-WBI60 | BR77: @FM-EBR-WBI60 | BS77: @FM-EBG-WBI60 | BT77: @FM-EBW-WBI60 | BU77: @FM-ECS-WBI60 | BV77: @FM-EDM-WBI60 | BW77: @FM-EDP-WBI60 | BX77: @FM-EDS-WBI60 | BY77: @FM-EGP-WBI60 | BZ77: @FM-EHG-WBI60 | CA77: @FM-EIN-WBI60 | CB77: @FM-EIV-WBI60 | CC77: @FM-ELN-WBI60 | CD77: @FM-EDG-WBI60 | CE77: @FM-EME-WBI60 | CF77: @FM-EMN-WBI60 | CG77: @FM-EMU-WBI60 | CH77: @FM-EOV-WBI60 | CI77: @FM-EPT-WBI60 | CJ77: @FM-EPE-WBI60 | CK77: @FM-EPG-WBI60 | CL77: @FM-EPN-WBI60 | CM77: @FM-ESG-WBI60 | CN77: @FM-ESP-WBI60 | CO77: @FM-ESK-WBI60 | CP77: @FM-ESO-WBI60 | CQ77: @FM-ESY-WBI60 | CR77: @FM-ESN-WBI60 | CS77: @FM-ETP-WBI60 | CT77: @FM-ETK-WBI60 | CU77: @FM-EWE-WBI60
A78: WBI80 | B78: 800 Bifold Unit | C78: WBI80 | D78: @FM-MCS-WBI80 | E78: @FM-MGD-WBI80 | F78: @FM-MDS-WBI80 | G78: @FM-MGP-WBI80 | H78: @FM-MPN-WBI80 | I78: @FM-MGW-WBI80 | J78: @FM-MCM-WBI80 | K78: @FM-MDM-WBI80 | L78: @FM-MTM-WBI80 | M78: @FM-MGM-WBI80 | N78: @FM-MGR-WBI80 | O78: @FM-MIM-WBI80 | P78: @FM-MSM-WBI80 | Q78: @FM-MPM-WBI80 | R78: @FM-MTP-WBI80 | S78: @FM-MWM-WBI80 | T78: @FM-EOG-WBI80 | U78: @FM-EOM-WBI80 | V78: @FM-EPM-WBI80 | W78: @FM-EVM-WBI80 | X78: @FM-ENM-WBI80 | Y78: @FM-ELA-WBI80 | Z78: @FM-ELD-WBI80 | AA78: @FM-ELW-WBI80 | AB78: @FM-SAG-WBI80 | AC78: @FM-SAT-WBI80 | AD78: @FM-SAB-WBI80 | AE78: @FM-SBR-WBI80 | AF78: @FM-SBG-WBI80 | AG78: @FM-SBW-WBI80 | AH78: @FM-SBZ-WBI80 | AI78: @FM-SBF-WBI80 | AJ78: @FM-SCS-WBI80 | AK78: @FM-SCB-WBI80 | AL78: @FM-SDM-WBI80 | AM78: @FM-SDP-WBI80 | AN78: @FM-SDS-WBI80 | AO78: @FM-SGP-WBI80 | AP78: @FM-SHG-WBI80 | AQ78: @FM-SIN-WBI80 | AR78: @FM-SIV-WBI80 | AS78: @FM-SLR-WBI80 | AT78: @FM-SDG-WBI80 | AU78: @FM-SMW-WBI80 | AV78: @FM-SMZ-WBI80 | AW78: @FM-SMN-WBI80 | AX78: @FM-SMC-WBI80 | AY78: @FM-SMU-WBI80 | AZ78: @FM-SOV-WBI80 | BA78: @FM-SPO-WBI80 | BB78: @FM-SPT-WBI80 | BC78: @FM-SPE-WBI80 | BD78: @FM-SPG-WBI80 | BE78: @FM-SPN-WBI80 | BF78: @FM-SSG-WBI80 | BG78: @FM-SSP-WBI80 | BH78: @FM-SSB-WBI80 | BI78: @FM-SSO-WBI80 | BJ78: @FM-SSY-WBI80 | BK78: @FM-SST-WBI80 | BL78: @FM-STP-WBI80 | BM78: @FM-STK-WBI80 | BN78: @FM-SWE-WBI80 | BO78: @FM-EAG-WBI80 | BP78: @FM-EAT-WBI80 | BQ78: @FM-EAB-WBI80 | BR78: @FM-EBR-WBI80 | BS78: @FM-EBG-WBI80 | BT78: @FM-EBW-WBI80 | BU78: @FM-ECS-WBI80 | BV78: @FM-EDM-WBI80 | BW78: @FM-EDP-WBI80 | BX78: @FM-EDS-WBI80 | BY78: @FM-EGP-WBI80 | BZ78: @FM-EHG-WBI80 | CA78: @FM-EIN-WBI80 | CB78: @FM-EIV-WBI80 | CC78: @FM-ELN-WBI80 | CD78: @FM-EDG-WBI80 | CE78: @FM-EME-WBI80 | CF78: @FM-EMN-WBI80 | CG78: @FM-EMU-WBI80 | CH78: @FM-EOV-WBI80 | CI78: @FM-EPT-WBI80 | CJ78: @FM-EPE-WBI80 | CK78: @FM-EPG-WBI80 | CL78: @FM-EPN-WBI80 | CM78: @FM-ESG-WBI80 | CN78: @FM-ESP-WBI80 | CO78: @FM-ESK-WBI80 | CP78: @FM-ESO-WBI80 | CQ78: @FM-ESY-WBI80 | CR78: @FM-ESN-WBI80 | CS78: @FM-ETP-WBI80 | CT78: @FM-ETK-WBI80 | CU78: @FM-EWE-WBI80
A79: WBI90 | B79: 900 Bifold Unit | C79: WBI90 | D79: @FM-MCS-WBI90 | E79: @FM-MGD-WBI90 | F79: @FM-MDS-WBI90 | G79: @FM-MGP-WBI90 | H79: @FM-MPN-WBI90 | I79: @FM-MGW-WBI90 | J79: @FM-MCM-WBI90 | K79: @FM-MDM-WBI90 | L79: @FM-MTM-WBI90 | M79: @FM-MGM-WBI90 | N79: @FM-MGR-WBI90 | O79: @FM-MIM-WBI90 | P79: @FM-MSM-WBI90 | Q79: @FM-MPM-WBI90 | R79: @FM-MTP-WBI90 | S79: @FM-MWM-WBI90 | T79: @FM-EOG-WBI90 | U79: @FM-EOM-WBI90 | V79: @FM-EPM-WBI90 | W79: @FM-EVM-WBI90 | X79: @FM-ENM-WBI90 | Y79: @FM-ELA-WBI90 | Z79: @FM-ELD-WBI90 | AA79: @FM-ELW-WBI90 | AB79: @FM-SAG-WBI90 | AC79: @FM-SAT-WBI90 | AD79: @FM-SAB-WBI90 | AE79: @FM-SBR-WBI90 | AF79: @FM-SBG-WBI90 | AG79: @FM-SBW-WBI90 | AH79: @FM-SBZ-WBI90 | AI79: @FM-SBF-WBI90 | AJ79: @FM-SCS-WBI90 | AK79: @FM-SCB-WBI90 | AL79: @FM-SDM-WBI90 | AM79: @FM-SDP-WBI90 | AN79: @FM-SDS-WBI90 | AO79: @FM-SGP-WBI90 | AP79: @FM-SHG-WBI90 | AQ79: @FM-SIN-WBI90 | AR79: @FM-SIV-WBI90 | AS79: @FM-SLR-WBI90 | AT79: @FM-SDG-WBI90 | AU79: @FM-SMW-WBI90 | AV79: @FM-SMZ-WBI90 | AW79: @FM-SMN-WBI90 | AX79: @FM-SMC-WBI90 | AY79: @FM-SMU-WBI90 | AZ79: @FM-SOV-WBI90 | BA79: @FM-SPO-WBI90 | BB79: @FM-SPT-WBI90 | BC79: @FM-SPE-WBI90 | BD79: @FM-SPG-WBI90 | BE79: @FM-SPN-WBI90 | BF79: @FM-SSG-WBI90 | BG79: @FM-SSP-WBI90 | BH79: @FM-SSB-WBI90 | BI79: @FM-SSO-WBI90 | BJ79: @FM-SSY-WBI90 | BK79: @FM-SST-WBI90 | BL79: @FM-STP-WBI90 | BM79: @FM-STK-WBI90 | BN79: @FM-SWE-WBI90 | BO79: @FM-EAG-WBI90 | BP79: @FM-EAT-WBI90 | BQ79: @FM-EAB-WBI90 | BR79: @FM-EBR-WBI90 | BS79: @FM-EBG-WBI90 | BT79: @FM-EBW-WBI90 | BU79: @FM-ECS-WBI90 | BV79: @FM-EDM-WBI90 | BW79: @FM-EDP-WBI90 | BX79: @FM-EDS-WBI90 | BY79: @FM-EGP-WBI90 | BZ79: @FM-EHG-WBI90 | CA79: @FM-EIN-WBI90 | CB79: @FM-EIV-WBI90 | CC79: @FM-ELN-WBI90 | CD79: @FM-EDG-WBI90 | CE79: @FM-EME-WBI90 | CF79: @FM-EMN-WBI90 | CG79: @FM-EMU-WBI90 | CH79: @FM-EOV-WBI90 | CI79: @FM-EPT-WBI90 | CJ79: @FM-EPE-WBI90 | CK79: @FM-EPG-WBI90 | CL79: @FM-EPN-WBI90 | CM79: @FM-ESG-WBI90 | CN79: @FM-ESP-WBI90 | CO79: @FM-ESK-WBI90 | CP79: @FM-ESO-WBI90 | CQ79: @FM-ESY-WBI90 | CR79: @FM-ESN-WBI90 | CS79: @FM-ETP-WBI90 | CT79: @FM-ETK-WBI90 | CU79: @FM-EWE-WBI90
A80: WBI10 | B80: 1000 Bifold Unit | C80: WBI10 | D80: @FM-MCS-WBI10 | E80: @FM-MGD-WBI10 | F80: @FM-MDS-WBI10 | G80: @FM-MGP-WBI10 | H80: @FM-MPN-WBI10 | I80: @FM-MGW-WBI10 | J80: @FM-MCM-WBI10 | K80: @FM-MDM-WBI10 | L80: @FM-MTM-WBI10 | M80: @FM-MGM-WBI10 | N80: @FM-MGR-WBI10 | O80: @FM-MIM-WBI10 | P80: @FM-MSM-WBI10 | Q80: @FM-MPM-WBI10 | R80: @FM-MTP-WBI10 | S80: @FM-MWM-WBI10 | T80: @FM-EOG-WBI10 | U80: @FM-EOM-WBI10 | V80: @FM-EPM-WBI10 | W80: @FM-EVM-WBI10 | X80: @FM-ENM-WBI10 | Y80: @FM-ELA-WBI10 | Z80: @FM-ELD-WBI10 | AA80: @FM-ELW-WBI10 | AB80: @FM-SAG-WBI10 | AC80: @FM-SAT-WBI10 | AD80: @FM-SAB-WBI10 | AE80: @FM-SBR-WBI10 | AF80: @FM-SBG-WBI10 | AG80: @FM-SBW-WBI10 | AH80: @FM-SBZ-WBI10 | AI80: @FM-SBF-WBI10 | AJ80: @FM-SCS-WBI10 | AK80: @FM-SCB-WBI10 | AL80: @FM-SDM-WBI10 | AM80: @FM-SDP-WBI10 | AN80: @FM-SDS-WBI10 | AO80: @FM-SGP-WBI10 | AP80: @FM-SHG-WBI10 | AQ80: @FM-SIN-WBI10 | AR80: @FM-SIV-WBI10 | AS80: @FM-SLR-WBI10 | AT80: @FM-SDG-WBI10 | AU80: @FM-SMW-WBI10 | AV80: @FM-SMZ-WBI10 | AW80: @FM-SMN-WBI10 | AX80: @FM-SMC-WBI10 | AY80: @FM-SMU-WBI10 | AZ80: @FM-SOV-WBI10 | BA80: @FM-SPO-WBI10 | BB80: @FM-SPT-WBI10 | BC80: @FM-SPE-WBI10 | BD80: @FM-SPG-WBI10 | BE80: @FM-SPN-WBI10 | BF80: @FM-SSG-WBI10 | BG80: @FM-SSP-WBI10 | BH80: @FM-SSB-WBI10 | BI80: @FM-SSO-WBI10 | BJ80: @FM-SSY-WBI10 | BK80: @FM-SST-WBI10 | BL80: @FM-STP-WBI10 | BM80: @FM-STK-WBI10 | BN80: @FM-SWE-WBI10 | BO80: @FM-EAG-WBI10 | BP80: @FM-EAT-WBI10 | BQ80: @FM-EAB-WBI10 | BR80: @FM-EBR-WBI10 | BS80: @FM-EBG-WBI10 | BT80: @FM-EBW-WBI10 | BU80: @FM-ECS-WBI10 | BV80: @FM-EDM-WBI10 | BW80: @FM-EDP-WBI10 | BX80: @FM-EDS-WBI10 | BY80: @FM-EGP-WBI10 | BZ80: @FM-EHG-WBI10 | CA80: @FM-EIN-WBI10 | CB80: @FM-EIV-WBI10 | CC80: @FM-ELN-WBI10 | CD80: @FM-EDG-WBI10 | CE80: @FM-EME-WBI10 | CF80: @FM-EMN-WBI10 | CG80: @FM-EMU-WBI10 | CH80: @FM-EOV-WBI10 | CI80: @FM-EPT-WBI10 | CJ80: @FM-EPE-WBI10 | CK80: @FM-EPG-WBI10 | CL80: @FM-EPN-WBI10 | CM80: @FM-ESG-WBI10 | CN80: @FM-ESP-WBI10 | CO80: @FM-ESK-WBI10 | CP80: @FM-ESO-WBI10 | CQ80: @FM-ESY-WBI10 | CR80: @FM-ESN-WBI10 | CS80: @FM-ETP-WBI10 | CT80: @FM-ETK-WBI10 | CU80: @FM-EWE-WBI10
A81: WG50 | B81: 500 Smoked Glass Door Wall Unit - 720 High | C81: WG50 | D81: @FM-BKG-WG50 | E81: @FM-BKG-WG50 | F81: @FM-BKG-WG50 | G81: @FM-BKG-WG50 | H81: @FM-BKG-WG50 | I81: @FM-BKG-WG50 | J81: @FM-BKG-WG50 | K81: @FM-BKG-WG50 | L81: @FM-BKG-WG50 | M81: @FM-BKG-WG50 | N81: @FM-BKG-WG50 | O81: @FM-BKG-WG50 | P81: @FM-BKG-WG50 | Q81: @FM-BKG-WG50 | R81: @FM-BKG-WG50 | S81: @FM-BKG-WG50 | T81: @FM-BKG-WG50 | U81: @FM-BKG-WG50 | V81: @FM-BKG-WG50 | W81: @FM-BKG-WG50 | X81: @FM-BKG-WG50 | Y81: @FM-BKG-WG50 | Z81: @FM-BKG-WG50 | AA81: @FM-BKG-WG50 | AB81: @FM-BKG-WG50 | AC81: @FM-BKG-WG50 | AD81: @FM-BKG-WG50 | AE81: @FM-BKG-WG50 | AF81: @FM-BKG-WG50 | AG81: @FM-BKG-WG50 | AH81: @FM-BKG-WG50 | AI81: @FM-BKG-WG50 | AJ81: @FM-BKG-WG50 | AK81: @FM-BKG-WG50 | AL81: @FM-BKG-WG50 | AM81: @FM-BKG-WG50 | AN81: @FM-BKG-WG50 | AO81: @FM-BKG-WG50 | AP81: @FM-BKG-WG50 | AQ81: @FM-BKG-WG50 | AR81: @FM-BKG-WG50 | AS81: @FM-BKG-WG50 | AT81: @FM-BKG-WG50 | AU81: @FM-BKG-WG50 | AV81: @FM-BKG-WG50 | AW81: @FM-BKG-WG50 | AX81: @FM-BKG-WG50 | AY81: @FM-BKG-WG50 | AZ81: @FM-BKG-WG50 | BA81: @FM-BKG-WG50 | BB81: @FM-BKG-WG50 | BC81: @FM-BKG-WG50 | BD81: @FM-BKG-WG50 | BE81: @FM-BKG-WG50 | BF81: @FM-BKG-WG50 | BG81: @FM-BKG-WG50 | BH81: @FM-BKG-WG50 | BI81: @FM-BKG-WG50 | BJ81: @FM-BKG-WG50 | BK81: @FM-BKG-WG50 | BL81: @FM-BKG-WG50 | BM81: @FM-BKG-WG50 | BN81: @FM-BKG-WG50 | BO81: @FM-BKG-WG50 | BP81: @FM-BKG-WG50 | BQ81: @FM-BKG-WG50 | BR81: @FM-BKG-WG50 | BS81: @FM-BKG-WG50 | BT81: @FM-BKG-WG50 | BU81: @FM-BKG-WG50 | BV81: @FM-BKG-WG50 | BW81: @FM-BKG-WG50 | BX81: @FM-BKG-WG50 | BY81: @FM-BKG-WG50 | BZ81: @FM-BKG-WG50 | CA81: @FM-BKG-WG50 | CB81: @FM-BKG-WG50 | CC81: @FM-BKG-WG50 | CD81: @FM-BKG-WG50 | CE81: @FM-BKG-WG50 | CF81: @FM-BKG-WG50 | CG81: @FM-BKG-WG50 | CH81: @FM-BKG-WG50 | CI81: @FM-BKG-WG50 | CJ81: @FM-BKG-WG50 | CK81: @FM-BKG-WG50 | CL81: @FM-BKG-WG50 | CM81: @FM-BKG-WG50 | CN81: @FM-BKG-WG50 | CO81: @FM-BKG-WG50 | CP81: @FM-BKG-WG50 | CQ81: @FM-BKG-WG50 | CR81: @FM-BKG-WG50 | CS81: @FM-BKG-WG50 | CT81: @FM-BKG-WG50 | CU81: @FM-BKG-WG50
A82: WG60 | B82: 600 Smoked Glass Door Wall Unit - 720 High | C82: WG60 | D82: @FM-BKG-WG60 | E82: @FM-BKG-WG60 | F82: @FM-BKG-WG60 | G82: @FM-BKG-WG60 | H82: @FM-BKG-WG60 | I82: @FM-BKG-WG60 | J82: @FM-BKG-WG60 | K82: @FM-BKG-WG60 | L82: @FM-BKG-WG60 | M82: @FM-BKG-WG60 | N82: @FM-BKG-WG60 | O82: @FM-BKG-WG60 | P82: @FM-BKG-WG60 | Q82: @FM-BKG-WG60 | R82: @FM-BKG-WG60 | S82: @FM-BKG-WG60 | T82: @FM-BKG-WG60 | U82: @FM-BKG-WG60 | V82: @FM-BKG-WG60 | W82: @FM-BKG-WG60 | X82: @FM-BKG-WG60 | Y82: @FM-BKG-WG60 | Z82: @FM-BKG-WG60 | AA82: @FM-BKG-WG60 | AB82: @FM-BKG-WG60 | AC82: @FM-BKG-WG60 | AD82: @FM-BKG-WG60 | AE82: @FM-BKG-WG60 | AF82: @FM-BKG-WG60 | AG82: @FM-BKG-WG60 | AH82: @FM-BKG-WG60 | AI82: @FM-BKG-WG60 | AJ82: @FM-BKG-WG60 | AK82: @FM-BKG-WG60 | AL82: @FM-BKG-WG60 | AM82: @FM-BKG-WG60 | AN82: @FM-BKG-WG60 | AO82: @FM-BKG-WG60 | AP82: @FM-BKG-WG60 | AQ82: @FM-BKG-WG60 | AR82: @FM-BKG-WG60 | AS82: @FM-BKG-WG60 | AT82: @FM-BKG-WG60 | AU82: @FM-BKG-WG60 | AV82: @FM-BKG-WG60 | AW82: @FM-BKG-WG60 | AX82: @FM-BKG-WG60 | AY82: @FM-BKG-WG60 | AZ82: @FM-BKG-WG60 | BA82: @FM-BKG-WG60 | BB82: @FM-BKG-WG60 | BC82: @FM-BKG-WG60 | BD82: @FM-BKG-WG60 | BE82: @FM-BKG-WG60 | BF82: @FM-BKG-WG60 | BG82: @FM-BKG-WG60 | BH82: @FM-BKG-WG60 | BI82: @FM-BKG-WG60 | BJ82: @FM-BKG-WG60 | BK82: @FM-BKG-WG60 | BL82: @FM-BKG-WG60 | BM82: @FM-BKG-WG60 | BN82: @FM-BKG-WG60 | BO82: @FM-BKG-WG60 | BP82: @FM-BKG-WG60 | BQ82: @FM-BKG-WG60 | BR82: @FM-BKG-WG60 | BS82: @FM-BKG-WG60 | BT82: @FM-BKG-WG60 | BU82: @FM-BKG-WG60 | BV82: @FM-BKG-WG60 | BW82: @FM-BKG-WG60 | BX82: @FM-BKG-WG60 | BY82: @FM-BKG-WG60 | BZ82: @FM-BKG-WG60 | CA82: @FM-BKG-WG60 | CB82: @FM-BKG-WG60 | CC82: @FM-BKG-WG60 | CD82: @FM-BKG-WG60 | CE82: @FM-BKG-WG60 | CF82: @FM-BKG-WG60 | CG82: @FM-BKG-WG60 | CH82: @FM-BKG-WG60 | CI82: @FM-BKG-WG60 | CJ82: @FM-BKG-WG60 | CK82: @FM-BKG-WG60 | CL82: @FM-BKG-WG60 | CM82: @FM-BKG-WG60 | CN82: @FM-BKG-WG60 | CO82: @FM-BKG-WG60 | CP82: @FM-BKG-WG60 | CQ82: @FM-BKG-WG60 | CR82: @FM-BKG-WG60 | CS82: @FM-BKG-WG60 | CT82: @FM-BKG-WG60 | CU82: @FM-BKG-WG60
A83: WGR5 | B83: 500 Reeded Glass Door Wall Unit - 720 High | C83: WGR5 | D83: @FM-BKG-WGR5 | E83: @FM-BKG-WGR5 | F83: @FM-BKG-WGR5 | G83: @FM-BKG-WGR5 | H83: @FM-BKG-WGR5 | I83: @FM-BKG-WGR5 | J83: @FM-BKG-WGR5 | K83: @FM-BKG-WGR5 | L83: @FM-BKG-WGR5 | M83: @FM-BKG-WGR5 | N83: @FM-BKG-WGR5 | O83: @FM-BKG-WGR5 | P83: @FM-BKG-WGR5 | Q83: @FM-BKG-WGR5 | R83: @FM-BKG-WGR5 | S83: @FM-BKG-WGR5 | T83: @FM-BKG-WGR5 | U83: @FM-BKG-WGR5 | V83: @FM-BKG-WGR5 | W83: @FM-BKG-WGR5 | X83: @FM-BKG-WGR5 | Y83: @FM-BKG-WGR5 | Z83: @FM-BKG-WGR5 | AA83: @FM-BKG-WGR5 | AB83: @FM-BKG-WGR5 | AC83: @FM-BKG-WGR5 | AD83: @FM-BKG-WGR5 | AE83: @FM-BKG-WGR5 | AF83: @FM-BKG-WGR5 | AG83: @FM-BKG-WGR5 | AH83: @FM-BKG-WGR5 | AI83: @FM-BKG-WGR5 | AJ83: @FM-BKG-WGR5 | AK83: @FM-BKG-WGR5 | AL83: @FM-BKG-WGR5 | AM83: @FM-BKG-WGR5 | AN83: @FM-BKG-WGR5 | AO83: @FM-BKG-WGR5 | AP83: @FM-BKG-WGR5 | AQ83: @FM-BKG-WGR5 | AR83: @FM-BKG-WGR5 | AS83: @FM-BKG-WGR5 | AT83: @FM-BKG-WGR5 | AU83: @FM-BKG-WGR5 | AV83: @FM-BKG-WGR5 | AW83: @FM-BKG-WGR5 | AX83: @FM-BKG-WGR5 | AY83: @FM-BKG-WGR5 | AZ83: @FM-BKG-WGR5 | BA83: @FM-BKG-WGR5 | BB83: @FM-BKG-WGR5 | BC83: @FM-BKG-WGR5 | BD83: @FM-BKG-WGR5 | BE83: @FM-BKG-WGR5 | BF83: @FM-BKG-WGR5 | BG83: @FM-BKG-WGR5 | BH83: @FM-BKG-WGR5 | BI83: @FM-BKG-WGR5 | BJ83: @FM-BKG-WGR5 | BK83: @FM-BKG-WGR5 | BL83: @FM-BKG-WGR5 | BM83: @FM-BKG-WGR5 | BN83: @FM-BKG-WGR5 | BO83: @FM-BKG-WGR5 | BP83: @FM-BKG-WGR5 | BQ83: @FM-BKG-WGR5 | BR83: @FM-BKG-WGR5 | BS83: @FM-BKG-WGR5 | BT83: @FM-BKG-WGR5 | BU83: @FM-BKG-WGR5 | BV83: @FM-BKG-WGR5 | BW83: @FM-BKG-WGR5 | BX83: @FM-BKG-WGR5 | BY83: @FM-BKG-WGR5 | BZ83: @FM-BKG-WGR5 | CA83: @FM-BKG-WGR5 | CB83: @FM-BKG-WGR5 | CC83: @FM-BKG-WGR5 | CD83: @FM-BKG-WGR5 | CE83: @FM-BKG-WGR5 | CF83: @FM-BKG-WGR5 | CG83: @FM-BKG-WGR5 | CH83: @FM-BKG-WGR5 | CI83: @FM-BKG-WGR5 | CJ83: @FM-BKG-WGR5 | CK83: @FM-BKG-WGR5 | CL83: @FM-BKG-WGR5 | CM83: @FM-BKG-WGR5 | CN83: @FM-BKG-WGR5 | CO83: @FM-BKG-WGR5 | CP83: @FM-BKG-WGR5 | CQ83: @FM-BKG-WGR5 | CR83: @FM-BKG-WGR5 | CS83: @FM-BKG-WGR5 | CT83: @FM-BKG-WGR5 | CU83: @FM-BKG-WGR5
A84: WGR6 | B84: 600 Reeded Glass Door Wall Unit - 720 High | C84: WGR6 | D84: @FM-BKG-WGR6 | E84: @FM-BKG-WGR6 | F84: @FM-BKG-WGR6 | G84: @FM-BKG-WGR6 | H84: @FM-BKG-WGR6 | I84: @FM-BKG-WGR6 | J84: @FM-BKG-WGR6 | K84: @FM-BKG-WGR6 | L84: @FM-BKG-WGR6 | M84: @FM-BKG-WGR6 | N84: @FM-BKG-WGR6 | O84: @FM-BKG-WGR6 | P84: @FM-BKG-WGR6 | Q84: @FM-BKG-WGR6 | R84: @FM-BKG-WGR6 | S84: @FM-BKG-WGR6 | T84: @FM-BKG-WGR6 | U84: @FM-BKG-WGR6 | V84: @FM-BKG-WGR6 | W84: @FM-BKG-WGR6 | X84: @FM-BKG-WGR6 | Y84: @FM-BKG-WGR6 | Z84: @FM-BKG-WGR6 | AA84: @FM-BKG-WGR6 | AB84: @FM-BKG-WGR6 | AC84: @FM-BKG-WGR6 | AD84: @FM-BKG-WGR6 | AE84: @FM-BKG-WGR6 | AF84: @FM-BKG-WGR6 | AG84: @FM-BKG-WGR6 | AH84: @FM-BKG-WGR6 | AI84: @FM-BKG-WGR6 | AJ84: @FM-BKG-WGR6 | AK84: @FM-BKG-WGR6 | AL84: @FM-BKG-WGR6 | AM84: @FM-BKG-WGR6 | AN84: @FM-BKG-WGR6 | AO84: @FM-BKG-WGR6 | AP84: @FM-BKG-WGR6 | AQ84: @FM-BKG-WGR6 | AR84: @FM-BKG-WGR6 | AS84: @FM-BKG-WGR6 | AT84: @FM-BKG-WGR6 | AU84: @FM-BKG-WGR6 | AV84: @FM-BKG-WGR6 | AW84: @FM-BKG-WGR6 | AX84: @FM-BKG-WGR6 | AY84: @FM-BKG-WGR6 | AZ84: @FM-BKG-WGR6 | BA84: @FM-BKG-WGR6 | BB84: @FM-BKG-WGR6 | BC84: @FM-BKG-WGR6 | BD84: @FM-BKG-WGR6 | BE84: @FM-BKG-WGR6 | BF84: @FM-BKG-WGR6 | BG84: @FM-BKG-WGR6 | BH84: @FM-BKG-WGR6 | BI84: @FM-BKG-WGR6 | BJ84: @FM-BKG-WGR6 | BK84: @FM-BKG-WGR6 | BL84: @FM-BKG-WGR6 | BM84: @FM-BKG-WGR6 | BN84: @FM-BKG-WGR6 | BO84: @FM-BKG-WGR6 | BP84: @FM-BKG-WGR6 | BQ84: @FM-BKG-WGR6 | BR84: @FM-BKG-WGR6 | BS84: @FM-BKG-WGR6 | BT84: @FM-BKG-WGR6 | BU84: @FM-BKG-WGR6 | BV84: @FM-BKG-WGR6 | BW84: @FM-BKG-WGR6 | BX84: @FM-BKG-WGR6 | BY84: @FM-BKG-WGR6 | BZ84: @FM-BKG-WGR6 | CA84: @FM-BKG-WGR6 | CB84: @FM-BKG-WGR6 | CC84: @FM-BKG-WGR6 | CD84: @FM-BKG-WGR6 | CE84: @FM-BKG-WGR6 | CF84: @FM-BKG-WGR6 | CG84: @FM-BKG-WGR6 | CH84: @FM-BKG-WGR6 | CI84: @FM-BKG-WGR6 | CJ84: @FM-BKG-WGR6 | CK84: @FM-BKG-WGR6 | CL84: @FM-BKG-WGR6 | CM84: @FM-BKG-WGR6 | CN84: @FM-BKG-WGR6 | CO84: @FM-BKG-WGR6 | CP84: @FM-BKG-WGR6 | CQ84: @FM-BKG-WGR6 | CR84: @FM-BKG-WGR6 | CS84: @FM-BKG-WGR6 | CT84: @FM-BKG-WGR6 | CU84: @FM-BKG-WGR6
A85: WB63 | B85: 600 360mm Bridging Unit | C85: WB63 | D85: @FM-MCS-WB63 | E85: @FM-MGD-WB63 | F85: @FM-MDS-WB63 | G85: @FM-MGP-WB63 | H85: @FM-MPN-WB63 | I85: @FM-MGW-WB63 | J85: @FM-MCM-WB63 | K85: @FM-MDM-WB63 | L85: @FM-MTM-WB63 | M85: @FM-MGM-WB63 | N85: @FM-MGR-WB63 | O85: @FM-MIM-WB63 | P85: @FM-MSM-WB63 | Q85: @FM-MPM-WB63 | R85: @FM-MTP-WB63 | S85: @FM-MWM-WB63 | T85: @FM-EOG-WB63 | U85: @FM-EOM-WB63 | V85: @FM-EPM-WB63 | W85: @FM-EVM-WB63 | X85: @FM-ENM-WB63 | Y85: @FM-ELA-WB63 | Z85: @FM-ELD-WB63 | AA85: @FM-ELW-WB63 | AB85: @FM-SAG-WB63 | AC85: @FM-SAT-WB63 | AD85: @FM-SAB-WB63 | AE85: @FM-SBR-WB63 | AF85: @FM-SBG-WB63 | AG85: @FM-SBW-WB63 | AH85: @FM-SBZ-WB63 | AI85: @FM-SBF-WB63 | AJ85: @FM-SCS-WB63 | AK85: @FM-SCB-WB63 | AL85: @FM-SDM-WB63 | AM85: @FM-SDP-WB63 | AN85: @FM-SDS-WB63 | AO85: @FM-SGP-WB63 | AP85: @FM-SHG-WB63 | AQ85: @FM-SIN-WB63 | AR85: @FM-SIV-WB63 | AS85: @FM-SLR-WB63 | AT85: @FM-SDG-WB63 | AU85: @FM-SMW-WB63 | AV85: @FM-SMZ-WB63 | AW85: @FM-SMN-WB63 | AX85: @FM-SMC-WB63 | AY85: @FM-SMU-WB63 | AZ85: @FM-SOV-WB63 | BA85: @FM-SPO-WB63 | BB85: @FM-SPT-WB63 | BC85: @FM-SPE-WB63 | BD85: @FM-SPG-WB63 | BE85: @FM-SPN-WB63 | BF85: @FM-SSG-WB63 | BG85: @FM-SSP-WB63 | BH85: @FM-SSB-WB63 | BI85: @FM-SSO-WB63 | BJ85: @FM-SSY-WB63 | BK85: @FM-SST-WB63 | BL85: @FM-STP-WB63 | BM85: @FM-STK-WB63 | BN85: @FM-SWE-WB63 | BO85: @FM-EAG-WB63 | BP85: @FM-EAT-WB63 | BQ85: @FM-EAB-WB63 | BR85: @FM-EBR-WB63 | BS85: @FM-EBG-WB63 | BT85: @FM-EBW-WB63 | BU85: @FM-ECS-WB63 | BV85: @FM-EDM-WB63 | BW85: @FM-EDP-WB63 | BX85: @FM-EDS-WB63 | BY85: @FM-EGP-WB63 | BZ85: @FM-EHG-WB63 | CA85: @FM-EIN-WB63 | CB85: @FM-EIV-WB63 | CC85: @FM-ELN-WB63 | CD85: @FM-EDG-WB63 | CE85: @FM-EME-WB63 | CF85: @FM-EMN-WB63 | CG85: @FM-EMU-WB63 | CH85: @FM-EOV-WB63 | CI85: @FM-EPT-WB63 | CJ85: @FM-EPE-WB63 | CK85: @FM-EPG-WB63 | CL85: @FM-EPN-WB63 | CM85: @FM-ESG-WB63 | CN85: @FM-ESP-WB63 | CO85: @FM-ESK-WB63 | CP85: @FM-ESO-WB63 | CQ85: @FM-ESY-WB63 | CR85: @FM-ESN-WB63 | CS85: @FM-ETP-WB63 | CT85: @FM-ETK-WB63 | CU85: @FM-EWE-WB63
A86: WB83 | B86: 800 360mm Bridging Unit | C86: WB83 | D86: @FM-MCS-WB83 | E86: @FM-MGD-WB83 | F86: @FM-MDS-WB83 | G86: @FM-MGP-WB83 | H86: @FM-MPN-WB83 | I86: @FM-MGW-WB83 | J86: @FM-MCM-WB83 | K86: @FM-MDM-WB83 | L86: @FM-MTM-WB83 | M86: @FM-MGM-WB83 | N86: @FM-MGR-WB83 | O86: @FM-MIM-WB83 | P86: @FM-MSM-WB83 | Q86: @FM-MPM-WB83 | R86: @FM-MTP-WB83 | S86: @FM-MWM-WB83 | T86: @FM-EOG-WB83 | U86: @FM-EOM-WB83 | V86: @FM-EPM-WB83 | W86: @FM-EVM-WB83 | X86: @FM-ENM-WB83 | Y86: @FM-ELA-WB83 | Z86: @FM-ELD-WB83 | AA86: @FM-ELW-WB83 | AB86: @FM-SAG-WB83 | AC86: @FM-SAT-WB83 | AD86: @FM-SAB-WB83 | AE86: @FM-SBR-WB83 | AF86: @FM-SBG-WB83 | AG86: @FM-SBW-WB83 | AH86: @FM-SBZ-WB83 | AI86: @FM-SBF-WB83 | AJ86: @FM-SCS-WB83 | AK86: @FM-SCB-WB83 | AL86: @FM-SDM-WB83 | AM86: @FM-SDP-WB83 | AN86: @FM-SDS-WB83 | AO86: @FM-SGP-WB83 | AP86: @FM-SHG-WB83 | AQ86: @FM-SIN-WB83 | AR86: @FM-SIV-WB83 | AS86: @FM-SLR-WB83 | AT86: @FM-SDG-WB83 | AU86: @FM-SMW-WB83 | AV86: @FM-SMZ-WB83 | AW86: @FM-SMN-WB83 | AX86: @FM-SMC-WB83 | AY86: @FM-SMU-WB83 | AZ86: @FM-SOV-WB83 | BA86: @FM-SPO-WB83 | BB86: @FM-SPT-WB83 | BC86: @FM-SPE-WB83 | BD86: @FM-SPG-WB83 | BE86: @FM-SPN-WB83 | BF86: @FM-SSG-WB83 | BG86: @FM-SSP-WB83 | BH86: @FM-SSB-WB83 | BI86: @FM-SSO-WB83 | BJ86: @FM-SSY-WB83 | BK86: @FM-SST-WB83 | BL86: @FM-STP-WB83 | BM86: @FM-STK-WB83 | BN86: @FM-SWE-WB83 | BO86: @FM-EAG-WB83 | BP86: @FM-EAT-WB83 | BQ86: @FM-EAB-WB83 | BR86: @FM-EBR-WB83 | BS86: @FM-EBG-WB83 | BT86: @FM-EBW-WB83 | BU86: @FM-ECS-WB83 | BV86: @FM-EDM-WB83 | BW86: @FM-EDP-WB83 | BX86: @FM-EDS-WB83 | BY86: @FM-EGP-WB83 | BZ86: @FM-EHG-WB83 | CA86: @FM-EIN-WB83 | CB86: @FM-EIV-WB83 | CC86: @FM-ELN-WB83 | CD86: @FM-EDG-WB83 | CE86: @FM-EME-WB83 | CF86: @FM-EMN-WB83 | CG86: @FM-EMU-WB83 | CH86: @FM-EOV-WB83 | CI86: @FM-EPT-WB83 | CJ86: @FM-EPE-WB83 | CK86: @FM-EPG-WB83 | CL86: @FM-EPN-WB83 | CM86: @FM-ESG-WB83 | CN86: @FM-ESP-WB83 | CO86: @FM-ESK-WB83 | CP86: @FM-ESO-WB83 | CQ86: @FM-ESY-WB83 | CR86: @FM-ESN-WB83 | CS86: @FM-ETP-WB83 | CT86: @FM-ETK-WB83 | CU86: @FM-EWE-WB83
A87: WB93 | B87: 900 360mm Bridging Unit | C87: WB93 | D87: @FM-MCS-WB93 | E87: @FM-MGD-WB93 | F87: @FM-MDS-WB93 | G87: @FM-MGP-WB93 | H87: @FM-MPN-WB93 | I87: @FM-MGW-WB93 | J87: @FM-MCM-WB93 | K87: @FM-MDM-WB93 | L87: @FM-MTM-WB93 | M87: @FM-MGM-WB93 | N87: @FM-MGR-WB93 | O87: @FM-MIM-WB93 | P87: @FM-MSM-WB93 | Q87: @FM-MPM-WB93 | R87: @FM-MTP-WB93 | S87: @FM-MWM-WB93 | T87: @FM-EOG-WB93 | U87: @FM-EOM-WB93 | V87: @FM-EPM-WB93 | W87: @FM-EVM-WB93 | X87: @FM-ENM-WB93 | Y87: @FM-ELA-WB93 | Z87: @FM-ELD-WB93 | AA87: @FM-ELW-WB93 | AB87: @FM-SAG-WB93 | AC87: @FM-SAT-WB93 | AD87: @FM-SAB-WB93 | AE87: @FM-SBR-WB93 | AF87: @FM-SBG-WB93 | AG87: @FM-SBW-WB93 | AH87: @FM-SBZ-WB93 | AI87: @FM-SBF-WB93 | AJ87: @FM-SCS-WB93 | AK87: @FM-SCB-WB93 | AL87: @FM-SDM-WB93 | AM87: @FM-SDP-WB93 | AN87: @FM-SDS-WB93 | AO87: @FM-SGP-WB93 | AP87: @FM-SHG-WB93 | AQ87: @FM-SIN-WB93 | AR87: @FM-SIV-WB93 | AS87: @FM-SLR-WB93 | AT87: @FM-SDG-WB93 | AU87: @FM-SMW-WB93 | AV87: @FM-SMZ-WB93 | AW87: @FM-SMN-WB93 | AX87: @FM-SMC-WB93 | AY87: @FM-SMU-WB93 | AZ87: @FM-SOV-WB93 | BA87: @FM-SPO-WB93 | BB87: @FM-SPT-WB93 | BC87: @FM-SPE-WB93 | BD87: @FM-SPG-WB93 | BE87: @FM-SPN-WB93 | BF87: @FM-SSG-WB93 | BG87: @FM-SSP-WB93 | BH87: @FM-SSB-WB93 | BI87: @FM-SSO-WB93 | BJ87: @FM-SSY-WB93 | BK87: @FM-SST-WB93 | BL87: @FM-STP-WB93 | BM87: @FM-STK-WB93 | BN87: @FM-SWE-WB93 | BO87: @FM-EAG-WB93 | BP87: @FM-EAT-WB93 | BQ87: @FM-EAB-WB93 | BR87: @FM-EBR-WB93 | BS87: @FM-EBG-WB93 | BT87: @FM-EBW-WB93 | BU87: @FM-ECS-WB93 | BV87: @FM-EDM-WB93 | BW87: @FM-EDP-WB93 | BX87: @FM-EDS-WB93 | BY87: @FM-EGP-WB93 | BZ87: @FM-EHG-WB93 | CA87: @FM-EIN-WB93 | CB87: @FM-EIV-WB93 | CC87: @FM-ELN-WB93 | CD87: @FM-EDG-WB93 | CE87: @FM-EME-WB93 | CF87: @FM-EMN-WB93 | CG87: @FM-EMU-WB93 | CH87: @FM-EOV-WB93 | CI87: @FM-EPT-WB93 | CJ87: @FM-EPE-WB93 | CK87: @FM-EPG-WB93 | CL87: @FM-EPN-WB93 | CM87: @FM-ESG-WB93 | CN87: @FM-ESP-WB93 | CO87: @FM-ESK-WB93 | CP87: @FM-ESO-WB93 | CQ87: @FM-ESY-WB93 | CR87: @FM-ESN-WB93 | CS87: @FM-ETP-WB93 | CT87: @FM-ETK-WB93 | CU87: @FM-EWE-WB93
A88: WB13 | B88: 1000 360mm Bridging Unit | C88: WB13 | D88: @FM-MCS-WB13 | E88: @FM-MGD-WB13 | F88: @FM-MDS-WB13 | G88: @FM-MGP-WB13 | H88: @FM-MPN-WB13 | I88: @FM-MGW-WB13 | J88: @FM-MCM-WB13 | K88: @FM-MDM-WB13 | L88: @FM-MTM-WB13 | M88: @FM-MGM-WB13 | N88: @FM-MGR-WB13 | O88: @FM-MIM-WB13 | P88: @FM-MSM-WB13 | Q88: @FM-MPM-WB13 | R88: @FM-MTP-WB13 | S88: @FM-MWM-WB13 | T88: @FM-EOG-WB13 | U88: @FM-EOM-WB13 | V88: @FM-EPM-WB13 | W88: @FM-EVM-WB13 | X88: @FM-ENM-WB13 | Y88: @FM-ELA-WB13 | Z88: @FM-ELD-WB13 | AA88: @FM-ELW-WB13 | AB88: @FM-SAG-WB13 | AC88: @FM-SAT-WB13 | AD88: @FM-SAB-WB13 | AE88: @FM-SBR-WB13 | AF88: @FM-SBG-WB13 | AG88: @FM-SBW-WB13 | AH88: @FM-SBZ-WB13 | AI88: @FM-SBF-WB13 | AJ88: @FM-SCS-WB13 | AK88: @FM-SCB-WB13 | AL88: @FM-SDM-WB13 | AM88: @FM-SDP-WB13 | AN88: @FM-SDS-WB13 | AO88: @FM-SGP-WB13 | AP88: @FM-SHG-WB13 | AQ88: @FM-SIN-WB13 | AR88: @FM-SIV-WB13 | AS88: @FM-SLR-WB13 | AT88: @FM-SDG-WB13 | AU88: @FM-SMW-WB13 | AV88: @FM-SMZ-WB13 | AW88: @FM-SMN-WB13 | AX88: @FM-SMC-WB13 | AY88: @FM-SMU-WB13 | AZ88: @FM-SOV-WB13 | BA88: @FM-SPO-WB13 | BB88: @FM-SPT-WB13 | BC88: @FM-SPE-WB13 | BD88: @FM-SPG-WB13 | BE88: @FM-SPN-WB13 | BF88: @FM-SSG-WB13 | BG88: @FM-SSP-WB13 | BH88: @FM-SSB-WB13 | BI88: @FM-SSO-WB13 | BJ88: @FM-SSY-WB13 | BK88: @FM-SST-WB13 | BL88: @FM-STP-WB13 | BM88: @FM-STK-WB13 | BN88: @FM-SWE-WB13 | BO88: @FM-EAG-WB13 | BP88: @FM-EAT-WB13 | BQ88: @FM-EAB-WB13 | BR88: @FM-EBR-WB13 | BS88: @FM-EBG-WB13 | BT88: @FM-EBW-WB13 | BU88: @FM-ECS-WB13 | BV88: @FM-EDM-WB13 | BW88: @FM-EDP-WB13 | BX88: @FM-EDS-WB13 | BY88: @FM-EGP-WB13 | BZ88: @FM-EHG-WB13 | CA88: @FM-EIN-WB13 | CB88: @FM-EIV-WB13 | CC88: @FM-ELN-WB13 | CD88: @FM-EDG-WB13 | CE88: @FM-EME-WB13 | CF88: @FM-EMN-WB13 | CG88: @FM-EMU-WB13 | CH88: @FM-EOV-WB13 | CI88: @FM-EPT-WB13 | CJ88: @FM-EPE-WB13 | CK88: @FM-EPG-WB13 | CL88: @FM-EPN-WB13 | CM88: @FM-ESG-WB13 | CN88: @FM-ESP-WB13 | CO88: @FM-ESK-WB13 | CP88: @FM-ESO-WB13 | CQ88: @FM-ESY-WB13 | CR88: @FM-ESN-WB13 | CS88: @FM-ETP-WB13 | CT88: @FM-ETK-WB13 | CU88: @FM-EWE-WB13
A89: AH-F55 | B89: 600 50/50 FF Housing Unit | C89: AH-F55 | D89: @FM-MCS-AH-F55 | E89: @FM-MGD-AH-F55 | F89: @FM-MDS-AH-F55 | G89: @FM-MGP-AH-F55 | H89: @FM-MPN-AH-F55 | I89: @FM-MGW-AH-F55 | J89: @FM-MCM-AH-F55 | K89: @FM-MDM-AH-F55 | L89: @FM-MTM-AH-F55 | M89: @FM-MGM-AH-F55 | N89: @FM-MGR-AH-F55 | O89: @FM-MIM-AH-F55 | P89: @FM-MSM-AH-F55 | Q89: @FM-MPM-AH-F55 | R89: @FM-MTP-AH-F55 | S89: @FM-MWM-AH-F55 | T89: @FM-EOG-AH-F55 | U89: @FM-EOM-AH-F55 | V89: @FM-EPM-AH-F55 | W89: @FM-EVM-AH-F55 | X89: @FM-ENM-AH-F55 | Y89: @FM-ELA-AH-F55 | Z89: @FM-ELD-AH-F55 | AA89: @FM-ELW-AH-F55 | AB89: @FM-SAG-AH-F55 | AC89: @FM-SAT-AH-F55 | AD89: @FM-SAB-AH-F55 | AE89: @FM-SBR-AH-F55 | AF89: @FM-SBG-AH-F55 | AG89: @FM-SBW-AH-F55 | AH89: @FM-SBZ-AH-F55 | AI89: @FM-SBF-AH-F55 | AJ89: @FM-SCS-AH-F55 | AK89: @FM-SCB-AH-F55 | AL89: @FM-SDM-AH-F55 | AM89: @FM-SDP-AH-F55 | AN89: @FM-SDS-AH-F55 | AO89: @FM-SGP-AH-F55 | AP89: @FM-SHG-AH-F55 | AQ89: @FM-SIN-AH-F55 | AR89: @FM-SIV-AH-F55 | AS89: @FM-SLR-AH-F55 | AT89: @FM-SDG-AH-F55 | AU89: @FM-SMW-AH-F55 | AV89: @FM-SMZ-AH-F55 | AW89: @FM-SMN-AH-F55 | AX89: @FM-SMC-AH-F55 | AY89: @FM-SMU-AH-F55 | AZ89: @FM-SOV-AH-F55 | BA89: @FM-SPO-AH-F55 | BB89: @FM-SPT-AH-F55 | BC89: @FM-SPE-AH-F55 | BD89: @FM-SPG-AH-F55 | BE89: @FM-SPN-AH-F55 | BF89: @FM-SSG-AH-F55 | BG89: @FM-SSP-AH-F55 | BH89: @FM-SSB-AH-F55 | BI89: @FM-SSO-AH-F55 | BJ89: @FM-SSY-AH-F55 | BK89: @FM-SST-AH-F55 | BL89: @FM-STP-AH-F55 | BM89: @FM-STK-AH-F55 | BN89: @FM-SWE-AH-F55 | BO89: @FM-EAG-AH-F55 | BP89: @FM-EAT-AH-F55 | BQ89: @FM-EAB-AH-F55 | BR89: @FM-EBR-AH-F55 | BS89: @FM-EBG-AH-F55 | BT89: @FM-EBW-AH-F55 | BU89: @FM-ECS-AH-F55 | BV89: @FM-EDM-AH-F55 | BW89: @FM-EDP-AH-F55 | BX89: @FM-EDS-AH-F55 | BY89: @FM-EGP-AH-F55 | BZ89: @FM-EHG-AH-F55 | CA89: @FM-EIN-AH-F55 | CB89: @FM-EIV-AH-F55 | CC89: @FM-ELN-AH-F55 | CD89: @FM-EDG-AH-F55 | CE89: @FM-EME-AH-F55 | CF89: @FM-EMN-AH-F55 | CG89: @FM-EMU-AH-F55 | CH89: @FM-EOV-AH-F55 | CI89: @FM-EPT-AH-F55 | CJ89: @FM-EPE-AH-F55 | CK89: @FM-EPG-AH-F55 | CL89: @FM-EPN-AH-F55 | CM89: @FM-ESG-AH-F55 | CN89: @FM-ESP-AH-F55 | CO89: @FM-ESK-AH-F55 | CP89: @FM-ESO-AH-F55 | CQ89: @FM-ESY-AH-F55 | CR89: @FM-ESN-AH-F55 | CS89: @FM-ETP-AH-F55 | CT89: @FM-ETK-AH-F55 | CU89: @FM-EWE-AH-F55
A90: AH-F73 | B90: 600 70/30 FF Housing Unit | C90: AH-F73 | D90: @FM-MCS-AH-F73 | E90: @FM-MGD-AH-F73 | F90: @FM-MDS-AH-F73 | G90: @FM-MGP-AH-F73 | H90: @FM-MPN-AH-F73 | I90: @FM-MGW-AH-F73 | J90: @FM-MCM-AH-F73 | K90: @FM-MDM-AH-F73 | L90: @FM-MTM-AH-F73 | M90: @FM-MGM-AH-F73 | N90: @FM-MGR-AH-F73 | O90: @FM-MIM-AH-F73 | P90: @FM-MSM-AH-F73 | Q90: @FM-MPM-AH-F73 | R90: @FM-MTP-AH-F73 | S90: @FM-MWM-AH-F73 | T90: @FM-EOG-AH-F73 | U90: @FM-EOM-AH-F73 | V90: @FM-EPM-AH-F73 | W90: @FM-EVM-AH-F73 | X90: @FM-ENM-AH-F73 | Y90: @FM-ELA-AH-F73 | Z90: @FM-ELD-AH-F73 | AA90: @FM-ELW-AH-F73 | AB90: @FM-SAG-AH-F73 | AC90: @FM-SAT-AH-F73 | AD90: @FM-SAB-AH-F73 | AE90: @FM-SBR-AH-F73 | AF90: @FM-SBG-AH-F73 | AG90: @FM-SBW-AH-F73 | AH90: @FM-SBZ-AH-F73 | AI90: @FM-SBF-AH-F73 | AJ90: @FM-SCS-AH-F73 | AK90: @FM-SCB-AH-F73 | AL90: @FM-SDM-AH-F73 | AM90: @FM-SDP-AH-F73 | AN90: @FM-SDS-AH-F73 | AO90: @FM-SGP-AH-F73 | AP90: @FM-SHG-AH-F73 | AQ90: @FM-SIN-AH-F73 | AR90: @FM-SIV-AH-F73 | AS90: @FM-SLR-AH-F73 | AT90: @FM-SDG-AH-F73 | AU90: @FM-SMW-AH-F73 | AV90: @FM-SMZ-AH-F73 | AW90: @FM-SMN-AH-F73 | AX90: @FM-SMC-AH-F73 | AY90: @FM-SMU-AH-F73 | AZ90: @FM-SOV-AH-F73 | BA90: @FM-SPO-AH-F73 | BB90: @FM-SPT-AH-F73 | BC90: @FM-SPE-AH-F73 | BD90: @FM-SPG-AH-F73 | BE90: @FM-SPN-AH-F73 | BF90: @FM-SSG-AH-F73 | BG90: @FM-SSP-AH-F73 | BH90: @FM-SSB-AH-F73 | BI90: @FM-SSO-AH-F73 | BJ90: @FM-SSY-AH-F73 | BK90: @FM-SST-AH-F73 | BL90: @FM-STP-AH-F73 | BM90: @FM-STK-AH-F73 | BN90: @FM-SWE-AH-F73 | BO90: @FM-EAG-AH-F73 | BP90: @FM-EAT-AH-F73 | BQ90: @FM-EAB-AH-F73 | BR90: @FM-EBR-AH-F73 | BS90: @FM-EBG-AH-F73 | BT90: @FM-EBW-AH-F73 | BU90: @FM-ECS-AH-F73 | BV90: @FM-EDM-AH-F73 | BW90: @FM-EDP-AH-F73 | BX90: @FM-EDS-AH-F73 | BY90: @FM-EGP-AH-F73 | BZ90: @FM-EHG-AH-F73 | CA90: @FM-EIN-AH-F73 | CB90: @FM-EIV-AH-F73 | CC90: @FM-ELN-AH-F73 | CD90: @FM-EDG-AH-F73 | CE90: @FM-EME-AH-F73 | CF90: @FM-EMN-AH-F73 | CG90: @FM-EMU-AH-F73 | CH90: @FM-EOV-AH-F73 | CI90: @FM-EPT-AH-F73 | CJ90: @FM-EPE-AH-F73 | CK90: @FM-EPG-AH-F73 | CL90: @FM-EPN-AH-F73 | CM90: @FM-ESG-AH-F73 | CN90: @FM-ESP-AH-F73 | CO90: @FM-ESK-AH-F73 | CP90: @FM-ESO-AH-F73 | CQ90: @FM-ESY-AH-F73 | CR90: @FM-ESN-AH-F73 | CS90: @FM-ETP-AH-F73 | CT90: @FM-ETK-AH-F73 | CU90: @FM-EWE-AH-F73
A91: AH-DOL | B91: 600 Double Oven Housing - LH Hinged | C91: AH-DOL | D91: @FM-MCS-AH-DOL | E91: @FM-MGD-AH-DOL | F91: @FM-MDS-AH-DOL | G91: @FM-MGP-AH-DOL | H91: @FM-MPN-AH-DOL | I91: @FM-MGW-AH-DOL | J91: @FM-MCM-AH-DOL | K91: @FM-MDM-AH-DOL | L91: @FM-MTM-AH-DOL | M91: @FM-MGM-AH-DOL | N91: @FM-MGR-AH-DOL | O91: @FM-MIM-AH-DOL | P91: @FM-MSM-AH-DOL | Q91: @FM-MPM-AH-DOL | R91: @FM-MTP-AH-DOL | S91: @FM-MWM-AH-DOL | T91: @FM-EOG-AH-DOL | U91: @FM-EOM-AH-DOL | V91: @FM-EPM-AH-DOL | W91: @FM-EVM-AH-DOL | X91: @FM-ENM-AH-DOL | Y91: @FM-ELA-AH-DOL | Z91: @FM-ELD-AH-DOL | AA91: @FM-ELW-AH-DOL | AB91: @FM-SAG-AH-DOL | AC91: @FM-SAT-AH-DOL | AD91: @FM-SAB-AH-DOL | AE91: @FM-SBR-AH-DOL | AF91: @FM-SBG-AH-DOL | AG91: @FM-SBW-AH-DOL | AH91: @FM-SBZ-AH-DOL | AI91: @FM-SBF-AH-DOL | AJ91: @FM-SCS-AH-DOL | AK91: @FM-SCB-AH-DOL | AL91: @FM-SDM-AH-DOL | AM91: @FM-SDP-AH-DOL | AN91: @FM-SDS-AH-DOL | AO91: @FM-SGP-AH-DOL | AP91: @FM-SHG-AH-DOL | AQ91: @FM-SIN-AH-DOL | AR91: @FM-SIV-AH-DOL | AS91: @FM-SLR-AH-DOL | AT91: @FM-SDG-AH-DOL | AU91: @FM-SMW-AH-DOL | AV91: @FM-SMZ-AH-DOL | AW91: @FM-SMN-AH-DOL | AX91: @FM-SMC-AH-DOL | AY91: @FM-SMU-AH-DOL | AZ91: @FM-SOV-AH-DOL | BA91: @FM-SPO-AH-DOL | BB91: @FM-SPT-AH-DOL | BC91: @FM-SPE-AH-DOL | BD91: @FM-SPG-AH-DOL | BE91: @FM-SPN-AH-DOL | BF91: @FM-SSG-AH-DOL | BG91: @FM-SSP-AH-DOL | BH91: @FM-SSB-AH-DOL | BI91: @FM-SSO-AH-DOL | BJ91: @FM-SSY-AH-DOL | BK91: @FM-SST-AH-DOL | BL91: @FM-STP-AH-DOL | BM91: @FM-STK-AH-DOL | BN91: @FM-SWE-AH-DOL | BO91: @FM-EAG-AH-DOL | BP91: @FM-EAT-AH-DOL | BQ91: @FM-EAB-AH-DOL | BR91: @FM-EBR-AH-DOL | BS91: @FM-EBG-AH-DOL | BT91: @FM-EBW-AH-DOL | BU91: @FM-ECS-AH-DOL | BV91: @FM-EDM-AH-DOL | BW91: @FM-EDP-AH-DOL | BX91: @FM-EDS-AH-DOL | BY91: @FM-EGP-AH-DOL | BZ91: @FM-EHG-AH-DOL | CA91: @FM-EIN-AH-DOL | CB91: @FM-EIV-AH-DOL | CC91: @FM-ELN-AH-DOL | CD91: @FM-EDG-AH-DOL | CE91: @FM-EME-AH-DOL | CF91: @FM-EMN-AH-DOL | CG91: @FM-EMU-AH-DOL | CH91: @FM-EOV-AH-DOL | CI91: @FM-EPT-AH-DOL | CJ91: @FM-EPE-AH-DOL | CK91: @FM-EPG-AH-DOL | CL91: @FM-EPN-AH-DOL | CM91: @FM-ESG-AH-DOL | CN91: @FM-ESP-AH-DOL | CO91: @FM-ESK-AH-DOL | CP91: @FM-ESO-AH-DOL | CQ91: @FM-ESY-AH-DOL | CR91: @FM-ESN-AH-DOL | CS91: @FM-ETP-AH-DOL | CT91: @FM-ETK-AH-DOL | CU91: @FM-EWE-AH-DOL
A92: AH-DOR | B92: 600 Double Oven Housing - RH Hinged | C92: AH-DOR | D92: @FM-MCS-AH-DOR | E92: @FM-MGD-AH-DOR | F92: @FM-MDS-AH-DOR | G92: @FM-MGP-AH-DOR | H92: @FM-MPN-AH-DOR | I92: @FM-MGW-AH-DOR | J92: @FM-MCM-AH-DOR | K92: @FM-MDM-AH-DOR | L92: @FM-MTM-AH-DOR | M92: @FM-MGM-AH-DOR | N92: @FM-MGR-AH-DOR | O92: @FM-MIM-AH-DOR | P92: @FM-MSM-AH-DOR | Q92: @FM-MPM-AH-DOR | R92: @FM-MTP-AH-DOR | S92: @FM-MWM-AH-DOR | T92: @FM-EOG-AH-DOR | U92: @FM-EOM-AH-DOR | V92: @FM-EPM-AH-DOR | W92: @FM-EVM-AH-DOR | X92: @FM-ENM-AH-DOR | Y92: @FM-ELA-AH-DOR | Z92: @FM-ELD-AH-DOR | AA92: @FM-ELW-AH-DOR | AB92: @FM-SAG-AH-DOR | AC92: @FM-SAT-AH-DOR | AD92: @FM-SAB-AH-DOR | AE92: @FM-SBR-AH-DOR | AF92: @FM-SBG-AH-DOR | AG92: @FM-SBW-AH-DOR | AH92: @FM-SBZ-AH-DOR | AI92: @FM-SBF-AH-DOR | AJ92: @FM-SCS-AH-DOR | AK92: @FM-SCB-AH-DOR | AL92: @FM-SDM-AH-DOR | AM92: @FM-SDP-AH-DOR | AN92: @FM-SDS-AH-DOR | AO92: @FM-SGP-AH-DOR | AP92: @FM-SHG-AH-DOR | AQ92: @FM-SIN-AH-DOR | AR92: @FM-SIV-AH-DOR | AS92: @FM-SLR-AH-DOR | AT92: @FM-SDG-AH-DOR | AU92: @FM-SMW-AH-DOR | AV92: @FM-SMZ-AH-DOR | AW92: @FM-SMN-AH-DOR | AX92: @FM-SMC-AH-DOR | AY92: @FM-SMU-AH-DOR | AZ92: @FM-SOV-AH-DOR | BA92: @FM-SPO-AH-DOR | BB92: @FM-SPT-AH-DOR | BC92: @FM-SPE-AH-DOR | BD92: @FM-SPG-AH-DOR | BE92: @FM-SPN-AH-DOR | BF92: @FM-SSG-AH-DOR | BG92: @FM-SSP-AH-DOR | BH92: @FM-SSB-AH-DOR | BI92: @FM-SSO-AH-DOR | BJ92: @FM-SSY-AH-DOR | BK92: @FM-SST-AH-DOR | BL92: @FM-STP-AH-DOR | BM92: @FM-STK-AH-DOR | BN92: @FM-SWE-AH-DOR | BO92: @FM-EAG-AH-DOR | BP92: @FM-EAT-AH-DOR | BQ92: @FM-EAB-AH-DOR | BR92: @FM-EBR-AH-DOR | BS92: @FM-EBG-AH-DOR | BT92: @FM-EBW-AH-DOR | BU92: @FM-ECS-AH-DOR | BV92: @FM-EDM-AH-DOR | BW92: @FM-EDP-AH-DOR | BX92: @FM-EDS-AH-DOR | BY92: @FM-EGP-AH-DOR | BZ92: @FM-EHG-AH-DOR | CA92: @FM-EIN-AH-DOR | CB92: @FM-EIV-AH-DOR | CC92: @FM-ELN-AH-DOR | CD92: @FM-EDG-AH-DOR | CE92: @FM-EME-AH-DOR | CF92: @FM-EMN-AH-DOR | CG92: @FM-EMU-AH-DOR | CH92: @FM-EOV-AH-DOR | CI92: @FM-EPT-AH-DOR | CJ92: @FM-EPE-AH-DOR | CK92: @FM-EPG-AH-DOR | CL92: @FM-EPN-AH-DOR | CM92: @FM-ESG-AH-DOR | CN92: @FM-ESP-AH-DOR | CO92: @FM-ESK-AH-DOR | CP92: @FM-ESO-AH-DOR | CQ92: @FM-ESY-AH-DOR | CR92: @FM-ESN-AH-DOR | CS92: @FM-ETP-AH-DOR | CT92: @FM-ETK-AH-DOR | CU92: @FM-EWE-AH-DOR
A93: AH-SOL | B93: 600 Single Oven Housing - LH Hinged | C93: AH-SOL | D93: @FM-MCS-AH-SOL | E93: @FM-MGD-AH-SOL | F93: @FM-MDS-AH-SOL | G93: @FM-MGP-AH-SOL | H93: @FM-MPN-AH-SOL | I93: @FM-MGW-AH-SOL | J93: @FM-MCM-AH-SOL | K93: @FM-MDM-AH-SOL | L93: @FM-MTM-AH-SOL | M93: @FM-MGM-AH-SOL | N93: @FM-MGR-AH-SOL | O93: @FM-MIM-AH-SOL | P93: @FM-MSM-AH-SOL | Q93: @FM-MPM-AH-SOL | R93: @FM-MTP-AH-SOL | S93: @FM-MWM-AH-SOL | T93: @FM-EOG-AH-SOL | U93: @FM-EOM-AH-SOL | V93: @FM-EPM-AH-SOL | W93: @FM-EVM-AH-SOL | X93: @FM-ENM-AH-SOL | Y93: @FM-ELA-AH-SOL | Z93: @FM-ELD-AH-SOL | AA93: @FM-ELW-AH-SOL | AB93: @FM-SAG-AH-SOL | AC93: @FM-SAT-AH-SOL | AD93: @FM-SAB-AH-SOL | AE93: @FM-SBR-AH-SOL | AF93: @FM-SBG-AH-SOL | AG93: @FM-SBW-AH-SOL | AH93: @FM-SBZ-AH-SOL | AI93: @FM-SBF-AH-SOL | AJ93: @FM-SCS-AH-SOL | AK93: @FM-SCB-AH-SOL | AL93: @FM-SDM-AH-SOL | AM93: @FM-SDP-AH-SOL | AN93: @FM-SDS-AH-SOL | AO93: @FM-SGP-AH-SOL | AP93: @FM-SHG-AH-SOL | AQ93: @FM-SIN-AH-SOL | AR93: @FM-SIV-AH-SOL | AS93: @FM-SLR-AH-SOL | AT93: @FM-SDG-AH-SOL | AU93: @FM-SMW-AH-SOL | AV93: @FM-SMZ-AH-SOL | AW93: @FM-SMN-AH-SOL | AX93: @FM-SMC-AH-SOL | AY93: @FM-SMU-AH-SOL | AZ93: @FM-SOV-AH-SOL | BA93: @FM-SPO-AH-SOL | BB93: @FM-SPT-AH-SOL | BC93: @FM-SPE-AH-SOL | BD93: @FM-SPG-AH-SOL | BE93: @FM-SPN-AH-SOL | BF93: @FM-SSG-AH-SOL | BG93: @FM-SSP-AH-SOL | BH93: @FM-SSB-AH-SOL | BI93: @FM-SSO-AH-SOL | BJ93: @FM-SSY-AH-SOL | BK93: @FM-SST-AH-SOL | BL93: @FM-STP-AH-SOL | BM93: @FM-STK-AH-SOL | BN93: @FM-SWE-AH-SOL | BO93: @FM-EAG-AH-SOL | BP93: @FM-EAT-AH-SOL | BQ93: @FM-EAB-AH-SOL | BR93: @FM-EBR-AH-SOL | BS93: @FM-EBG-AH-SOL | BT93: @FM-EBW-AH-SOL | BU93: @FM-ECS-AH-SOL | BV93: @FM-EDM-AH-SOL | BW93: @FM-EDP-AH-SOL | BX93: @FM-EDS-AH-SOL | BY93: @FM-EGP-AH-SOL | BZ93: @FM-EHG-AH-SOL | CA93: @FM-EIN-AH-SOL | CB93: @FM-EIV-AH-SOL | CC93: @FM-ELN-AH-SOL | CD93: @FM-EDG-AH-SOL | CE93: @FM-EME-AH-SOL | CF93: @FM-EMN-AH-SOL | CG93: @FM-EMU-AH-SOL | CH93: @FM-EOV-AH-SOL | CI93: @FM-EPT-AH-SOL | CJ93: @FM-EPE-AH-SOL | CK93: @FM-EPG-AH-SOL | CL93: @FM-EPN-AH-SOL | CM93: @FM-ESG-AH-SOL | CN93: @FM-ESP-AH-SOL | CO93: @FM-ESK-AH-SOL | CP93: @FM-ESO-AH-SOL | CQ93: @FM-ESY-AH-SOL | CR93: @FM-ESN-AH-SOL | CS93: @FM-ETP-AH-SOL | CT93: @FM-ETK-AH-SOL | CU93: @FM-EWE-AH-SOL
A94: AH-SOR | B94: 600 Single Oven Housing - RH Hinged | C94: AH-SOR | D94: @FM-MCS-AH-SOR | E94: @FM-MGD-AH-SOR | F94: @FM-MDS-AH-SOR | G94: @FM-MGP-AH-SOR | H94: @FM-MPN-AH-SOR | I94: @FM-MGW-AH-SOR | J94: @FM-MCM-AH-SOR | K94: @FM-MDM-AH-SOR | L94: @FM-MTM-AH-SOR | M94: @FM-MGM-AH-SOR | N94: @FM-MGR-AH-SOR | O94: @FM-MIM-AH-SOR | P94: @FM-MSM-AH-SOR | Q94: @FM-MPM-AH-SOR | R94: @FM-MTP-AH-SOR | S94: @FM-MWM-AH-SOR | T94: @FM-EOG-AH-SOR | U94: @FM-EOM-AH-SOR | V94: @FM-EPM-AH-SOR | W94: @FM-EVM-AH-SOR | X94: @FM-ENM-AH-SOR | Y94: @FM-ELA-AH-SOR | Z94: @FM-ELD-AH-SOR | AA94: @FM-ELW-AH-SOR | AB94: @FM-SAG-AH-SOR | AC94: @FM-SAT-AH-SOR | AD94: @FM-SAB-AH-SOR | AE94: @FM-SBR-AH-SOR | AF94: @FM-SBG-AH-SOR | AG94: @FM-SBW-AH-SOR | AH94: @FM-SBZ-AH-SOR | AI94: @FM-SBF-AH-SOR | AJ94: @FM-SCS-AH-SOR | AK94: @FM-SCB-AH-SOR | AL94: @FM-SDM-AH-SOR | AM94: @FM-SDP-AH-SOR | AN94: @FM-SDS-AH-SOR | AO94: @FM-SGP-AH-SOR | AP94: @FM-SHG-AH-SOR | AQ94: @FM-SIN-AH-SOR | AR94: @FM-SIV-AH-SOR | AS94: @FM-SLR-AH-SOR | AT94: @FM-SDG-AH-SOR | AU94: @FM-SMW-AH-SOR | AV94: @FM-SMZ-AH-SOR | AW94: @FM-SMN-AH-SOR | AX94: @FM-SMC-AH-SOR | AY94: @FM-SMU-AH-SOR | AZ94: @FM-SOV-AH-SOR | BA94: @FM-SPO-AH-SOR | BB94: @FM-SPT-AH-SOR | BC94: @FM-SPE-AH-SOR | BD94: @FM-SPG-AH-SOR | BE94: @FM-SPN-AH-SOR | BF94: @FM-SSG-AH-SOR | BG94: @FM-SSP-AH-SOR | BH94: @FM-SSB-AH-SOR | BI94: @FM-SSO-AH-SOR | BJ94: @FM-SSY-AH-SOR | BK94: @FM-SST-AH-SOR | BL94: @FM-STP-AH-SOR | BM94: @FM-STK-AH-SOR | BN94: @FM-SWE-AH-SOR | BO94: @FM-EAG-AH-SOR | BP94: @FM-EAT-AH-SOR | BQ94: @FM-EAB-AH-SOR | BR94: @FM-EBR-AH-SOR | BS94: @FM-EBG-AH-SOR | BT94: @FM-EBW-AH-SOR | BU94: @FM-ECS-AH-SOR | BV94: @FM-EDM-AH-SOR | BW94: @FM-EDP-AH-SOR | BX94: @FM-EDS-AH-SOR | BY94: @FM-EGP-AH-SOR | BZ94: @FM-EHG-AH-SOR | CA94: @FM-EIN-AH-SOR | CB94: @FM-EIV-AH-SOR | CC94: @FM-ELN-AH-SOR | CD94: @FM-EDG-AH-SOR | CE94: @FM-EME-AH-SOR | CF94: @FM-EMN-AH-SOR | CG94: @FM-EMU-AH-SOR | CH94: @FM-EOV-AH-SOR | CI94: @FM-EPT-AH-SOR | CJ94: @FM-EPE-AH-SOR | CK94: @FM-EPG-AH-SOR | CL94: @FM-EPN-AH-SOR | CM94: @FM-ESG-AH-SOR | CN94: @FM-ESP-AH-SOR | CO94: @FM-ESK-AH-SOR | CP94: @FM-ESO-AH-SOR | CQ94: @FM-ESY-AH-SOR | CR94: @FM-ESN-AH-SOR | CS94: @FM-ETP-AH-SOR | CT94: @FM-ETK-AH-SOR | CU94: @FM-EWE-AH-SOR
